Workbook

Sheet Instructions
A1: NEEM Output Reporter
A2: 8/24/11 - Stanton W. Hadley Oak Ridge National Laboratory
A4: This spreadsheet summarizes the results from two NEEM runs. It provides detailed results for user-defined regions and super-regions. It also provides consolidated capacity generation and cost reports
D5: Graph Label | E5: Case Title From CRA Data Workbook
A6: The workbook evaluates data from two NEEM cases labelled Case1 and Case2. The cases are specified in the colored cells to the right. To change the data the user should push the RunCase1 or RunCase2 buttons depending on which data is to be changed. | C6: F8S7 | D6: =Case1&": "&VLOOKUP(C6,$C$12:$E$98,3,0) -> F8S7: Final F8 hardened | E6: Future 8 Sensitivity 7: Combined Federal Climate and Energy Policy, Flat CO2 Price after 2030, Adjustment to MISO Wind and CC Builds, and other Forced Wind Expansion
A8: The macro now opens the corresponding file for you, but it must be in the same folder as this workbook. If you have changed the names of the files for the different sensitivities you need to change the name in column D. | C8: F1S17 | D8: =Case2&": "&VLOOKUP(C8,$C$12:$E$98,3,0) -> F1S17: Final BAU | E8: Future 1 BAU, Sensitivity 17: Redistribution of CT builds in MISO and Increased intermittent capacity contribution to reserves in SPP
A10: The Cluster set of sheets pulls summary data from the two runs (in ClusterData). The macro RunAll runs the first case repeatedly for each scenario and pastes the resulting values into the Clusters worksheet. ClusterXY allows a user to specify whichvariable to plot on the X and Y axesin ClusterGraph.
J11: Case1 file name
A12: The Generation worksheet contains the data from the Generation sheet from two NEEM runs. In the RunCase1 macro Case 1 data is copied from the Generation sheet cells A1:G24384 and pasted into Generation!F3 in this workbook. The region is also labelled Generation1. Case 2 data is copied from the Case 2 Generation sheet cells A1:G24384 and pasted into Generation!N3 in this workbook. The region is labelled Generation2. | C12: Scenario | D12: CRA Data Workbook Name | E12: Description for labels | F12: Load Profile Used in LMP | J12: =VLOOKUP(C6,$C$13:$D$98,2,0) -> F8S7 Stakeholder Report.xlsx
C13: F1S17 | D13: F1S17 Stakeholder Report.xlsx | E13: Final BAU | F13: BAU | J13: Gen Data | K13: =IF(OR(MID(Case1File,2,1)="2",MID(Case1File,2,1)="3",MID(Case1File,2,1)="8",MID(Case1File,2,3)="7S3"),3,1) -> 3
A14: The Capacity worksheet contains the data from the Capacity sheet from two NEEM runs. Case 1 data is copied from the Case 1 Capacity sheet cells A1:G24384 and pasted into Capacity!F3 in this workbook. The region is labelled Capacity1. Case 2 data is copied from the Case 2 Capacity sheet cells A1:G24384 and pasted into Capacity!N3 in this workbook. The region is labelled Capacity2. | J14: Case2 file name
J15: =VLOOKUP(C8,$C$13:$D$98,2,0) -> F1S17 Stakeholder Report.xlsx
A16: The Transmission worksheet contains the data from the Transmission sheet from the two NEEM runs. This includes transfers from region to region for each load block of each year. It also lists the shadow prices for each block and the hurdled (whelling + friction) costs. The shadow prices are used in the LMPSummary sheet. It also includes calculations of the amount of MWh transferred and the wholesale cost including wheeling (but not friction) costs during each time block. This is then summed for determining import and export energy and costs in the CostSummary worksheet. | C16: F1S3 | D16: F1S3_Output_Report_4-20.xlsx | E16: BAU with Hardened Limits | F16: BAU | J16: Gen Data | K16: =IF(OR(MID(Case2File,2,1)="2",MID(Case2File,2,1)="3",MID(Case2File,2,1)="8",MID(Case2File,2,3)="7S3"),3,1) -> 1
C17: F1S4 | D17: F1S4_Output_Report_5-11.xlsx | E17: BAU, High Load Growth | F17: BAU | J17: Case 1 Load Profile used
A18: The CostSummary worksheet shows the Total, Fuel, Emissions, VOM, FOM, Levelized Capital, Export Costs, and Import Costs for all regions. There is a net present value calculation at the front of the cost tables that uses an input discount rate (in cell A2). Costs between the 5-yr increments are interpolated. At the top of the worksheet is a section where the user can enter the name of a NEEM region and get a listing of the cost factors for just that region. The bottom half of the worksheet shows the results for all the super-regions and super-duper-regions. This worksheet calculates data for both cases and the difference between them. | C18: F1S5 | D18: F1S5_Output_Report_5-11.xlsx | E18: BAU, Low Load Growth | F18: BAU | J18: =VLOOKUP(C6,$C$12:$F$98,4,0) -> BAU | K18: =IF(J18="BAU",1,IF(J18="Peaking PHEV",2,IF(J18="SG PHEV Low D",3,4))) -> 1
C19: F1S6 | D19: F1S6_Output_Report_5-11.xlsx | E19: BAU, High Gas Prices | F19: BAU | J19: Case 2 Load Profile used
A20: The LMPSummary sheet show the shadow price by region and load block. It also calculates the sales by load block so that a weighted average marginal price (shadow price) can be found. It also calculates the wholesale energy cost to customers using these energy prices. It does not include capacity costs or other customer costs. It also does not yet calculate a customer cost based on average production costs (i.e. a vertically integrated utility region.) | C20: F1S7 | D20: F1S7_Output_Report_5-11.xlsx | E20: BAU, Extra High Gas Prices | F20: BAU | J20: =VLOOKUP(C8,$C$12:$F$98,4,0) -> BAU | K20: =IF(J20="BAU",1,IF(J20="Peaking PHEV",2,IF(J20="SG PHEV Low D",3,4))) -> 1
C21: F1S8 | D21: F1S8_Output_Report_5-11.xlsx | E21: BAU, Extra Low Renewable Resources Cost | F21: BAU
A22: The CapacitySummary worksheet lists the Installed Capacity, New Builds, and Retirements for all of the NEEM regions. Again, it shows for both cases and the difference between them. | C22: F1S9 | D22: F1S9_Output_Report_5-11.xlsx | E22: BAU, Increased EE/DR and RPS Requirements | F22: BAU
C23: F1S10 | D23: F1S10_Output_Report_5-11.xlsx | E23: BAU, Higher PHEV | F23: Peaking PHEV | J23: Reporter File Reference
A24: The GenerationSummary worksheet lists theGeneration and Demand for all of the NEEM regions. Again, it shows for both cases and the difference between them. | C24: F1S11 | D24: F1S11_Output_Report_5-11.xlsx | E24: BAU, Decreased Renewable Resources Cost | F24: BAU | J24: =MID(J25,J26,K27) -> NEEM Output Reporter_11-17-2011.xlsm
C25: F1S12 | D25: F1S12_Output_Report_5-11.xlsx | E25: BAU, Delayed EPA Regulations (+20 years) | F25: BAU | J25: =CELL("filename",J25) -> swh:EI DR and Load:Futures Results:[NEEM Output Reporter_11-17-2011.xlsm]Instructions
A26: The IntegrationCost worksheet calculates the integration cost for variable energy sources (wind and solar). The WindCF worksheet calculates the on-shore wind load profile for Case 1 in 2030 It then compares those to the demands in the region for those same load blocks. It also calculates the production of wind using the input Class 4 and Class 3 parameters and calculates the possible curtailment of wind in each region in 2030 and 2035. | C26: F1S13 | D26: F1S13_Output_Report_5-11.xlsx | E26: BAU, Reduced EE/DR and RPS Requirements | F26: BAU | J26: =FIND("[",J25,1)+1 -> 37 | K26: =FIND("]",J25,1)-1 -> 72
C27: F1S14 | D27: F1S14_Output_Report_5-11.xlsx | E27: BAU, Less Agressive EPA Regulations (+5 years) | F27: BAU | K27: =K26-J26+1 -> 36
A28: The SingleRegion worksheet allows a User to put the name of one of the regions (listed in A5:A62) into cell A2 and see the detailed results for that region. Some Consolidated Regions can also be shown; the list is shown in cells A5:A51. It shows all the tables from the Capacity and Generation sheets for both Case 1 and Case 2 for that region. It also shows the difference, Case1 - Case2. Note that NEEM reports reserve margin data for consolidated regions, listed in A55:A62. Using these names in cell A2 will only show results for the Reserve Margin table. | C28: F1S15 | D28: F1S15_Output_Report_5-11.xlsx | E28: BAU, PTC/ITC Expire and RPS Removed | F28: BAU | J28: Case1 fullpath
C29: F1S16 | D29: F1S16_Output_Report_5-11.xlsx | E29: BAU, PTC/ITC Expire, RPS Removed, High Load | F29: BAU | J29: =LEFT(J25,FIND("[",J25)-1)&Case1File -> swh:EI DR and Load:Futures Results:F8S7 Stakeholder Report.xlsx
A30: The SingleRegionCharts sheet provides charts of key capacity, emissions, and cost parameters for the region specified in SingleRegion. Charts can show details by generation technology. | J30: Case2 fullpath
C31: F2B | D31: F2B_Output_Report_5-26.xlsx | E31: National Carbon Constraint | F31: BAU | J31: =LEFT(J25,FIND("[",J25)-1)&Case2File -> swh:EI DR and Load:Futures Results:F1S17 Stakeholder Report.xlsx
A32: The RegionSupplyDemandCharts sheet displays demand and supply results for the region selected in SingleRegion. | C32: F2S1 | D32: F2S1_Output_Report_5-26.xlsx | E32: National Carbon, Soft Constraint, 75% Overload | F32: BAU
C33: F2S2 | D33: F2S2_Output_Report_5-26.xlsx | E33: National Carbon, Soft Transmission, 25% Overload | F33: BAU
A34: The SingleSuperRegion worksheet provides similar reports as the SingleRegion worksheet but allows the User to select the name of one of the defined Super-Regions for the NEEM study. These are listed in cellsB5:B62, with the corresponding NEEM regions listed in column A or Column B. If you want one of the four "super-duper regions" put a "4" in cell B2; for the seven Super Regions put a "7". | C34: F2S3 | D34: F2S3_Stakeholder_Report_6-13.xlsx | E34: National Carbon with Reduced Friction Charges | F34: BAU
C35: F2S4 | D35: F2S4_Stakeholder_Report_6-13.xlsx | E35: National Carbon with High Load Growth | F35: BAU
A36: The SingleSuperRegionCharts sheet provides charts of key capacity, emissions, and cost parameters for the SuperRegion specified in SingleSuperRegion. Charts can show details by generation technology. | C36: F2S5 | D36: F2S5_Stakeholder_Report_6-13.xlsx | E36: National Carbon with Low Load Growth | F36: BAU
C37: F2S6 | D37: F2S6_Stakeholder_Report_6-13.xlsx | E37: National Carbon with Extra High Gas Prices | F37: BAU
A38: The Map sheet is simply a graphic showing the relationships between the NEEM regions. The regions are boxed into their respective Super-Regions. However, there has been a change to the definitions since the map was made. Non-RTO Midwest is now included in the Midwest region instead of with PJM_Rest of Region. | C38: F2S7 | D38: F2S7_Stakeholder_Report_6-13.xlsx | E38: National Carbon with Low Gas Prices | F38: BAU
C39: F2S8 | D39: F2S8 Stakeholder Report 7-20.xlsx | E39: National Carbon with Flat Carbon Price post 2030 | F39: BAU
C40: F2S9 | D40: F2S9_Stakeholder_Report_6-13.xlsx | E40: National Carbon with Lower Carbon Costs | F40: BAU
C41: F2S10 | D41: F2S10_Stakeholder_Report_6-13.xlsx | E41: National Carbon with Extra Low Renewable Costs | F41: BAU
C42: F2S11 | D42: F2S11_Stakeholder_Report_6-13.xlsx | E42: National Carbon Base with Hardened Tx Limits | F42: BAU
C43: F2S12 | D43: F2S12 Stakeholder Report 7-20.xlsx | E43: National Carbon with Increased Variable Limits | F43: BAU
C45: F3B | D45: F3B_Stakeholder_Report_6-13.xlsx | E45: National Carbon at State/Regional Implementation | F45: BAU
C46: F3S1 | D46: F3S1_Stakeholder_Report_6-13.xlsx | E46: Regional Carbon 75% Overload Charges | F46: BAU
C47: F3S3 | D47: F3S3_Stakeholder_Report_6-28.xlsx | E47: Regional Carbon High load growth | F47: BAU
C48: F3S4 | D48: F3S4_Stakeholder_Report_6-28.xlsx | E48: Regional Carbon Low load growth | F48: BAU
C49: F3S5 | D49: F3S5_Stakeholder_Report_6-28.xlsx | E49: Regional Carbon Extra high natural gas price | F49: BAU
C50: F3S6 | D50: F3S6_Stakeholder_Report_6-28.xlsx | E50: Regional Carbon Low Gas Prices | F50: BAU
C51: F3S7 | D51: F3S7 Stakeholder Report 7-20.xlsx | E51: Regonal Carbon with Flat Carbon Price post 2030 | F51: BAU
C52: F3S8 | D52: F3S8_Stakeholder_Report_6-28.xlsx | E52: Regional Carbon Carbon tax -20% | F52: BAU
C53: F3S9 | D53: F3S9_Stakeholder_Report_6-28.xlsx | E53: Regional Carbon Limited new/upgraded nuclear | F53: BAU
C54: F3S10 | D54: F3S10_Stakeholder_Report_6-28.xlsx | E54: Regional Carbon Increased imported Canadian hydro | F54: BAU
C55: F3S11 | D55: F3S11_Stakeholder_Report_6-28.xlsx | E55: Regional Carbon -32.5% renewable capital costs | F55: BAU
C56: F3S12 | D56: F3S12_Stakeholder_Report_6-28.xlsx | E56: Regional Carbon with hardened transmission limits | F56: BAU
C57: F3S13 | D57: F3S13 Stakeholder Report 7-20.xlsx | E57: Regional Carbon with Increased Variable Limits | F57: BAU
C59: F4B | D59: F4B_Stakeholder_Report_6-28.xlsx | E59: Aggressive EE/DR/DG | F59: BAU
C60: F4S1 | D60: F4S1_Stakeholder_Report_6-28.xlsx | E60: Aggressive EE/DR/DG, PHEV with SG | F60: SG PHEV Low D
C61: F4S2 | D61: F4S2_Stakeholder_Report_6-28.xlsx | E61: Aggressive EE/DR/DG, PHEV w/ Peaking Load | F61: Peaking PHEV Low D
C62: F4S3 | D62: F4S3_Stakeholder_Report_6-28.xlsx | E62: Aggressive EE/DR/DG, +1% EE | F62: BAU
C64: F5B | D64: F5B_Stakeholder_Report_6-28.xlsx | E64: National RPS | F64: BAU
C65: F5S1 | D65: F5S1_Stakeholder_Report_6-28.xlsx | E65: National RPS 75% Overload Charges | F65: BAU
C66: F5S2 | D66: F5S2_Stakeholder_Report_6-28.xlsx | E66: National RPS 25% Overload Charges | F66: BAU
C67: F5S3 | D67: F5S3 Stakeholder Report 7-20.xlsx | E67: National RPS with High Load Growth | F67: BAU
C68: F5S4 | D68: F5S4 Stakeholder Report 7-20.xlsx | E68: National RPS with High Gas Prices | F68: BAU
C69: F5S5 | D69: F5S5 Stakeholder Report 7-20.xlsx | E69: Clean Energy Standard, Top-down Implement | F69: BAU
C70: F5S7 | D70: F5S7 Stakeholder Report 7-20.xlsx | E70: National RPS High PHEV w/ Peaking Load | F70: Peaking PHEV
C71: F5S8 | D71: F5S8 Stakeholder Report 7-20.xlsx | E71: National RPS Reduced Hurdle Rates | F71: BAU
C72: F5S9 | D72: F5S9 Stakeholder Report 7-20.xlsx | E72: National RPS High Offshore Wind | F72: BAU
C73: F5S10 | D73: F5S10 Stakeholder Report 7-20.xlsx | E73: National RPS with Hardened Tx Limits | F73: BAU
C75: F6B | D75: F6B Stakeholder Report 7-20.xlsx | E75: Regional RPS Base | F75: BAU
C76: F6S1 | D76: F6S1 Stakeholder Report 7-20.xlsx | E76: Regional RPS 25% Overload Charges | F76: BAU
C77: F6S2 | D77: F6S2 Stakeholder Report 8-18.xlsx | E77: Regional RPS High Load Growth | F77: BAU
C78: F6S3 | D78: F6S3 Stakeholder Report 8-18.xlsx | E78: Regional RPS High Natural Gas Price | F78: BAU
C79: F6S4 | D79: F6S4 Stakeholder Report 8-18.xlsx | E79: Regional RPS Clean Energy Standard | F79: BAU
C80: F6S6 | D80: F6S6 Stakeholder Report 8-18.xlsx | E80: Regional RPS Increased Canadian Hydro | F80: BAU
C81: F6S7 | D81: F6S7 Stakeholder Report 8-18.xlsx | E81: Regional RPS Higher PHEV Levels | F81: Peaking PHEV
C82: F6S9 | D82: F6S9 Stakeholder Report 8-18.xlsx | E82: Regional RPS Force in More Offshore Wind | F82: BAU
C83: F6S10 | D83: F6S10 Stakeholder Report 8-18.xlsx | E83: Regional RPS Hardened | F83: BAU
C85: F7B | D85: F7B Stakeholder Report 7-20.xlsx | E85: Nuclear Resurgence Base | F85: BAU
C86: F7S1 | D86: F7S1 Stakeholder Report 7-20.xlsx | E86: Nuclear Resurgence, 25% Overload Charges | F86: BAU
C87: F7S2 | D87: F7S2 Stakeholder Report 8-18.xlsx | E87: Nuclear Resurgence High Load Growth | F87: BAU
C88: F7S3 | D88: F7S3 Stakeholder Report 8-18.xlsx | E88: Nuclear Resurgence EPA Carbon Limitations | F88: BAU
C89: F7S4 | D89: F7S4 Stakeholder Report 8-18.xlsx | E89: Nuclear Resurgence Modular Nuclear (SMR) | F89: BAU
C91: F8B | D91: F8B Stakeholder Report 7-20.xlsx | E91: Combined National Policies Base | F91: BAU
C92: F8S1 | D92: F8S1 Stakeholder Report 7-20.xlsx | E92: Combined National Policies 75% Overload Charges | F92: BAU
C93: F8S2 | D93: F8S2 Stakeholder Report 7-20.xlsx | E93: Combined National Policies 25% Overload Charges | F93: BAU
C94: F8S3 | D94: F8S3 Stakeholder Report 8-18.xlsx | E94: Combined National Policies Low Renewable Cost | F94: BAU
C95: F8S4 | D95: F8S4 Stakeholder Report 8-18.xlsx | E95: Combined Policies 40% RPS and 45% Intermit Limits | F95: BAU
C96: F8S5 | D96: F8S5 Stakeholder Report.xlsx | E96: Combo Policies, OL75, Flat CO2, Move plants | F96: BAU
C97: F8S6 | D97: F8S6 Stakeholder Report.xlsx | E97: Comb Policies, OL75, Move plants more | F97: BAU
C98: F8S7 | D98: F8S7 Stakeholder Report.xlsx | E98: Final F8 hardened | F98: BAU

Sheet ExportsMap
Q3: From_2_To | R3: To_2_From
N4: from_2_to | O4: From | P4: To | Q4: Gwyr | R4: Gwyr | V4: ExpLineWidth | W4: ArrowDirection
L5: 5 | M5: up | N5: ENT_2_MISO_MO-IL | O5: ENT | P5: MISO_MO-IL | Q5: =TXCalc!AF5 -> 0.001732031963 | R5: =TXCalc!AG5 -> 0.2994206906 | S5: =ROUND(ABS(Q5-R5),1)&IF(Q5>R5,T5,U5) -> 0.3v | T5: =IF($M5="up","^",IF($M5="down","v",IF($M5="left","<",">"))) -> ^ | U5: =IF($M5="up","v",IF($M5="down","^",IF($M5="left",">","<"))) -> v | V5: =ROUND(ABS(Q5-R5),1) -> 0.3 | W5: =IF(Q5>R5,"End","Begin") -> Begin
L6: =L5+1 -> 6 | M6: right | N6: ENT_2_SOCO | O6: ENT | P6: SOCO | Q6: =TXCalc!AF6 -> 0.977503645 | R6: =TXCalc!AG6 -> 0 | S6: 1> | T6: =IF($M6="up","^",IF($M6="down","v",IF($M6="left","<",">"))) -> > | U6: =IF($M6="up","v",IF($M6="down","^",IF($M6="left",">","<"))) -> < | V6: =ROUND(ABS(Q6-R6),1) -> 1 | W6: =IF(Q6>R6,"Begin","End") -> Begin
L7: =L6+1 -> 7 | M7: up | N7: ENT_2_SPP_N | O7: ENT | P7: SPP_N | Q7: =TXCalc!AF7 -> 0 | R7: =TXCalc!AG7 -> 6.1387254 | S7: 6.1v | T7: ^ | U7: v | V7: 6.1 | W7: =IF(Q7>R7,"End","Begin") -> Begin
L8: 8 | M8: down | N8: ENT_2_SPP_S | O8: ENT | P8: SPP_S | Q8: =TXCalc!AF8 -> 0 | R8: =TXCalc!AG8 -> 2.924305321 | S8: 2.9^ | T8: v | U8: ^ | V8: 2.9 | W8: =IF(Q8>R8,"Begin","End") -> End
L9: 9 | M9: right | N9: ENT_2_TVA | O9: ENT | P9: TVA | Q9: =TXCalc!AF9+TXCalc!AF10 -> 0.03073953196 | R9: =TXCalc!AG9+TXCalc!AG10 -> 0 | S9: 0> | T9: > | U9: < | V9: 0 | W9: End
L10: 10 | M10: up | N10: ERCOT_2_SPP_S | O10: ERCOT | P10: SPP_S | Q10: =TXCalc!AF11 -> 0 | R10: =TXCalc!AG11 -> 0.5949706621 | S10: 0.6v | T10: ^ | U10: v | V10: 0.6 | W10: =IF(Q10>R10,"Begin","End") -> End
L11: 11 | M11: left | N11: FRCC_2_SOCO | O11: FRCC | P11: SOCO | Q11: =TXCalc!AF12 -> 0.02825342466 | R11: =TXCalc!AG12 -> 0.0007049315068 | S11: 0< | T11: < | U11: > | V11: 0 | W11: =IF(Q11>R11,"Begin","End") -> Begin
L12: 12 | M12: down | N12: MAPP_CA_2_MAPP_US | O12: MAPP_CA | P12: MAPP_US | Q12: =TXCalc!AF17 -> 0.09969452055 | R12: =TXCalc!AG17 -> 0.04074143836 | S12: 0.1v | T12: v | U12: ^ | V12: 0.1 | W12: =IF(Q12>R12,"Begin","End") -> Begin
L13: 13 | M13: down | N13: MAPP_CA_2_MISO_W | O13: MAPP_CA | P13: MISO_W | Q13: =TXCalc!AF18 -> 1.402493212 | R13: =TXCalc!AG18 -> 0.1728424658 | S13: 1.2v | T13: v | U13: ^ | V13: 1.2 | W13: =IF(Q13>R13,"Begin","End") -> Begin
L14: 14 | M14: right | N14: MAPP_CA_2_IESO | O14: MAPP_CA | P14: IESO | Q14: =TXCalc!AF19 -> 0.1563997717 | R14: =TXCalc!AG19 -> 0.106310274 | S14: 0.1> | T14: > | U14: < | V14: 0.1 | W14: End
L15: 15 | M15: right | N15: MAPP_US_2_MISO_W | O15: MAPP_US | P15: MISO_W | Q15: =TXCalc!AF21 -> 2.100721911 | R15: =TXCalc!AG21 -> 0 | S15: 2.1> | T15: > | U15: < | V15: 2.1 | W15: End
L16: 16 | M16: down | N16: MAPP_US_2_NE | O16: MAPP_US | P16: NE | Q16: =TXCalc!AF22 -> 0.02528398973 | R16: =TXCalc!AG22 -> 0.2657188744 | S16: 0.2^ | T16: v | U16: ^ | V16: 0.2 | W16: Begin
L17: 17 | M17: left | N17: MAPP_US_2_NWPP_Coal | O17: MAPP_US | P17: NWPP_Coal | Q17: =TXCalc!AF23 -> 0 | R17: =TXCalc!AG23 -> 0.006849315068 | S17: 0> | T17: < | U17: > | V17: 0 | W17: =IF(Q17>R17,"Begin","End") -> End
L18: 18 | M18: left | N18: MAPP_US_2_RMPA | O18: MAPP_US | P18: RMPA | Q18: =TXCalc!AF24 -> 0.1848043379 | R18: =TXCalc!AG24 -> 0 | S18: 0.2< | T18: < | U18: > | V18: 0.2 | W18: =IF(Q18>R18,"Begin","End") -> Begin
L19: 19 | M19: up | N19: MISO_IN_2_MISO_MI | O19: MISO_IN | P19: MISO_MI | Q19: =TXCalc!AF25 -> 0.3447867557 | R19: =TXCalc!AG25 -> 1.281492637 | S19: 0.9v | T19: ^ | U19: v | V19: 0.9 | W19: Begin
L20: 20 | M20: left | N20: MISO_IN_2_MISO_MO-IL | O20: MISO_IN | P20: MISO_MO-IL | Q20: =TXCalc!AF26 -> 0.01862465753 | R20: =TXCalc!AG26 -> 1.430457962 | S20: 1.4> | T20: < | U20: > | V20: 1.4 | W20: =IF(Q20>R20,"Begin","End") -> End
L21: 21 | M21: down | N21: MISO_IN_2_NonRTO_Midwest | O21: MISO_IN | P21: NonRTO_Midwest | Q21: =TXCalc!AF27 -> 1.085810137 | R21: =TXCalc!AG27 -> 0 | S21: 1.1v | T21: v | U21: ^ | V21: 1.1 | W21: =IF(Q21>R21,"Begin","End") -> Begin
L22: 22 | M22: down | N22: MISO_IN_2_PJM_ROR | O22: MISO_IN | P22: PJM_ROR | Q22: =TXCalc!AF28 -> 0.1116202055 | R22: =TXCalc!AG28 -> 0.005505222603 | S22: 0.1v | T22: v | U22: ^ | V22: 0.1 | W22: =IF(Q22>R22,"Begin","End") -> Begin
L23: 23 | M23: up | N23: MISO_MI_2_MISO_WUMS | O23: MISO_MI | P23: MISO_WUMS | Q23: =TXCalc!AF30 -> 0.0998854726 | R23: =TXCalc!AG30 -> 0.0849609589 | S23: 0^ | T23: ^ | U23: v | V23: 0 | W23: End
L24: 24 | M24: left | N24: MISO_MI_2_IESO | O24: MISO_MI | P24: IESO | Q24: =TXCalc!AF31 -> 0 | R24: =TXCalc!AG31 -> 3.125 | S24: 3.1> | T24: < | U24: > | V24: 3.1 | W24: Begin
L25: 25 | M25: down | N25: MISO_MI_2_PJM_ROR | O25: MISO_MI | P25: PJM_ROR | Q25: =TXCalc!AF32 -> 0.3790308562 | R25: =TXCalc!AG32 -> 0 | S25: 0.4v | T25: v | U25: ^ | V25: 0.4 | W25: End
L26: 26 | M26: up | N26: MISO_MO-IL_2_MISO_W | O26: MISO_MO-IL | P26: MISO_W | Q26: =TXCalc!AF35 -> 0 | R26: =TXCalc!AG35 -> 3.81802988 | S26: 3.8v | T26: ^ | U26: v | V26: 3.8 | W26: =IF(Q26>R26,"Begin","End") -> End
L27: 27 | M27: down | N27: MISO_MO-IL_2_PJM_ROR | O27: MISO_MO-IL | P27: PJM_ROR | Q27: =TXCalc!AF36 -> 0.6281641781 | R27: =TXCalc!AG36 -> 0 | S27: 0.6v | T27: v | U27: ^ | V27: 0.6 | W27: End
L28: 28 | M28: left | N28: MISO_MO-IL_2_SPP_N | O28: MISO_MO-IL | P28: SPP_N | Q28: =TXCalc!AF37 -> 0 | R28: =TXCalc!AG37 -> 1.64100113 | S28: 1.6> | T28: < | U28: > | V28: 1.6 | W28: Begin
L29: 29 | M29: down | N29: MISO_MO-IL_2_TVA | O29: MISO_MO-IL | P29: TVA | Q29: =TXCalc!AF38+TXCalc!AF39 -> 1.773299205 | R29: =TXCalc!AG38+TXCalc!AG39 -> 0 | S29: 1.8v | T29: v | U29: ^ | V29: 1.8 | W29: =IF(Q29>R29,"Begin","End") -> Begin
L30: 30 | M30: right | N30: MISO_W_2_MISO_WUMS | O30: MISO_W | P30: MISO_WUMS | Q30: =TXCalc!AF44 -> 1.328055006 | R30: =TXCalc!AG44 -> 0 | S30: 1.3> | T30: > | U30: < | V30: 1.3 | W30: End
L31: 31 | M31: left | N31: MISO_W_2_NE | O31: MISO_W | P31: NE | Q31: =TXCalc!AF45 -> 0 | R31: =TXCalc!AG45 -> 2.4372822 | S31: 2.4> | T31: < | U31: > | V31: 2.4 | W31: Begin
L32: 32 | M32: up | N32: MISO_W_2_IESO | O32: MISO_W | P32: IESO | Q32: =TXCalc!AF46 -> 0.05235559361 | R32: =TXCalc!AG46 -> 0.1245907534 | S32: 0.1v | T32: ^ | U32: v | V32: 0.1 | W32: Begin
L33: 33 | M33: down | N33: MISO_W_2_PJM_ROR | O33: MISO_W | P33: PJM_ROR | Q33: =TXCalc!AF47 -> 18.05876454 | R33: =TXCalc!AG47 -> 0 | S33: 18.1v | T33: v | U33: ^ | V33: 18.1 | W33: End
L34: 34 | M34: left | N34: MISO_W_2_SPP_N | O34: MISO_W | P34: SPP_N | Q34: =TXCalc!AF48 -> 0.03940159817 | R34: =TXCalc!AG48 -> 0.3479452055 | S34: 0.3> | T34: < | U34: > | V34: 0.3 | W34: Begin
L35: 35 | M35: down | N35: MISO_WUMS_2_PJM_ROR | O35: MISO_WUMS | P35: PJM_ROR | Q35: =TXCalc!AF51 -> 0.3299029395 | R35: =TXCalc!AG51 -> 0 | S35: 0.3v | T35: v | U35: ^ | V35: 0.3 | W35: =IF(Q35>R35,"Begin","End") -> Begin
L36: 36 | M36: left | N36: NE_2_RMPA | O36: NE | P36: RMPA | Q36: =TXCalc!AF54 -> 0.2943181507 | R36: =TXCalc!AG54 -> 0.005259360731 | S36: 0.3< | T36: < | U36: > | V36: 0.3 | W36: =IF(Q36>R36,"Begin","End") -> Begin
L37: 37 | M37: down | N37: NE_2_SPP_N | O37: NE | P37: SPP_N | Q37: =TXCalc!AF55 -> 1.192716604 | R37: =TXCalc!AG55 -> 0.06767134932 | S37: =ROUND(ABS(Q37-R37),1)&IF(Q37>R37,T37,U37) -> 1.1v | T37: v | U37: ^ | V37: 1.1 | W37: End
L38: 38 | M38: down | N38: NEISO_2_NYISO_A-F | O38: NEISO | P38: NYISO_A-F | Q38: =TXCalc!AF56 -> 0.003961872146 | R38: =TXCalc!AG56 -> 0.1534368447 | S38: 0.1^ | T38: v | U38: ^ | V38: 0.1 | W38: =IF(Q38>R38,"Begin","End") -> End
L39: 39 | M39: down | N39: NEISO_2_NYISO_G-I | O39: NEISO | P39: NYISO_G-I | Q39: =TXCalc!AF57 -> 0.3067939212 | R39: =TXCalc!AG57 -> 0.001822254566 | S39: 0.3v | T39: v | U39: ^ | V39: 0.3 | W39: Begin
L40: 40 | M40: down | N40: NEISO_2_NYISO_J-K | O40: NEISO | P40: NYISO_J-K | Q40: =TXCalc!AF58 -> 0.7200731358 | R40: =TXCalc!AG58 -> 0 | S40: 0.7v | T40: v | U40: ^ | V40: 0.7 | W40: Begin
L41: 41 | M41: down | N41: NonRTO_Midwest_2_TVA | O41: NonRTO_Midwest | P41: TVA | Q41: =TXCalc!AF60+TXCalc!AF61 -> 0.003951621005 | R41: =TXCalc!AG60+TXCalc!AG61 -> 0 | S41: 0v | T41: v | U41: ^ | V41: 0 | W41: Begin
L42: 42 | M42: down | N42: NYISO_A-F_2_NYISO_G-I | O42: NYISO_A-F | P42: NYISO_G-I | Q42: =TXCalc!AF64 -> 5.131851993 | R42: =TXCalc!AG64 -> 0 | S42: 5.1v | T42: v | U42: ^ | V42: 5.1 | W42: Begin
L43: 43 | M43: left | N43: NYISO_A-F_2_IESO | O43: NYISO_A-F | P43: IESO | Q43: =TXCalc!AF65 -> 0 | R43: =TXCalc!AG65 -> 2.06784942 | S43: 2.1> | T43: < | U43: > | V43: 2.1 | W43: End
B44: =INDEX(Clusters!$A$5:$A$93,MATCH(Case1,Clusters!$D$5:$D$93,0)) -> F8S7 Final Hardened | D44: =IF(C44<0.5,255,2*ROUND(255*(1-C44),0)) -> 255 | E44: =2*ROUND(255*(0.5-ABS(C44-0.5)),0) -> 0 | F44: =ROUND(C44*255,0) -> 0 | L44: 44 | M44: down | N44: NYISO_A-F_2_PJM_ROM | O44: NYISO_A-F | P44: PJM_ROM | Q44: =TXCalc!AF66 -> 0.7186073059 | R44: =TXCalc!AG66 -> 0 | S44: 0.7v | T44: v | U44: ^ | V44: 0.7 | W44: End
A45: Pool/Region | B45: 2030 Net Export (GWyr) | D45: R | E45: G | F45: B | G45: sum of lines | H45: 2030 Net Export (TWh) | I45: net export/demand | L45: 45 | M45: down | N45: NYISO_G-I_2_NYISO_J-K | O45: NYISO_G-I | P45: NYISO_J-K | Q45: =TXCalc!AF69 -> 5.460046054 | R45: =TXCalc!AG69 -> 0 | S45: 5.5v | T45: v | U45: ^ | V45: 5.5 | W45: =IF(Q45>R45,"Begin","End") -> Begin
A46: ENT | B46: =GenerationSummary!$I69/8.76 -> -8.349315068 | C46: =IF(B46<=0,0.5*(1-B46/$B$74),0.5+0.5*B46/$B$72) -> 0.1119893899 | D46: =IF(C46<0.5,255,2*ROUND(255*(1-C46),0)) -> 255 | E46: =2*ROUND(255*(0.5-ABS(C46-0.5)),0) -> 58 | F46: =ROUND(C46*255,0) -> 29 | G46: =SUMIF($O$5:$O$61,A46,$Q$5:$Q$61)-SUMIF($P$5:$P$61,A46,$Q$5:$Q$61)+SUMIF($P$5:$P$61,A46,$R$5:$R$61)-SUMIF($O$5:$O$61,A46,$R$5:$R$61) -> -8.352476202 | H46: =GenerationSummary!$I69 -> -73.14 | I46: =GenerationSummary!$I69/GenerationSummary!$I37 -> -0.4815326881 | J46: 1 | K46: ActiveSheet.Shapes.Range(Array("TextBox 171")).Select | L46: 46 | M46: down | N46: NYISO_G-I_2_PJM_E | O46: NYISO_G-I | P46: PJM_E | Q46: =TXCalc!AF70 -> 0.1343258562 | R46: =TXCalc!AG70 -> 0.001997716895 | S46: 0.1v | T46: v | U46: ^ | V46: 0.1 | W46: End
A47: FRCC | B47: =GenerationSummary!$I70/8.76 -> 0.02739726027 | C47: 0.5008031591 | D47: =IF(C47<0.5,255,2*ROUND(255*(1-C47),0)) -> 254 | E47: =2*ROUND(255*(0.5-ABS(C47-0.5)),0) -> 254 | F47: =ROUND(C47*255,0) -> 128 | G47: =SUMIF($O$5:$O$61,A47,$Q$5:$Q$61)-SUMIF($P$5:$P$61,A47,$Q$5:$Q$61)+SUMIF($P$5:$P$61,A47,$R$5:$R$61)-SUMIF($O$5:$O$61,A47,$R$5:$R$61) -> 0.02754849315 | J47: =J46+1 -> 2 | K47: ActiveSheet.Shapes.Range(Array("TextBox 168")).Select | L47: 47 | M47: down | N47: NYISO_J-K_2_PJM_E | O47: NYISO_J-K | P47: PJM_E | Q47: =TXCalc!AF74 -> 0.01790342466 | R47: =TXCalc!AG74 -> 0.001318493151 | S47: 0v | T47: v | U47: ^ | V47: 0 | W47: =IF(Q47>R47,"Begin","End") -> Begin
A48: MAPP_US | B48: =GenerationSummary!$I71/8.76 -> 1.979452055 | C48: 0.5580282444 | D48: 226 | E48: 226 | F48: 142 | G48: 1.979288967 | J48: =J47+1 -> 3 | K48: ActiveSheet.Shapes.Range(Array("TextBox 125")).Select | L48: 48 | M48: left | N48: PJM_E_2_PJM_ROM | O48: PJM_E | P48: PJM_ROM | Q48: =TXCalc!AF82 -> 0.9311626438 | R48: =TXCalc!AG82 -> 0.5193449235 | S48: 0.4< | T48: < | U48: > | V48: 0.4 | W48: =IF(Q48>R48,"Begin","End") -> Begin
A49: MISO_IN | B49: =GenerationSummary!$I72/8.76 -> -1.156392694 | C49: 0.4462599469 | D49: 255 | E49: 228 | F49: 114 | G49: -1.156614066 | J49: 4 | K49: ActiveSheet.Shapes.Range(Array("TextBox 142")).Select | L49: 49 | M49: left | N49: PJM_ROM_2_PJM_ROR | O49: PJM_ROM | P49: PJM_ROR | Q49: =TXCalc!AF85 -> 0.111476484 | R49: =TXCalc!AG85 -> 5.766918848 | S49: 5.7> | T49: < | U49: > | V49: 5.7 | W49: =IF(Q49>R49,"Begin","End") -> End
A50: MISO_MI | B50: =GenerationSummary!$I73/8.76 -> -1.674657534 | C50: 0.4221750663 | D50: 255 | E50: 216 | F50: 108 | G50: -1.794338749 | J50: 5 | K50: ActiveSheet.Shapes.Range(Array("TextBox 141")).Select | L50: 50 | M50: left | N50: PJM_ROR_2_TVA | O50: PJM_ROR | P50: TVA | Q50: =TXCalc!AF93+TXCalc!AF94 -> 0.9070255365 | R50: =TXCalc!AG93+TXCalc!AG94 -> 0 | S50: 0.9< | T50: < | U50: > | V50: 0.9 | W50: =IF(Q50>R50,"Begin","End") -> Begin
A51: MISO_MO-IL | B51: =GenerationSummary!$I74/8.76 -> -1.320776256 | C51: 0.4386206897 | D51: 255 | E51: 224 | F51: 112 | G51: -1.348045663 | J51: 6 | K51: ActiveSheet.Shapes.Range(Array("TextBox 139")).Select | L51: 51 | M51: right | N51: PJM_ROR_2_VACAR | O51: PJM_ROR | P51: VACAR | Q51: =TXCalc!AF95 -> 1.847403111 | R51: =TXCalc!AG95 -> 0 | S51: 1.8> | T51: > | U51: < | V51: 1.8 | W51: End
A52: MISO_W | B52: =GenerationSummary!$I75/8.76 -> 17.05593607 | C52: 1 | D52: 0 | E52: 0 | F52: 255 | G52: 17.0564158 | J52: 7 | K52: ActiveSheet.Shapes.Range(Array("TextBox 138")).Select | L52: 52 | M52: right | N52: RMPA_2_SPP_N | O52: RMPA | P52: SPP_N | Q52: =TXCalc!AF98 -> 0.004794520548 | R52: =TXCalc!AG98 -> 0.1782363014 | S52: 0.2< | T52: > | U52: < | V52: 0.2 | W52: Begin
A53: MISO_WUMS | B53: =GenerationSummary!$I76/8.76 -> -1.012557078 | C53: 0.4529442971 | D53: 255 | E53: 232 | F53: 116 | G53: -1.01307658 | J53: 8 | K53: ActiveSheet.Shapes.Range(Array("TextBox 140")).Select | L53: 53 | M53: left | N53: SOCO_2_TVA | O53: SOCO | P53: TVA | Q53: =TXCalc!AF101+TXCalc!AF102 -> 0.02407773973 | R53: =TXCalc!AG101+TXCalc!AG102 -> 0.01754072489 | S53: 0< | T53: < | U53: > | V53: 0 | W53: End
A54: NE | B54: =GenerationSummary!$I77/8.76 -> 4.091324201 | C54: 0.6199384245 | D54: 194 | E54: 194 | F54: 158 | G54: 4.091821129 | J54: 9 | K54: ActiveSheet.Shapes.Range(Array("TextBox 127")).Select | L54: 54 | M54: right | N54: SOCO_2_VACAR | O54: SOCO | P54: VACAR | Q54: =TXCalc!AF103 -> 0.05104257991 | R54: =TXCalc!AG103 -> 0.6096648402 | S54: 0.6< | T54: > | U54: < | V54: 0.6 | W54: =IF(Q54>R54,"Begin","End") -> End
A55: NEISO | B55: =GenerationSummary!$I78/8.76 -> -2.831050228 | C55: 0.3684350133 | D55: 255 | E55: 188 | F55: 94 | G55: -2.8775262 | J55: 10 | K55: ActiveSheet.Shapes.Range(Array("TextBox 158")).Select | L55: 55 | M55: down | N55: SPP_N_2_SPP_S | O55: SPP_N | P55: SPP_S | Q55: =TXCalc!AF109 -> 2.047971963 | R55: =TXCalc!AG109 -> 0.06648401826 | S55: 2v | T55: v | U55: ^ | V55: 2 | W55: =IF(Q55>R55,"Begin","End") -> Begin
A56: NonRTO_Midwest | B56: =GenerationSummary!$I79/8.76 -> -1.082191781 | C56: 0.4497082228 | D56: 255 | E56: 230 | F56: 115 | G56: -1.081858516 | J56: 11 | K56: ActiveSheet.Shapes.Range(Array("TextBox 176")).Select | L56: 56 | M56: left | N56: SPP_S_2_AZ_NM_SNV_Coal | O56: SPP_S | P56: AZ_NM_SNV_Coal | Q56: =TXCalc!AF110 -> 0 | R56: =TXCalc!AG110 -> 0.01274657534 | S56: 0> | T56: < | U56: > | V56: 0 | W56: =IF(Q56>R56,"Begin","End") -> End
A57: NYISO_A-F | B57: =GenerationSummary!$I80/8.76 -> 1.72260274 | C57: 0.5504986279 | D57: 230 | E57: 230 | F57: 140 | G57: 1.713233065 | J57: 12 | K57: ActiveSheet.Shapes.Range(Array("TextBox 159")).Select | L57: 57 | M57: right | N57: TVA_2_VACAR | O57: TVA | P57: VACAR | Q57: =TXCalc!AF119+TXCalc!AF125 -> 0.01618150685 | R57: =TXCalc!AG119+TXCalc!AG125 -> 0 | S57: 0> | T57: > | U57: < | V57: 0 | W57: =IF(Q57>R57,"Begin","End") -> Begin
A58: NYISO_G-I | B58: =GenerationSummary!$I81/8.76 -> 0.1552511416 | C58: 0.5045512349 | D58: 252 | E58: 252 | F58: 129 | G58: 0.1555505331 | J58: 13 | K58: ActiveSheet.Shapes.Range(Array("TextBox 160")).Select | L58: 58 | M58: left | N58: HQ_2_IESO | O58: HQ | P58: IESO | Q58: =TXCalc!AF15 -> 1.25235783 | S58: 1.3< | T58: < | U58: > | V58: 1.3 | W58: =IF(Q58>R58,"Begin","End") -> Begin
A59: NYISO_J-K | B59: =GenerationSummary!$I82/8.76 -> -6.163242009 | C59: 0.2135809019 | D59: 255 | E59: 108 | F59: 54 | G59: -6.163534258 | J59: 14 | K59: ActiveSheet.Shapes.Range(Array("TextBox 161")).Select | L59: 59 | M59: right | N59: HQ_2_NEISO | O59: HQ | P59: NEISO | Q59: =TXCalc!AF13 -> 2.522268803 | S59: 2.5> | T59: > | U59: < | V59: 2.5 | W59: End
A60: PJM_E | B60: =GenerationSummary!$I83/8.76 -> 0.3059360731 | C60: 0.5089686099 | D60: 250 | E60: 250 | F60: 130 | G60: 0.2629046495 | J60: 15 | K60: ActiveSheet.Shapes.Range(Array("TextBox 163")).Select | L60: 60 | M60: down | N60: HQ_2_NYISO_A-F | O60: HQ | P60: NYISO_A-F | Q60: =TXCalc!AF14 -> 2.218851787 | S60: 2.2v | T60: v | U60: ^ | V60: 2.2 | W60: End
A61: PJM_ROM | B61: =GenerationSummary!$I84/8.76 -> -6.622146119 | C61: 0.1922546419 | D61: 255 | E61: 98 | F61: 49 | G61: -6.78586739 | J61: 16 | K61: ActiveSheet.Shapes.Range(Array("TextBox 164")).Select | L61: 61 | M61: down | N61: Maritimes_2_NEISO | O61: Maritimes | P61: NEISO | Q61: =TXCalc!AF16 -> 1.230827227 | S61: 1.2v | T61: v | U61: ^ | V61: 1.2 | W61: End
A62: PJM_ROR | B62: =GenerationSummary!$I85/8.76 -> -10.75913242 | C62: 0 | D62: 255 | E62: 0 | F62: 0 | G62: -11.09210649 | J62: 17 | K62: ActiveSheet.Shapes.Range(Array("TextBox 151")).Select
A63: SOCO | B63: =GenerationSummary!$I86/8.76 -> -1.452054795 | C63: 0.4325198939 | D63: 255 | E63: 220 | F63: 110 | G63: -1.557137384 | J63: 18 | K63: ActiveSheet.Shapes.Range(Array("TextBox 165")).Select
A64: SPP_N | B64: =GenerationSummary!$I87/8.76 -> 9.118721461 | C64: 0.7673181179 | D64: 118 | E64: 118 | F64: 196 | G64: 9.118154608 | J64: 19 | K64: ActiveSheet.Shapes.Range(Array("TextBox 128")).Select
A65: SPP_S | B65: =GenerationSummary!$I88/8.76 -> 1.656392694 | C65: 0.5485576601 | D65: 230 | E65: 230 | F65: 140 | G65: 1.525041462 | J65: 20 | K65: ActiveSheet.Shapes.Range(Array("TextBox 129")).Select
A66: TVA | B66: =GenerationSummary!$I89/8.76 -> -2.597031963 | C66: 0.3793103448 | D66: 255 | E66: 194 | F66: 97 | G66: -2.705371403 | J66: 21 | K66: ActiveSheet.Shapes.Range(Array("TextBox 156")).Select
A67: VACAR | B67: =GenerationSummary!$I90/8.76 -> -1.141552511 | C67: 0.4469496021 | D67: 255 | E67: 228 | F67: 114 | G67: -1.304962357 | J67: 22 | K67: ActiveSheet.Shapes.Range(Array("TextBox 157")).Select
A68: IESO | B68: =GenerationSummary!$I91/8.76 -> 3.964611872 | C68: 0.6162238137 | D68: 196 | E68: 196 | F68: 157 | G68: 3.962637252 | J68: 23 | K68: ActiveSheet.Shapes.Range(Array("TextBox 148")).Select
A69: MAPP_CA | B69: =GenerationSummary!$I92/8.76 -> 1.339041096 | C69: 0.5392544006 | D69: 234 | E69: 234 | F69: 138 | G69: 1.338693326 | J69: 24 | K69: ActiveSheet.Shapes.Range(Array("TextBox 126")).Select
S71: Includes Baseline | AF71: Baseline Infrastructure
A72: Max | B72: =MAX(B46:B69) -> 17.05593607 | Q72: From TXCalc Worksheet | X72: Graphed | AB72: From TXResults Table | AF72: From Google Doc Base case
A73: Neutral | B73: 0 | Q73: Transfer Capacity | S73: Capacity | T73: Max Utilized | X73: Values | AB73: =TXCalc!CK3 -> Final | AC73: =TXCalc!CL3 -> 0 | AF73: From_2_To | AG73: To_2_From | AJ73: Hardened | AO73: Hardened | AT73: Hardened
A74: Min | B74: =MIN(B46:B69) -> -10.75913242 | N74: from_2_to | O74: From | P74: To | Q74: From | R74: To | S74: max | T74: From | U74: To | V74: =B44 -> F8S7 Final Hardened | X74: =V74 -> F8S7 Final Hardened | AB74: =TXCalc!CK4&" Increment" -> F8S7 Increment | AC74: =TXCalc!CL4 -> Reversed | AD74: Max of both | AH74: max of both | AJ74: =TXCalc!EI4 -> F8S1 | AK74: =TXCalc!EJ4 -> Reversed | AL74: F8S1 Hardened Increment | AM74: F8S1 Hardened | AO74: =TXCalc!EL4 -> F8S5 | AP74: =TXCalc!EM4 -> Reversed | AQ74: F8S5 Hardened Increment | AR74: F8S5 Hardened | AT74: =TXCalc!EN4 -> F8S6 | AU74: =TXCalc!EO4 -> Reversed | AV74: F8S6 Hardened Increment | AW74: F8S6 Hardened
M75: 1 | N75: ENT_2_MISO_MO-IL | O75: ENT | P75: MISO_MO-IL | Q75: =TXCalc!AH5 -> 2260 | R75: =TXCalc!AI5 -> 2540 | S75: =MAX(IF(ISNA(Q75),0,Q75),IF(ISNA(R75),0,R75),AF75,AG75)/1000 -> 2.54 | T75: =TXCalc!AD5 -> 1517.26 | U75: =TXCalc!AJ5 -> 2505.2 | V75: =MAX(S75*1000,T75,U75)/1000 -> 2.54 | X75: =V75 -> 2.54 | Y75: ActiveSheet.Shapes.Range(Array("Straight Arrow Connector 422")).Select | AB75: =IF(ISNA(TXCalc!CK5),0,TXCalc!CK5) -> 0.0001316666667 | AC75: =IF(ISNA(TXCalc!CL5),0,TXCalc!CL5) -> 0.0001316666667 | AD75: =MAX(AB75,AC75)/1000 -> 1.316666667e-07 | AF75: =TXCalc!CN5 -> 2260 | AG75: =TXCalc!CO5 -> 2540 | AH75: =MAX(AF75,AG75)/1000 -> 2.54 | AJ75: =IF(ISNA(TXCalc!EI5),0,TXCalc!EI5) -> 0 | AK75: =IF(ISNA(TXCalc!EJ5),0,TXCalc!EJ5) -> 0 | AL75: =MAX(AJ75:AK75)/1000 -> 0 | AM75: =AL75+$AH75 -> 2.54 | AO75: =IF(ISNA(TXCalc!EL5),0,TXCalc!EL5) -> 0.0001316666667 | AP75: =IF(ISNA(TXCalc!EM5),0,TXCalc!EM5) -> 0.0002179374159 | AQ75: =MAX(AO75:AP75)/1000 -> 2.179374159e-07 | AR75: =AQ75+$AH75 -> 2.540000218 | AT75: =IF(ISNA(TXCalc!EN5),0,TXCalc!EN5) -> 0.0001316666667 | AU75: =IF(ISNA(TXCalc!EO5),0,TXCalc!EO5) -> 0.0002131512452 | AV75: =MAX(AT75:AU75)/1000 -> 2.131512452e-07 | AW75: =AV75+AH75 -> 2.540000213 | AX75: =N75 -> ENT_2_MISO_MO-IL
M76: 2 | N76: ENT_2_SOCO | O76: ENT | P76: SOCO | Q76: =TXCalc!AH6 -> 2000 | R76: =TXCalc!AI6 -> 2400 | S76: =MAX(IF(ISNA(Q76),0,Q76),IF(ISNA(R76),0,R76),AF76,AG76)/1000 -> 2.4 | T76: =TXCalc!AD6 -> 2000 | U76: =TXCalc!AJ6 -> 0 | V76: =MAX(S76*1000,T76,U76)/1000 -> 2.4 | X76: =V76 -> 2.4 | Y76: ActiveSheet.Shapes.Range(Array("Elbow Connector 453")).Select | AB76: =IF(ISNA(TXCalc!CK6),0,TXCalc!CK6) -> 0.000177458466 | AC76: =IF(ISNA(TXCalc!CL6),0,TXCalc!CL6) -> 0.0001316666667 | AD76: =MAX(AB76,AC76)/1000 -> 1.77458466e-07 | AF76: =TXCalc!CN6 -> 2000 | AG76: =TXCalc!CO6 -> 2400 | AH76: =MAX(AF76,AG76)/1000 -> 2.4 | AJ76: =IF(ISNA(TXCalc!EI6),0,TXCalc!EI6) -> 0 | AK76: =IF(ISNA(TXCalc!EJ6),0,TXCalc!EJ6) -> 0 | AL76: =MAX(AJ76:AK76)/1000 -> 0 | AM76: =AL76+$AH76 -> 2.4 | AO76: =IF(ISNA(TXCalc!EL6),0,TXCalc!EL6) -> 0.0001769303778 | AP76: =IF(ISNA(TXCalc!EM6),0,TXCalc!EM6) -> 0.0001316666667 | AQ76: =MAX(AO76:AP76)/1000 -> 1.769303778e-07 | AR76: =AQ76+$AH76 -> 2.400000177 | AT76: =IF(ISNA(TXCalc!EN6),0,TXCalc!EN6) -> 0.0001789577291 | AU76: =IF(ISNA(TXCalc!EO6),0,TXCalc!EO6) -> 0.0001316666667 | AV76: =MAX(AT76:AU76)/1000 -> 1.789577291e-07 | AW76: =AV76+AH76 -> 2.400000179 | AX76: =N76 -> ENT_2_SOCO
M77: =M76+1 -> 3 | N77: ENT_2_SPP_N | O77: ENT | P77: SPP_N | Q77: =IF(ISNA(TXCalc!AH7),AF77+R77-AG77,TXCalc!AH7) -> 6846 | R77: =TXCalc!AI7 -> 7346 | S77: 7.346 | T77: =TXCalc!AD7 -> 0 | U77: =TXCalc!AJ7 -> 7346 | V77: 7.346 | X77: 7.346 | Y77: ActiveSheet.Shapes.Range(Array("Straight Arrow Connector 21")).Select | AB77: =IF(ISNA(TXCalc!CK7),0,TXCalc!CK7) -> 0.0001316666667 | AC77: =IF(ISNA(TXCalc!CL7),0,TXCalc!CL7) -> 5545.915355 | AD77: 5.545915355 | AF77: =TXCalc!CN7 -> 1300 | AG77: =TXCalc!CO7 -> 1800 | AH77: 1.8 | AJ77: =IF(ISNA(TXCalc!EI7),0,TXCalc!EI7) -> 0 | AK77: =IF(ISNA(TXCalc!EJ7),0,TXCalc!EJ7) -> 5545.915355 | AL77: 5.545915355 | AM77: 7.345915355 | AO77: =IF(ISNA(TXCalc!EL7),0,TXCalc!EL7) -> 0.0001316666667 | AP77: =IF(ISNA(TXCalc!EM7),0,TXCalc!EM7) -> 3651.523712 | AQ77: 3.651523712 | AR77: 5.451523712 | AT77: =IF(ISNA(TXCalc!EN7),0,TXCalc!EN7) -> 0.0001316666667 | AU77: =IF(ISNA(TXCalc!EO7),0,TXCalc!EO7) -> 3960.446741 | AV77: 3.960446741 | AW77: 5.760446741 | AX77: ENT_2_SPP_N
M78: =M77+1 -> 4 | N78: ENT_2_SPP_S | O78: ENT | P78: SPP_S | Q78: =IF(ISNA(TXCalc!AH8),AF78+R78-AG78,TXCalc!AH8) -> 4730 | R78: =TXCalc!AI8 -> 4280 | S78: 4.73 | T78: =TXCalc!AD8 -> 0 | U78: =TXCalc!AJ8 -> 4280 | V78: 4.73 | X78: 4.73 | Y78: ActiveSheet.Shapes.Range(Array("Shape 179")).Select | AB78: =IF(ISNA(TXCalc!CK8),0,TXCalc!CK8) -> 0.0001316666667 | AC78: =IF(ISNA(TXCalc!CL8),0,TXCalc!CL8) -> 3430.373362 | AD78: 3.430373362 | AF78: =TXCalc!CN8 -> 1300 | AG78: =TXCalc!CO8 -> 850 | AH78: 1.3 | AJ78: =IF(ISNA(TXCalc!EI8),0,TXCalc!EI8) -> 0 | AK78: =IF(ISNA(TXCalc!EJ8),0,TXCalc!EJ8) -> 3430.373362 | AL78: 3.430373362 | AM78: 4.730373362 | AO78: =IF(ISNA(TXCalc!EL8),0,TXCalc!EL8) -> 0.0001316666667 | AP78: =IF(ISNA(TXCalc!EM8),0,TXCalc!EM8) -> 1810.280748 | AQ78: 1.810280748 | AR78: 3.110280748 | AT78: =IF(ISNA(TXCalc!EN8),0,TXCalc!EN8) -> 0.0001316666667 | AU78: =IF(ISNA(TXCalc!EO8),0,TXCalc!EO8) -> 2065.830968 | AV78: 2.065830968 | AW78: 3.365830968 | AX78: ENT_2_SPP_S
M79: 5 | N79: ENT_2_TVA | O79: ENT | P79: TVA | Q79: =IF(ISNA(TXCalc!AH9),0,TXCalc!AH9)+IF(ISNA(TXCalc!AH10),0,TXCalc!AH10) -> 2100 | R79: =IF(ISNA(TXCalc!AI9),0,TXCalc!AI9)+IF(ISNA(TXCalc!AI10),0,TXCalc!AI10) -> 0 | S79: 3.5 | T79: =IF(ISNA(TXCalc!AD9),0,TXCalc!AD9)+IF(ISNA(TXCalc!AD10),0,TXCalc!AD10) -> 2100 | U79: =IF(ISNA(TXCalc!AJ9),0,TXCalc!AJ9)+IF(ISNA(TXCalc!AJ10),0,TXCalc!AJ10) -> 0 | V79: 3.5 | X79: 3.5 | Y79: ActiveSheet.Shapes.Range(Array("Elbow Connector 421")).Select | AB79: =IF(ISNA(TXCalc!CK9),0,TXCalc!CK9)+IF(ISNA(TXCalc!CK10),0,TXCalc!CK10) -> 0.0001946616071 | AC79: =IF(ISNA(TXCalc!CL9),0,TXCalc!CL9)+IF(ISNA(TXCalc!CL10),0,TXCalc!CL10) -> 0.0002633333333 | AD79: 2.633333333e-07 | AF79: =IF(ISNA(TXCalc!CN9),0,TXCalc!CN9)+IF(ISNA(TXCalc!CN10),0,TXCalc!CN10) -> 2100 | AG79: =IF(ISNA(TXCalc!CO9),0,TXCalc!CO9)+IF(ISNA(TXCalc!CO10),0,TXCalc!CO10) -> 3500 | AH79: 3.5 | AJ79: =IF(ISNA(TXCalc!EI9),0,TXCalc!EI9)+IF(ISNA(TXCalc!EI10),0,TXCalc!EI10) -> 0 | AK79: =IF(ISNA(TXCalc!EJ9),0,TXCalc!EJ9)+IF(ISNA(TXCalc!EJ10),0,TXCalc!EJ10) -> 0 | AL79: 0 | AM79: 3.5 | AO79: =IF(ISNA(TXCalc!EL9),0,TXCalc!EL9)+IF(ISNA(TXCalc!EL10),0,TXCalc!EL10) -> 0.0001946616071 | AP79: =IF(ISNA(TXCalc!EM9),0,TXCalc!EM9)+IF(ISNA(TXCalc!EM10),0,TXCalc!EM10) -> 0.0002633333333 | AQ79: 2.633333333e-07 | AR79: 3.500000263 | AT79: =IF(ISNA(TXCalc!EN9),0,TXCalc!EN9)+IF(ISNA(TXCalc!EN10),0,TXCalc!EN10) -> 0.0001946616071 | AU79: =IF(ISNA(TXCalc!EO9),0,TXCalc!EO9)+IF(ISNA(TXCalc!EO10),0,TXCalc!EO10) -> 0.0002633333333 | AV79: 2.633333333e-07 | AW79: 3.500000263 | AX79: ENT_2_TVA
M80: 6 | N80: ERCOT_2_SPP_S | O80: ERCOT | P80: SPP_S | Q80: =TXCalc!AH11 -> 800 | R80: =TXCalc!AI11 -> 800 | S80: 0.8 | T80: =TXCalc!AD11 -> 0 | U80: =TXCalc!AJ11 -> 800 | V80: 0.8 | X80: 0.8 | Y80: ActiveSheet.Shapes.Range(Array("Straight Arrow Connector 379")).Select | AB80: =IF(ISNA(TXCalc!CK11),0,TXCalc!CK11) -> 0 | AC80: =IF(ISNA(TXCalc!CL11),0,TXCalc!CL11) -> 0 | AD80: 0 | AF80: =TXCalc!CN11 -> 800 | AG80: =TXCalc!CO11 -> 800 | AH80: 0.8 | AJ80: =IF(ISNA(TXCalc!EI11),0,TXCalc!EI11) -> 0 | AK80: =IF(ISNA(TXCalc!EJ11),0,TXCalc!EJ11) -> 0 | AL80: 0 | AM80: 0.8 | AO80: =IF(ISNA(TXCalc!EL11),0,TXCalc!EL11) -> 0 | AP80: =IF(ISNA(TXCalc!EM11),0,TXCalc!EM11) -> 0 | AQ80: 0 | AR80: 0.8 | AT80: =IF(ISNA(TXCalc!EN11),0,TXCalc!EN11) -> 0 | AU80: =IF(ISNA(TXCalc!EO11),0,TXCalc!EO11) -> 0 | AV80: 0 | AW80: 0.8 | AX80: ERCOT_2_SPP_S
M81: 7 | N81: FRCC_2_SOCO | O81: FRCC | P81: SOCO | Q81: =TXCalc!AH12 -> 900 | R81: =TXCalc!AI12 -> 3700 | S81: 3.7 | T81: =TXCalc!AD12 -> 900 | U81: =TXCalc!AJ12 -> 393.22 | V81: 3.7 | X81: 3.7 | Y81: ActiveSheet.Shapes.Range(Array("Shape 175")).Select | AB81: =IF(ISNA(TXCalc!CK12),0,TXCalc!CK12) -> 0.0001316666667 | AC81: =IF(ISNA(TXCalc!CL12),0,TXCalc!CL12) -> 0.0001781172118 | AD81: 1.781172118e-07 | AF81: =TXCalc!CN12 -> 900 | AG81: =TXCalc!CO12 -> 3700 | AH81: 3.7 | AJ81: =IF(ISNA(TXCalc!EI12),0,TXCalc!EI12) -> 0 | AK81: =IF(ISNA(TXCalc!EJ12),0,TXCalc!EJ12) -> 0 | AL81: 0 | AM81: 3.7 | AO81: =IF(ISNA(TXCalc!EL12),0,TXCalc!EL12) -> 0.0001316666667 | AP81: =IF(ISNA(TXCalc!EM12),0,TXCalc!EM12) -> 0.0001840945327 | AQ81: 1.840945327e-07 | AR81: 3.700000184 | AT81: =IF(ISNA(TXCalc!EN12),0,TXCalc!EN12) -> 0.0001316666667 | AU81: =IF(ISNA(TXCalc!EO12),0,TXCalc!EO12) -> 0.0001808032728 | AV81: 1.808032728e-07 | AW81: 3.700000181 | AX81: FRCC_2_SOCO
M82: 8 | N82: MAPP_CA_2_MAPP_US | O82: MAPP_CA | P82: MAPP_US | Q82: =TXCalc!AH17 -> 372 | R82: =TXCalc!AI17 -> 165 | S82: 0.372 | T82: =TXCalc!AD17 -> 372 | U82: =TXCalc!AJ17 -> 165 | V82: 0.372 | X82: 0.372 | Y82: ActiveSheet.Shapes.Range(Array("Shape 149")).Select | AB82: =IF(ISNA(TXCalc!CK17),0,TXCalc!CK17) -> 0.0001316666667 | AC82: =IF(ISNA(TXCalc!CL17),0,TXCalc!CL17) -> 0.0002335209812 | AD82: 2.335209812e-07 | AF82: =TXCalc!CN17 -> 372 | AG82: =TXCalc!CO17 -> 165 | AH82: 0.372 | AJ82: =IF(ISNA(TXCalc!EI17),0,TXCalc!EI17) -> 0 | AK82: =IF(ISNA(TXCalc!EJ17),0,TXCalc!EJ17) -> 0 | AL82: 0 | AM82: 0.372 | AO82: =IF(ISNA(TXCalc!EL17),0,TXCalc!EL17) -> 0.0001316666667 | AP82: =IF(ISNA(TXCalc!EM17),0,TXCalc!EM17) -> 0.0002255850436 | AQ82: 2.255850436e-07 | AR82: 0.3720002256 | AT82: =IF(ISNA(TXCalc!EN17),0,TXCalc!EN17) -> 0.000201198303 | AU82: =IF(ISNA(TXCalc!EO17),0,TXCalc!EO17) -> 0.0002401876479 | AV82: 2.401876479e-07 | AW82: 0.3720002402 | AX82: MAPP_CA_2_MAPP_US
M83: 9 | N83: MAPP_CA_2_MISO_W | O83: MAPP_CA | P83: MISO_W | Q83: =TXCalc!AH18 -> 1970 | R83: =TXCalc!AI18 -> 700 | S83: 1.97 | T83: =TXCalc!AD18 -> 1970 | U83: =TXCalc!AJ18 -> 700 | V83: 1.97 | X83: 1.97 | Y83: ActiveSheet.Shapes.Range(Array("Shape 44")).Select | AB83: =IF(ISNA(TXCalc!CK18),0,TXCalc!CK18) -> 0.0002253555055 | AC83: =IF(ISNA(TXCalc!CL18),0,TXCalc!CL18) -> 0.0001316666667 | AD83: 2.253555055e-07 | AF83: =TXCalc!CN18 -> 1970 | AG83: =TXCalc!CO18 -> 700 | AH83: 1.97 | AJ83: =IF(ISNA(TXCalc!EI18),0,TXCalc!EI18) -> 0 | AK83: =IF(ISNA(TXCalc!EJ18),0,TXCalc!EJ18) -> 0 | AL83: 0 | AM83: 1.97 | AO83: =IF(ISNA(TXCalc!EL18),0,TXCalc!EL18) -> 0.0001951185106 | AP83: =IF(ISNA(TXCalc!EM18),0,TXCalc!EM18) -> 0.0002334538152 | AQ83: 2.334538152e-07 | AR83: 1.970000233 | AT83: =IF(ISNA(TXCalc!EN18),0,TXCalc!EN18) -> 0.0001935976236 | AU83: =IF(ISNA(TXCalc!EO18),0,TXCalc!EO18) -> 0.000145 | AV83: 1.935976236e-07 | AW83: 1.970000194 | AX83: MAPP_CA_2_MISO_W
M84: 10 | N84: MAPP_CA_2_IESO | O84: MAPP_CA | P84: IESO | Q84: =TXCalc!AH19 -> 337 | R84: =TXCalc!AI19 -> 269 | S84: 0.337 | T84: =TXCalc!AD19 -> 337 | U84: =TXCalc!AJ19 -> 269 | V84: 0.337 | X84: 0.337 | Y84: ActiveSheet.Shapes.Range(Array("Straight Arrow Connector 454")).Select | AB84: =IF(ISNA(TXCalc!CK19),0,TXCalc!CK19) -> 0.0001316666667 | AC84: =IF(ISNA(TXCalc!CL19),0,TXCalc!CL19) -> 7.291999269 | AD84: 0.007291999269 | AF84: =TXCalc!CN19 -> 330 | AG84: =TXCalc!CO19 -> 262 | AH84: 0.33 | AJ84: =IF(ISNA(TXCalc!EI19),0,TXCalc!EI19) -> 0 | AK84: =IF(ISNA(TXCalc!EJ19),0,TXCalc!EJ19) -> 7.291999269 | AL84: 0.007291999269 | AM84: 0.3372919993 | AO84: =IF(ISNA(TXCalc!EL19),0,TXCalc!EL19) -> 0.0001981543442 | AP84: =IF(ISNA(TXCalc!EM19),0,TXCalc!EM19) -> 0.000365 | AQ84: 3.65e-07 | AR84: 0.330000365 | AT84: =IF(ISNA(TXCalc!EN19),0,TXCalc!EN19) -> 0.0001981543442 | AU84: =IF(ISNA(TXCalc!EO19),0,TXCalc!EO19) -> 0.000365 | AV84: 3.65e-07 | AW84: 0.330000365 | AX84: MAPP_CA_2_IESO
M85: 11 | N85: MAPP_US_2_MISO_W | O85: MAPP_US | P85: MISO_W | Q85: =TXCalc!AH21 -> 2635 | R85: =TXCalc!AI21 ->  | S85: 2.635 | T85: =TXCalc!AD21 -> 2635 | U85: =TXCalc!AJ21 -> 0 | V85: 2.635 | X85: 2.635 | Y85: ActiveSheet.Shapes.Range(Array("Elbow Connector 392")).Select | AB85: =IF(ISNA(TXCalc!CK21),0,TXCalc!CK21) -> 0.0002219142245 | AC85: =IF(ISNA(TXCalc!CL21),0,TXCalc!CL21) -> 0.0001316666667 | AD85: 2.219142245e-07 | AF85: =TXCalc!CN21 -> 2635 | AG85: =TXCalc!CO21 -> 2300 | AH85: 2.635 | AJ85: =IF(ISNA(TXCalc!EI21),0,TXCalc!EI21) -> 0 | AK85: =IF(ISNA(TXCalc!EJ21),0,TXCalc!EJ21) -> 0 | AL85: 0 | AM85: 2.635 | AO85: =IF(ISNA(TXCalc!EL21),0,TXCalc!EL21) -> 0.000195563544 | AP85: =IF(ISNA(TXCalc!EM21),0,TXCalc!EM21) -> 0.0001316666667 | AQ85: 1.95563544e-07 | AR85: 2.635000196 | AT85: =IF(ISNA(TXCalc!EN21),0,TXCalc!EN21) -> 0.0001943002056 | AU85: =IF(ISNA(TXCalc!EO21),0,TXCalc!EO21) -> 0.0001316666667 | AV85: 1.943002056e-07 | AW85: 2.635000194 | AX85: MAPP_US_2_MISO_W
M86: 12 | N86: MAPP_US_2_NE | O86: MAPP_US | P86: NE | Q86: =TXCalc!AH22 -> 2000 | R86: =TXCalc!AI22 -> 1600 | S86: 2 | T86: =TXCalc!AD22 -> 707.67 | U86: =TXCalc!AJ22 -> 1053.54 | V86: 2 | X86: 2 | Y86: ActiveSheet.Shapes.Range(Array("Straight Arrow Connector 394")).Select | AB86: =IF(ISNA(TXCalc!CK22),0,TXCalc!CK22) -> 0.0002043998592 | AC86: =IF(ISNA(TXCalc!CL22),0,TXCalc!CL22) -> 0.0001316666667 | AD86: 2.043998592e-07 | AF86: =TXCalc!CN22 -> 2000 | AG86: =TXCalc!CO22 -> 1600 | AH86: 2 | AJ86: =IF(ISNA(TXCalc!EI22),0,TXCalc!EI22) -> 0 | AK86: =IF(ISNA(TXCalc!EJ22),0,TXCalc!EJ22) -> 0 | AL86: 0 | AM86: 2 | AO86: =IF(ISNA(TXCalc!EL22),0,TXCalc!EL22) -> 0.0002051816998 | AP86: =IF(ISNA(TXCalc!EM22),0,TXCalc!EM22) -> 0.0001316666667 | AQ86: 2.051816998e-07 | AR86: 2.000000205 | AT86: =IF(ISNA(TXCalc!EN22),0,TXCalc!EN22) -> 0.0002121941444 | AU86: =IF(ISNA(TXCalc!EO22),0,TXCalc!EO22) -> 0.0001316666667 | AV86: 2.121941444e-07 | AW86: 2.000000212 | AX86: MAPP_US_2_NE
M87: 13 | N87: MAPP_US_2_NWPP_Coal | O87: MAPP_US | P87: NWPP_Coal | Q87: =TXCalc!AH23 -> 200 | R87: =TXCalc!AI23 -> 150 | S87: 0.2 | T87: =TXCalc!AD23 -> 0 | U87: =TXCalc!AJ23 -> 150 | V87: 0.2 | X87: 0.2 | Y87: ActiveSheet.Shapes.Range(Array("Shape 143")).Select | AB87: =IF(ISNA(TXCalc!CK23),0,TXCalc!CK23) -> 0 | AC87: =IF(ISNA(TXCalc!CL23),0,TXCalc!CL23) -> 0 | AD87: 0 | AF87: =TXCalc!CN23 -> 200 | AG87: =TXCalc!CO23 -> 150 | AH87: 0.2 | AJ87: =IF(ISNA(TXCalc!EI23),0,TXCalc!EI23) -> 0 | AK87: =IF(ISNA(TXCalc!EJ23),0,TXCalc!EJ23) -> 0 | AL87: 0 | AM87: 0.2 | AO87: =IF(ISNA(TXCalc!EL23),0,TXCalc!EL23) -> 0 | AP87: =IF(ISNA(TXCalc!EM23),0,TXCalc!EM23) -> 0 | AQ87: 0 | AR87: 0.2 | AT87: =IF(ISNA(TXCalc!EN23),0,TXCalc!EN23) -> 0 | AU87: =IF(ISNA(TXCalc!EO23),0,TXCalc!EO23) -> 0 | AV87: 0 | AW87: 0.2 | AX87: MAPP_US_2_NWPP_Coal
M88: 14 | N88: MAPP_US_2_RMPA | O88: MAPP_US | P88: RMPA | Q88: =TXCalc!AH24 -> 200 | R88: =TXCalc!AI24 -> 200 | S88: 0.2 | T88: =TXCalc!AD24 -> 200 | U88: =TXCalc!AJ24 -> 0 | V88: 0.2 | X88: 0.2 | Y88: ActiveSheet.Shapes.Range(Array("Shape 215")).Select | AB88: =IF(ISNA(TXCalc!CK24),0,TXCalc!CK24) -> 0 | AC88: =IF(ISNA(TXCalc!CL24),0,TXCalc!CL24) -> 0 | AD88: 0 | AF88: =TXCalc!CN24 -> 200 | AG88: =TXCalc!CO24 -> 200 | AH88: 0.2 | AJ88: =IF(ISNA(TXCalc!EI24),0,TXCalc!EI24) -> 0 | AK88: =IF(ISNA(TXCalc!EJ24),0,TXCalc!EJ24) -> 0 | AL88: 0 | AM88: 0.2 | AO88: =IF(ISNA(TXCalc!EL24),0,TXCalc!EL24) -> 0 | AP88: =IF(ISNA(TXCalc!EM24),0,TXCalc!EM24) -> 0 | AQ88: 0 | AR88: 0.2 | AT88: =IF(ISNA(TXCalc!EN24),0,TXCalc!EN24) -> 0 | AU88: =IF(ISNA(TXCalc!EO24),0,TXCalc!EO24) -> 0 | AV88: 0 | AW88: 0.2 | AX88: MAPP_US_2_RMPA
M89: 15 | N89: MISO_IN_2_MISO_MI | O89: MISO_IN | P89: MISO_MI | Q89: =TXCalc!AH25 -> 5490 | R89: =TXCalc!AI25 -> 2535 | S89: 5.49 | T89: =TXCalc!AD25 -> 2393.29 | U89: =TXCalc!AJ25 -> 2535 | V89: 5.49 | X89: 5.49 | Y89: ActiveSheet.Shapes.Range(Array("Straight Arrow Connector 401")).Select | AB89: =IF(ISNA(TXCalc!CK25),0,TXCalc!CK25) -> 490.4165436 | AC89: =IF(ISNA(TXCalc!CL25),0,TXCalc!CL25) -> 0.0001960837323 | AD89: 0.4904165436 | AF89: =TXCalc!CN25 -> 5000 | AG89: =TXCalc!CO25 -> 2045 | AH89: 5 | AJ89: =IF(ISNA(TXCalc!EI25),0,TXCalc!EI25) -> 490.4165436 | AK89: =IF(ISNA(TXCalc!EJ25),0,TXCalc!EJ25) -> 0 | AL89: 0.4904165436 | AM89: 5.490416544 | AO89: =IF(ISNA(TXCalc!EL25),0,TXCalc!EL25) -> 0.0001316666667 | AP89: =IF(ISNA(TXCalc!EM25),0,TXCalc!EM25) -> 0.0001518828918 | AQ89: 1.518828918e-07 | AR89: 5.000000152 | AT89: =IF(ISNA(TXCalc!EN25),0,TXCalc!EN25) -> 0.0001316666667 | AU89: =IF(ISNA(TXCalc!EO25),0,TXCalc!EO25) -> 0.0001459976081 | AV89: 1.459976081e-07 | AW89: 5.000000146 | AX89: MISO_IN_2_MISO_MI
M90: 16 | N90: MISO_IN_2_MISO_MO-IL | O90: MISO_IN | P90: MISO_MO-IL | Q90: =TXCalc!AH26 -> 5000 | R90: =TXCalc!AI26 -> 2100 | S90: 5 | T90: =TXCalc!AD26 -> 203.94 | U90: =TXCalc!AJ26 -> 2100 | V90: 5 | X90: 5 | Y90: ActiveSheet.Shapes.Range(Array("Straight Arrow Connector 400")).Select | AB90: =IF(ISNA(TXCalc!CK26),0,TXCalc!CK26) -> 0.0001947422352 | AC90: =IF(ISNA(TXCalc!CL26),0,TXCalc!CL26) -> 0.0002808582089 | AD90: 2.808582089e-07 | AF90: =TXCalc!CN26 -> 5000 | AG90: =TXCalc!CO26 -> 2100 | AH90: 5 | AJ90: =IF(ISNA(TXCalc!EI26),0,TXCalc!EI26) -> 0 | AK90: =IF(ISNA(TXCalc!EJ26),0,TXCalc!EJ26) -> 0 | AL90: 0 | AM90: 5 | AO90: =IF(ISNA(TXCalc!EL26),0,TXCalc!EL26) -> 0.0001316666667 | AP90: =IF(ISNA(TXCalc!EM26),0,TXCalc!EM26) -> 1178.37876 | AQ90: 1.17837876 | AR90: 6.17837876 | AT90: =IF(ISNA(TXCalc!EN26),0,TXCalc!EN26) -> 0.0001316666667 | AU90: =IF(ISNA(TXCalc!EO26),0,TXCalc!EO26) -> 350.8733538 | AV90: 0.3508733538 | AW90: 5.350873354 | AX90: MISO_IN_2_MISO_MO-IL
M91: 17 | N91: MISO_IN_2_NonRTO_Midwest | O91: MISO_IN | P91: NonRTO_Midwest | Q91: =TXCalc!AH27 -> 4800 | R91: =TXCalc!AI27 ->  | S91: 4.8 | T91: =TXCalc!AD27 -> 4524.82 | U91: =TXCalc!AJ27 -> 0 | V91: 4.8 | X91: 4.8 | Y91: ActiveSheet.Shapes.Range(Array("Straight Arrow Connector 426")).Select | AB91: =IF(ISNA(TXCalc!CK27),0,TXCalc!CK27) -> 0.0001968747447 | AC91: =IF(ISNA(TXCalc!CL27),0,TXCalc!CL27) -> 0.0001316666667 | AD91: 1.968747447e-07 | AF91: =TXCalc!CN27 -> 4800 | AG91: =TXCalc!CO27 -> 4450 | AH91: 4.8 | AJ91: =IF(ISNA(TXCalc!EI27),0,TXCalc!EI27) -> 0 | AK91: =IF(ISNA(TXCalc!EJ27),0,TXCalc!EJ27) -> 0 | AL91: 0 | AM91: 4.8 | AO91: =IF(ISNA(TXCalc!EL27),0,TXCalc!EL27) -> 0.0001968747447 | AP91: =IF(ISNA(TXCalc!EM27),0,TXCalc!EM27) -> 0.0001316666667 | AQ91: 1.968747447e-07 | AR91: 4.800000197 | AT91: =IF(ISNA(TXCalc!EN27),0,TXCalc!EN27) -> 0.0001968747447 | AU91: =IF(ISNA(TXCalc!EO27),0,TXCalc!EO27) -> 0.0001316666667 | AV91: 1.968747447e-07 | AW91: 4.800000197 | AX91: MISO_IN_2_NonRTO_Midwest
M92: 18 | N92: MISO_IN_2_PJM_ROR | O92: MISO_IN | P92: PJM_ROR | Q92: =TXCalc!AH28 -> 992 | R92: =TXCalc!AI28 -> 909 | S92: 0.992 | T92: =TXCalc!AD28 -> 992 | U92: =TXCalc!AJ28 -> 643.01 | V92: 0.992 | X92: 0.992 | Y92: ActiveSheet.Shapes.Range(Array("Elbow Connector 424")).Select | AB92: =IF(ISNA(TXCalc!CK28),0,TXCalc!CK28) -> 0.0002871015395 | AC92: =IF(ISNA(TXCalc!CL28),0,TXCalc!CL28) -> 0.0001316666667 | AD92: 2.871015395e-07 | AF92: =TXCalc!CN28 -> 992 | AG92: =TXCalc!CO28 -> 909 | AH92: 0.992 | AJ92: =IF(ISNA(TXCalc!EI28),0,TXCalc!EI28) -> 0 | AK92: =IF(ISNA(TXCalc!EJ28),0,TXCalc!EJ28) -> 0 | AL92: 0 | AM92: 0.992 | AO92: =IF(ISNA(TXCalc!EL28),0,TXCalc!EL28) -> 0.0002338144486 | AP92: =IF(ISNA(TXCalc!EM28),0,TXCalc!EM28) -> 0.0002023297175 | AQ92: 2.338144486e-07 | AR92: 0.9920002338 | AT92: =IF(ISNA(TXCalc!EN28),0,TXCalc!EN28) -> 0.0002283963729 | AU92: =IF(ISNA(TXCalc!EO28),0,TXCalc!EO28) -> 0.000195331164 | AV92: 2.283963729e-07 | AW92: 0.9920002284 | AX92: MISO_IN_2_PJM_ROR
M93: 19 | N93: MISO_MI_2_MISO_WUMS | O93: MISO_MI | P93: MISO_WUMS | Q93: =TXCalc!AH30 -> 312 | R93: =TXCalc!AI30 -> 294 | S93: 0.312 | T93: =TXCalc!AD30 -> 312 | U93: =TXCalc!AJ30 -> 294 | V93: 0.312 | X93: 0.312 | Y93: ActiveSheet.Shapes.Range(Array("Shape 126")).Select | AB93: =IF(ISNA(TXCalc!CK30),0,TXCalc!CK30) -> 140.241601 | AC93: =IF(ISNA(TXCalc!CL30),0,TXCalc!CL30) -> 194.9492501 | AD93: 0.1949492501 | AF93: =TXCalc!CN30 -> 117 | AG93: =TXCalc!CO30 -> 99 | AH93: 0.117 | AJ93: =IF(ISNA(TXCalc!EI30),0,TXCalc!EI30) -> 140.241601 | AK93: =IF(ISNA(TXCalc!EJ30),0,TXCalc!EJ30) -> 194.9492501 | AL93: 0.1949492501 | AM93: 0.3119492501 | AO93: =IF(ISNA(TXCalc!EL30),0,TXCalc!EL30) -> 424.0248979 | AP93: =IF(ISNA(TXCalc!EM30),0,TXCalc!EM30) -> 29.38114888 | AQ93: 0.4240248979 | AR93: 0.5410248979 | AT93: =IF(ISNA(TXCalc!EN30),0,TXCalc!EN30) -> 372.0535661 | AU93: =IF(ISNA(TXCalc!EO30),0,TXCalc!EO30) -> 18.92666804 | AV93: 0.3720535661 | AW93: 0.4890535661 | AX93: MISO_MI_2_MISO_WUMS
M94: 20 | N94: MISO_MI_2_IESO | O94: MISO_MI | P94: IESO | Q94: =TXCalc!AH31 -> 2865 | R94: =TXCalc!AI31 -> 3125 | S94: 3.125 | T94: =TXCalc!AD31 -> 0 | U94: =TXCalc!AJ31 -> 3125 | V94: 3.125 | X94: 3.125 | Y94: ActiveSheet.Shapes.Range(Array("Elbow Connector 451")).Select | AB94: =IF(ISNA(TXCalc!CK31),0,TXCalc!CK31) -> 0.0001316666667 | AC94: =IF(ISNA(TXCalc!CL31),0,TXCalc!CL31) -> 1284.758575 | AD94: 1.284758575 | AF94: =TXCalc!CN31 -> 1580 | AG94: =TXCalc!CO31 -> 1840 | AH94: 1.84 | AJ94: =IF(ISNA(TXCalc!EI31),0,TXCalc!EI31) -> 0 | AK94: =IF(ISNA(TXCalc!EJ31),0,TXCalc!EJ31) -> 1284.758575 | AL94: 1.284758575 | AM94: 3.124758575 | AO94: =IF(ISNA(TXCalc!EL31),0,TXCalc!EL31) -> 0.0001316666667 | AP94: =IF(ISNA(TXCalc!EM31),0,TXCalc!EM31) -> 898.1148617 | AQ94: 0.8981148617 | AR94: 2.738114862 | AT94: =IF(ISNA(TXCalc!EN31),0,TXCalc!EN31) -> 0.0001316666667 | AU94: =IF(ISNA(TXCalc!EO31),0,TXCalc!EO31) -> 922.7273127 | AV94: 0.9227273127 | AW94: 2.762727313 | AX94: MISO_MI_2_IESO
M95: 21 | N95: MISO_MI_2_PJM_ROR | O95: MISO_MI | P95: PJM_ROR | Q95: =TXCalc!AH32 -> 1424 | R95: =TXCalc!AI32 -> 1305 | S95: 1.424 | T95: =TXCalc!AD32 -> 1424 | U95: =TXCalc!AJ32 -> 0 | V95: 1.424 | X95: 1.424 | Y95: ActiveSheet.Shapes.Range(Array("Elbow Connector 433")).Select | AB95: =IF(ISNA(TXCalc!CK32),0,TXCalc!CK32) -> 0.0002016666666 | AC95: =IF(ISNA(TXCalc!CL32),0,TXCalc!CL32) -> 0.0001316666667 | AD95: 2.016666666e-07 | AF95: =TXCalc!CN32 -> 1424 | AG95: =TXCalc!CO32 -> 1305 | AH95: 1.424 | AJ95: =IF(ISNA(TXCalc!EI32),0,TXCalc!EI32) -> 0 | AK95: =IF(ISNA(TXCalc!EJ32),0,TXCalc!EJ32) -> 0 | AL95: 0 | AM95: 1.424 | AO95: =IF(ISNA(TXCalc!EL32),0,TXCalc!EL32) -> 0.0001916666667 | AP95: =IF(ISNA(TXCalc!EM32),0,TXCalc!EM32) -> 0.0001316666667 | AQ95: 1.916666667e-07 | AR95: 1.424000192 | AT95: =IF(ISNA(TXCalc!EN32),0,TXCalc!EN32) -> 0.000195 | AU95: =IF(ISNA(TXCalc!EO32),0,TXCalc!EO32) -> 0.0001316666667 | AV95: 1.95e-07 | AW95: 1.424000195 | AX95: MISO_MI_2_PJM_ROR
M96: 22 | N96: MISO_MO-IL_2_MISO_W | O96: MISO_MO-IL | P96: MISO_W | Q96: =TXCalc!AH35 -> 1208 | R96: =TXCalc!AI35 -> 4048 | S96: 4.048 | T96: =TXCalc!AD35 -> 0 | U96: =TXCalc!AJ35 -> 4048 | V96: 4.048 | X96: 4.048 | Y96: 452 | AB96: =IF(ISNA(TXCalc!CK35),0,TXCalc!CK35) -> 0.0001316666667 | AC96: =IF(ISNA(TXCalc!CL35),0,TXCalc!CL35) -> 248.0054158 | AD96: 0.2480054158 | AF96: =TXCalc!CN35 -> 960 | AG96: =TXCalc!CO35 -> 3800 | AH96: 3.8 | AJ96: =IF(ISNA(TXCalc!EI35),0,TXCalc!EI35) -> 0 | AK96: =IF(ISNA(TXCalc!EJ35),0,TXCalc!EJ35) -> 248.0054158 | AL96: 0.2480054158 | AM96: 4.048005416 | AO96: =IF(ISNA(TXCalc!EL35),0,TXCalc!EL35) -> 0.0002038443527 | AP96: =IF(ISNA(TXCalc!EM35),0,TXCalc!EM35) -> 0.0003983333333 | AQ96: 3.983333333e-07 | AR96: 3.800000398 | AT96: =IF(ISNA(TXCalc!EN35),0,TXCalc!EN35) -> 0.0001956928378 | AU96: =IF(ISNA(TXCalc!EO35),0,TXCalc!EO35) -> 0.0004049999999 | AV96: 4.049999999e-07 | AW96: 3.800000405 | AX96: MISO_MO-IL_2_MISO_W
M97: 23 | N97: MISO_MO-IL_2_PJM_ROR | O97: MISO_MO-IL | P97: PJM_ROR | Q97: =TXCalc!AH36 -> 1212 | R97: =TXCalc!AI36 -> 1111 | S97: 1.212 | T97: =TXCalc!AD36 -> 1212 | U97: =TXCalc!AJ36 -> 0 | V97: 1.212 | X97: 1.212 | Y97: 399 | AB97: =IF(ISNA(TXCalc!CK36),0,TXCalc!CK36) -> 0.0003041762638 | AC97: =IF(ISNA(TXCalc!CL36),0,TXCalc!CL36) -> 0.0001316666667 | AD97: 3.041762638e-07 | AF97: =TXCalc!CN36 -> 1212 | AG97: =TXCalc!CO36 -> 1111 | AH97: 1.212 | AJ97: =IF(ISNA(TXCalc!EI36),0,TXCalc!EI36) -> 0 | AK97: =IF(ISNA(TXCalc!EJ36),0,TXCalc!EJ36) -> 0 | AL97: 0 | AM97: 1.212 | AO97: =IF(ISNA(TXCalc!EL36),0,TXCalc!EL36) -> 0.000280926992 | AP97: =IF(ISNA(TXCalc!EM36),0,TXCalc!EM36) -> 0.0001316666667 | AQ97: 2.80926992e-07 | AR97: 1.212000281 | AT97: =IF(ISNA(TXCalc!EN36),0,TXCalc!EN36) -> 0.0002880163273 | AU97: =IF(ISNA(TXCalc!EO36),0,TXCalc!EO36) -> 0.0001316666667 | AV97: 2.880163273e-07 | AW97: 1.212000288 | AX97: MISO_MO-IL_2_PJM_ROR
M98: 24 | N98: MISO_MO-IL_2_SPP_N | O98: MISO_MO-IL | P98: SPP_N | Q98: =TXCalc!AH37 -> 3954 | R98: =TXCalc!AI37 -> 3954 | S98: 3.954 | T98: =TXCalc!AD37 -> 0 | U98: =TXCalc!AJ37 -> 3954 | V98: 3.954 | X98: 3.954 | Y98: 444 | AB98: =IF(ISNA(TXCalc!CK37),0,TXCalc!CK37) -> 0.0001316666667 | AC98: =IF(ISNA(TXCalc!CL37),0,TXCalc!CL37) -> 1954.43213 | AD98: 1.95443213 | AF98: =TXCalc!CN37 -> 2000 | AG98: =TXCalc!CO37 -> 2000 | AH98: 2 | AJ98: =IF(ISNA(TXCalc!EI37),0,TXCalc!EI37) -> 0 | AK98: =IF(ISNA(TXCalc!EJ37),0,TXCalc!EJ37) -> 1954.43213 | AL98: 1.95443213 | AM98: 3.95443213 | AO98: =IF(ISNA(TXCalc!EL37),0,TXCalc!EL37) -> 0.0001316666667 | AP98: =IF(ISNA(TXCalc!EM37),0,TXCalc!EM37) -> 338.58102 | AQ98: 0.33858102 | AR98: 2.33858102 | AT98: =IF(ISNA(TXCalc!EN37),0,TXCalc!EN37) -> 0.0001316666667 | AU98: =IF(ISNA(TXCalc!EO37),0,TXCalc!EO37) -> 647.6166612 | AV98: 0.6476166612 | AW98: 2.647616661 | AX98: MISO_MO-IL_2_SPP_N
M99: 25 | N99: MISO_MO-IL_2_TVA | O99: MISO_MO-IL | P99: TVA | Q99: =IF(ISNA(TXCalc!AH38),0,TXCalc!AH38)+IF(ISNA(TXCalc!AH39),0,TXCalc!AH39) -> 4000 | R99: =IF(ISNA(TXCalc!AI38),0,TXCalc!AI38)+IF(ISNA(TXCalc!AI39),0,TXCalc!AI39) -> 0 | S99: 4.05 | T99: =IF(ISNA(TXCalc!AD38),0,TXCalc!AD38)+IF(ISNA(TXCalc!AD39),0,TXCalc!AD39) -> 4000 | U99: =IF(ISNA(TXCalc!AJ38),0,TXCalc!AJ38)+IF(ISNA(TXCalc!AJ39),0,TXCalc!AJ39) -> 0 | V99: 4.05 | X99: 4.05 | Y99: 419 | AB99: =IF(ISNA(TXCalc!CK38),0,TXCalc!CK38)+IF(ISNA(TXCalc!CK39),0,TXCalc!CK39) -> 0.0001316666667 | AC99: =IF(ISNA(TXCalc!CL38),0,TXCalc!CL38)+IF(ISNA(TXCalc!CL39),0,TXCalc!CL39) -> 0.0002633333333 | AD99: 2.633333333e-07 | AF99: =IF(ISNA(TXCalc!CN38),0,TXCalc!CN38)+IF(ISNA(TXCalc!CN39),0,TXCalc!CN39) -> 4000 | AG99: =IF(ISNA(TXCalc!CO38),0,TXCalc!CO38)+IF(ISNA(TXCalc!CO39),0,TXCalc!CO39) -> 4050 | AH99: 4.05 | AJ99: =IF(ISNA(TXCalc!EI38),0,TXCalc!EI38)+IF(ISNA(TXCalc!EI39),0,TXCalc!EI39) -> 0 | AK99: =IF(ISNA(TXCalc!EJ38),0,TXCalc!EJ38)+IF(ISNA(TXCalc!EJ39),0,TXCalc!EJ39) -> 0 | AL99: 0 | AM99: 4.05 | AO99: =IF(ISNA(TXCalc!EL38),0,TXCalc!EL38)+IF(ISNA(TXCalc!EL39),0,TXCalc!EL39) -> 0.0001986709328 | AP99: =IF(ISNA(TXCalc!EM38),0,TXCalc!EM38)+IF(ISNA(TXCalc!EM39),0,TXCalc!EM39) -> 0.0002633333333 | AQ99: 2.633333333e-07 | AR99: 4.050000263 | AT99: =IF(ISNA(TXCalc!EN38),0,TXCalc!EN38)+IF(ISNA(TXCalc!EN39),0,TXCalc!EN39) -> 0.0001316666667 | AU99: =IF(ISNA(TXCalc!EO38),0,TXCalc!EO38)+IF(ISNA(TXCalc!EO39),0,TXCalc!EO39) -> 0.0002633333333 | AV99: 2.633333333e-07 | AW99: 4.050000263 | AX99: MISO_MO-IL_2_TVA
M100: 26 | N100: MISO_W_2_MISO_WUMS | O100: MISO_W | P100: MISO_WUMS | Q100: =TXCalc!AH44 -> 1747 | R100: =TXCalc!AI44 -> 1255 | S100: 1.747 | T100: =TXCalc!AD44 -> 1747 | U100: =TXCalc!AJ44 -> 0 | V100: 1.747 | X100: 1.747 | Y100: ActiveSheet.Shapes.Range(Array("Straight Arrow Connector 397")).Select | AB100: =IF(ISNA(TXCalc!CK44),0,TXCalc!CK44) -> 117.8344794 | AC100: =IF(ISNA(TXCalc!CL44),0,TXCalc!CL44) -> 0.0002045929742 | AD100: 0.1178344794 | AF100: =TXCalc!CN44 -> 1629 | AG100: =TXCalc!CO44 -> 1137 | AH100: 1.629 | AJ100: =IF(ISNA(TXCalc!EI44),0,TXCalc!EI44) -> 117.8344794 | AK100: =IF(ISNA(TXCalc!EJ44),0,TXCalc!EJ44) -> 0 | AL100: 0.1178344794 | AM100: 1.746834479 | AO100: =IF(ISNA(TXCalc!EL44),0,TXCalc!EL44) -> 145.3935862 | AP100: =IF(ISNA(TXCalc!EM44),0,TXCalc!EM44) -> 0.0001316666667 | AQ100: 0.1453935862 | AR100: 1.774393586 | AT100: =IF(ISNA(TXCalc!EN44),0,TXCalc!EN44) -> 159.9915683 | AU100: =IF(ISNA(TXCalc!EO44),0,TXCalc!EO44) -> 0.0001316666667 | AV100: 0.1599915683 | AW100: 1.788991568 | AX100: MISO_W_2_MISO_WUMS
M101: 27 | N101: MISO_W_2_NE | O101: MISO_W | P101: NE | Q101: =TXCalc!AH45 -> 4814 | R101: =TXCalc!AI45 -> 3614 | S101: 4.814 | T101: =TXCalc!AD45 -> 0 | U101: =TXCalc!AJ45 -> 3614 | V101: 4.814 | X101: 4.814 | Y101: ActiveSheet.Shapes.Range(Array("Straight Arrow Connector 441")).Select | AB101: =IF(ISNA(TXCalc!CK45),0,TXCalc!CK45) -> 0.0001316666667 | AC101: =IF(ISNA(TXCalc!CL45),0,TXCalc!CL45) -> 2013.585853 | AD101: 2.013585853 | AF101: =TXCalc!CN45 -> 2800 | AG101: =TXCalc!CO45 -> 1600 | AH101: 2.8 | AJ101: =IF(ISNA(TXCalc!EI45),0,TXCalc!EI45) -> 0 | AK101: =IF(ISNA(TXCalc!EJ45),0,TXCalc!EJ45) -> 2013.585853 | AL101: 2.013585853 | AM101: 4.813585853 | AO101: =IF(ISNA(TXCalc!EL45),0,TXCalc!EL45) -> 0.0001316666667 | AP101: =IF(ISNA(TXCalc!EM45),0,TXCalc!EM45) -> 1245.704595 | AQ101: 1.245704595 | AR101: 4.045704595 | AT101: =IF(ISNA(TXCalc!EN45),0,TXCalc!EN45) -> 0.0001316666667 | AU101: =IF(ISNA(TXCalc!EO45),0,TXCalc!EO45) -> 621.4870102 | AV101: 0.6214870102 | AW101: 3.42148701 | AX101: MISO_W_2_NE
M102: 28 | N102: MISO_W_2_IESO | O102: MISO_W | P102: IESO | Q102: =TXCalc!AH46 -> 145 | R102: =TXCalc!AI46 -> 195 | S102: 0.195 | T102: =TXCalc!AD46 -> 145 | U102: =TXCalc!AJ46 -> 195 | V102: 0.195 | X102: 0.195 | Y102: ActiveSheet.Shapes.Range(Array("Straight Arrow Connector 396")).Select | AB102: =IF(ISNA(TXCalc!CK46),0,TXCalc!CK46) -> 0.0001316666667 | AC102: =IF(ISNA(TXCalc!CL46),0,TXCalc!CL46) -> 55.10920993 | AD102: 0.05510920993 | AF102: =TXCalc!CN46 -> 90 | AG102: =TXCalc!CO46 -> 140 | AH102: 0.14 | AJ102: =IF(ISNA(TXCalc!EI46),0,TXCalc!EI46) -> 0 | AK102: =IF(ISNA(TXCalc!EJ46),0,TXCalc!EJ46) -> 55.10920993 | AL102: 0.05510920993 | AM102: 0.1951092099 | AO102: =IF(ISNA(TXCalc!EL46),0,TXCalc!EL46) -> 0.0001316666667 | AP102: =IF(ISNA(TXCalc!EM46),0,TXCalc!EM46) -> 40.728046 | AQ102: 0.040728046 | AR102: 0.180728046 | AT102: =IF(ISNA(TXCalc!EN46),0,TXCalc!EN46) -> 0.0001316666667 | AU102: =IF(ISNA(TXCalc!EO46),0,TXCalc!EO46) -> 4.208687678 | AV102: 0.004208687678 | AW102: 0.1442086877 | AX102: MISO_W_2_IESO
M103: 29 | N103: MISO_W_2_PJM_ROR | O103: MISO_W | P103: PJM_ROR | Q103: =TXCalc!AH47 -> 19839 | R103: =TXCalc!AI47 ->  | S103: 19.839 | T103: =TXCalc!AD47 -> 19839 | U103: =TXCalc!AJ47 -> 0 | V103: 19.839 | X103: 19.839 | Y103: ActiveSheet.Shapes.Range(Array("Straight Arrow Connector 443")).Select | AB103: =IF(ISNA(TXCalc!CK47),0,TXCalc!CK47) -> 19066.12014 | AC103: =IF(ISNA(TXCalc!CL47),0,TXCalc!CL47) -> 0.0001316666667 | AD103: 19.06612014 | AF103: =TXCalc!CN47 -> 773 | AG103: =TXCalc!CO47 -> 709 | AH103: 0.773 | AJ103: =IF(ISNA(TXCalc!EI47),0,TXCalc!EI47) -> 19066.12014 | AK103: =IF(ISNA(TXCalc!EJ47),0,TXCalc!EJ47) -> 0 | AL103: 19.06612014 | AM103: 19.83912014 | AO103: =IF(ISNA(TXCalc!EL47),0,TXCalc!EL47) -> 6399.873834 | AP103: =IF(ISNA(TXCalc!EM47),0,TXCalc!EM47) -> 0.0001316666667 | AQ103: 6.399873834 | AR103: 7.172873834 | AT103: =IF(ISNA(TXCalc!EN47),0,TXCalc!EN47) -> 11217.31165 | AU103: =IF(ISNA(TXCalc!EO47),0,TXCalc!EO47) -> 0.0001316666667 | AV103: 11.21731165 | AW103: 11.99031165 | AX103: MISO_W_2_PJM_ROR
M104: 30 | N104: MISO_W_2_SPP_N | O104: MISO_W | P104: SPP_N | Q104: =TXCalc!AH48 -> 3450 | R104: =TXCalc!AI48 -> 1000 | S104: 3.45 | T104: =TXCalc!AD48 -> 3450 | U104: =TXCalc!AJ48 -> 1000 | V104: 3.45 | X104: 3.45 | Y104: ActiveSheet.Shapes.Range(Array("Straight Arrow Connector 442")).Select | AB104: =IF(ISNA(TXCalc!CK48),0,TXCalc!CK48) -> 0.0001316666667 | AC104: =IF(ISNA(TXCalc!CL48),0,TXCalc!CL48) -> 249.7353369 | AD104: 0.2497353369 | AF104: =TXCalc!CN48 -> 3200 | AG104: =TXCalc!CO48 -> 750 | AH104: 3.2 | AJ104: =IF(ISNA(TXCalc!EI48),0,TXCalc!EI48) -> 0 | AK104: =IF(ISNA(TXCalc!EJ48),0,TXCalc!EJ48) -> 249.7353369 | AL104: 0.2497353369 | AM104: 3.449735337 | AO104: =IF(ISNA(TXCalc!EL48),0,TXCalc!EL48) -> 0.0001316666667 | AP104: =IF(ISNA(TXCalc!EM48),0,TXCalc!EM48) -> 51.51820972 | AQ104: 0.05151820972 | AR104: 3.25151821 | AT104: =IF(ISNA(TXCalc!EN48),0,TXCalc!EN48) -> 0.0002023248895 | AU104: =IF(ISNA(TXCalc!EO48),0,TXCalc!EO48) -> 66.98704555 | AV104: 0.06698704555 | AW104: 3.266987046 | AX104: MISO_W_2_SPP_N
M105: 31 | N105: MISO_WUMS_2_PJM_ROR | O105: MISO_WUMS | P105: PJM_ROR | Q105: =TXCalc!AH51 -> 1600 | R105: =TXCalc!AI51 -> 1467 | S105: 1.6 | T105: =TXCalc!AD51 -> 1600 | U105: =TXCalc!AJ51 -> 0 | V105: 1.6 | X105: 1.6 | Y105: ActiveSheet.Shapes.Range(Array("Shape 89")).Select | AB105: =IF(ISNA(TXCalc!CK51),0,TXCalc!CK51) -> 0.0002968115558 | AC105: =IF(ISNA(TXCalc!CL51),0,TXCalc!CL51) -> 0.0001316666667 | AD105: 2.968115558e-07 | AF105: =TXCalc!CN51 -> 1600 | AG105: =TXCalc!CO51 -> 1467 | AH105: 1.6 | AJ105: =IF(ISNA(TXCalc!EI51),0,TXCalc!EI51) -> 0 | AK105: =IF(ISNA(TXCalc!EJ51),0,TXCalc!EJ51) -> 0 | AL105: 0 | AM105: 1.6 | AO105: =IF(ISNA(TXCalc!EL51),0,TXCalc!EL51) -> 0.000288206858 | AP105: =IF(ISNA(TXCalc!EM51),0,TXCalc!EM51) -> 0.0001316666667 | AQ105: 2.88206858e-07 | AR105: 1.600000288 | AT105: =IF(ISNA(TXCalc!EN51),0,TXCalc!EN51) -> 0.0002648735247 | AU105: =IF(ISNA(TXCalc!EO51),0,TXCalc!EO51) -> 0.0001316666667 | AV105: 2.648735247e-07 | AW105: 1.600000265 | AX105: MISO_WUMS_2_PJM_ROR
M106: 32 | N106: NE_2_RMPA | O106: NE | P106: RMPA | Q106: =TXCalc!AH54 -> 310 | R106: =TXCalc!AI54 -> 310 | S106: 0.31 | T106: =TXCalc!AD54 -> 310 | U106: =TXCalc!AJ54 -> 230.36 | V106: 0.31 | X106: 0.31 | Y106: ActiveSheet.Shapes.Range(Array("Shape 25")).Select | AB106: =IF(ISNA(TXCalc!CK54),0,TXCalc!CK54) -> 0 | AC106: =IF(ISNA(TXCalc!CL54),0,TXCalc!CL54) -> 0 | AD106: 0 | AF106: =TXCalc!CN54 -> 310 | AG106: =TXCalc!CO54 -> 310 | AH106: 0.31 | AJ106: =IF(ISNA(TXCalc!EI54),0,TXCalc!EI54) -> 0 | AK106: =IF(ISNA(TXCalc!EJ54),0,TXCalc!EJ54) -> 0 | AL106: 0 | AM106: 0.31 | AO106: =IF(ISNA(TXCalc!EL54),0,TXCalc!EL54) -> 0 | AP106: =IF(ISNA(TXCalc!EM54),0,TXCalc!EM54) -> 0 | AQ106: 0 | AR106: 0.31 | AT106: =IF(ISNA(TXCalc!EN54),0,TXCalc!EN54) -> 0 | AU106: =IF(ISNA(TXCalc!EO54),0,TXCalc!EO54) -> 0 | AV106: 0 | AW106: 0.31 | AX106: NE_2_RMPA
M107: 33 | N107: NE_2_SPP_N | O107: NE | P107: SPP_N | Q107: =TXCalc!AH55 -> 1854 | R107: =TXCalc!AI55 -> 384 | S107: 1.854 | T107: =TXCalc!AD55 -> 1854 | U107: =TXCalc!AJ55 -> 384 | V107: 1.854 | X107: 1.854 | Y107: ActiveSheet.Shapes.Range(Array("Straight Arrow Connector 382")).Select | AB107: =IF(ISNA(TXCalc!CK55),0,TXCalc!CK55) -> 54.21433672 | AC107: =IF(ISNA(TXCalc!CL55),0,TXCalc!CL55) -> 0.0002225462812 | AD107: 0.05421433672 | AF107: =TXCalc!CN55 -> 1800 | AG107: =TXCalc!CO55 -> 330 | AH107: 1.8 | AJ107: =IF(ISNA(TXCalc!EI55),0,TXCalc!EI55) -> 54.21433672 | AK107: =IF(ISNA(TXCalc!EJ55),0,TXCalc!EJ55) -> 0 | AL107: 0.05421433672 | AM107: 1.854214337 | AO107: =IF(ISNA(TXCalc!EL55),0,TXCalc!EL55) -> 87.14373285 | AP107: =IF(ISNA(TXCalc!EM55),0,TXCalc!EM55) -> 0.0002103234318 | AQ107: 0.08714373285 | AR107: 1.887143733 | AT107: =IF(ISNA(TXCalc!EN55),0,TXCalc!EN55) -> 125.5235266 | AU107: =IF(ISNA(TXCalc!EO55),0,TXCalc!EO55) -> 0.0001969900985 | AV107: 0.1255235266 | AW107: 1.925523527 | AX107: NE_2_SPP_N
M108: 34 | N108: NEISO_2_NYISO_A-F | O108: NEISO | P108: NYISO_A-F | Q108: =TXCalc!AH56 -> 600 | R108: =TXCalc!AI56 -> 600 | S108: 0.6 | T108: =TXCalc!AD56 -> 75.21 | U108: =TXCalc!AJ56 -> 600 | V108: 0.6 | X108: 0.6 | Y108: ActiveSheet.Shapes.Range(Array("Straight Arrow Connector 434")).Select | AB108: =IF(ISNA(TXCalc!CK56),0,TXCalc!CK56) -> 0.000198744096 | AC108: =IF(ISNA(TXCalc!CL56),0,TXCalc!CL56) -> 0.0001971658898 | AD108: 1.98744096e-07 | AF108: =TXCalc!CN56 -> 600 | AG108: =TXCalc!CO56 -> 600 | AH108: 0.6 | AJ108: =IF(ISNA(TXCalc!EI56),0,TXCalc!EI56) -> 0 | AK108: =IF(ISNA(TXCalc!EJ56),0,TXCalc!EJ56) -> 0 | AL108: 0 | AM108: 0.6 | AO108: =IF(ISNA(TXCalc!EL56),0,TXCalc!EL56) -> 0.0002050761289 | AP108: =IF(ISNA(TXCalc!EM56),0,TXCalc!EM56) -> 0.0001971658898 | AQ108: 2.050761289e-07 | AR108: 0.6000002051 | AT108: =IF(ISNA(TXCalc!EN56),0,TXCalc!EN56) -> 0.0001993298569 | AU108: =IF(ISNA(TXCalc!EO56),0,TXCalc!EO56) -> 0.0001971658898 | AV108: 1.993298569e-07 | AW108: 0.6000001993 | AX108: NEISO_2_NYISO_A-F
M109: 35 | N109: NEISO_2_NYISO_G-I | O109: NEISO | P109: NYISO_G-I | Q109: =TXCalc!AH57 -> 600 | R109: =TXCalc!AI57 -> 600 | S109: 0.6 | T109: =TXCalc!AD57 -> 600 | U109: =TXCalc!AJ57 -> 542.92 | V109: 0.6 | X109: 0.6 | Y109: ActiveSheet.Shapes.Range(Array("Straight Arrow Connector 439")).Select | AB109: =IF(ISNA(TXCalc!CK57),0,TXCalc!CK57) -> 0.0002883333333 | AC109: =IF(ISNA(TXCalc!CL57),0,TXCalc!CL57) -> 0.0001969900985 | AD109: 2.883333333e-07 | AF109: =TXCalc!CN57 -> 600 | AG109: =TXCalc!CO57 -> 600 | AH109: 0.6 | AJ109: =IF(ISNA(TXCalc!EI57),0,TXCalc!EI57) -> 0 | AK109: =IF(ISNA(TXCalc!EJ57),0,TXCalc!EJ57) -> 0 | AL109: 0 | AM109: 0.6 | AO109: =IF(ISNA(TXCalc!EL57),0,TXCalc!EL57) -> 0.0002383333333 | AP109: =IF(ISNA(TXCalc!EM57),0,TXCalc!EM57) -> 0.0001316666667 | AQ109: 2.383333333e-07 | AR109: 0.6000002383 | AT109: =IF(ISNA(TXCalc!EN57),0,TXCalc!EN57) -> 0.0002316666667 | AU109: =IF(ISNA(TXCalc!EO57),0,TXCalc!EO57) -> 0.0001316666667 | AV109: 2.316666667e-07 | AW109: 0.6000002317 | AX109: NEISO_2_NYISO_G-I
M110: 36 | N110: NEISO_2_NYISO_J-K | O110: NEISO | P110: NYISO_J-K | Q110: =TXCalc!AH58 -> 1038 | R110: =TXCalc!AI58 -> 608 | S110: 1.038 | T110: =TXCalc!AD58 -> 1038 | U110: =TXCalc!AJ58 -> 0 | V110: 1.038 | X110: 1.038 | Y110: ActiveSheet.Shapes.Range(Array("Shape 126")).Select | AB110: =IF(ISNA(TXCalc!CK58),0,TXCalc!CK58) -> 608.1874013 | AC110: =IF(ISNA(TXCalc!CL58),0,TXCalc!CL58) -> 0.0001316666667 | AD110: 0.6081874013 | AF110: =TXCalc!CN58 -> 430 | AG110: =TXCalc!CO58 -> 0 | AH110: 0.43 | AJ110: =IF(ISNA(TXCalc!EI58),0,TXCalc!EI58) -> 608.1874013 | AK110: =IF(ISNA(TXCalc!EJ58),0,TXCalc!EJ58) -> 0 | AL110: 0.6081874013 | AM110: 1.038187401 | AO110: =IF(ISNA(TXCalc!EL58),0,TXCalc!EL58) -> 194.9017459 | AP110: =IF(ISNA(TXCalc!EM58),0,TXCalc!EM58) -> 0.0001316666667 | AQ110: 0.1949017459 | AR110: 0.6249017459 | AT110: =IF(ISNA(TXCalc!EN58),0,TXCalc!EN58) -> 75.56340987 | AU110: =IF(ISNA(TXCalc!EO58),0,TXCalc!EO58) -> 0.0001316666667 | AV110: 0.07556340987 | AW110: 0.5055634099 | AX110: NEISO_2_NYISO_J-K
M111: 37 | N111: NonRTO_Midwest_2_TVA | O111: NonRTO_Midwest | P111: TVA | Q111: =SUM(IF(ISNA(TXCalc!AH$60:AH$61),0,TXCalc!AH$60:AH$61)) -> 2400 | R111: =SUM(IF(ISNA(TXCalc!AI$60:AI$61),0,TXCalc!AI$60:AI$61)) -> 700 | S111: 2.4 | T111: =SUM(IF(ISNA(TXCalc!AD$60:AD$61),0,TXCalc!AD$60:AD$61)) -> 1513.42 | U111: =SUM(IF(ISNA(TXCalc!AJ$60:AJ$61),0,TXCalc!AJ$60:AJ$61)) -> 0 | V111: 2.4 | X111: 2.4 | Y111: ActiveSheet.Shapes.Range(Array("Straight Arrow Connector 425")).Select | AB111: =SUM(IF(ISNA(TXCalc!CK$60:CK$61),0,TXCalc!CK$60:CK$61)) -> 0.0001316666667 | AC111: =SUM(IF(ISNA(TXCalc!CL$60:CL$61),0,TXCalc!CL$60:CL$61)) -> 0.0002633333333 | AD111: 2.633333333e-07 | AF111: =SUM(IF(ISNA(TXCalc!CN$60:CN$61),0,TXCalc!CN$60:CN$61)) -> 2400 | AG111: =SUM(IF(ISNA(TXCalc!CO$60:CO$61),0,TXCalc!CO$60:CO$61)) -> 800 | AH111: 2.4 | AJ111: =SUM(IF(ISNA(TXCalc!EI$60:EI$61),0,TXCalc!EI$60:EI$61)) -> 0 | AK111: =SUM(IF(ISNA(TXCalc!EJ$60:EJ$61),0,TXCalc!EJ$60:EJ$61)) -> 0 | AL111: 0 | AM111: 2.4 | AO111: =SUM(IF(ISNA(TXCalc!EL$60:EL$61),0,TXCalc!EL$60:EL$61)) -> 0.0001316666667 | AP111: =SUM(IF(ISNA(TXCalc!EM$60:EM$61),0,TXCalc!EM$60:EM$61)) -> 0.0002633333333 | AQ111: 2.633333333e-07 | AR111: 2.400000263 | AT111: =SUM(IF(ISNA(TXCalc!EN$60:EN$61),0,TXCalc!EN$60:EN$61)) -> 0.0001316666667 | AU111: =SUM(IF(ISNA(TXCalc!EO$60:EO$61),0,TXCalc!EO$60:EO$61)) -> 0.0002633333333 | AV111: 2.633333333e-07 | AW111: 2.400000263 | AX111: NonRTO_Midwest_2_TVA
M112: 38 | N112: NYISO_A-F_2_NYISO_G-I | O112: NYISO_A-F | P112: NYISO_G-I | Q112: =TXCalc!AH64 -> 5266 | R112: =TXCalc!AI64 ->  | S112: 5.266 | T112: =TXCalc!AD64 -> 5266 | U112: =TXCalc!AJ64 -> 0 | V112: 5.266 | X112: 5.266 | Y112: ActiveSheet.Shapes.Range(Array("Straight Arrow Connector 436")).Select | AB112: =IF(ISNA(TXCalc!CK64),0,TXCalc!CK64) -> 1015.968125 | AC112: =IF(ISNA(TXCalc!CL64),0,TXCalc!CL64) -> 0.0001316666667 | AD112: 1.015968125 | AF112: =TXCalc!CN64 -> 4250 | AG112: =TXCalc!CO64 -> 1999 | AH112: 4.25 | AJ112: =IF(ISNA(TXCalc!EI64),0,TXCalc!EI64) -> 1015.968125 | AK112: =IF(ISNA(TXCalc!EJ64),0,TXCalc!EJ64) -> 0 | AL112: 1.015968125 | AM112: 5.265968125 | AO112: =IF(ISNA(TXCalc!EL64),0,TXCalc!EL64) -> 871.6712553 | AP112: =IF(ISNA(TXCalc!EM64),0,TXCalc!EM64) -> 0.0001316666667 | AQ112: 0.8716712553 | AR112: 5.121671255 | AT112: =IF(ISNA(TXCalc!EN64),0,TXCalc!EN64) -> 1041.919759 | AU112: =IF(ISNA(TXCalc!EO64),0,TXCalc!EO64) -> 0.0001316666667 | AV112: 1.041919759 | AW112: 5.291919759 | AX112: NYISO_A-F_2_NYISO_G-I
M113: 39 | N113: NYISO_A-F_2_IESO | O113: NYISO_A-F | P113: IESO | Q113: =TXCalc!AH65 -> 2099 | R113: =TXCalc!AI65 -> 2224 | S113: 2.224 | T113: =TXCalc!AD65 -> 0 | U113: =TXCalc!AJ65 -> 2224 | V113: 2.224 | X113: 2.224 | Y113: ActiveSheet.Shapes.Range(Array("Straight Arrow Connector 57")).Select | AB113: =IF(ISNA(TXCalc!CK65),0,TXCalc!CK65) -> 0.0001316666667 | AC113: =IF(ISNA(TXCalc!CL65),0,TXCalc!CL65) -> 499.3171215 | AD113: 0.4993171215 | AF113: =TXCalc!CN65 -> 1600 | AG113: =TXCalc!CO65 -> 1725 | AH113: 1.725 | AJ113: =IF(ISNA(TXCalc!EI65),0,TXCalc!EI65) -> 0 | AK113: =IF(ISNA(TXCalc!EJ65),0,TXCalc!EJ65) -> 499.3171215 | AL113: 0.4993171215 | AM113: 2.224317121 | AO113: =IF(ISNA(TXCalc!EL65),0,TXCalc!EL65) -> 0.0001316666667 | AP113: =IF(ISNA(TXCalc!EM65),0,TXCalc!EM65) -> 602.2347486 | AQ113: 0.6022347486 | AR113: 2.327234749 | AT113: =IF(ISNA(TXCalc!EN65),0,TXCalc!EN65) -> 0.0001316666667 | AU113: =IF(ISNA(TXCalc!EO65),0,TXCalc!EO65) -> 597.7507606 | AV113: 0.5977507606 | AW113: 2.322750761 | AX113: NYISO_A-F_2_IESO
M114: 40 | N114: NYISO_A-F_2_PJM_ROM | O114: NYISO_A-F | P114: PJM_ROM | Q114: =TXCalc!AH66 -> 1000 | R114: =TXCalc!AI66 ->  | S114: 2 | T114: =TXCalc!AD66 -> 1000 | U114: =TXCalc!AJ66 -> 0 | V114: 2 | X114: 2 | Y114: ActiveSheet.Shapes.Range(Array("Straight Arrow Connector 431")).Select | AB114: =IF(ISNA(TXCalc!CK66),0,TXCalc!CK66) -> 0.0002974868565 | AC114: =IF(ISNA(TXCalc!CL66),0,TXCalc!CL66) -> 0.0001316666667 | AD114: 2.974868565e-07 | AF114: =TXCalc!CN66 -> 1000 | AG114: =TXCalc!CO66 -> 2000 | AH114: 2 | AJ114: =IF(ISNA(TXCalc!EI66),0,TXCalc!EI66) -> 0 | AK114: =IF(ISNA(TXCalc!EJ66),0,TXCalc!EJ66) -> 0 | AL114: 0 | AM114: 2 | AO114: =IF(ISNA(TXCalc!EL66),0,TXCalc!EL66) -> 0.0001926323384 | AP114: =IF(ISNA(TXCalc!EM66),0,TXCalc!EM66) -> 0.0001316666667 | AQ114: 1.926323384e-07 | AR114: 2.000000193 | AT114: =IF(ISNA(TXCalc!EN66),0,TXCalc!EN66) -> 0.0002486965075 | AU114: =IF(ISNA(TXCalc!EO66),0,TXCalc!EO66) -> 0.0001316666667 | AV114: 2.486965075e-07 | AW114: 2.000000249 | AX114: NYISO_A-F_2_PJM_ROM
M115: 41 | N115: NYISO_G-I_2_NYISO_J-K | O115: NYISO_G-I | P115: NYISO_J-K | Q115: =TXCalc!AH69 -> 6130 | R115: =TXCalc!AI69 ->  | S115: 6.13 | T115: =TXCalc!AD69 -> 6130 | U115: =TXCalc!AJ69 -> 0 | V115: 6.13 | X115: 6.13 | Y115: ActiveSheet.Shapes.Range(Array("Straight Arrow Connector 437")).Select | AB115: =IF(ISNA(TXCalc!CK69),0,TXCalc!CK69) -> 0.0002076144198 | AC115: =IF(ISNA(TXCalc!CL69),0,TXCalc!CL69) -> 0.0001316666667 | AD115: 2.076144198e-07 | AF115: =TXCalc!CN69 -> 6130 | AG115: =TXCalc!CO69 -> 1999 | AH115: 6.13 | AJ115: =IF(ISNA(TXCalc!EI69),0,TXCalc!EI69) -> 0 | AK115: =IF(ISNA(TXCalc!EJ69),0,TXCalc!EJ69) -> 0 | AL115: 0 | AM115: 6.13 | AO115: =IF(ISNA(TXCalc!EL69),0,TXCalc!EL69) -> 0.0001991137002 | AP115: =IF(ISNA(TXCalc!EM69),0,TXCalc!EM69) -> 0.0001316666667 | AQ115: 1.991137002e-07 | AR115: 6.130000199 | AT115: =IF(ISNA(TXCalc!EN69),0,TXCalc!EN69) -> 0.0002084485567 | AU115: =IF(ISNA(TXCalc!EO69),0,TXCalc!EO69) -> 0.0001316666667 | AV115: 2.084485567e-07 | AW115: 6.130000208 | AX115: NYISO_G-I_2_NYISO_J-K
M116: 42 | N116: NYISO_G-I_2_PJM_E | O116: NYISO_G-I | P116: PJM_E | Q116: =TXCalc!AH70 -> 1500 | R116: =TXCalc!AI70 -> 500 | S116: 1.5 | T116: =TXCalc!AD70 -> 1500 | U116: =TXCalc!AJ70 -> 500 | V116: 1.5 | X116: 1.5 | Y116: ActiveSheet.Shapes.Range(Array("Straight Arrow Connector 430")).Select | AB116: =TXCalc!CK70 -> 0.0001769730913 | AC116: =TXCalc!CL70 -> 0.0001316666667 | AD116: 1.769730913e-07 | AF116: =TXCalc!CN70 -> 1500 | AG116: =TXCalc!CO70 -> 500 | AH116: 1.5 | AJ116: =TXCalc!EI70 -> 0 | AK116: =TXCalc!EJ70 -> 0 | AL116: 0 | AM116: 1.5 | AO116: =TXCalc!EL70 -> 0.0001792233127 | AP116: =TXCalc!EM70 -> 0.0001316666667 | AQ116: 1.792233127e-07 | AR116: 1.500000179 | AT116: =TXCalc!EN70 -> 0.0001823128419 | AU116: =TXCalc!EO70 -> 0.0001316666667 | AV116: 1.823128419e-07 | AW116: 1.500000182 | AX116: NYISO_G-I_2_PJM_E
M117: 43 | N117: NYISO_J-K_2_PJM_E | O117: NYISO_J-K | P117: PJM_E | Q117: =TXCalc!AH74 -> 330 | R117: =TXCalc!AI74 -> 330 | S117: 0.33 | T117: =TXCalc!AD74 -> 330 | U117: =TXCalc!AJ74 -> 330 | V117: 0.33 | X117: 0.33 | Y117: ActiveSheet.Shapes.Range(Array("Shape 100")).Select | AB117: =TXCalc!CK74 -> 1.527064399 | AC117: =TXCalc!CL74 -> 0.0002154933213 | AD117: 0.001527064399 | AF117: =TXCalc!CN74 -> 0 | AG117: =TXCalc!CO74 -> 330 | AH117: 0.33 | AJ117: =TXCalc!EI74 -> 1.527064399 | AK117: =TXCalc!EJ74 -> 0 | AL117: 0.001527064399 | AM117: 0.3315270644 | AO117: =TXCalc!EL74 -> 1.57827541 | AP117: =TXCalc!EM74 -> 0.0002141609149 | AQ117: 0.00157827541 | AR117: 0.3315782754 | AT117: =TXCalc!EN74 -> 0.8086660746 | AU117: =TXCalc!EO74 -> 0.0002141609149 | AV117: 0.0008086660746 | AW117: 0.3308086661 | AX117: NYISO_J-K_2_PJM_E
M118: 44 | N118: PJM_E_2_PJM_ROM | O118: PJM_E | P118: PJM_ROM | Q118: =TXCalc!AH82 -> 8000 | R118: =TXCalc!AI82 -> 8000 | S118: 8 | T118: =TXCalc!AD82 -> 5976.91 | U118: =TXCalc!AJ82 -> 1834.68 | V118: 8 | X118: 8 | Y118: ActiveSheet.Shapes.Range(Array("Straight Arrow Connector 428")).Select | AB118: =IF(ISNA(TXCalc!CK82),0,TXCalc!CK82) -> 0.0001960509621 | AC118: =IF(ISNA(TXCalc!CL82),0,TXCalc!CL82) -> 0.0001316666667 | AD118: 1.960509621e-07 | AF118: =TXCalc!CN82 -> 8000 | AG118: =TXCalc!CO82 -> 8000 | AH118: 8 | AJ118: =IF(ISNA(TXCalc!EI82),0,TXCalc!EI82) -> 0 | AK118: =IF(ISNA(TXCalc!EJ82),0,TXCalc!EJ82) -> 0 | AL118: 0 | AM118: 8 | AO118: =IF(ISNA(TXCalc!EL82),0,TXCalc!EL82) -> 0.0001938616719 | AP118: =IF(ISNA(TXCalc!EM82),0,TXCalc!EM82) -> 0.0001316666667 | AQ118: 1.938616719e-07 | AR118: 8.000000194 | AT118: =IF(ISNA(TXCalc!EN82),0,TXCalc!EN82) -> 0.0001967239829 | AU118: =IF(ISNA(TXCalc!EO82),0,TXCalc!EO82) -> 0.0001316666667 | AV118: 1.967239829e-07 | AW118: 8.000000197 | AX118: PJM_E_2_PJM_ROM
M119: 45 | N119: PJM_ROM_2_PJM_ROR | O119: PJM_ROM | P119: PJM_ROR | Q119: =TXCalc!AH85 -> 8000 | R119: =TXCalc!AI85 -> 8000 | S119: 8 | T119: =TXCalc!AD85 -> 2144.66 | U119: =TXCalc!AJ85 -> 8000 | V119: 8 | X119: 8 | Y119: 427 | AB119: =IF(ISNA(TXCalc!CK85),0,TXCalc!CK85) -> 0.0001316666667 | AC119: =IF(ISNA(TXCalc!CL85),0,TXCalc!CL85) -> 0.000308124763 | AD119: 3.08124763e-07 | AF119: =TXCalc!CN85 -> 8000 | AG119: =TXCalc!CO85 -> 8000 | AH119: 8 | AJ119: =IF(ISNA(TXCalc!EI85),0,TXCalc!EI85) -> 0 | AK119: =IF(ISNA(TXCalc!EJ85),0,TXCalc!EJ85) -> 0 | AL119: 0 | AM119: 8 | AO119: =IF(ISNA(TXCalc!EL85),0,TXCalc!EL85) -> 0.0001316666667 | AP119: =IF(ISNA(TXCalc!EM85),0,TXCalc!EM85) -> 0.0002249787096 | AQ119: 2.249787096e-07 | AR119: 8.000000225 | AT119: =IF(ISNA(TXCalc!EN85),0,TXCalc!EN85) -> 0.0001316666667 | AU119: =IF(ISNA(TXCalc!EO85),0,TXCalc!EO85) -> 0.0002183120428 | AV119: 2.183120428e-07 | AW119: 8.000000218 | AX119: PJM_ROM_2_PJM_ROR
M120: 46 | N120: PJM_ROR_2_TVA | O120: PJM_ROR | P120: TVA | Q120: =SUM(IF(ISNA(TXCalc!AH$93:AH$94),0,TXCalc!AH$93:AH$94)) -> 2500 | R120: =SUM(IF(ISNA(TXCalc!AI$93:AI$94),0,TXCalc!AI$93:AI$94)) -> 0 | S120: 2.5 | T120: =SUM(IF(ISNA(TXCalc!AD$93:AD$94),0,TXCalc!AD$93:AD$94)) -> 2500 | U120: =SUM(IF(ISNA(TXCalc!AJ$93:AJ$94),0,TXCalc!AJ$93:AJ$94)) -> 0 | V120: 2.5 | X120: 2.5 | Y120: ActiveSheet.Shapes.Range(Array("Elbow Connector 432")).Select | AB120: =SUM(IF(ISNA(TXCalc!CK$93:CK$94),0,TXCalc!CK$93:CK$94)) -> 0.000202178897 | AC120: =SUM(IF(ISNA(TXCalc!CL$93:CL$94),0,TXCalc!CL$93:CL$94)) -> 0.0002633333333 | AD120: 2.633333333e-07 | AF120: =SUM(IF(ISNA(TXCalc!CN$93:CN$94),0,TXCalc!CN$93:CN$94)) -> 2500 | AG120: =SUM(IF(ISNA(TXCalc!CO$93:CO$94),0,TXCalc!CO$93:CO$94)) -> 2050 | AH120: 2.5 | AJ120: =SUM(IF(ISNA(TXCalc!EI$93:EI$94),0,TXCalc!EI$93:EI$94)) -> 0 | AK120: =SUM(IF(ISNA(TXCalc!EJ$93:EJ$94),0,TXCalc!EJ$93:EJ$94)) -> 0 | AL120: 0 | AM120: 2.5 | AO120: =SUM(IF(ISNA(TXCalc!EL$93:EL$94),0,TXCalc!EL$93:EL$94)) -> 0.0002131512452 | AP120: =SUM(IF(ISNA(TXCalc!EM$93:EM$94),0,TXCalc!EM$93:EM$94)) -> 0.0002633333333 | AQ120: 2.633333333e-07 | AR120: 2.500000263 | AT120: =SUM(IF(ISNA(TXCalc!EN$93:EN$94),0,TXCalc!EN$93:EN$94)) -> 0.0001316666667 | AU120: =SUM(IF(ISNA(TXCalc!EO$93:EO$94),0,TXCalc!EO$93:EO$94)) -> 0.0002633333333 | AV120: 2.633333333e-07 | AW120: 2.500000263 | AX120: PJM_ROR_2_TVA
M121: 47 | N121: PJM_ROR_2_VACAR | O121: PJM_ROR | P121: VACAR | Q121: =TXCalc!AH95 -> 3000 | R121: =TXCalc!AI95 -> 2000 | S121: 3 | T121: =TXCalc!AD95 -> 3000 | U121: =TXCalc!AJ95 -> 0 | V121: 3 | X121: 3 | Y121: ActiveSheet.Shapes.Range(Array("Straight Arrow Connector 440")).Select | AB121: =IF(ISNA(TXCalc!CK95),0,TXCalc!CK95) -> 0.0001731793066 | AC121: =IF(ISNA(TXCalc!CL95),0,TXCalc!CL95) -> 0.0002019735351 | AD121: 2.019735351e-07 | AF121: =TXCalc!CN95 -> 3000 | AG121: =TXCalc!CO95 -> 2000 | AH121: 3 | AJ121: =IF(ISNA(TXCalc!EI95),0,TXCalc!EI95) -> 0 | AK121: =IF(ISNA(TXCalc!EJ95),0,TXCalc!EJ95) -> 0 | AL121: 0 | AM121: 3 | AO121: =IF(ISNA(TXCalc!EL95),0,TXCalc!EL95) -> 62.99353308 | AP121: =IF(ISNA(TXCalc!EM95),0,TXCalc!EM95) -> 0.0001316666667 | AQ121: 0.06299353308 | AR121: 3.062993533 | AT121: =IF(ISNA(TXCalc!EN95),0,TXCalc!EN95) -> 87.34685709 | AU121: =IF(ISNA(TXCalc!EO95),0,TXCalc!EO95) -> 0.0001316666667 | AV121: 0.08734685709 | AW121: 3.087346857 | AX121: PJM_ROR_2_VACAR
M122: 48 | N122: RMPA_2_SPP_N | O122: RMPA | P122: SPP_N | Q122: =TXCalc!AH98 -> 210 | R122: =TXCalc!AI98 -> 210 | S122: 0.21 | T122: =TXCalc!AD98 -> 210 | U122: =TXCalc!AJ98 -> 210 | V122: 0.21 | X122: 0.21 | Y122: 393 | AB122: =IF(ISNA(TXCalc!CK98),0,TXCalc!CK98) -> 0 | AC122: =IF(ISNA(TXCalc!CL98),0,TXCalc!CL98) -> 0 | AD122: 0 | AF122: =TXCalc!CN98 -> 210 | AG122: =TXCalc!CO98 -> 210 | AH122: 0.21 | AJ122: =IF(ISNA(TXCalc!EI98),0,TXCalc!EI98) -> 0 | AK122: =IF(ISNA(TXCalc!EJ98),0,TXCalc!EJ98) -> 0 | AL122: 0 | AM122: 0.21 | AO122: =IF(ISNA(TXCalc!EL98),0,TXCalc!EL98) -> 0 | AP122: =IF(ISNA(TXCalc!EM98),0,TXCalc!EM98) -> 0 | AQ122: 0 | AR122: 0.21 | AT122: =IF(ISNA(TXCalc!EN98),0,TXCalc!EN98) -> 0 | AU122: =IF(ISNA(TXCalc!EO98),0,TXCalc!EO98) -> 0 | AV122: 0 | AW122: 0.21 | AX122: RMPA_2_SPP_N
M123: 49 | N123: SOCO_2_TVA | O123: SOCO | P123: TVA | Q123: =SUM(IF(ISNA(TXCalc!AH$101:AH$102),0,TXCalc!AH$101:AH$102)) -> 2000 | R123: =SUM(IF(ISNA(TXCalc!AI$101:AI$102),0,TXCalc!AI$101:AI$102)) -> 3700 | S123: 3.7 | T123: =SUM(IF(ISNA(TXCalc!AD$101:AD$102),0,TXCalc!AD$101:AD$102)) -> 473.07 | U123: =SUM(IF(ISNA(TXCalc!AJ$101:AJ$102),0,TXCalc!AJ$101:AJ$102)) -> 3700 | V123: 3.7 | X123: 3.7 | Y123: 417 | AB123: =SUM(IF(ISNA(TXCalc!CK$101:CK$102),0,TXCalc!CK$101:CK$102)) -> 0.0001316666667 | AC123: =SUM(IF(ISNA(TXCalc!CL$101:CL$102),0,TXCalc!CL$101:CL$102)) -> 0.0003975635424 | AD123: 3.975635424e-07 | AF123: =SUM(IF(ISNA(TXCalc!CN$101:CN$102),0,TXCalc!CN$101:CN$102)) -> 2600 | AG123: =SUM(IF(ISNA(TXCalc!CO$101:CO$102),0,TXCalc!CO$101:CO$102)) -> 3700 | AH123: 3.7 | AJ123: =SUM(IF(ISNA(TXCalc!EI$101:EI$102),0,TXCalc!EI$101:EI$102)) -> 0 | AK123: =SUM(IF(ISNA(TXCalc!EJ$101:EJ$102),0,TXCalc!EJ$101:EJ$102)) -> 0 | AL123: 0 | AM123: 3.7 | AO123: =SUM(IF(ISNA(TXCalc!EL$101:EL$102),0,TXCalc!EL$101:EL$102)) -> 0.0001316666667 | AP123: =SUM(IF(ISNA(TXCalc!EM$101:EM$102),0,TXCalc!EM$101:EM$102)) -> 0.0003975635424 | AQ123: 3.975635424e-07 | AR123: 3.700000398 | AT123: =SUM(IF(ISNA(TXCalc!EN$101:EN$102),0,TXCalc!EN$101:EN$102)) -> 0.0001316666667 | AU123: =SUM(IF(ISNA(TXCalc!EO$101:EO$102),0,TXCalc!EO$101:EO$102)) -> 0.0004030563862 | AV123: 4.030563862e-07 | AW123: 3.700000403 | AX123: SOCO_2_TVA
M124: 50 | N124: SOCO_2_VACAR | O124: SOCO | P124: VACAR | Q124: =TXCalc!AH103 -> 2000 | R124: =TXCalc!AI103 -> 3000 | S124: 3 | T124: =TXCalc!AD103 -> 2000 | U124: =TXCalc!AJ103 -> 3000 | V124: 3 | X124: 3 | Y124: 133 | AB124: =IF(ISNA(TXCalc!CK103),0,TXCalc!CK103) -> 0.0001316666667 | AC124: =IF(ISNA(TXCalc!CL103),0,TXCalc!CL103) -> 0.0001871190764 | AD124: 1.871190764e-07 | AF124: =TXCalc!CN103 -> 2000 | AG124: =TXCalc!CO103 -> 3000 | AH124: 3 | AJ124: =IF(ISNA(TXCalc!EI103),0,TXCalc!EI103) -> 0 | AK124: =IF(ISNA(TXCalc!EJ103),0,TXCalc!EJ103) -> 0 | AL124: 0 | AM124: 3 | AO124: =IF(ISNA(TXCalc!EL103),0,TXCalc!EL103) -> 0.0001316666667 | AP124: =IF(ISNA(TXCalc!EM103),0,TXCalc!EM103) -> 0.000186344597 | AQ124: 1.86344597e-07 | AR124: 3.000000186 | AT124: =IF(ISNA(TXCalc!EN103),0,TXCalc!EN103) -> 0.0001316666667 | AU124: =IF(ISNA(TXCalc!EO103),0,TXCalc!EO103) -> 0.000186344597 | AV124: 1.86344597e-07 | AW124: 3.000000186 | AX124: SOCO_2_VACAR
M125: 51 | N125: SPP_N_2_SPP_S | O125: SPP_N | P125: SPP_S | Q125: =TXCalc!AH109 -> 4000 | R125: =TXCalc!AI109 -> 640 | S125: 4 | T125: =TXCalc!AD109 -> 4000 | U125: =TXCalc!AJ109 -> 640 | V125: 4 | X125: 4 | Y125: ActiveSheet.Shapes.Range(Array("Straight Arrow Connector 381")).Select | AB125: =IF(ISNA(TXCalc!CK109),0,TXCalc!CK109) -> 0.0003604295342 | AC125: =IF(ISNA(TXCalc!CL109),0,TXCalc!CL109) -> 0.0002101449868 | AD125: 3.604295342e-07 | AF125: =TXCalc!CN109 -> 4000 | AG125: =TXCalc!CO109 -> 0 | AH125: 4 | AJ125: =IF(ISNA(TXCalc!EI109),0,TXCalc!EI109) -> 0 | AK125: =IF(ISNA(TXCalc!EJ109),0,TXCalc!EJ109) -> 0 | AL125: 0 | AM125: 4 | AO125: =IF(ISNA(TXCalc!EL109),0,TXCalc!EL109) -> 157.9170469 | AP125: =IF(ISNA(TXCalc!EM109),0,TXCalc!EM109) -> 0.0002085459114 | AQ125: 0.1579170469 | AR125: 4.157917047 | AT125: =IF(ISNA(TXCalc!EN109),0,TXCalc!EN109) -> 362.1137246 | AU125: =IF(ISNA(TXCalc!EO109),0,TXCalc!EO109) -> 0.0001990081924 | AV125: 0.3621137246 | AW125: 4.362113725 | AX125: SPP_N_2_SPP_S
M126: 52 | N126: SPP_S_2_AZ_NM_SNV_Coal | O126: SPP_S | P126: AZ_NM_SNV_Coal | Q126: =TXCalc!AH110 -> 400 | R126: =TXCalc!AI110 -> 400 | S126: 0.4 | T126: =TXCalc!AD110 -> 0 | U126: =TXCalc!AJ110 -> 400 | V126: 0.4 | X126: 0.4 | Y126: ActiveSheet.Shapes.Range(Array("Straight Arrow Connector 380")).Select | AB126: =IF(ISNA(TXCalc!CK110),0,TXCalc!CK110) -> 0 | AC126: =IF(ISNA(TXCalc!CL110),0,TXCalc!CL110) -> 0 | AD126: 0 | AF126: =TXCalc!CN110 -> 400 | AG126: =TXCalc!CO110 -> 400 | AH126: 0.4 | AJ126: =IF(ISNA(TXCalc!EI110),0,TXCalc!EI110) -> 0 | AK126: =IF(ISNA(TXCalc!EJ110),0,TXCalc!EJ110) -> 0 | AL126: 0 | AM126: 0.4 | AO126: =IF(ISNA(TXCalc!EL110),0,TXCalc!EL110) -> 0 | AP126: =IF(ISNA(TXCalc!EM110),0,TXCalc!EM110) -> 0 | AQ126: 0 | AR126: 0.4 | AT126: =IF(ISNA(TXCalc!EN110),0,TXCalc!EN110) -> 0 | AU126: =IF(ISNA(TXCalc!EO110),0,TXCalc!EO110) -> 0 | AV126: 0 | AW126: 0.4 | AX126: SPP_S_2_AZ_NM_SNV_Coal
M127: 53 | N127: TVA_2_VACAR | O127: TVA | P127: VACAR | Q127: =IF(ISNA(TXCalc!AH119),0,TXCalc!AH119)+IF(ISNA(TXCalc!AH125),0,TXCalc!AH125) -> 1050 | R127: =IF(ISNA(TXCalc!AI119),0,TXCalc!AI119)+IF(ISNA(TXCalc!AI125),0,TXCalc!AI125) -> 900 | S127: 1.05 | T127: =IF(ISNA(TXCalc!AD119),0,TXCalc!AD119)+IF(ISNA(TXCalc!AD125),0,TXCalc!AD125) -> 1050 | U127: =IF(ISNA(TXCalc!AJ119),0,TXCalc!AJ119)+IF(ISNA(TXCalc!AJ125),0,TXCalc!AJ125) -> 0 | V127: 1.05 | X127: 1.05 | Y127: ActiveSheet.Shapes.Range(Array("Shape 139")).Select | AB127: =IF(ISNA(TXCalc!CK119),0,TXCalc!CK119)+IF(ISNA(TXCalc!CK125),0,TXCalc!CK125) -> 0.0002633333333 | AC127: =IF(ISNA(TXCalc!CL119),0,TXCalc!CL119)+IF(ISNA(TXCalc!CL125),0,TXCalc!CL125) -> 0.0001316666667 | AD127: 2.633333333e-07 | AF127: =IF(ISNA(TXCalc!CN119),0,TXCalc!CN119)+IF(ISNA(TXCalc!CN125),0,TXCalc!CN125) -> 1050 | AG127: =IF(ISNA(TXCalc!CO119),0,TXCalc!CO119)+IF(ISNA(TXCalc!CO125),0,TXCalc!CO125) -> 900 | AH127: 1.05 | AJ127: =IF(ISNA(TXCalc!EI119),0,TXCalc!EI119)+IF(ISNA(TXCalc!EI125),0,TXCalc!EI125) -> 0 | AK127: =IF(ISNA(TXCalc!EJ119),0,TXCalc!EJ119)+IF(ISNA(TXCalc!EJ125),0,TXCalc!EJ125) -> 0 | AL127: 0 | AM127: 1.05 | AO127: =IF(ISNA(TXCalc!EL119),0,TXCalc!EL119)+IF(ISNA(TXCalc!EL125),0,TXCalc!EL125) -> 0.0002633333333 | AP127: =IF(ISNA(TXCalc!EM119),0,TXCalc!EM119)+IF(ISNA(TXCalc!EM125),0,TXCalc!EM125) -> 0.0001316666667 | AQ127: 2.633333333e-07 | AR127: 1.050000263 | AT127: =IF(ISNA(TXCalc!EN119),0,TXCalc!EN119)+IF(ISNA(TXCalc!EN125),0,TXCalc!EN125) -> 0.0002633333333 | AU127: =IF(ISNA(TXCalc!EO119),0,TXCalc!EO119)+IF(ISNA(TXCalc!EO125),0,TXCalc!EO125) -> 0.0001316666667 | AV127: 2.633333333e-07 | AW127: 1.050000263 | AX127: TVA_2_VACAR
M128: 54 | N128: HQ_2_IESO | Q128: =TXCalc!AD15 -> 1793.67 | S128: 1.79367 | T128: =Q128 -> 1793.67 | V128: 1.79367 | X128: 1.79367 | Y128: ActiveSheet.Shapes.Range(Array("Straight Arrow Connector 446")).Select | AD128: 0 | AF128: =AK128*1000 -> 0 | AH128: 0
M129: 55 | N129: HQ_2_NEISO | Q129: =TXCalc!AD13 -> 3506.75 | S129: 3.50675 | T129: =Q129 -> 3506.75 | V129: 3.50675 | X129: 3.50675 | Y129: ActiveSheet.Shapes.Range(Array("Straight Arrow Connector 447")).Select | AD129: 0 | AF129: =AK129*1000 -> 0 | AH129: 0
M130: 56 | N130: HQ_2_NYISO_A-F | Q130: =TXCalc!AD14 -> 3333.15 | S130: 3.33315 | T130: 3333.15 | V130: 3.33315 | X130: 3.33315 | Y130: ActiveSheet.Shapes.Range(Array("Straight Arrow Connector 448")).Select | AD130: 0 | AF130: 0 | AH130: 0
M131: 57 | N131: Maritimes_2_NEISO | Q131: =TXCalc!AD16 -> 1807.65 | S131: 1.80765 | T131: 1807.65 | V131: 1.80765 | X131: 1.80765 | Y131: ActiveSheet.Shapes.Range(Array("Straight Arrow Connector 450")).Select | AD131: 0 | AF131: 0 | AH131: 0
R132: total Xfr Capacity (GW) | S132: =SUM(S75:S131) -> 167.33522 | V132: =SUM(V75:V131) -> 167.33522 | X132: =SUM(X75:X131) -> 167.33522 | AD132: =SUM(AD75:AD131) -> 36.83774877 | AG132: =SUM(AF75:AG127)/1000 -> 197.856 | AH132: =SUM(AH75:AH131) -> 120.059 | AK132: =SUM(AJ75:AK127)/1000 -> 36.9779833 | AL132: =SUM(AL75:AL131) -> 36.8377417 | AP132: =SUM(AO75:AP127)/1000 -> 18.19195748 | AQ132: =SUM(AQ75:AQ131) -> 18.16256949
AG133: sum of both lines | AK133: sum of both lines | AL133: sum of max | AP133: sum of both lines

Sheet TXCalc
B1: Appendix A, Exhibit 18 - Wheeling Charges, Trading Friction, and Total Hurdle | G1: Year | H1: 2030 | I1: hours | J1: 10 | K1: 25 | L1: 75 | M1: 100 | N1: 200 | O1: 300 | P1: 400 | Q1: 500 | R1: 800 | S1: 1262 | T1: 25 | U1: 200 | V1: 600 | W1: 900 | X1: 1203 | Y1: 25 | Z1: 100 | AA1: 400 | AB1: 700 | AC1: 935 | AM1: 10 | AN1: 25 | AO1: 75 | AP1: 100 | AQ1: 200 | AR1: 300 | AS1: 400 | AT1: 500 | AU1: 800 | AV1: 1262 | AW1: 25 | AX1: 200 | AY1: 600 | AZ1: 900 | BA1: 1203 | BB1: 25 | BC1: 100 | BD1: 400 | BE1: 700 | BF1: 935 | BI1: From TX Results.xlsx | CK1: TXResults Column | CP1: Table. Transfer Limits between NEEM Regions (all limits in MW) - Transfer limits are unidirectional and should be stated as "FROM" column | DY1: From EIPC Phase 1 TLH Results 10-11.xls: Transfer Limit Increases called for by the average of the 3 transfer limit hardening methodologies
B2: Working DRAFT | C2: Updated 3/17/11 from CRA | G2: =Case1 -> F8S7 | H2: =Case2 -> F1S17 | I2: Case1 | J2: 5 | K2: 6 | L2: 7 | M2: 8 | N2: 9 | O2: 10 | P2: 11 | Q2: 12 | R2: 13 | S2: 14 | T2: 0 | U2: 1 | V2: 2 | W2: 3 | X2: 4 | Y2: 15 | Z2: 16 | AA2: 17 | AB2: 18 | AC2: 19 | AF2: 28 | AL2: Case2 | AM2: 5 | AN2: 6 | AO2: 7 | AP2: 8 | AQ2: 9 | AR2: 10 | AS2: 11 | AT2: 12 | AU2: 13 | AV2: 14 | AW2: 0 | AX2: 1 | AY2: 2 | AZ2: 3 | BA2: 4 | BB2: 15 | BC2: 16 | BD2: 17 | BE2: 18 | BF2: 19 | BI2: 1 | BJ2: =BI2+1 -> 2 | BK2: =BJ2+1 -> 3 | BL2: 4 | BM2: 5 | BN2: 6 | BO2: 7 | BP2: 8 | BQ2: 9 | BR2: 10 | BS2: 11 | BT2: 12 | BU2: 13 | BV2: 14 | BW2: 15 | BX2: 16 | BY2: 17 | BZ2: 18 | CA2: 19 | CB2: 20 | CC2: 21 | CD2: 22 | CE2: 23 | CF2: 24 | CG2: 25 | CH2: 26 | CI2: 27 | CK2: 27 | CP2: C "TO" columns D through R | DY2: F3, F6 and F7 only have one soft constraint run (OL75 for F3 and OL25 for F6 and F7)
B3: From | C3: To | D3: Wheeling Cost 2010$/MWh | E3: Trading Friction 2010$/MWh | F3: Total Hurdle 2010$/MWh | G3: Transfer Limit | I3: Max Capacity during 2030 Peak Periods | AF3: Mapping Data | AG3: Mapping Data | AH3: Tranfer Limit | AI3: Tranfer Limit | AJ3: MAX | BI3: Baseline I | BJ3: Hard | BK3: Base | BL3: Ol75 | BM3: OL25 | BN3: Hard | BO3: Base | BP3: OL75 | BQ3: Hard | BR3: Base | BS3: Base | BT3: OL75 | BU3: OL25 | BV3: Hard | BW3: Base | BX3: OL25 | BY3: Hard | BZ3: Base | CA3: OL25 | CB3: Hard | CC3: Base | CD3: Ol75 | CE3: Ol25 | CF3: Hard | CG3: OL75 Rev | CH3: OL75 Rev2 | CI3: Final | CK3: =INDEX($BI3:$CI3,$CK$2) -> Final | CN3: Google Docs | CR3: DESTINATION | DY3: F1S1 and F1S2 use slightly different assumptions around a number of issues (EPA regs, landfill gas potential, etc.)
A4: from_2_to | D4: Wheel | E4: Friction | F4: Hurdle | G4: Case 1 | H4: Case 2 | I4: Index | J4: B1 | K4: B2 | L4: B3 | M4: B4 | N4: B5 | O4: B6 | P4: B7 | Q4: B8 | R4: B9 | S4: B10 | T4: B11 | U4: B12 | V4: B13 | W4: B14 | X4: B15 | Y4: B16 | Z4: B17 | AA4: B18 | AB4: B19 | AC4: B20 | AD4: max | AE4: Gwyr | AF4: Gwyr | AG4: Rev Direction | AH4: fixed for NA | AI4: Rev Direction | AJ4: Rev Direction | AL4: Index | AM4: B1 | AN4: B2 | AO4: B3 | AP4: B4 | AQ4: B5 | AR4: B6 | AS4: B7 | AT4: B8 | AU4: B9 | AV4: B10 | AW4: B11 | AX4: B12 | AY4: B13 | AZ4: B14 | BA4: B15 | BB4: B16 | BC4: B17 | BD4: B18 | BE4: B19 | BF4: B20 | BG4: max | BI4: BI | BJ4: F1S3 | BK4: F2B | BL4: F2S1 | BM4: F2S2 | BN4: F2S3 | BO4: F3B | BP4: F3S1 | BQ4: F3S2 | BR4: F4B | BS4: F5B | BT4: F5S1 | BU4: F5S2 | BV4: F5S3 | BW4: F6B | BX4: F6S1 | BY4: F6S2 | BZ4: F7B | CA4: F7S1 | CB4: F7S2 | CC4: F8B | CD4: F8S1 | CE4: F8S2 | CF4: F8S3 | CG4: F8S5 | CH4: F8S6 | CI4: F8S7 | CK4: F8S7 | CL4: Reversed | CN4: Tran Limits | CO4: Reversed | CR4: AZ_NM_SNV_Coal | CS4: ENT | CT4: ERCOT | CU4: FRCC | CV4: MAPP_CA | CW4: MAPP_US | CX4: MISO_IN | CY4: MISO_MI | CZ4: MISO_MO-IL | DA4: MISO_W | DB4: MISO_WUMS | DC4: NE | DD4: NEISO | DE4: NonRTO_Midwest | DF4: NWPP_Coal | DG4: NYISO_A-F | DH4: NYISO_G-I | DI4: NYISO_J-K | DJ4: IESO | DK4: PJM_E | DL4: PJM_ROM | DM4: PJM_ROR | DN4: RMPA | DO4: SOCO | DP4: SPP_N | DQ4: SPP_S | DR4: TVA | DS4: VACAR | DT4: TVAb | DU4: TVA Transmission | DY4: From_2_To | DZ4: F1S1 | EA4: F1S2 | EB4: F2S1 | EC4: F2S2 | ED4: F3S1 | EE4: F5S1 | EF4: F5S2 | EG4: F6S1 | EH4: F7S1 | EI4: F8S1 | EJ4: Reversed | EK4: F8S2 | EL4: F8S5 | EM4: Reversed | EN4: F8S6 | EO4: Reversed | ER4: F8S6
A5: ENT_2_MISO_MO-IL | B5: ENT | C5: MISO_MO-IL | D5: 3 | E5: 5 | F5: 8 | G5: =VLOOKUP($A5,Transmission!$E$5:$L$15000,8,0) -> 2260 | H5: =VLOOKUP($A5,Transmission!$AA$5:$AH$15000,8,0) ->  | I5: =MATCH($H$1&$A5,Transmission!$C$5:$C$15000,0) -> 5221 | J5: =IF(ISNA($I5),0,INDEX(Transmission!$M$5:$M$15000,$I5+J$2)) -> 1517.26 | K5: =IF(ISNA($I5),0,INDEX(Transmission!$M$5:$M$15000,$I5+K$2)) -> 0 | L5: =IF(ISNA($I5),0,INDEX(Transmission!$M$5:$M$15000,$I5+L$2)) -> 0 | M5: =IF(ISNA($I5),0,INDEX(Transmission!$M$5:$M$15000,$I5+M$2)) -> 0 | N5: =IF(ISNA($I5),0,INDEX(Transmission!$M$5:$M$15000,$I5+N$2)) -> 0 | O5: =IF(ISNA($I5),0,INDEX(Transmission!$M$5:$M$15000,$I5+O$2)) -> 0 | P5: =IF(ISNA($I5),0,INDEX(Transmission!$M$5:$M$15000,$I5+P$2)) -> 0 | Q5: =IF(ISNA($I5),0,INDEX(Transmission!$M$5:$M$15000,$I5+Q$2)) -> 0 | R5: =IF(ISNA($I5),0,INDEX(Transmission!$M$5:$M$15000,$I5+R$2)) -> 0 | S5: =IF(ISNA($I5),0,INDEX(Transmission!$M$5:$M$15000,$I5+S$2)) -> 0 | T5: =IF(ISNA($I5),0,INDEX(Transmission!$M$5:$M$15000,$I5+T$2)) -> 0 | U5: =IF(ISNA($I5),0,INDEX(Transmission!$M$5:$M$15000,$I5+U$2)) -> 0 | V5: =IF(ISNA($I5),0,INDEX(Transmission!$M$5:$M$15000,$I5+V$2)) -> 0 | W5: =IF(ISNA($I5),0,INDEX(Transmission!$M$5:$M$15000,$I5+W$2)) -> 0 | X5: =IF(ISNA($I5),0,INDEX(Transmission!$M$5:$M$15000,$I5+X$2)) -> 0 | Y5: =IF(ISNA($I5),0,INDEX(Transmission!$M$5:$M$15000,$I5+Y$2)) -> 0 | Z5: =IF(ISNA($I5),0,INDEX(Transmission!$M$5:$M$15000,$I5+Z$2)) -> 0 | AA5: =IF(ISNA($I5),0,INDEX(Transmission!$M$5:$M$15000,$I5+AA$2)) -> 0 | AB5: =IF(ISNA($I5),0,INDEX(Transmission!$M$5:$M$15000,$I5+AB$2)) -> 0 | AC5: =IF(ISNA($I5),0,INDEX(Transmission!$M$5:$M$15000,$I5+AC$2)) -> 0 | AD5: =MAX(J5:AC5) -> 1517.26 | AE5: =SUMPRODUCT($J$1:$AC$1,$J5:$AC5)/1000000/8.76 -> 0.001732031963 | AF5: =INDEX($D5:$AF5,1,$AF$2) -> 0.001732031963 | AG5: =INDEX($AF$5:$AF$131,MATCH(C5&"_2_"&B5,$A$5:$A$131,0)) -> 0.2994206906 | AH5: =IF(ISNA(G5),IF(ISNA(AI5),G5,AI5-CO5+CN5),G5) -> 2260 | AI5: =INDEX($G$5:$G$131,MATCH($C5&"_2_"&$B5,$A$5:$A$131,0)) -> 2540 | AJ5: =INDEX($AD$5:$AD$131,MATCH($C5&"_2_"&$B5,$A$5:$A$131,0)) -> 2505.2 | AL5: =MATCH("2030"&$A5,Transmission!$Y$5:$Y$15000,0) ->  | AM5: =IF(ISNA($AL5),0,INDEX(Transmission!$AI$5:$AI$15000,$AL5+AM$2)) -> 0 | AN5: =IF(ISNA($AL5),0,INDEX(Transmission!$AI$5:$AI$15000,$AL5+AN$2)) -> 0 | AO5: =IF(ISNA($AL5),0,INDEX(Transmission!$AI$5:$AI$15000,$AL5+AO$2)) -> 0 | AP5: =IF(ISNA($AL5),0,INDEX(Transmission!$AI$5:$AI$15000,$AL5+AP$2)) -> 0 | AQ5: =IF(ISNA($AL5),0,INDEX(Transmission!$AI$5:$AI$15000,$AL5+AQ$2)) -> 0 | AR5: =IF(ISNA($AL5),0,INDEX(Transmission!$AI$5:$AI$15000,$AL5+AR$2)) -> 0 | AS5: =IF(ISNA($AL5),0,INDEX(Transmission!$AI$5:$AI$15000,$AL5+AS$2)) -> 0 | AT5: =IF(ISNA($AL5),0,INDEX(Transmission!$AI$5:$AI$15000,$AL5+AT$2)) -> 0 | AU5: =IF(ISNA($AL5),0,INDEX(Transmission!$AI$5:$AI$15000,$AL5+AU$2)) -> 0 | AV5: =IF(ISNA($AL5),0,INDEX(Transmission!$AI$5:$AI$15000,$AL5+AV$2)) -> 0 | AW5: =IF(ISNA($AL5),0,INDEX(Transmission!$AI$5:$AI$15000,$AL5+AW$2)) -> 0 | AX5: =IF(ISNA($AL5),0,INDEX(Transmission!$AI$5:$AI$15000,$AL5+AX$2)) -> 0 | AY5: =IF(ISNA($AL5),0,INDEX(Transmission!$AI$5:$AI$15000,$AL5+AY$2)) -> 0 | AZ5: =IF(ISNA($AL5),0,INDEX(Transmission!$AI$5:$AI$15000,$AL5+AZ$2)) -> 0 | BA5: =IF(ISNA($AL5),0,INDEX(Transmission!$AI$5:$AI$15000,$AL5+BA$2)) -> 0 | BB5: =IF(ISNA($AL5),0,INDEX(Transmission!$AI$5:$AI$15000,$AL5+BB$2)) -> 0 | BC5: =IF(ISNA($AL5),0,INDEX(Transmission!$AI$5:$AI$15000,$AL5+BC$2)) -> 0 | BD5: =IF(ISNA($AL5),0,INDEX(Transmission!$AI$5:$AI$15000,$AL5+BD$2)) -> 0 | BE5: =IF(ISNA($AL5),0,INDEX(Transmission!$AI$5:$AI$15000,$AL5+BE$2)) -> 0 | BF5: =IF(ISNA($AL5),0,INDEX(Transmission!$AI$5:$AI$15000,$AL5+BF$2)) -> 0 | BG5: =MAX(AM5:BF5) -> 0 | BI5: 2260 | BJ5: 0 | BK5: 0 | BL5: 0.000395 | BM5: 0.000395 | BN5: 0.0001316666667 | BO5: 0 | BP5: 0.000395 | BQ5: 0.0001316666667 | BR5: 0 | BS5: 0 | BT5: 0 | BU5: 0 | BV5: 0.0001316666667 | BW5: 0 | BX5: 0 | BY5: 0.0001316666667 | BZ5: 0 | CA5: 0 | CB5: 0 | CC5: 0 | CD5: 0 | CE5: 0 | CF5: 0.0001316666667 | CG5: 0 | CH5: 0 | CI5: 0.0001316666667 | CK5: 0.0001316666667 | CL5: =INDEX(CK$5:CK$131,MATCH($C5&"_2_"&$B5,$A$5:$A$131,0)) -> 0.0001316666667 | CN5: =INDEX($CR$5:$DS$32,MATCH($B5,$CQ$5:$CQ$32,0),MATCH($C5,$CR$4:$DS$4,0)) -> 2260 | CO5: =INDEX(CN$5:CN$131,MATCH($C5&"_2_"&$B5,$A$5:$A$131,0)) -> 2540 | CP5: ORIGIN | CQ5: AZ_NM_SNV_Coal | DQ5: 400 | DX5: =IF(A5=DY5,1,0) -> 1 | DY5: ENT_2_MISO_MO-IL | DZ5: 0 | EA5: 0 | EB5: 0 | EC5: 0 | ED5: 0 | EE5: 0 | EF5: 0 | EG5: 0 | EH5: 0 | EI5: 0 | EJ5: =INDEX(EI$5:EI$131,MATCH($C5&"_2_"&$B5,$A$5:$A$131,0)) -> 0 | EK5: 0 | EL5: 0.0001316666667 | EM5: =INDEX(EL$5:EL$131,MATCH($C5&"_2_"&$B5,$A$5:$A$131,0)) -> 0.0002179374159 | EN5: =VLOOKUP(A5,$EQ$5:$ER$105,2,0) -> 0.0001316666667 | EO5: =INDEX(EN$5:EN$131,MATCH($C5&"_2_"&$B5,$A$5:$A$131,0)) -> 0.0002131512452 | EQ5: ENT_2_MISO_MO-IL | ER5: 0.0001316666667
A6: =B6&"_2_"&C6 -> ENT_2_SOCO | B6: ENT | C6: SOCO | D6: 3 | E6: 5 | F6: 8 | G6: =VLOOKUP($A6,Transmission!$E$5:$L$15000,8,0) -> 2000 | H6: =VLOOKUP($A6,Transmission!$AA$5:$AH$15000,8,0) -> 2000 | I6: =MATCH($H$1&$A6,Transmission!$C$5:$C$15000,0) -> 5241 | J6: =IF(ISNA($I6),0,INDEX(Transmission!$M$5:$M$15000,$I6+J$2)) -> 2000 | K6: =IF(ISNA($I6),0,INDEX(Transmission!$M$5:$M$15000,$I6+K$2)) -> 2000 | L6: =IF(ISNA($I6),0,INDEX(Transmission!$M$5:$M$15000,$I6+L$2)) -> 2000 | M6: =IF(ISNA($I6),0,INDEX(Transmission!$M$5:$M$15000,$I6+M$2)) -> 898.24 | N6: =IF(ISNA($I6),0,INDEX(Transmission!$M$5:$M$15000,$I6+N$2)) -> 0 | O6: =IF(ISNA($I6),0,INDEX(Transmission!$M$5:$M$15000,$I6+O$2)) -> 0 | P6: =IF(ISNA($I6),0,INDEX(Transmission!$M$5:$M$15000,$I6+P$2)) -> 0 | Q6: =IF(ISNA($I6),0,INDEX(Transmission!$M$5:$M$15000,$I6+Q$2)) -> 0 | R6: =IF(ISNA($I6),0,INDEX(Transmission!$M$5:$M$15000,$I6+R$2)) -> 0 | S6: =IF(ISNA($I6),0,INDEX(Transmission!$M$5:$M$15000,$I6+S$2)) -> 296.62 | T6: =IF(ISNA($I6),0,INDEX(Transmission!$M$5:$M$15000,$I6+T$2)) -> 0 | U6: =IF(ISNA($I6),0,INDEX(Transmission!$M$5:$M$15000,$I6+U$2)) -> 0 | V6: =IF(ISNA($I6),0,INDEX(Transmission!$M$5:$M$15000,$I6+V$2)) -> 1183.31 | W6: =IF(ISNA($I6),0,INDEX(Transmission!$M$5:$M$15000,$I6+W$2)) -> 2000 | X6: =IF(ISNA($I6),0,INDEX(Transmission!$M$5:$M$15000,$I6+X$2)) -> 1695.58 | Y6: =IF(ISNA($I6),0,INDEX(Transmission!$M$5:$M$15000,$I6+Y$2)) -> 75.39 | Z6: =IF(ISNA($I6),0,INDEX(Transmission!$M$5:$M$15000,$I6+Z$2)) -> 571.2 | AA6: =IF(ISNA($I6),0,INDEX(Transmission!$M$5:$M$15000,$I6+AA$2)) -> 0 | AB6: =IF(ISNA($I6),0,INDEX(Transmission!$M$5:$M$15000,$I6+AB$2)) -> 2000 | AC6: =IF(ISNA($I6),0,INDEX(Transmission!$M$5:$M$15000,$I6+AC$2)) -> 2000 | AD6: =MAX(J6:AC6) -> 2000 | AE6: =SUMPRODUCT($J$1:$AC$1,$J6:$AC6)/1000000/8.76 -> 0.977503645 | AF6: =INDEX($D6:$AF6,1,$AF$2) -> 0.977503645 | AG6: 0 | AH6: 2000 | AI6: =INDEX($G$5:$G$131,MATCH($C6&"_2_"&$B6,$A$5:$A$131,0)) -> 2400 | AJ6: =INDEX($AD$5:$AD$131,MATCH($C6&"_2_"&$B6,$A$5:$A$131,0)) -> 0 | AL6: =MATCH("2030"&$A6,Transmission!$Y$5:$Y$15000,0) -> 5281 | AM6: =IF(ISNA($AL6),0,INDEX(Transmission!$AI$5:$AI$15000,$AL6+AM$2)) -> 1657.85 | AN6: =IF(ISNA($AL6),0,INDEX(Transmission!$AI$5:$AI$15000,$AL6+AN$2)) -> 0 | AO6: =IF(ISNA($AL6),0,INDEX(Transmission!$AI$5:$AI$15000,$AL6+AO$2)) -> 0 | AP6: =IF(ISNA($AL6),0,INDEX(Transmission!$AI$5:$AI$15000,$AL6+AP$2)) -> 0 | AQ6: =IF(ISNA($AL6),0,INDEX(Transmission!$AI$5:$AI$15000,$AL6+AQ$2)) -> 1735.9 | AR6: =IF(ISNA($AL6),0,INDEX(Transmission!$AI$5:$AI$15000,$AL6+AR$2)) -> 170.49 | AS6: =IF(ISNA($AL6),0,INDEX(Transmission!$AI$5:$AI$15000,$AL6+AS$2)) -> 912.47 | AT6: =IF(ISNA($AL6),0,INDEX(Transmission!$AI$5:$AI$15000,$AL6+AT$2)) -> 0 | AU6: =IF(ISNA($AL6),0,INDEX(Transmission!$AI$5:$AI$15000,$AL6+AU$2)) -> 0 | AV6: =IF(ISNA($AL6),0,INDEX(Transmission!$AI$5:$AI$15000,$AL6+AV$2)) -> 0 | AW6: =IF(ISNA($AL6),0,INDEX(Transmission!$AI$5:$AI$15000,$AL6+AW$2)) -> 0 | AX6: =IF(ISNA($AL6),0,INDEX(Transmission!$AI$5:$AI$15000,$AL6+AX$2)) -> 0 | AY6: =IF(ISNA($AL6),0,INDEX(Transmission!$AI$5:$AI$15000,$AL6+AY$2)) -> 0 | AZ6: =IF(ISNA($AL6),0,INDEX(Transmission!$AI$5:$AI$15000,$AL6+AZ$2)) -> 0 | BA6: =IF(ISNA($AL6),0,INDEX(Transmission!$AI$5:$AI$15000,$AL6+BA$2)) -> 0 | BB6: =IF(ISNA($AL6),0,INDEX(Transmission!$AI$5:$AI$15000,$AL6+BB$2)) -> 1899.29 | BC6: =IF(ISNA($AL6),0,INDEX(Transmission!$AI$5:$AI$15000,$AL6+BC$2)) -> 0 | BD6: =IF(ISNA($AL6),0,INDEX(Transmission!$AI$5:$AI$15000,$AL6+BD$2)) -> 0 | BE6: =IF(ISNA($AL6),0,INDEX(Transmission!$AI$5:$AI$15000,$AL6+BE$2)) -> 0 | BF6: =IF(ISNA($AL6),0,INDEX(Transmission!$AI$5:$AI$15000,$AL6+BF$2)) -> 0 | BG6: =MAX(AM6:BF6) -> 1899.29 | BI6: 2000 | BJ6: 0 | BK6: 0 | BL6: 11274.97 | BM6: 13600.34 | BN6: 1900.371648 | BO6: 0 | BP6: 0.00049 | BQ6: 0.0001316666667 | BR6: 0 | BS6: 0 | BT6: 7161.19 | BU6: 10176.77 | BV6: 431.0936884 | BW6: 0 | BX6: 1.999999995e-05 | BY6: 0.0001316666667 | BZ6: 0 | CA6: 0 | CB6: 0 | CC6: 0 | CD6: 14878.8 | CE6: 15169.51 | CF6: 0.000177458466 | CG6: 12948.64 | CH6: 14352.14 | CI6: 0.000177458466 | CK6: 0.000177458466 | CL6: =INDEX(CK$5:CK$131,MATCH($C6&"_2_"&$B6,$A$5:$A$131,0)) -> 0.0001316666667 | CN6: 2000 | CO6: =INDEX(CN$5:CN$131,MATCH($C6&"_2_"&$B6,$A$5:$A$131,0)) -> 2400 | CQ6: ENT | CZ6: 2260 | DO6: 2000 | DP6: 1300 | DQ6: 1300 | DR6: 2100 | DU6: 2100 | DX6: =IF(A6=DY6,1,0) -> 1 | DY6: ENT_2_SOCO | DZ6: 0 | EA6: 0 | EB6: 1900.371648 | EC6: 4496.848003 | ED6: 0 | EE6: 0 | EF6: 431.0936884 | EG6: 0 | EH6: 0 | EI6: 0 | EJ6: =INDEX(EI$5:EI$131,MATCH($C6&"_2_"&$B6,$A$5:$A$131,0)) -> 0 | EK6: 2465.848804 | EL6: 0.0001769303778 | EM6: =INDEX(EL$5:EL$131,MATCH($C6&"_2_"&$B6,$A$5:$A$131,0)) -> 0.0001316666667 | EN6: =VLOOKUP(A6,$EQ$5:$ER$105,2,0) -> 0.0001789577291 | EO6: 0.0001316666667 | EQ6: ENT_2_SOCO | ER6: 0.0001789577291
A7: ENT_2_SPP_N | B7: ENT | C7: SPP_N | D7: 3 | E7: 5 | F7: 8 | G7: =VLOOKUP($A7,Transmission!$E$5:$L$15000,8,0) ->  | H7: =VLOOKUP($A7,Transmission!$AA$5:$AH$15000,8,0) ->  | I7: =MATCH($H$1&$A7,Transmission!$C$5:$C$15000,0) ->  | J7: =IF(ISNA($I7),0,INDEX(Transmission!$M$5:$M$15000,$I7+J$2)) -> 0 | K7: =IF(ISNA($I7),0,INDEX(Transmission!$M$5:$M$15000,$I7+K$2)) -> 0 | L7: =IF(ISNA($I7),0,INDEX(Transmission!$M$5:$M$15000,$I7+L$2)) -> 0 | M7: =IF(ISNA($I7),0,INDEX(Transmission!$M$5:$M$15000,$I7+M$2)) -> 0 | N7: =IF(ISNA($I7),0,INDEX(Transmission!$M$5:$M$15000,$I7+N$2)) -> 0 | O7: =IF(ISNA($I7),0,INDEX(Transmission!$M$5:$M$15000,$I7+O$2)) -> 0 | P7: =IF(ISNA($I7),0,INDEX(Transmission!$M$5:$M$15000,$I7+P$2)) -> 0 | Q7: =IF(ISNA($I7),0,INDEX(Transmission!$M$5:$M$15000,$I7+Q$2)) -> 0 | R7: =IF(ISNA($I7),0,INDEX(Transmission!$M$5:$M$15000,$I7+R$2)) -> 0 | S7: =IF(ISNA($I7),0,INDEX(Transmission!$M$5:$M$15000,$I7+S$2)) -> 0 | T7: =IF(ISNA($I7),0,INDEX(Transmission!$M$5:$M$15000,$I7+T$2)) -> 0 | U7: =IF(ISNA($I7),0,INDEX(Transmission!$M$5:$M$15000,$I7+U$2)) -> 0 | V7: =IF(ISNA($I7),0,INDEX(Transmission!$M$5:$M$15000,$I7+V$2)) -> 0 | W7: =IF(ISNA($I7),0,INDEX(Transmission!$M$5:$M$15000,$I7+W$2)) -> 0 | X7: =IF(ISNA($I7),0,INDEX(Transmission!$M$5:$M$15000,$I7+X$2)) -> 0 | Y7: =IF(ISNA($I7),0,INDEX(Transmission!$M$5:$M$15000,$I7+Y$2)) -> 0 | Z7: =IF(ISNA($I7),0,INDEX(Transmission!$M$5:$M$15000,$I7+Z$2)) -> 0 | AA7: =IF(ISNA($I7),0,INDEX(Transmission!$M$5:$M$15000,$I7+AA$2)) -> 0 | AB7: =IF(ISNA($I7),0,INDEX(Transmission!$M$5:$M$15000,$I7+AB$2)) -> 0 | AC7: =IF(ISNA($I7),0,INDEX(Transmission!$M$5:$M$15000,$I7+AC$2)) -> 0 | AD7: 0 | AE7: 0 | AF7: =INDEX($D7:$AF7,1,$AF$2) -> 0 | AG7: 6.1387254 | AH7: 6846 | AI7: 7346 | AJ7: 7346 | AL7: =MATCH("2030"&$A7,Transmission!$Y$5:$Y$15000,0) ->  | AM7: =IF(ISNA($AL7),0,INDEX(Transmission!$AI$5:$AI$15000,$AL7+AM$2)) -> 0 | AN7: =IF(ISNA($AL7),0,INDEX(Transmission!$AI$5:$AI$15000,$AL7+AN$2)) -> 0 | AO7: =IF(ISNA($AL7),0,INDEX(Transmission!$AI$5:$AI$15000,$AL7+AO$2)) -> 0 | AP7: =IF(ISNA($AL7),0,INDEX(Transmission!$AI$5:$AI$15000,$AL7+AP$2)) -> 0 | AQ7: =IF(ISNA($AL7),0,INDEX(Transmission!$AI$5:$AI$15000,$AL7+AQ$2)) -> 0 | AR7: =IF(ISNA($AL7),0,INDEX(Transmission!$AI$5:$AI$15000,$AL7+AR$2)) -> 0 | AS7: =IF(ISNA($AL7),0,INDEX(Transmission!$AI$5:$AI$15000,$AL7+AS$2)) -> 0 | AT7: =IF(ISNA($AL7),0,INDEX(Transmission!$AI$5:$AI$15000,$AL7+AT$2)) -> 0 | AU7: =IF(ISNA($AL7),0,INDEX(Transmission!$AI$5:$AI$15000,$AL7+AU$2)) -> 0 | AV7: =IF(ISNA($AL7),0,INDEX(Transmission!$AI$5:$AI$15000,$AL7+AV$2)) -> 0 | AW7: =IF(ISNA($AL7),0,INDEX(Transmission!$AI$5:$AI$15000,$AL7+AW$2)) -> 0 | AX7: =IF(ISNA($AL7),0,INDEX(Transmission!$AI$5:$AI$15000,$AL7+AX$2)) -> 0 | AY7: =IF(ISNA($AL7),0,INDEX(Transmission!$AI$5:$AI$15000,$AL7+AY$2)) -> 0 | AZ7: =IF(ISNA($AL7),0,INDEX(Transmission!$AI$5:$AI$15000,$AL7+AZ$2)) -> 0 | BA7: =IF(ISNA($AL7),0,INDEX(Transmission!$AI$5:$AI$15000,$AL7+BA$2)) -> 0 | BB7: =IF(ISNA($AL7),0,INDEX(Transmission!$AI$5:$AI$15000,$AL7+BB$2)) -> 0 | BC7: =IF(ISNA($AL7),0,INDEX(Transmission!$AI$5:$AI$15000,$AL7+BC$2)) -> 0 | BD7: =IF(ISNA($AL7),0,INDEX(Transmission!$AI$5:$AI$15000,$AL7+BD$2)) -> 0 | BE7: =IF(ISNA($AL7),0,INDEX(Transmission!$AI$5:$AI$15000,$AL7+BE$2)) -> 0 | BF7: =IF(ISNA($AL7),0,INDEX(Transmission!$AI$5:$AI$15000,$AL7+BF$2)) -> 0 | BG7: 0 | BI7: 1300 | BJ7: 0 | BK7: 0 | BL7: 0.000395 | BM7: 0.000395 | BN7: 0.0001316666667 | BO7: 0 | BP7: 395.86 | BQ7: 0.0002000376128 | BR7: 0 | BS7: 0 | BT7: 0 | BU7: 0 | BV7: 0.0001316666667 | BW7: 0 | BX7: 0 | BY7: 0.0001316666667 | BZ7: 0 | CA7: 0 | CB7: 0 | CC7: 0 | CD7: 0 | CE7: 0 | CF7: 0.0001316666667 | CG7: 0 | CH7: 0 | CI7: 0.0001316666667 | CK7: 0.0001316666667 | CL7: 5545.915355 | CN7: 1300 | CO7: 1800 | CQ7: ERCOT | DQ7: 800 | DX7: 1 | DY7: ENT_2_SPP_N | DZ7: 0 | EA7: 0 | EB7: 0 | EC7: 0 | ED7: 0 | EE7: 0 | EF7: 0 | EG7: 0 | EH7: 0 | EI7: 0 | EJ7: 5545.915355 | EK7: 0 | EL7: 0.0001316666667 | EM7: 3651.523712 | EN7: 0.0001316666667 | EO7: 3960.446741 | EQ7: ENT_2_SPP_N | ER7: 0.0001316666667
A8: ENT_2_SPP_S | B8: ENT | C8: SPP_S | D8: 3 | E8: 5 | F8: 8 | G8: =VLOOKUP($A8,Transmission!$E$5:$L$15000,8,0) ->  | H8: =VLOOKUP($A8,Transmission!$AA$5:$AH$15000,8,0) ->  | I8: =MATCH($H$1&$A8,Transmission!$C$5:$C$15000,0) ->  | J8: =IF(ISNA($I8),0,INDEX(Transmission!$M$5:$M$15000,$I8+J$2)) -> 0 | K8: =IF(ISNA($I8),0,INDEX(Transmission!$M$5:$M$15000,$I8+K$2)) -> 0 | L8: =IF(ISNA($I8),0,INDEX(Transmission!$M$5:$M$15000,$I8+L$2)) -> 0 | M8: =IF(ISNA($I8),0,INDEX(Transmission!$M$5:$M$15000,$I8+M$2)) -> 0 | N8: =IF(ISNA($I8),0,INDEX(Transmission!$M$5:$M$15000,$I8+N$2)) -> 0 | O8: =IF(ISNA($I8),0,INDEX(Transmission!$M$5:$M$15000,$I8+O$2)) -> 0 | P8: =IF(ISNA($I8),0,INDEX(Transmission!$M$5:$M$15000,$I8+P$2)) -> 0 | Q8: =IF(ISNA($I8),0,INDEX(Transmission!$M$5:$M$15000,$I8+Q$2)) -> 0 | R8: =IF(ISNA($I8),0,INDEX(Transmission!$M$5:$M$15000,$I8+R$2)) -> 0 | S8: =IF(ISNA($I8),0,INDEX(Transmission!$M$5:$M$15000,$I8+S$2)) -> 0 | T8: =IF(ISNA($I8),0,INDEX(Transmission!$M$5:$M$15000,$I8+T$2)) -> 0 | U8: =IF(ISNA($I8),0,INDEX(Transmission!$M$5:$M$15000,$I8+U$2)) -> 0 | V8: =IF(ISNA($I8),0,INDEX(Transmission!$M$5:$M$15000,$I8+V$2)) -> 0 | W8: =IF(ISNA($I8),0,INDEX(Transmission!$M$5:$M$15000,$I8+W$2)) -> 0 | X8: =IF(ISNA($I8),0,INDEX(Transmission!$M$5:$M$15000,$I8+X$2)) -> 0 | Y8: =IF(ISNA($I8),0,INDEX(Transmission!$M$5:$M$15000,$I8+Y$2)) -> 0 | Z8: =IF(ISNA($I8),0,INDEX(Transmission!$M$5:$M$15000,$I8+Z$2)) -> 0 | AA8: =IF(ISNA($I8),0,INDEX(Transmission!$M$5:$M$15000,$I8+AA$2)) -> 0 | AB8: =IF(ISNA($I8),0,INDEX(Transmission!$M$5:$M$15000,$I8+AB$2)) -> 0 | AC8: =IF(ISNA($I8),0,INDEX(Transmission!$M$5:$M$15000,$I8+AC$2)) -> 0 | AD8: 0 | AE8: 0 | AF8: 0 | AG8: 2.924305321 | AH8: 4730 | AI8: 4280 | AJ8: 4280 | AL8: =MATCH("2030"&$A8,Transmission!$Y$5:$Y$15000,0) ->  | AM8: =IF(ISNA($AL8),0,INDEX(Transmission!$AI$5:$AI$15000,$AL8+AM$2)) -> 0 | AN8: =IF(ISNA($AL8),0,INDEX(Transmission!$AI$5:$AI$15000,$AL8+AN$2)) -> 0 | AO8: =IF(ISNA($AL8),0,INDEX(Transmission!$AI$5:$AI$15000,$AL8+AO$2)) -> 0 | AP8: =IF(ISNA($AL8),0,INDEX(Transmission!$AI$5:$AI$15000,$AL8+AP$2)) -> 0 | AQ8: =IF(ISNA($AL8),0,INDEX(Transmission!$AI$5:$AI$15000,$AL8+AQ$2)) -> 0 | AR8: =IF(ISNA($AL8),0,INDEX(Transmission!$AI$5:$AI$15000,$AL8+AR$2)) -> 0 | AS8: =IF(ISNA($AL8),0,INDEX(Transmission!$AI$5:$AI$15000,$AL8+AS$2)) -> 0 | AT8: =IF(ISNA($AL8),0,INDEX(Transmission!$AI$5:$AI$15000,$AL8+AT$2)) -> 0 | AU8: =IF(ISNA($AL8),0,INDEX(Transmission!$AI$5:$AI$15000,$AL8+AU$2)) -> 0 | AV8: =IF(ISNA($AL8),0,INDEX(Transmission!$AI$5:$AI$15000,$AL8+AV$2)) -> 0 | AW8: =IF(ISNA($AL8),0,INDEX(Transmission!$AI$5:$AI$15000,$AL8+AW$2)) -> 0 | AX8: =IF(ISNA($AL8),0,INDEX(Transmission!$AI$5:$AI$15000,$AL8+AX$2)) -> 0 | AY8: =IF(ISNA($AL8),0,INDEX(Transmission!$AI$5:$AI$15000,$AL8+AY$2)) -> 0 | AZ8: =IF(ISNA($AL8),0,INDEX(Transmission!$AI$5:$AI$15000,$AL8+AZ$2)) -> 0 | BA8: =IF(ISNA($AL8),0,INDEX(Transmission!$AI$5:$AI$15000,$AL8+BA$2)) -> 0 | BB8: =IF(ISNA($AL8),0,INDEX(Transmission!$AI$5:$AI$15000,$AL8+BB$2)) -> 0 | BC8: =IF(ISNA($AL8),0,INDEX(Transmission!$AI$5:$AI$15000,$AL8+BC$2)) -> 0 | BD8: =IF(ISNA($AL8),0,INDEX(Transmission!$AI$5:$AI$15000,$AL8+BD$2)) -> 0 | BE8: =IF(ISNA($AL8),0,INDEX(Transmission!$AI$5:$AI$15000,$AL8+BE$2)) -> 0 | BF8: =IF(ISNA($AL8),0,INDEX(Transmission!$AI$5:$AI$15000,$AL8+BF$2)) -> 0 | BG8: 0 | BI8: 1300 | BJ8: 0 | BK8: 0 | BL8: 0.000395 | BM8: 0.000395 | BN8: 0.0001316666667 | BO8: 0 | BP8: 0.000395 | BQ8: 0.0001316666667 | BR8: 0 | BS8: 0 | BT8: 0 | BU8: 0 | BV8: 0.0001316666667 | BW8: 0 | BX8: 0 | BY8: 0.0001316666667 | BZ8: 0 | CA8: 0 | CB8: 0 | CC8: 0 | CD8: 0 | CE8: 0 | CF8: 0.0001316666667 | CG8: 0 | CH8: 0 | CI8: 0.0001316666667 | CK8: 0.0001316666667 | CL8: 3430.373362 | CN8: 1300 | CO8: 850 | CQ8: FRCC | DO8: 900 | DX8: 1 | DY8: ENT_2_SPP_S | DZ8: 0 | EA8: 0 | EB8: 0 | EC8: 0 | ED8: 0 | EE8: 0 | EF8: 0 | EG8: 0 | EH8: 0 | EI8: 0 | EJ8: 3430.373362 | EK8: 0 | EL8: 0.0001316666667 | EM8: 1810.280748 | EN8: 0.0001316666667 | EO8: 2065.830968 | EQ8: ENT_2_SPP_S | ER8: 0.0001316666667
A9: ENT_2_TVA | B9: ENT | C9: TVA | D9: 3 | E9: 5 | F9: 8 | G9: =VLOOKUP($A9,Transmission!$E$5:$L$15000,8,0) ->  | H9: =VLOOKUP($A9,Transmission!$AA$5:$AH$15000,8,0) ->  | I9: =MATCH($H$1&$A9,Transmission!$C$5:$C$15000,0) ->  | J9: =IF(ISNA($I9),0,INDEX(Transmission!$M$5:$M$15000,$I9+J$2)) -> 0 | K9: =IF(ISNA($I9),0,INDEX(Transmission!$M$5:$M$15000,$I9+K$2)) -> 0 | L9: =IF(ISNA($I9),0,INDEX(Transmission!$M$5:$M$15000,$I9+L$2)) -> 0 | M9: =IF(ISNA($I9),0,INDEX(Transmission!$M$5:$M$15000,$I9+M$2)) -> 0 | N9: =IF(ISNA($I9),0,INDEX(Transmission!$M$5:$M$15000,$I9+N$2)) -> 0 | O9: =IF(ISNA($I9),0,INDEX(Transmission!$M$5:$M$15000,$I9+O$2)) -> 0 | P9: =IF(ISNA($I9),0,INDEX(Transmission!$M$5:$M$15000,$I9+P$2)) -> 0 | Q9: =IF(ISNA($I9),0,INDEX(Transmission!$M$5:$M$15000,$I9+Q$2)) -> 0 | R9: =IF(ISNA($I9),0,INDEX(Transmission!$M$5:$M$15000,$I9+R$2)) -> 0 | S9: =IF(ISNA($I9),0,INDEX(Transmission!$M$5:$M$15000,$I9+S$2)) -> 0 | T9: =IF(ISNA($I9),0,INDEX(Transmission!$M$5:$M$15000,$I9+T$2)) -> 0 | U9: =IF(ISNA($I9),0,INDEX(Transmission!$M$5:$M$15000,$I9+U$2)) -> 0 | V9: =IF(ISNA($I9),0,INDEX(Transmission!$M$5:$M$15000,$I9+V$2)) -> 0 | W9: =IF(ISNA($I9),0,INDEX(Transmission!$M$5:$M$15000,$I9+W$2)) -> 0 | X9: =IF(ISNA($I9),0,INDEX(Transmission!$M$5:$M$15000,$I9+X$2)) -> 0 | Y9: =IF(ISNA($I9),0,INDEX(Transmission!$M$5:$M$15000,$I9+Y$2)) -> 0 | Z9: =IF(ISNA($I9),0,INDEX(Transmission!$M$5:$M$15000,$I9+Z$2)) -> 0 | AA9: =IF(ISNA($I9),0,INDEX(Transmission!$M$5:$M$15000,$I9+AA$2)) -> 0 | AB9: =IF(ISNA($I9),0,INDEX(Transmission!$M$5:$M$15000,$I9+AB$2)) -> 0 | AC9: =IF(ISNA($I9),0,INDEX(Transmission!$M$5:$M$15000,$I9+AC$2)) -> 0 | AD9: 0 | AE9: 0 | AF9: 0 | AG9: 0 | AJ9: 0 | AL9: =MATCH("2030"&$A9,Transmission!$Y$5:$Y$15000,0) ->  | AM9: =IF(ISNA($AL9),0,INDEX(Transmission!$AI$5:$AI$15000,$AL9+AM$2)) -> 0 | AN9: =IF(ISNA($AL9),0,INDEX(Transmission!$AI$5:$AI$15000,$AL9+AN$2)) -> 0 | AO9: =IF(ISNA($AL9),0,INDEX(Transmission!$AI$5:$AI$15000,$AL9+AO$2)) -> 0 | AP9: =IF(ISNA($AL9),0,INDEX(Transmission!$AI$5:$AI$15000,$AL9+AP$2)) -> 0 | AQ9: =IF(ISNA($AL9),0,INDEX(Transmission!$AI$5:$AI$15000,$AL9+AQ$2)) -> 0 | AR9: =IF(ISNA($AL9),0,INDEX(Transmission!$AI$5:$AI$15000,$AL9+AR$2)) -> 0 | AS9: =IF(ISNA($AL9),0,INDEX(Transmission!$AI$5:$AI$15000,$AL9+AS$2)) -> 0 | AT9: =IF(ISNA($AL9),0,INDEX(Transmission!$AI$5:$AI$15000,$AL9+AT$2)) -> 0 | AU9: =IF(ISNA($AL9),0,INDEX(Transmission!$AI$5:$AI$15000,$AL9+AU$2)) -> 0 | AV9: =IF(ISNA($AL9),0,INDEX(Transmission!$AI$5:$AI$15000,$AL9+AV$2)) -> 0 | AW9: =IF(ISNA($AL9),0,INDEX(Transmission!$AI$5:$AI$15000,$AL9+AW$2)) -> 0 | AX9: =IF(ISNA($AL9),0,INDEX(Transmission!$AI$5:$AI$15000,$AL9+AX$2)) -> 0 | AY9: =IF(ISNA($AL9),0,INDEX(Transmission!$AI$5:$AI$15000,$AL9+AY$2)) -> 0 | AZ9: =IF(ISNA($AL9),0,INDEX(Transmission!$AI$5:$AI$15000,$AL9+AZ$2)) -> 0 | BA9: =IF(ISNA($AL9),0,INDEX(Transmission!$AI$5:$AI$15000,$AL9+BA$2)) -> 0 | BB9: =IF(ISNA($AL9),0,INDEX(Transmission!$AI$5:$AI$15000,$AL9+BB$2)) -> 0 | BC9: =IF(ISNA($AL9),0,INDEX(Transmission!$AI$5:$AI$15000,$AL9+BC$2)) -> 0 | BD9: =IF(ISNA($AL9),0,INDEX(Transmission!$AI$5:$AI$15000,$AL9+BD$2)) -> 0 | BE9: =IF(ISNA($AL9),0,INDEX(Transmission!$AI$5:$AI$15000,$AL9+BE$2)) -> 0 | BF9: =IF(ISNA($AL9),0,INDEX(Transmission!$AI$5:$AI$15000,$AL9+BF$2)) -> 0 | BG9: 0 | CL9: 0.0001316666667 | CN9: 2100 | CO9: 3500 | CQ9: MAPP_CA | CW9: 372 | DA9: 1970 | DJ9: 330 | DX9: 0 | EJ9: 0 | EM9: 0.0001316666667 | EO9: 0.0001316666667 | EQ9: ENT_2_TVA_Transmission | ER9: 0.0001946616071
A10: ENT_2_TVA_Transmission | B10: ENT | C10: TVA_Transmission | D10: 3 | E10: 5 | F10: 8 | G10: =VLOOKUP($A10,Transmission!$E$5:$L$15000,8,0) -> 2100 | H10: =VLOOKUP($A10,Transmission!$AA$5:$AH$15000,8,0) -> 2100 | I10: =MATCH($H$1&$A10,Transmission!$C$5:$C$15000,0) -> 5261 | J10: =IF(ISNA($I10),0,INDEX(Transmission!$M$5:$M$15000,$I10+J$2)) -> 2100 | K10: =IF(ISNA($I10),0,INDEX(Transmission!$M$5:$M$15000,$I10+K$2)) -> 2100 | L10: =IF(ISNA($I10),0,INDEX(Transmission!$M$5:$M$15000,$I10+L$2)) -> 0 | M10: =IF(ISNA($I10),0,INDEX(Transmission!$M$5:$M$15000,$I10+M$2)) -> 0 | N10: =IF(ISNA($I10),0,INDEX(Transmission!$M$5:$M$15000,$I10+N$2)) -> 0 | O10: =IF(ISNA($I10),0,INDEX(Transmission!$M$5:$M$15000,$I10+O$2)) -> 0 | P10: =IF(ISNA($I10),0,INDEX(Transmission!$M$5:$M$15000,$I10+P$2)) -> 0 | Q10: =IF(ISNA($I10),0,INDEX(Transmission!$M$5:$M$15000,$I10+Q$2)) -> 0 | R10: =IF(ISNA($I10),0,INDEX(Transmission!$M$5:$M$15000,$I10+R$2)) -> 0 | S10: =IF(ISNA($I10),0,INDEX(Transmission!$M$5:$M$15000,$I10+S$2)) -> 0 | T10: =IF(ISNA($I10),0,INDEX(Transmission!$M$5:$M$15000,$I10+T$2)) -> 0 | U10: =IF(ISNA($I10),0,INDEX(Transmission!$M$5:$M$15000,$I10+U$2)) -> 0 | V10: =IF(ISNA($I10),0,INDEX(Transmission!$M$5:$M$15000,$I10+V$2)) -> 0 | W10: =IF(ISNA($I10),0,INDEX(Transmission!$M$5:$M$15000,$I10+W$2)) -> 0 | X10: =IF(ISNA($I10),0,INDEX(Transmission!$M$5:$M$15000,$I10+X$2)) -> 0 | Y10: =IF(ISNA($I10),0,INDEX(Transmission!$M$5:$M$15000,$I10+Y$2)) -> 1264.44 | Z10: =IF(ISNA($I10),0,INDEX(Transmission!$M$5:$M$15000,$I10+Z$2)) -> 0 | AA10: =IF(ISNA($I10),0,INDEX(Transmission!$M$5:$M$15000,$I10+AA$2)) -> 0 | AB10: =IF(ISNA($I10),0,INDEX(Transmission!$M$5:$M$15000,$I10+AB$2)) -> 0 | AC10: =IF(ISNA($I10),0,INDEX(Transmission!$M$5:$M$15000,$I10+AC$2)) -> 175.58 | AD10: 2100 | AE10: 0.03073953196 | AF10: 0.03073953196 | AG10: 0 | AH10: 2100 | AJ10: 0 | AL10: =MATCH("2030"&$A10,Transmission!$Y$5:$Y$15000,0) -> 5301 | AM10: =IF(ISNA($AL10),0,INDEX(Transmission!$AI$5:$AI$15000,$AL10+AM$2)) -> 19.19 | AN10: =IF(ISNA($AL10),0,INDEX(Transmission!$AI$5:$AI$15000,$AL10+AN$2)) -> 0 | AO10: =IF(ISNA($AL10),0,INDEX(Transmission!$AI$5:$AI$15000,$AL10+AO$2)) -> 0 | AP10: =IF(ISNA($AL10),0,INDEX(Transmission!$AI$5:$AI$15000,$AL10+AP$2)) -> 0 | AQ10: =IF(ISNA($AL10),0,INDEX(Transmission!$AI$5:$AI$15000,$AL10+AQ$2)) -> 0 | AR10: =IF(ISNA($AL10),0,INDEX(Transmission!$AI$5:$AI$15000,$AL10+AR$2)) -> 0 | AS10: =IF(ISNA($AL10),0,INDEX(Transmission!$AI$5:$AI$15000,$AL10+AS$2)) -> 0 | AT10: =IF(ISNA($AL10),0,INDEX(Transmission!$AI$5:$AI$15000,$AL10+AT$2)) -> 0 | AU10: =IF(ISNA($AL10),0,INDEX(Transmission!$AI$5:$AI$15000,$AL10+AU$2)) -> 0 | AV10: =IF(ISNA($AL10),0,INDEX(Transmission!$AI$5:$AI$15000,$AL10+AV$2)) -> 0 | AW10: =IF(ISNA($AL10),0,INDEX(Transmission!$AI$5:$AI$15000,$AL10+AW$2)) -> 0 | AX10: =IF(ISNA($AL10),0,INDEX(Transmission!$AI$5:$AI$15000,$AL10+AX$2)) -> 0 | AY10: =IF(ISNA($AL10),0,INDEX(Transmission!$AI$5:$AI$15000,$AL10+AY$2)) -> 0 | AZ10: =IF(ISNA($AL10),0,INDEX(Transmission!$AI$5:$AI$15000,$AL10+AZ$2)) -> 0 | BA10: =IF(ISNA($AL10),0,INDEX(Transmission!$AI$5:$AI$15000,$AL10+BA$2)) -> 0 | BB10: =IF(ISNA($AL10),0,INDEX(Transmission!$AI$5:$AI$15000,$AL10+BB$2)) -> 0 | BC10: =IF(ISNA($AL10),0,INDEX(Transmission!$AI$5:$AI$15000,$AL10+BC$2)) -> 0 | BD10: =IF(ISNA($AL10),0,INDEX(Transmission!$AI$5:$AI$15000,$AL10+BD$2)) -> 0 | BE10: =IF(ISNA($AL10),0,INDEX(Transmission!$AI$5:$AI$15000,$AL10+BE$2)) -> 0 | BF10: =IF(ISNA($AL10),0,INDEX(Transmission!$AI$5:$AI$15000,$AL10+BF$2)) -> 0 | BG10: 19.19 | BI10: 2100 | BJ10: 0 | BK10: 0 | BL10: 4539.25 | BM10: 2261.74 | BN10: 0.0002476405761 | BO10: 0 | BP10: 0.0004149999999 | BQ10: 0.0001316666667 | BR10: 0 | BS10: 0 | BT10: 925.82 | BU10: 1332.29 | BV10: 0.0001969900985 | BW10: 0 | BX10: 0 | BY10: 0.0001316666667 | BZ10: 0 | CA10: 0 | CB10: 0 | CC10: 0 | CD10: 3227.35 | CE10: 4284.12 | CF10: 0.0001946616071 | CG10: 4153.9 | CH10: 3870.71 | CI10: 0.0001946616071 | CK10: 0.0001946616071 | CL10: 0.0001316666667 | CQ10: MAPP_US | CV10: 165 | DA10: 2635 | DC10: 2000 | DF10: 200 | DN10: 200 | DX10: 1 | DY10: ENT_2_TVA_Transmission | DZ10: 0 | EA10: 0 | EB10: 0 | EC10: 0 | ED10: 0 | EE10: 0 | EF10: 0 | EG10: 0 | EH10: 0 | EI10: 0 | EJ10: 0 | EK10: 0 | EL10: 0.0001946616071 | EM10: 0.0001316666667 | EN10: 0.0001946616071 | EO10: 0.0001316666667 | EQ10: FRCC_2_SOCO | ER10: 0.0001316666667
A11: ERCOT_2_SPP_S | B11: ERCOT | C11: SPP_S | D11: 3 | E11: 5 | F11: 8 | G11: =VLOOKUP($A11,Transmission!$E$5:$L$15000,8,0) -> 800 | H11: =VLOOKUP($A11,Transmission!$AA$5:$AH$15000,8,0) -> 800 | I11: =MATCH($H$1&$A11,Transmission!$C$5:$C$15000,0) -> 11061 | J11: =IF(ISNA($I11),0,INDEX(Transmission!$M$5:$M$15000,$I11+J$2)) -> 0 | K11: =IF(ISNA($I11),0,INDEX(Transmission!$M$5:$M$15000,$I11+K$2)) -> 0 | L11: =IF(ISNA($I11),0,INDEX(Transmission!$M$5:$M$15000,$I11+L$2)) -> 0 | M11: =IF(ISNA($I11),0,INDEX(Transmission!$M$5:$M$15000,$I11+M$2)) -> 0 | N11: =IF(ISNA($I11),0,INDEX(Transmission!$M$5:$M$15000,$I11+N$2)) -> 0 | O11: =IF(ISNA($I11),0,INDEX(Transmission!$M$5:$M$15000,$I11+O$2)) -> 0 | P11: =IF(ISNA($I11),0,INDEX(Transmission!$M$5:$M$15000,$I11+P$2)) -> 0 | Q11: =IF(ISNA($I11),0,INDEX(Transmission!$M$5:$M$15000,$I11+Q$2)) -> 0 | R11: =IF(ISNA($I11),0,INDEX(Transmission!$M$5:$M$15000,$I11+R$2)) -> 0 | S11: =IF(ISNA($I11),0,INDEX(Transmission!$M$5:$M$15000,$I11+S$2)) -> 0 | T11: =IF(ISNA($I11),0,INDEX(Transmission!$M$5:$M$15000,$I11+T$2)) -> 0 | U11: =IF(ISNA($I11),0,INDEX(Transmission!$M$5:$M$15000,$I11+U$2)) -> 0 | V11: =IF(ISNA($I11),0,INDEX(Transmission!$M$5:$M$15000,$I11+V$2)) -> 0 | W11: =IF(ISNA($I11),0,INDEX(Transmission!$M$5:$M$15000,$I11+W$2)) -> 0 | X11: =IF(ISNA($I11),0,INDEX(Transmission!$M$5:$M$15000,$I11+X$2)) -> 0 | Y11: =IF(ISNA($I11),0,INDEX(Transmission!$M$5:$M$15000,$I11+Y$2)) -> 0 | Z11: =IF(ISNA($I11),0,INDEX(Transmission!$M$5:$M$15000,$I11+Z$2)) -> 0 | AA11: =IF(ISNA($I11),0,INDEX(Transmission!$M$5:$M$15000,$I11+AA$2)) -> 0 | AB11: =IF(ISNA($I11),0,INDEX(Transmission!$M$5:$M$15000,$I11+AB$2)) -> 0 | AC11: =IF(ISNA($I11),0,INDEX(Transmission!$M$5:$M$15000,$I11+AC$2)) -> 0 | AD11: 0 | AE11: 0 | AF11: 0 | AG11: 0.5949706621 | AH11: 800 | AI11: 800 | AJ11: 800 | AL11: =MATCH("2030"&$A11,Transmission!$Y$5:$Y$15000,0) -> 11181 | AM11: =IF(ISNA($AL11),0,INDEX(Transmission!$AI$5:$AI$15000,$AL11+AM$2)) -> 0 | AN11: =IF(ISNA($AL11),0,INDEX(Transmission!$AI$5:$AI$15000,$AL11+AN$2)) -> 0 | AO11: =IF(ISNA($AL11),0,INDEX(Transmission!$AI$5:$AI$15000,$AL11+AO$2)) -> 0 | AP11: =IF(ISNA($AL11),0,INDEX(Transmission!$AI$5:$AI$15000,$AL11+AP$2)) -> 0 | AQ11: =IF(ISNA($AL11),0,INDEX(Transmission!$AI$5:$AI$15000,$AL11+AQ$2)) -> 0 | AR11: =IF(ISNA($AL11),0,INDEX(Transmission!$AI$5:$AI$15000,$AL11+AR$2)) -> 0 | AS11: =IF(ISNA($AL11),0,INDEX(Transmission!$AI$5:$AI$15000,$AL11+AS$2)) -> 0 | AT11: =IF(ISNA($AL11),0,INDEX(Transmission!$AI$5:$AI$15000,$AL11+AT$2)) -> 0 | AU11: =IF(ISNA($AL11),0,INDEX(Transmission!$AI$5:$AI$15000,$AL11+AU$2)) -> 0 | AV11: =IF(ISNA($AL11),0,INDEX(Transmission!$AI$5:$AI$15000,$AL11+AV$2)) -> 0 | AW11: =IF(ISNA($AL11),0,INDEX(Transmission!$AI$5:$AI$15000,$AL11+AW$2)) -> 0 | AX11: =IF(ISNA($AL11),0,INDEX(Transmission!$AI$5:$AI$15000,$AL11+AX$2)) -> 0 | AY11: =IF(ISNA($AL11),0,INDEX(Transmission!$AI$5:$AI$15000,$AL11+AY$2)) -> 0 | AZ11: =IF(ISNA($AL11),0,INDEX(Transmission!$AI$5:$AI$15000,$AL11+AZ$2)) -> 0 | BA11: =IF(ISNA($AL11),0,INDEX(Transmission!$AI$5:$AI$15000,$AL11+BA$2)) -> 0 | BB11: =IF(ISNA($AL11),0,INDEX(Transmission!$AI$5:$AI$15000,$AL11+BB$2)) -> 0 | BC11: =IF(ISNA($AL11),0,INDEX(Transmission!$AI$5:$AI$15000,$AL11+BC$2)) -> 0 | BD11: =IF(ISNA($AL11),0,INDEX(Transmission!$AI$5:$AI$15000,$AL11+BD$2)) -> 0 | BE11: =IF(ISNA($AL11),0,INDEX(Transmission!$AI$5:$AI$15000,$AL11+BE$2)) -> 0 | BF11: =IF(ISNA($AL11),0,INDEX(Transmission!$AI$5:$AI$15000,$AL11+BF$2)) -> 0 | BG11: 0 | CN11: 800 | CO11: 800 | CQ11: MISO_IN | CY11: 5000 | CZ11: 5000 | DE11: 4800 | DM11: 992 | DX11: 0 | EJ11: 0 | EM11: 0 | EO11: 0 | EQ11: IESO_2_MAPP_CA | ER11: 0.000365
A12: FRCC_2_SOCO | B12: FRCC | C12: SOCO | D12: 3 | E12: 5 | F12: 8 | G12: =VLOOKUP($A12,Transmission!$E$5:$L$15000,8,0) -> 900 | H12: =VLOOKUP($A12,Transmission!$AA$5:$AH$15000,8,0) ->  | I12: =MATCH($H$1&$A12,Transmission!$C$5:$C$15000,0) -> 5281 | J12: =IF(ISNA($I12),0,INDEX(Transmission!$M$5:$M$15000,$I12+J$2)) -> 0 | K12: =IF(ISNA($I12),0,INDEX(Transmission!$M$5:$M$15000,$I12+K$2)) -> 0 | L12: =IF(ISNA($I12),0,INDEX(Transmission!$M$5:$M$15000,$I12+L$2)) -> 900 | M12: =IF(ISNA($I12),0,INDEX(Transmission!$M$5:$M$15000,$I12+M$2)) -> 0 | N12: =IF(ISNA($I12),0,INDEX(Transmission!$M$5:$M$15000,$I12+N$2)) -> 900 | O12: =IF(ISNA($I12),0,INDEX(Transmission!$M$5:$M$15000,$I12+O$2)) -> 0 | P12: =IF(ISNA($I12),0,INDEX(Transmission!$M$5:$M$15000,$I12+P$2)) -> 0 | Q12: =IF(ISNA($I12),0,INDEX(Transmission!$M$5:$M$15000,$I12+Q$2)) -> 0 | R12: =IF(ISNA($I12),0,INDEX(Transmission!$M$5:$M$15000,$I12+R$2)) -> 0 | S12: =IF(ISNA($I12),0,INDEX(Transmission!$M$5:$M$15000,$I12+S$2)) -> 0 | T12: =IF(ISNA($I12),0,INDEX(Transmission!$M$5:$M$15000,$I12+T$2)) -> 0 | U12: =IF(ISNA($I12),0,INDEX(Transmission!$M$5:$M$15000,$I12+U$2)) -> 0 | V12: =IF(ISNA($I12),0,INDEX(Transmission!$M$5:$M$15000,$I12+V$2)) -> 0 | W12: =IF(ISNA($I12),0,INDEX(Transmission!$M$5:$M$15000,$I12+W$2)) -> 0 | X12: =IF(ISNA($I12),0,INDEX(Transmission!$M$5:$M$15000,$I12+X$2)) -> 0 | Y12: =IF(ISNA($I12),0,INDEX(Transmission!$M$5:$M$15000,$I12+Y$2)) -> 0 | Z12: =IF(ISNA($I12),0,INDEX(Transmission!$M$5:$M$15000,$I12+Z$2)) -> 0 | AA12: =IF(ISNA($I12),0,INDEX(Transmission!$M$5:$M$15000,$I12+AA$2)) -> 0 | AB12: =IF(ISNA($I12),0,INDEX(Transmission!$M$5:$M$15000,$I12+AB$2)) -> 0 | AC12: =IF(ISNA($I12),0,INDEX(Transmission!$M$5:$M$15000,$I12+AC$2)) -> 0 | AD12: 900 | AE12: 0.02825342466 | AF12: 0.02825342466 | AG12: 0.0007049315068 | AH12: 900 | AI12: 3700 | AJ12: 393.22 | AL12: =MATCH("2030"&$A12,Transmission!$Y$5:$Y$15000,0) ->  | AM12: =IF(ISNA($AL12),0,INDEX(Transmission!$AI$5:$AI$15000,$AL12+AM$2)) -> 0 | AN12: =IF(ISNA($AL12),0,INDEX(Transmission!$AI$5:$AI$15000,$AL12+AN$2)) -> 0 | AO12: =IF(ISNA($AL12),0,INDEX(Transmission!$AI$5:$AI$15000,$AL12+AO$2)) -> 0 | AP12: =IF(ISNA($AL12),0,INDEX(Transmission!$AI$5:$AI$15000,$AL12+AP$2)) -> 0 | AQ12: =IF(ISNA($AL12),0,INDEX(Transmission!$AI$5:$AI$15000,$AL12+AQ$2)) -> 0 | AR12: =IF(ISNA($AL12),0,INDEX(Transmission!$AI$5:$AI$15000,$AL12+AR$2)) -> 0 | AS12: =IF(ISNA($AL12),0,INDEX(Transmission!$AI$5:$AI$15000,$AL12+AS$2)) -> 0 | AT12: =IF(ISNA($AL12),0,INDEX(Transmission!$AI$5:$AI$15000,$AL12+AT$2)) -> 0 | AU12: =IF(ISNA($AL12),0,INDEX(Transmission!$AI$5:$AI$15000,$AL12+AU$2)) -> 0 | AV12: =IF(ISNA($AL12),0,INDEX(Transmission!$AI$5:$AI$15000,$AL12+AV$2)) -> 0 | AW12: =IF(ISNA($AL12),0,INDEX(Transmission!$AI$5:$AI$15000,$AL12+AW$2)) -> 0 | AX12: =IF(ISNA($AL12),0,INDEX(Transmission!$AI$5:$AI$15000,$AL12+AX$2)) -> 0 | AY12: =IF(ISNA($AL12),0,INDEX(Transmission!$AI$5:$AI$15000,$AL12+AY$2)) -> 0 | AZ12: =IF(ISNA($AL12),0,INDEX(Transmission!$AI$5:$AI$15000,$AL12+AZ$2)) -> 0 | BA12: =IF(ISNA($AL12),0,INDEX(Transmission!$AI$5:$AI$15000,$AL12+BA$2)) -> 0 | BB12: =IF(ISNA($AL12),0,INDEX(Transmission!$AI$5:$AI$15000,$AL12+BB$2)) -> 0 | BC12: =IF(ISNA($AL12),0,INDEX(Transmission!$AI$5:$AI$15000,$AL12+BC$2)) -> 0 | BD12: =IF(ISNA($AL12),0,INDEX(Transmission!$AI$5:$AI$15000,$AL12+BD$2)) -> 0 | BE12: =IF(ISNA($AL12),0,INDEX(Transmission!$AI$5:$AI$15000,$AL12+BE$2)) -> 0 | BF12: =IF(ISNA($AL12),0,INDEX(Transmission!$AI$5:$AI$15000,$AL12+BF$2)) -> 0 | BG12: 0 | BI12: 900 | BJ12: 0 | BK12: 0 | BL12: 975.54 | BM12: 1918.26 | BN12: 0.0002004703616 | BO12: 0 | BP12: 0.000395 | BQ12: 0.0001316666667 | BR12: 0 | BS12: 0 | BT12: 0 | BU12: 0 | BV12: 0.0001316666667 | BW12: 0 | BX12: 0 | BY12: 0.0001316666667 | BZ12: 0 | CA12: 0 | CB12: 0 | CC12: 0 | CD12: 0 | CE12: 0 | CF12: 0.0001316666667 | CG12: 0 | CH12: 0 | CI12: 0.0001316666667 | CK12: 0.0001316666667 | CL12: 0.0001781172118 | CN12: 900 | CO12: 3700 | CQ12: MISO_MI | CX12: 2045 | DB12: 117 | DJ12: 1580 | DM12: 1424 | DX12: 1 | DY12: FRCC_2_SOCO | DZ12: 0 | EA12: 0 | EB12: 0 | EC12: 0 | ED12: 0 | EE12: 0 | EF12: 0 | EG12: 0 | EH12: 0 | EI12: 0 | EJ12: 0 | EK12: 0 | EL12: 0.0001316666667 | EM12: 0.0001840945327 | EN12: 0.0001316666667 | EO12: 0.0001808032728 | EQ12: IESO_2_MISO_MI | ER12: 922.7273127
A13: HQ_NEISO_2_NEISO | B13: HQ_NEISO | C13: NEISO | D13: 0 | E13: 0 | F13: 0 | G13: =VLOOKUP($A13,Transmission!$E$5:$L$15000,8,0) -> 99999 | H13: =VLOOKUP($A13,Transmission!$AA$5:$AH$15000,8,0) -> 99999 | I13: =MATCH($H$1&$A13,Transmission!$C$5:$C$15000,0) -> 5301 | J13: =IF(ISNA($I13),0,INDEX(Transmission!$M$5:$M$15000,$I13+J$2)) -> 3506.75 | K13: =IF(ISNA($I13),0,INDEX(Transmission!$M$5:$M$15000,$I13+K$2)) -> 3481.81 | L13: =IF(ISNA($I13),0,INDEX(Transmission!$M$5:$M$15000,$I13+L$2)) -> 3432.11 | M13: =IF(ISNA($I13),0,INDEX(Transmission!$M$5:$M$15000,$I13+M$2)) -> 3389.38 | N13: =IF(ISNA($I13),0,INDEX(Transmission!$M$5:$M$15000,$I13+N$2)) -> 3366.05 | O13: =IF(ISNA($I13),0,INDEX(Transmission!$M$5:$M$15000,$I13+O$2)) -> 3339.84 | P13: =IF(ISNA($I13),0,INDEX(Transmission!$M$5:$M$15000,$I13+P$2)) -> 3309.81 | Q13: =IF(ISNA($I13),0,INDEX(Transmission!$M$5:$M$15000,$I13+Q$2)) -> 3286.19 | R13: =IF(ISNA($I13),0,INDEX(Transmission!$M$5:$M$15000,$I13+R$2)) -> 3257.27 | S13: =IF(ISNA($I13),0,INDEX(Transmission!$M$5:$M$15000,$I13+S$2)) -> 1064.54 | T13: =IF(ISNA($I13),0,INDEX(Transmission!$M$5:$M$15000,$I13+T$2)) -> 3296.23 | U13: =IF(ISNA($I13),0,INDEX(Transmission!$M$5:$M$15000,$I13+U$2)) -> 3292.46 | V13: =IF(ISNA($I13),0,INDEX(Transmission!$M$5:$M$15000,$I13+V$2)) -> 3277.61 | W13: =IF(ISNA($I13),0,INDEX(Transmission!$M$5:$M$15000,$I13+W$2)) -> 3251.62 | X13: =IF(ISNA($I13),0,INDEX(Transmission!$M$5:$M$15000,$I13+X$2)) -> 1403.31 | Y13: =IF(ISNA($I13),0,INDEX(Transmission!$M$5:$M$15000,$I13+Y$2)) -> 3348.53 | Z13: =IF(ISNA($I13),0,INDEX(Transmission!$M$5:$M$15000,$I13+Z$2)) -> 3327.54 | AA13: =IF(ISNA($I13),0,INDEX(Transmission!$M$5:$M$15000,$I13+AA$2)) -> 3311.48 | AB13: =IF(ISNA($I13),0,INDEX(Transmission!$M$5:$M$15000,$I13+AB$2)) -> 3281.55 | AC13: =IF(ISNA($I13),0,INDEX(Transmission!$M$5:$M$15000,$I13+AC$2)) -> 1523.98 | AD13: 3506.75 | AE13: 2.522268803 | AF13: 2.522268803 | AH13: 99999 | AL13: =MATCH("2030"&$A13,Transmission!$Y$5:$Y$15000,0) -> 5321 | AM13: =IF(ISNA($AL13),0,INDEX(Transmission!$AI$5:$AI$15000,$AL13+AM$2)) -> 2920 | AN13: =IF(ISNA($AL13),0,INDEX(Transmission!$AI$5:$AI$15000,$AL13+AN$2)) -> 2920 | AO13: =IF(ISNA($AL13),0,INDEX(Transmission!$AI$5:$AI$15000,$AL13+AO$2)) -> 2920 | AP13: =IF(ISNA($AL13),0,INDEX(Transmission!$AI$5:$AI$15000,$AL13+AP$2)) -> 2920 | AQ13: =IF(ISNA($AL13),0,INDEX(Transmission!$AI$5:$AI$15000,$AL13+AQ$2)) -> 2920 | AR13: =IF(ISNA($AL13),0,INDEX(Transmission!$AI$5:$AI$15000,$AL13+AR$2)) -> 2920 | AS13: =IF(ISNA($AL13),0,INDEX(Transmission!$AI$5:$AI$15000,$AL13+AS$2)) -> 2920 | AT13: =IF(ISNA($AL13),0,INDEX(Transmission!$AI$5:$AI$15000,$AL13+AT$2)) -> 2920 | AU13: =IF(ISNA($AL13),0,INDEX(Transmission!$AI$5:$AI$15000,$AL13+AU$2)) -> 2920 | AV13: =IF(ISNA($AL13),0,INDEX(Transmission!$AI$5:$AI$15000,$AL13+AV$2)) -> 795.94 | AW13: =IF(ISNA($AL13),0,INDEX(Transmission!$AI$5:$AI$15000,$AL13+AW$2)) -> 2920 | AX13: =IF(ISNA($AL13),0,INDEX(Transmission!$AI$5:$AI$15000,$AL13+AX$2)) -> 2920 | AY13: =IF(ISNA($AL13),0,INDEX(Transmission!$AI$5:$AI$15000,$AL13+AY$2)) -> 2920 | AZ13: =IF(ISNA($AL13),0,INDEX(Transmission!$AI$5:$AI$15000,$AL13+AZ$2)) -> 2920 | BA13: =IF(ISNA($AL13),0,INDEX(Transmission!$AI$5:$AI$15000,$AL13+BA$2)) -> 1143.24 | BB13: =IF(ISNA($AL13),0,INDEX(Transmission!$AI$5:$AI$15000,$AL13+BB$2)) -> 2920 | BC13: =IF(ISNA($AL13),0,INDEX(Transmission!$AI$5:$AI$15000,$AL13+BC$2)) -> 2920 | BD13: =IF(ISNA($AL13),0,INDEX(Transmission!$AI$5:$AI$15000,$AL13+BD$2)) -> 2920 | BE13: =IF(ISNA($AL13),0,INDEX(Transmission!$AI$5:$AI$15000,$AL13+BE$2)) -> 2920 | BF13: =IF(ISNA($AL13),0,INDEX(Transmission!$AI$5:$AI$15000,$AL13+BF$2)) -> 1233.58 | BG13: 2920 | CQ13: MISO_MO-IL | CS13: 2540 | CX13: 2100 | DA13: 960 | DM13: 1212 | DP13: 2000 | DR13: 4000 | DU13: 4000 | DX13: 0 | EQ13: IESO_2_MISO_W | ER13: 4.208687678
A14: HQ_NY_2_NYISO_A-F | B14: HQ_NY | C14: NYISO_A-F | D14: 0 | E14: 0 | F14: 0 | G14: =VLOOKUP($A14,Transmission!$E$5:$L$15000,8,0) -> 99999 | H14: =VLOOKUP($A14,Transmission!$AA$5:$AH$15000,8,0) -> 99999 | I14: =MATCH($H$1&$A14,Transmission!$C$5:$C$15000,0) -> 5321 | J14: =IF(ISNA($I14),0,INDEX(Transmission!$M$5:$M$15000,$I14+J$2)) -> 3333.15 | K14: =IF(ISNA($I14),0,INDEX(Transmission!$M$5:$M$15000,$I14+K$2)) -> 3246 | L14: =IF(ISNA($I14),0,INDEX(Transmission!$M$5:$M$15000,$I14+L$2)) -> 3115.34 | M14: =IF(ISNA($I14),0,INDEX(Transmission!$M$5:$M$15000,$I14+M$2)) -> 2975.05 | N14: =IF(ISNA($I14),0,INDEX(Transmission!$M$5:$M$15000,$I14+N$2)) -> 2890.23 | O14: =IF(ISNA($I14),0,INDEX(Transmission!$M$5:$M$15000,$I14+O$2)) -> 2805.65 | P14: =IF(ISNA($I14),0,INDEX(Transmission!$M$5:$M$15000,$I14+P$2)) -> 2708.49 | Q14: =IF(ISNA($I14),0,INDEX(Transmission!$M$5:$M$15000,$I14+Q$2)) -> 2642.7 | R14: =IF(ISNA($I14),0,INDEX(Transmission!$M$5:$M$15000,$I14+R$2)) -> 2553.54 | S14: =IF(ISNA($I14),0,INDEX(Transmission!$M$5:$M$15000,$I14+S$2)) -> 1342.41 | T14: =IF(ISNA($I14),0,INDEX(Transmission!$M$5:$M$15000,$I14+T$2)) -> 2691.25 | U14: =IF(ISNA($I14),0,INDEX(Transmission!$M$5:$M$15000,$I14+U$2)) -> 2724.3 | V14: =IF(ISNA($I14),0,INDEX(Transmission!$M$5:$M$15000,$I14+V$2)) -> 2662.86 | W14: =IF(ISNA($I14),0,INDEX(Transmission!$M$5:$M$15000,$I14+W$2)) -> 2561.4 | X14: =IF(ISNA($I14),0,INDEX(Transmission!$M$5:$M$15000,$I14+X$2)) -> 1489.61 | Y14: =IF(ISNA($I14),0,INDEX(Transmission!$M$5:$M$15000,$I14+Y$2)) -> 2921.38 | Z14: =IF(ISNA($I14),0,INDEX(Transmission!$M$5:$M$15000,$I14+Z$2)) -> 2867.47 | AA14: =IF(ISNA($I14),0,INDEX(Transmission!$M$5:$M$15000,$I14+AA$2)) -> 2805.5 | AB14: =IF(ISNA($I14),0,INDEX(Transmission!$M$5:$M$15000,$I14+AB$2)) -> 2697.59 | AC14: =IF(ISNA($I14),0,INDEX(Transmission!$M$5:$M$15000,$I14+AC$2)) -> 1660.59 | AD14: 3333.15 | AE14: 2.218851787 | AF14: 2.218851787 | AH14: 99999 | AL14: =MATCH("2030"&$A14,Transmission!$Y$5:$Y$15000,0) -> 5341 | AM14: =IF(ISNA($AL14),0,INDEX(Transmission!$AI$5:$AI$15000,$AL14+AM$2)) -> 1000 | AN14: =IF(ISNA($AL14),0,INDEX(Transmission!$AI$5:$AI$15000,$AL14+AN$2)) -> 1000 | AO14: =IF(ISNA($AL14),0,INDEX(Transmission!$AI$5:$AI$15000,$AL14+AO$2)) -> 1000 | AP14: =IF(ISNA($AL14),0,INDEX(Transmission!$AI$5:$AI$15000,$AL14+AP$2)) -> 1000 | AQ14: =IF(ISNA($AL14),0,INDEX(Transmission!$AI$5:$AI$15000,$AL14+AQ$2)) -> 1000 | AR14: =IF(ISNA($AL14),0,INDEX(Transmission!$AI$5:$AI$15000,$AL14+AR$2)) -> 1000 | AS14: =IF(ISNA($AL14),0,INDEX(Transmission!$AI$5:$AI$15000,$AL14+AS$2)) -> 1000 | AT14: =IF(ISNA($AL14),0,INDEX(Transmission!$AI$5:$AI$15000,$AL14+AT$2)) -> 1000 | AU14: =IF(ISNA($AL14),0,INDEX(Transmission!$AI$5:$AI$15000,$AL14+AU$2)) -> 1000 | AV14: =IF(ISNA($AL14),0,INDEX(Transmission!$AI$5:$AI$15000,$AL14+AV$2)) -> 30.11 | AW14: =IF(ISNA($AL14),0,INDEX(Transmission!$AI$5:$AI$15000,$AL14+AW$2)) -> 1000 | AX14: =IF(ISNA($AL14),0,INDEX(Transmission!$AI$5:$AI$15000,$AL14+AX$2)) -> 1000 | AY14: =IF(ISNA($AL14),0,INDEX(Transmission!$AI$5:$AI$15000,$AL14+AY$2)) -> 1000 | AZ14: =IF(ISNA($AL14),0,INDEX(Transmission!$AI$5:$AI$15000,$AL14+AZ$2)) -> 1000 | BA14: =IF(ISNA($AL14),0,INDEX(Transmission!$AI$5:$AI$15000,$AL14+BA$2)) -> 188.69 | BB14: =IF(ISNA($AL14),0,INDEX(Transmission!$AI$5:$AI$15000,$AL14+BB$2)) -> 1000 | BC14: =IF(ISNA($AL14),0,INDEX(Transmission!$AI$5:$AI$15000,$AL14+BC$2)) -> 1000 | BD14: =IF(ISNA($AL14),0,INDEX(Transmission!$AI$5:$AI$15000,$AL14+BD$2)) -> 1000 | BE14: =IF(ISNA($AL14),0,INDEX(Transmission!$AI$5:$AI$15000,$AL14+BE$2)) -> 1000 | BF14: =IF(ISNA($AL14),0,INDEX(Transmission!$AI$5:$AI$15000,$AL14+BF$2)) -> 229.95 | BG14: 1000 | CQ14: MISO_W | CV14: 700 | CW14: 2300 | CZ14: 3800 | DB14: 1629 | DC14: 2800 | DJ14: 90 | DM14: 773 | DP14: 3200 | DX14: 0 | EQ14: IESO_2_NYISO_A-F | ER14: 597.7507606
A15: HQ_IESO_2_IESO | B15: HQ_IESO | C15: IESO | D15: 0 | E15: 0 | F15: 0 | G15: =VLOOKUP($A15,Transmission!$E$5:$L$15000,8,0) -> 99999 | H15: =VLOOKUP($A15,Transmission!$AA$5:$AH$15000,8,0) -> 99999 | I15: =MATCH($H$1&$A15,Transmission!$C$5:$C$15000,0) -> 5341 | J15: =IF(ISNA($I15),0,INDEX(Transmission!$M$5:$M$15000,$I15+J$2)) -> 1793.67 | K15: =IF(ISNA($I15),0,INDEX(Transmission!$M$5:$M$15000,$I15+K$2)) -> 1733.43 | L15: =IF(ISNA($I15),0,INDEX(Transmission!$M$5:$M$15000,$I15+L$2)) -> 1647.28 | M15: =IF(ISNA($I15),0,INDEX(Transmission!$M$5:$M$15000,$I15+M$2)) -> 1591.87 | N15: =IF(ISNA($I15),0,INDEX(Transmission!$M$5:$M$15000,$I15+N$2)) -> 1550.19 | O15: =IF(ISNA($I15),0,INDEX(Transmission!$M$5:$M$15000,$I15+O$2)) -> 1516.2 | P15: =IF(ISNA($I15),0,INDEX(Transmission!$M$5:$M$15000,$I15+P$2)) -> 1473.32 | Q15: =IF(ISNA($I15),0,INDEX(Transmission!$M$5:$M$15000,$I15+Q$2)) -> 1426.29 | R15: =IF(ISNA($I15),0,INDEX(Transmission!$M$5:$M$15000,$I15+R$2)) -> 1375.09 | S15: =IF(ISNA($I15),0,INDEX(Transmission!$M$5:$M$15000,$I15+S$2)) -> 853.96 | T15: =IF(ISNA($I15),0,INDEX(Transmission!$M$5:$M$15000,$I15+T$2)) -> 1466.17 | U15: =IF(ISNA($I15),0,INDEX(Transmission!$M$5:$M$15000,$I15+U$2)) -> 1494.85 | V15: =IF(ISNA($I15),0,INDEX(Transmission!$M$5:$M$15000,$I15+V$2)) -> 1460.56 | W15: =IF(ISNA($I15),0,INDEX(Transmission!$M$5:$M$15000,$I15+W$2)) -> 1397.9 | X15: =IF(ISNA($I15),0,INDEX(Transmission!$M$5:$M$15000,$I15+X$2)) -> 917.14 | Y15: =IF(ISNA($I15),0,INDEX(Transmission!$M$5:$M$15000,$I15+Y$2)) -> 1630.58 | Z15: =IF(ISNA($I15),0,INDEX(Transmission!$M$5:$M$15000,$I15+Z$2)) -> 1596.85 | AA15: =IF(ISNA($I15),0,INDEX(Transmission!$M$5:$M$15000,$I15+AA$2)) -> 1558 | AB15: =IF(ISNA($I15),0,INDEX(Transmission!$M$5:$M$15000,$I15+AB$2)) -> 1488.73 | AC15: =IF(ISNA($I15),0,INDEX(Transmission!$M$5:$M$15000,$I15+AC$2)) -> 1007.87 | AD15: 1793.67 | AE15: 1.25235783 | AF15: 1.25235783 | AH15: 99999 | AL15: =MATCH("2030"&$A15,Transmission!$Y$5:$Y$15000,0) -> 5361 | AM15: =IF(ISNA($AL15),0,INDEX(Transmission!$AI$5:$AI$15000,$AL15+AM$2)) -> 400 | AN15: =IF(ISNA($AL15),0,INDEX(Transmission!$AI$5:$AI$15000,$AL15+AN$2)) -> 400 | AO15: =IF(ISNA($AL15),0,INDEX(Transmission!$AI$5:$AI$15000,$AL15+AO$2)) -> 400 | AP15: =IF(ISNA($AL15),0,INDEX(Transmission!$AI$5:$AI$15000,$AL15+AP$2)) -> 400 | AQ15: =IF(ISNA($AL15),0,INDEX(Transmission!$AI$5:$AI$15000,$AL15+AQ$2)) -> 400 | AR15: =IF(ISNA($AL15),0,INDEX(Transmission!$AI$5:$AI$15000,$AL15+AR$2)) -> 400 | AS15: =IF(ISNA($AL15),0,INDEX(Transmission!$AI$5:$AI$15000,$AL15+AS$2)) -> 400 | AT15: =IF(ISNA($AL15),0,INDEX(Transmission!$AI$5:$AI$15000,$AL15+AT$2)) -> 400 | AU15: =IF(ISNA($AL15),0,INDEX(Transmission!$AI$5:$AI$15000,$AL15+AU$2)) -> 400 | AV15: =IF(ISNA($AL15),0,INDEX(Transmission!$AI$5:$AI$15000,$AL15+AV$2)) -> 12.04 | AW15: =IF(ISNA($AL15),0,INDEX(Transmission!$AI$5:$AI$15000,$AL15+AW$2)) -> 400 | AX15: =IF(ISNA($AL15),0,INDEX(Transmission!$AI$5:$AI$15000,$AL15+AX$2)) -> 400 | AY15: =IF(ISNA($AL15),0,INDEX(Transmission!$AI$5:$AI$15000,$AL15+AY$2)) -> 400 | AZ15: =IF(ISNA($AL15),0,INDEX(Transmission!$AI$5:$AI$15000,$AL15+AZ$2)) -> 400 | BA15: =IF(ISNA($AL15),0,INDEX(Transmission!$AI$5:$AI$15000,$AL15+BA$2)) -> 75.48 | BB15: =IF(ISNA($AL15),0,INDEX(Transmission!$AI$5:$AI$15000,$AL15+BB$2)) -> 400 | BC15: =IF(ISNA($AL15),0,INDEX(Transmission!$AI$5:$AI$15000,$AL15+BC$2)) -> 400 | BD15: =IF(ISNA($AL15),0,INDEX(Transmission!$AI$5:$AI$15000,$AL15+BD$2)) -> 400 | BE15: =IF(ISNA($AL15),0,INDEX(Transmission!$AI$5:$AI$15000,$AL15+BE$2)) -> 400 | BF15: =IF(ISNA($AL15),0,INDEX(Transmission!$AI$5:$AI$15000,$AL15+BF$2)) -> 91.98 | BG15: 400 | CQ15: MISO_WUMS | CY15: 99 | DA15: 1137 | DM15: 1600 | DX15: 0 | EQ15: MAPP_CA_2_IESO | ER15: 0.0001981543442
A16: MARITIMES_2_NEISO | B16: MARITIMES | C16: NEISO | D16: 0 | E16: 0 | F16: 0 | G16: =VLOOKUP($A16,Transmission!$E$5:$L$15000,8,0) -> 99999 | H16: =VLOOKUP($A16,Transmission!$AA$5:$AH$15000,8,0) -> 99999 | I16: =MATCH($H$1&$A16,Transmission!$C$5:$C$15000,0) -> 5561 | J16: =IF(ISNA($I16),0,INDEX(Transmission!$M$5:$M$15000,$I16+J$2)) -> 1807.65 | K16: =IF(ISNA($I16),0,INDEX(Transmission!$M$5:$M$15000,$I16+K$2)) -> 1790.32 | L16: =IF(ISNA($I16),0,INDEX(Transmission!$M$5:$M$15000,$I16+L$2)) -> 1755.79 | M16: =IF(ISNA($I16),0,INDEX(Transmission!$M$5:$M$15000,$I16+M$2)) -> 1726.11 | N16: =IF(ISNA($I16),0,INDEX(Transmission!$M$5:$M$15000,$I16+N$2)) -> 1709.87 | O16: =IF(ISNA($I16),0,INDEX(Transmission!$M$5:$M$15000,$I16+O$2)) -> 1691.66 | P16: =IF(ISNA($I16),0,INDEX(Transmission!$M$5:$M$15000,$I16+P$2)) -> 1670.8 | Q16: =IF(ISNA($I16),0,INDEX(Transmission!$M$5:$M$15000,$I16+Q$2)) -> 1654.39 | R16: =IF(ISNA($I16),0,INDEX(Transmission!$M$5:$M$15000,$I16+R$2)) -> 1634.3 | S16: =IF(ISNA($I16),0,INDEX(Transmission!$M$5:$M$15000,$I16+S$2)) -> 422.73 | T16: =IF(ISNA($I16),0,INDEX(Transmission!$M$5:$M$15000,$I16+T$2)) -> 1661.37 | U16: =IF(ISNA($I16),0,INDEX(Transmission!$M$5:$M$15000,$I16+U$2)) -> 1658.75 | V16: =IF(ISNA($I16),0,INDEX(Transmission!$M$5:$M$15000,$I16+V$2)) -> 1648.43 | W16: =IF(ISNA($I16),0,INDEX(Transmission!$M$5:$M$15000,$I16+W$2)) -> 1630.38 | X16: =IF(ISNA($I16),0,INDEX(Transmission!$M$5:$M$15000,$I16+X$2)) -> 607.1 | Y16: =IF(ISNA($I16),0,INDEX(Transmission!$M$5:$M$15000,$I16+Y$2)) -> 1697.7 | Z16: =IF(ISNA($I16),0,INDEX(Transmission!$M$5:$M$15000,$I16+Z$2)) -> 1683.12 | AA16: =IF(ISNA($I16),0,INDEX(Transmission!$M$5:$M$15000,$I16+AA$2)) -> 1671.96 | AB16: =IF(ISNA($I16),0,INDEX(Transmission!$M$5:$M$15000,$I16+AB$2)) -> 1651.17 | AC16: =IF(ISNA($I16),0,INDEX(Transmission!$M$5:$M$15000,$I16+AC$2)) -> 677.67 | AD16: 1807.65 | AE16: 1.230827227 | AF16: 1.230827227 | AH16: 99999 | AL16: =MATCH("2030"&$A16,Transmission!$Y$5:$Y$15000,0) -> 5581 | AM16: =IF(ISNA($AL16),0,INDEX(Transmission!$AI$5:$AI$15000,$AL16+AM$2)) -> 1400 | AN16: =IF(ISNA($AL16),0,INDEX(Transmission!$AI$5:$AI$15000,$AL16+AN$2)) -> 1400 | AO16: =IF(ISNA($AL16),0,INDEX(Transmission!$AI$5:$AI$15000,$AL16+AO$2)) -> 1400 | AP16: =IF(ISNA($AL16),0,INDEX(Transmission!$AI$5:$AI$15000,$AL16+AP$2)) -> 1400 | AQ16: =IF(ISNA($AL16),0,INDEX(Transmission!$AI$5:$AI$15000,$AL16+AQ$2)) -> 1400 | AR16: =IF(ISNA($AL16),0,INDEX(Transmission!$AI$5:$AI$15000,$AL16+AR$2)) -> 1400 | AS16: =IF(ISNA($AL16),0,INDEX(Transmission!$AI$5:$AI$15000,$AL16+AS$2)) -> 1400 | AT16: =IF(ISNA($AL16),0,INDEX(Transmission!$AI$5:$AI$15000,$AL16+AT$2)) -> 1400 | AU16: =IF(ISNA($AL16),0,INDEX(Transmission!$AI$5:$AI$15000,$AL16+AU$2)) -> 1400 | AV16: =IF(ISNA($AL16),0,INDEX(Transmission!$AI$5:$AI$15000,$AL16+AV$2)) -> 236.13 | AW16: =IF(ISNA($AL16),0,INDEX(Transmission!$AI$5:$AI$15000,$AL16+AW$2)) -> 1400 | AX16: =IF(ISNA($AL16),0,INDEX(Transmission!$AI$5:$AI$15000,$AL16+AX$2)) -> 1400 | AY16: =IF(ISNA($AL16),0,INDEX(Transmission!$AI$5:$AI$15000,$AL16+AY$2)) -> 1400 | AZ16: =IF(ISNA($AL16),0,INDEX(Transmission!$AI$5:$AI$15000,$AL16+AZ$2)) -> 1400 | BA16: =IF(ISNA($AL16),0,INDEX(Transmission!$AI$5:$AI$15000,$AL16+BA$2)) -> 426.43 | BB16: =IF(ISNA($AL16),0,INDEX(Transmission!$AI$5:$AI$15000,$AL16+BB$2)) -> 1400 | BC16: =IF(ISNA($AL16),0,INDEX(Transmission!$AI$5:$AI$15000,$AL16+BC$2)) -> 1400 | BD16: =IF(ISNA($AL16),0,INDEX(Transmission!$AI$5:$AI$15000,$AL16+BD$2)) -> 1400 | BE16: =IF(ISNA($AL16),0,INDEX(Transmission!$AI$5:$AI$15000,$AL16+BE$2)) -> 1400 | BF16: =IF(ISNA($AL16),0,INDEX(Transmission!$AI$5:$AI$15000,$AL16+BF$2)) -> 475.94 | BG16: 1400 | CQ16: NE | CW16: 1600 | DA16: 1600 | DN16: 310 | DP16: 1800 | DX16: 0 | EQ16: MAPP_CA_2_MAPP_US | ER16: 0.000201198303
A17: MAPP_CA_2_MAPP_US | B17: MAPP_CA | C17: MAPP_US | D17: 4 | E17: 3 | F17: 7 | G17: =VLOOKUP($A17,Transmission!$E$5:$L$15000,8,0) -> 372 | H17: =VLOOKUP($A17,Transmission!$AA$5:$AH$15000,8,0) -> 372 | I17: =MATCH($H$1&$A17,Transmission!$C$5:$C$15000,0) -> 5461 | J17: =IF(ISNA($I17),0,INDEX(Transmission!$M$5:$M$15000,$I17+J$2)) -> 372 | K17: =IF(ISNA($I17),0,INDEX(Transmission!$M$5:$M$15000,$I17+K$2)) -> 372 | L17: =IF(ISNA($I17),0,INDEX(Transmission!$M$5:$M$15000,$I17+L$2)) -> 372 | M17: =IF(ISNA($I17),0,INDEX(Transmission!$M$5:$M$15000,$I17+M$2)) -> 372 | N17: =IF(ISNA($I17),0,INDEX(Transmission!$M$5:$M$15000,$I17+N$2)) -> 372 | O17: =IF(ISNA($I17),0,INDEX(Transmission!$M$5:$M$15000,$I17+O$2)) -> 372 | P17: =IF(ISNA($I17),0,INDEX(Transmission!$M$5:$M$15000,$I17+P$2)) -> 372 | Q17: =IF(ISNA($I17),0,INDEX(Transmission!$M$5:$M$15000,$I17+Q$2)) -> 0 | R17: =IF(ISNA($I17),0,INDEX(Transmission!$M$5:$M$15000,$I17+R$2)) -> 0 | S17: =IF(ISNA($I17),0,INDEX(Transmission!$M$5:$M$15000,$I17+S$2)) -> 0 | T17: =IF(ISNA($I17),0,INDEX(Transmission!$M$5:$M$15000,$I17+T$2)) -> 372 | U17: =IF(ISNA($I17),0,INDEX(Transmission!$M$5:$M$15000,$I17+U$2)) -> 372 | V17: =IF(ISNA($I17),0,INDEX(Transmission!$M$5:$M$15000,$I17+V$2)) -> 372 | W17: =IF(ISNA($I17),0,INDEX(Transmission!$M$5:$M$15000,$I17+W$2)) -> 0 | X17: =IF(ISNA($I17),0,INDEX(Transmission!$M$5:$M$15000,$I17+X$2)) -> 0 | Y17: =IF(ISNA($I17),0,INDEX(Transmission!$M$5:$M$15000,$I17+Y$2)) -> 0 | Z17: =IF(ISNA($I17),0,INDEX(Transmission!$M$5:$M$15000,$I17+Z$2)) -> 0 | AA17: =IF(ISNA($I17),0,INDEX(Transmission!$M$5:$M$15000,$I17+AA$2)) -> 124.27 | AB17: =IF(ISNA($I17),0,INDEX(Transmission!$M$5:$M$15000,$I17+AB$2)) -> 148.28 | AC17: =IF(ISNA($I17),0,INDEX(Transmission!$M$5:$M$15000,$I17+AC$2)) -> 0 | AD17: 372 | AE17: 0.09969452055 | AF17: 0.09969452055 | AG17: 0.04074143836 | AH17: 372 | AI17: 165 | AJ17: 165 | AL17: =MATCH("2030"&$A17,Transmission!$Y$5:$Y$15000,0) -> 5481 | AM17: =IF(ISNA($AL17),0,INDEX(Transmission!$AI$5:$AI$15000,$AL17+AM$2)) -> 1.05 | AN17: =IF(ISNA($AL17),0,INDEX(Transmission!$AI$5:$AI$15000,$AL17+AN$2)) -> 0 | AO17: =IF(ISNA($AL17),0,INDEX(Transmission!$AI$5:$AI$15000,$AL17+AO$2)) -> 0 | AP17: =IF(ISNA($AL17),0,INDEX(Transmission!$AI$5:$AI$15000,$AL17+AP$2)) -> 220.15 | AQ17: =IF(ISNA($AL17),0,INDEX(Transmission!$AI$5:$AI$15000,$AL17+AQ$2)) -> 299.88 | AR17: =IF(ISNA($AL17),0,INDEX(Transmission!$AI$5:$AI$15000,$AL17+AR$2)) -> 372 | AS17: =IF(ISNA($AL17),0,INDEX(Transmission!$AI$5:$AI$15000,$AL17+AS$2)) -> 0 | AT17: =IF(ISNA($AL17),0,INDEX(Transmission!$AI$5:$AI$15000,$AL17+AT$2)) -> 0 | AU17: =IF(ISNA($AL17),0,INDEX(Transmission!$AI$5:$AI$15000,$AL17+AU$2)) -> 0 | AV17: =IF(ISNA($AL17),0,INDEX(Transmission!$AI$5:$AI$15000,$AL17+AV$2)) -> 0 | AW17: =IF(ISNA($AL17),0,INDEX(Transmission!$AI$5:$AI$15000,$AL17+AW$2)) -> 372 | AX17: =IF(ISNA($AL17),0,INDEX(Transmission!$AI$5:$AI$15000,$AL17+AX$2)) -> 0 | AY17: =IF(ISNA($AL17),0,INDEX(Transmission!$AI$5:$AI$15000,$AL17+AY$2)) -> 0 | AZ17: =IF(ISNA($AL17),0,INDEX(Transmission!$AI$5:$AI$15000,$AL17+AZ$2)) -> 0 | BA17: =IF(ISNA($AL17),0,INDEX(Transmission!$AI$5:$AI$15000,$AL17+BA$2)) -> 0 | BB17: =IF(ISNA($AL17),0,INDEX(Transmission!$AI$5:$AI$15000,$AL17+BB$2)) -> 0 | BC17: =IF(ISNA($AL17),0,INDEX(Transmission!$AI$5:$AI$15000,$AL17+BC$2)) -> 0 | BD17: =IF(ISNA($AL17),0,INDEX(Transmission!$AI$5:$AI$15000,$AL17+BD$2)) -> 0 | BE17: =IF(ISNA($AL17),0,INDEX(Transmission!$AI$5:$AI$15000,$AL17+BE$2)) -> 0 | BF17: =IF(ISNA($AL17),0,INDEX(Transmission!$AI$5:$AI$15000,$AL17+BF$2)) -> 0 | BG17: 372 | BI17: 372 | BJ17: 0 | BK17: 0 | BL17: 0.81 | BM17: 0.000395 | BN17: 0.0005011866442 | BO17: 0 | BP17: 0.0005 | BQ17: 0.0001316666667 | BR17: 0 | BS17: 0 | BT17: 4.000000001e-05 | BU17: 0 | BV17: 0.0001316666667 | BW17: 0 | BX17: 0 | BY17: 0.0001316666667 | BZ17: 0 | CA17: 0 | CB17: 0 | CC17: 0 | CD17: 0.00024 | CE17: 0 | CF17: 0.0001316666667 | CG17: 0.00025 | CH17: 92.91 | CI17: 0.0001316666667 | CK17: 0.0001316666667 | CL17: 0.0002335209812 | CN17: 372 | CO17: 165 | CQ17: NEISO | DG17: 600 | DH17: 600 | DI17: 430 | DX17: 1 | DY17: MAPP_CA_2_MAPP_US | DZ17: 0 | EA17: 0 | EB17: 0 | EC17: 0 | ED17: 0 | EE17: 0 | EF17: 0 | EG17: 0 | EH17: 0 | EI17: 0 | EJ17: 0 | EK17: 0 | EL17: 0.0001316666667 | EM17: 0.0002255850436 | EN17: 0.000201198303 | EO17: 0.0002401876479 | EQ17: MAPP_CA_2_MISO_W | ER17: 0.0001935976236
A18: MAPP_CA_2_MISO_W | B18: MAPP_CA | C18: MISO_W | D18: 0 | E18: 0 | F18: 0 | G18: =VLOOKUP($A18,Transmission!$E$5:$L$15000,8,0) -> 1970 | H18: =VLOOKUP($A18,Transmission!$AA$5:$AH$15000,8,0) -> 1970 | I18: =MATCH($H$1&$A18,Transmission!$C$5:$C$15000,0) -> 5481 | J18: =IF(ISNA($I18),0,INDEX(Transmission!$M$5:$M$15000,$I18+J$2)) -> 1970 | K18: =IF(ISNA($I18),0,INDEX(Transmission!$M$5:$M$15000,$I18+K$2)) -> 1970 | L18: =IF(ISNA($I18),0,INDEX(Transmission!$M$5:$M$15000,$I18+L$2)) -> 1970 | M18: =IF(ISNA($I18),0,INDEX(Transmission!$M$5:$M$15000,$I18+M$2)) -> 1970 | N18: =IF(ISNA($I18),0,INDEX(Transmission!$M$5:$M$15000,$I18+N$2)) -> 1970 | O18: =IF(ISNA($I18),0,INDEX(Transmission!$M$5:$M$15000,$I18+O$2)) -> 1970 | P18: =IF(ISNA($I18),0,INDEX(Transmission!$M$5:$M$15000,$I18+P$2)) -> 1970 | Q18: =IF(ISNA($I18),0,INDEX(Transmission!$M$5:$M$15000,$I18+Q$2)) -> 1970 | R18: =IF(ISNA($I18),0,INDEX(Transmission!$M$5:$M$15000,$I18+R$2)) -> 1970 | S18: =IF(ISNA($I18),0,INDEX(Transmission!$M$5:$M$15000,$I18+S$2)) -> 1540.67 | T18: =IF(ISNA($I18),0,INDEX(Transmission!$M$5:$M$15000,$I18+T$2)) -> 1970 | U18: =IF(ISNA($I18),0,INDEX(Transmission!$M$5:$M$15000,$I18+U$2)) -> 1970 | V18: =IF(ISNA($I18),0,INDEX(Transmission!$M$5:$M$15000,$I18+V$2)) -> 1970 | W18: =IF(ISNA($I18),0,INDEX(Transmission!$M$5:$M$15000,$I18+W$2)) -> 1970 | X18: =IF(ISNA($I18),0,INDEX(Transmission!$M$5:$M$15000,$I18+X$2)) -> 0 | Y18: =IF(ISNA($I18),0,INDEX(Transmission!$M$5:$M$15000,$I18+Y$2)) -> 0 | Z18: =IF(ISNA($I18),0,INDEX(Transmission!$M$5:$M$15000,$I18+Z$2)) -> 285.65 | AA18: =IF(ISNA($I18),0,INDEX(Transmission!$M$5:$M$15000,$I18+AA$2)) -> 1970 | AB18: =IF(ISNA($I18),0,INDEX(Transmission!$M$5:$M$15000,$I18+AB$2)) -> 1970 | AC18: =IF(ISNA($I18),0,INDEX(Transmission!$M$5:$M$15000,$I18+AC$2)) -> 0 | AD18: 1970 | AE18: 1.402493212 | AF18: 1.402493212 | AG18: 0.1728424658 | AH18: 1970 | AI18: 700 | AJ18: 700 | AL18: =MATCH("2030"&$A18,Transmission!$Y$5:$Y$15000,0) -> 5501 | AM18: =IF(ISNA($AL18),0,INDEX(Transmission!$AI$5:$AI$15000,$AL18+AM$2)) -> 1970 | AN18: =IF(ISNA($AL18),0,INDEX(Transmission!$AI$5:$AI$15000,$AL18+AN$2)) -> 1969.99 | AO18: =IF(ISNA($AL18),0,INDEX(Transmission!$AI$5:$AI$15000,$AL18+AO$2)) -> 1970 | AP18: =IF(ISNA($AL18),0,INDEX(Transmission!$AI$5:$AI$15000,$AL18+AP$2)) -> 1970 | AQ18: =IF(ISNA($AL18),0,INDEX(Transmission!$AI$5:$AI$15000,$AL18+AQ$2)) -> 1970 | AR18: =IF(ISNA($AL18),0,INDEX(Transmission!$AI$5:$AI$15000,$AL18+AR$2)) -> 1970 | AS18: =IF(ISNA($AL18),0,INDEX(Transmission!$AI$5:$AI$15000,$AL18+AS$2)) -> 1303.62 | AT18: =IF(ISNA($AL18),0,INDEX(Transmission!$AI$5:$AI$15000,$AL18+AT$2)) -> 1131.81 | AU18: =IF(ISNA($AL18),0,INDEX(Transmission!$AI$5:$AI$15000,$AL18+AU$2)) -> 0 | AV18: =IF(ISNA($AL18),0,INDEX(Transmission!$AI$5:$AI$15000,$AL18+AV$2)) -> 0 | AW18: =IF(ISNA($AL18),0,INDEX(Transmission!$AI$5:$AI$15000,$AL18+AW$2)) -> 1970 | AX18: =IF(ISNA($AL18),0,INDEX(Transmission!$AI$5:$AI$15000,$AL18+AX$2)) -> 1970 | AY18: =IF(ISNA($AL18),0,INDEX(Transmission!$AI$5:$AI$15000,$AL18+AY$2)) -> 1369.67 | AZ18: =IF(ISNA($AL18),0,INDEX(Transmission!$AI$5:$AI$15000,$AL18+AZ$2)) -> 674.03 | BA18: =IF(ISNA($AL18),0,INDEX(Transmission!$AI$5:$AI$15000,$AL18+BA$2)) -> 0 | BB18: =IF(ISNA($AL18),0,INDEX(Transmission!$AI$5:$AI$15000,$AL18+BB$2)) -> 967.72 | BC18: =IF(ISNA($AL18),0,INDEX(Transmission!$AI$5:$AI$15000,$AL18+BC$2)) -> 429.4 | BD18: =IF(ISNA($AL18),0,INDEX(Transmission!$AI$5:$AI$15000,$AL18+BD$2)) -> 0 | BE18: =IF(ISNA($AL18),0,INDEX(Transmission!$AI$5:$AI$15000,$AL18+BE$2)) -> 0 | BF18: =IF(ISNA($AL18),0,INDEX(Transmission!$AI$5:$AI$15000,$AL18+BF$2)) -> 0 | BG18: 1970 | BI18: 1970 | BJ18: 0 | BK18: 0 | BL18: 2215.03 | BM18: 2499.78 | BN18: 0.0003485121836 | BO18: 0 | BP18: 2654.19 | BQ18: 225.6833194 | BR18: 0 | BS18: 0 | BT18: 1453.65 | BU18: 1651.62 | BV18: 0.00118059993 | BW18: 0 | BX18: 1706.51 | BY18: 17.65586407 | BZ18: 0 | CA18: 230.21 | CB18: 0 | CC18: 0 | CD18: 2769.45 | CE18: 3455.1 | CF18: 0.0002253555055 | CG18: 1041.95 | CH18: 729.6 | CI18: 0.0002253555055 | CK18: 0.0002253555055 | CL18: 0.0001316666667 | CN18: 1970 | CO18: 700 | CQ18: NonRTO_Midwest | CX18: 4450 | DR18: 2400 | DU18: 2400 | DX18: 1 | DY18: MAPP_CA_2_MISO_W | DZ18: 0 | EA18: 0 | EB18: 0 | EC18: 1.223066261 | ED18: 225.6833194 | EE18: 0 | EF18: 0 | EG18: 17.65586407 | EH18: 0 | EI18: 0 | EJ18: 0 | EK18: 260.680846 | EL18: 0.0001951185106 | EM18: 0.0002334538152 | EN18: 0.0001935976236 | EO18: 0.000145 | EQ18: MAPP_US_2_MAPP_CA | ER18: 0.0002401876479
A19: MAPP_CA_2_IESO | B19: MAPP_CA | C19: IESO | D19: 5 | E19: 3 | F19: 8 | G19: =VLOOKUP($A19,Transmission!$E$5:$L$15000,8,0) -> 337 | H19: =VLOOKUP($A19,Transmission!$AA$5:$AH$15000,8,0) -> 330 | I19: =MATCH($H$1&$A19,Transmission!$C$5:$C$15000,0) -> 5441 | J19: =IF(ISNA($I19),0,INDEX(Transmission!$M$5:$M$15000,$I19+J$2)) -> 337 | K19: =IF(ISNA($I19),0,INDEX(Transmission!$M$5:$M$15000,$I19+K$2)) -> 337 | L19: =IF(ISNA($I19),0,INDEX(Transmission!$M$5:$M$15000,$I19+L$2)) -> 337 | M19: =IF(ISNA($I19),0,INDEX(Transmission!$M$5:$M$15000,$I19+M$2)) -> 148.76 | N19: =IF(ISNA($I19),0,INDEX(Transmission!$M$5:$M$15000,$I19+N$2)) -> 0 | O19: =IF(ISNA($I19),0,INDEX(Transmission!$M$5:$M$15000,$I19+O$2)) -> 0 | P19: =IF(ISNA($I19),0,INDEX(Transmission!$M$5:$M$15000,$I19+P$2)) -> 0 | Q19: =IF(ISNA($I19),0,INDEX(Transmission!$M$5:$M$15000,$I19+Q$2)) -> 0 | R19: =IF(ISNA($I19),0,INDEX(Transmission!$M$5:$M$15000,$I19+R$2)) -> 0 | S19: =IF(ISNA($I19),0,INDEX(Transmission!$M$5:$M$15000,$I19+S$2)) -> 0 | T19: =IF(ISNA($I19),0,INDEX(Transmission!$M$5:$M$15000,$I19+T$2)) -> 337 | U19: =IF(ISNA($I19),0,INDEX(Transmission!$M$5:$M$15000,$I19+U$2)) -> 289.01 | V19: =IF(ISNA($I19),0,INDEX(Transmission!$M$5:$M$15000,$I19+V$2)) -> 309.93 | W19: =IF(ISNA($I19),0,INDEX(Transmission!$M$5:$M$15000,$I19+W$2)) -> 337 | X19: =IF(ISNA($I19),0,INDEX(Transmission!$M$5:$M$15000,$I19+X$2)) -> 337 | Y19: =IF(ISNA($I19),0,INDEX(Transmission!$M$5:$M$15000,$I19+Y$2)) -> 337 | Z19: =IF(ISNA($I19),0,INDEX(Transmission!$M$5:$M$15000,$I19+Z$2)) -> 337 | AA19: =IF(ISNA($I19),0,INDEX(Transmission!$M$5:$M$15000,$I19+AA$2)) -> 0 | AB19: =IF(ISNA($I19),0,INDEX(Transmission!$M$5:$M$15000,$I19+AB$2)) -> 0 | AC19: =IF(ISNA($I19),0,INDEX(Transmission!$M$5:$M$15000,$I19+AC$2)) -> 337 | AD19: 337 | AE19: 0.1563997717 | AF19: 0.1563997717 | AG19: 0.106310274 | AH19: 337 | AI19: 269 | AJ19: 269 | AL19: =MATCH("2030"&$A19,Transmission!$Y$5:$Y$15000,0) -> 5461 | AM19: =IF(ISNA($AL19),0,INDEX(Transmission!$AI$5:$AI$15000,$AL19+AM$2)) -> 28.09 | AN19: =IF(ISNA($AL19),0,INDEX(Transmission!$AI$5:$AI$15000,$AL19+AN$2)) -> 0 | AO19: =IF(ISNA($AL19),0,INDEX(Transmission!$AI$5:$AI$15000,$AL19+AO$2)) -> 0 | AP19: =IF(ISNA($AL19),0,INDEX(Transmission!$AI$5:$AI$15000,$AL19+AP$2)) -> 0 | AQ19: =IF(ISNA($AL19),0,INDEX(Transmission!$AI$5:$AI$15000,$AL19+AQ$2)) -> 0 | AR19: =IF(ISNA($AL19),0,INDEX(Transmission!$AI$5:$AI$15000,$AL19+AR$2)) -> 0 | AS19: =IF(ISNA($AL19),0,INDEX(Transmission!$AI$5:$AI$15000,$AL19+AS$2)) -> 0 | AT19: =IF(ISNA($AL19),0,INDEX(Transmission!$AI$5:$AI$15000,$AL19+AT$2)) -> 0 | AU19: =IF(ISNA($AL19),0,INDEX(Transmission!$AI$5:$AI$15000,$AL19+AU$2)) -> 0 | AV19: =IF(ISNA($AL19),0,INDEX(Transmission!$AI$5:$AI$15000,$AL19+AV$2)) -> 0 | AW19: =IF(ISNA($AL19),0,INDEX(Transmission!$AI$5:$AI$15000,$AL19+AW$2)) -> 0 | AX19: =IF(ISNA($AL19),0,INDEX(Transmission!$AI$5:$AI$15000,$AL19+AX$2)) -> 0 | AY19: =IF(ISNA($AL19),0,INDEX(Transmission!$AI$5:$AI$15000,$AL19+AY$2)) -> 0 | AZ19: =IF(ISNA($AL19),0,INDEX(Transmission!$AI$5:$AI$15000,$AL19+AZ$2)) -> 0 | BA19: =IF(ISNA($AL19),0,INDEX(Transmission!$AI$5:$AI$15000,$AL19+BA$2)) -> 0 | BB19: =IF(ISNA($AL19),0,INDEX(Transmission!$AI$5:$AI$15000,$AL19+BB$2)) -> 0 | BC19: =IF(ISNA($AL19),0,INDEX(Transmission!$AI$5:$AI$15000,$AL19+BC$2)) -> 0 | BD19: =IF(ISNA($AL19),0,INDEX(Transmission!$AI$5:$AI$15000,$AL19+BD$2)) -> 0 | BE19: =IF(ISNA($AL19),0,INDEX(Transmission!$AI$5:$AI$15000,$AL19+BE$2)) -> 0 | BF19: =IF(ISNA($AL19),0,INDEX(Transmission!$AI$5:$AI$15000,$AL19+BF$2)) -> 0 | BG19: 28.09 | BI19: 330 | BJ19: 0 | BK19: 0 | BL19: 104.1804443 | BM19: 0.000395 | BN19: 0.0002151580923 | BO19: 0 | BP19: 0.000395 | BQ19: 0.0001316666667 | BR19: 0 | BS19: 0 | BT19: 783.55 | BU19: 0 | BV19: 0.0001316666667 | BW19: 0 | BX19: 0 | BY19: 0.0001316666667 | BZ19: 0 | CA19: 0 | CB19: 0 | CC19: 0 | CD19: 0 | CE19: 0 | CF19: 0.0001316666667 | CG19: 4.58 | CH19: 277.83 | CI19: 0.0001316666667 | CK19: 0.0001316666667 | CL19: 7.291999269 | CN19: 330 | CO19: 262 | CQ19: NWPP_Coal | CW19: 150 | DX19: 1 | DY19: MAPP_CA_2_IESO | DZ19: 0 | EA19: 0 | EB19: 0 | EC19: 0 | ED19: 0 | EE19: 0 | EF19: 0 | EG19: 0 | EH19: 0 | EI19: 0 | EJ19: 7.291999269 | EK19: 0 | EL19: 0.0001981543442 | EM19: 0.000365 | EN19: 0.0001981543442 | EO19: 0.000365 | EQ19: MAPP_US_2_MISO_W | ER19: 0.0001943002056
A20: MAPP_US_2_MAPP_CA | B20: MAPP_US | C20: MAPP_CA | D20: 4 | E20: 3 | F20: 7 | G20: =VLOOKUP($A20,Transmission!$E$5:$L$15000,8,0) -> 165 | H20: =VLOOKUP($A20,Transmission!$AA$5:$AH$15000,8,0) -> 165 | I20: =MATCH($H$1&$A20,Transmission!$C$5:$C$15000,0) -> 5501 | J20: =IF(ISNA($I20),0,INDEX(Transmission!$M$5:$M$15000,$I20+J$2)) -> 0 | K20: =IF(ISNA($I20),0,INDEX(Transmission!$M$5:$M$15000,$I20+K$2)) -> 0 | L20: =IF(ISNA($I20),0,INDEX(Transmission!$M$5:$M$15000,$I20+L$2)) -> 0 | M20: =IF(ISNA($I20),0,INDEX(Transmission!$M$5:$M$15000,$I20+M$2)) -> 0 | N20: =IF(ISNA($I20),0,INDEX(Transmission!$M$5:$M$15000,$I20+N$2)) -> 0 | O20: =IF(ISNA($I20),0,INDEX(Transmission!$M$5:$M$15000,$I20+O$2)) -> 0 | P20: =IF(ISNA($I20),0,INDEX(Transmission!$M$5:$M$15000,$I20+P$2)) -> 0 | Q20: =IF(ISNA($I20),0,INDEX(Transmission!$M$5:$M$15000,$I20+Q$2)) -> 0 | R20: =IF(ISNA($I20),0,INDEX(Transmission!$M$5:$M$15000,$I20+R$2)) -> 0 | S20: =IF(ISNA($I20),0,INDEX(Transmission!$M$5:$M$15000,$I20+S$2)) -> 0 | T20: =IF(ISNA($I20),0,INDEX(Transmission!$M$5:$M$15000,$I20+T$2)) -> 0 | U20: =IF(ISNA($I20),0,INDEX(Transmission!$M$5:$M$15000,$I20+U$2)) -> 0 | V20: =IF(ISNA($I20),0,INDEX(Transmission!$M$5:$M$15000,$I20+V$2)) -> 0 | W20: =IF(ISNA($I20),0,INDEX(Transmission!$M$5:$M$15000,$I20+W$2)) -> 0 | X20: =IF(ISNA($I20),0,INDEX(Transmission!$M$5:$M$15000,$I20+X$2)) -> 165 | Y20: =IF(ISNA($I20),0,INDEX(Transmission!$M$5:$M$15000,$I20+Y$2)) -> 165 | Z20: =IF(ISNA($I20),0,INDEX(Transmission!$M$5:$M$15000,$I20+Z$2)) -> 0 | AA20: =IF(ISNA($I20),0,INDEX(Transmission!$M$5:$M$15000,$I20+AA$2)) -> 0 | AB20: =IF(ISNA($I20),0,INDEX(Transmission!$M$5:$M$15000,$I20+AB$2)) -> 0 | AC20: =IF(ISNA($I20),0,INDEX(Transmission!$M$5:$M$15000,$I20+AC$2)) -> 165 | AD20: 165 | AE20: 0.04074143836 | AF20: 0.04074143836 | AG20: 0.09969452055 | AH20: 165 | AI20: 372 | AJ20: 372 | AL20: =MATCH("2030"&$A20,Transmission!$Y$5:$Y$15000,0) -> 5521 | AM20: =IF(ISNA($AL20),0,INDEX(Transmission!$AI$5:$AI$15000,$AL20+AM$2)) -> 0 | AN20: =IF(ISNA($AL20),0,INDEX(Transmission!$AI$5:$AI$15000,$AL20+AN$2)) -> 0 | AO20: =IF(ISNA($AL20),0,INDEX(Transmission!$AI$5:$AI$15000,$AL20+AO$2)) -> 0 | AP20: =IF(ISNA($AL20),0,INDEX(Transmission!$AI$5:$AI$15000,$AL20+AP$2)) -> 0 | AQ20: =IF(ISNA($AL20),0,INDEX(Transmission!$AI$5:$AI$15000,$AL20+AQ$2)) -> 0 | AR20: =IF(ISNA($AL20),0,INDEX(Transmission!$AI$5:$AI$15000,$AL20+AR$2)) -> 0 | AS20: =IF(ISNA($AL20),0,INDEX(Transmission!$AI$5:$AI$15000,$AL20+AS$2)) -> 0 | AT20: =IF(ISNA($AL20),0,INDEX(Transmission!$AI$5:$AI$15000,$AL20+AT$2)) -> 0 | AU20: =IF(ISNA($AL20),0,INDEX(Transmission!$AI$5:$AI$15000,$AL20+AU$2)) -> 0 | AV20: =IF(ISNA($AL20),0,INDEX(Transmission!$AI$5:$AI$15000,$AL20+AV$2)) -> 0 | AW20: =IF(ISNA($AL20),0,INDEX(Transmission!$AI$5:$AI$15000,$AL20+AW$2)) -> 0 | AX20: =IF(ISNA($AL20),0,INDEX(Transmission!$AI$5:$AI$15000,$AL20+AX$2)) -> 0 | AY20: =IF(ISNA($AL20),0,INDEX(Transmission!$AI$5:$AI$15000,$AL20+AY$2)) -> 0 | AZ20: =IF(ISNA($AL20),0,INDEX(Transmission!$AI$5:$AI$15000,$AL20+AZ$2)) -> 0 | BA20: =IF(ISNA($AL20),0,INDEX(Transmission!$AI$5:$AI$15000,$AL20+BA$2)) -> 0 | BB20: =IF(ISNA($AL20),0,INDEX(Transmission!$AI$5:$AI$15000,$AL20+BB$2)) -> 0 | BC20: =IF(ISNA($AL20),0,INDEX(Transmission!$AI$5:$AI$15000,$AL20+BC$2)) -> 0 | BD20: =IF(ISNA($AL20),0,INDEX(Transmission!$AI$5:$AI$15000,$AL20+BD$2)) -> 0 | BE20: =IF(ISNA($AL20),0,INDEX(Transmission!$AI$5:$AI$15000,$AL20+BE$2)) -> 0 | BF20: =IF(ISNA($AL20),0,INDEX(Transmission!$AI$5:$AI$15000,$AL20+BF$2)) -> 165 | BG20: 165 | BI20: 165 | BJ20: 0 | BK20: 0 | BL20: 62.4245488 | BM20: 96.64 | BN20: 0.000238171004 | BO20: 0 | BP20: 804.38 | BQ20: 0.0002995560364 | BR20: 0 | BS20: 0 | BT20: 338.06 | BU20: 707.14 | BV20: 64.88460308 | BW20: 0 | BX20: 641.74 | BY20: 0.0002315897799 | BZ20: 0 | CA20: 142.27 | CB20: 0 | CC20: 0 | CD20: 2152.02 | CE20: 666.79 | CF20: 0.0002335209812 | CG20: 398.63 | CH20: 1504.04 | CI20: 0.0002335209812 | CK20: 0.0002335209812 | CL20: 0.0001316666667 | CN20: 165 | CO20: 372 | CQ20: NYISO_A-F | DD20: 600 | DH20: 4250 | DJ20: 1600 | DL20: 1000 | DX20: 1 | DY20: MAPP_US_2_MAPP_CA | DZ20: 0 | EA20: 0 | EB20: 0 | EC20: 0 | ED20: 0 | EE20: 0 | EF20: 64.88460308 | EG20: 0 | EH20: 0 | EI20: 0 | EJ20: 0 | EK20: 0 | EL20: 0.0002255850436 | EM20: 0.0001316666667 | EN20: 0.0002401876479 | EO20: 0.000201198303 | EQ20: MAPP_US_2_NE | ER20: 0.0002121941444
A21: MAPP_US_2_MISO_W | B21: MAPP_US | C21: MISO_W | D21: 4 | E21: 3 | F21: 7 | G21: =VLOOKUP($A21,Transmission!$E$5:$L$15000,8,0) -> 2635 | H21: =VLOOKUP($A21,Transmission!$AA$5:$AH$15000,8,0) -> 2635 | I21: =MATCH($H$1&$A21,Transmission!$C$5:$C$15000,0) -> 5521 | J21: =IF(ISNA($I21),0,INDEX(Transmission!$M$5:$M$15000,$I21+J$2)) -> 1439.96 | K21: =IF(ISNA($I21),0,INDEX(Transmission!$M$5:$M$15000,$I21+K$2)) -> 2103.28 | L21: =IF(ISNA($I21),0,INDEX(Transmission!$M$5:$M$15000,$I21+L$2)) -> 1615.21 | M21: =IF(ISNA($I21),0,INDEX(Transmission!$M$5:$M$15000,$I21+M$2)) -> 1475.52 | N21: =IF(ISNA($I21),0,INDEX(Transmission!$M$5:$M$15000,$I21+N$2)) -> 2063.76 | O21: =IF(ISNA($I21),0,INDEX(Transmission!$M$5:$M$15000,$I21+O$2)) -> 1706.23 | P21: =IF(ISNA($I21),0,INDEX(Transmission!$M$5:$M$15000,$I21+P$2)) -> 2040.9 | Q21: =IF(ISNA($I21),0,INDEX(Transmission!$M$5:$M$15000,$I21+Q$2)) -> 2245.61 | R21: =IF(ISNA($I21),0,INDEX(Transmission!$M$5:$M$15000,$I21+R$2)) -> 1649.86 | S21: =IF(ISNA($I21),0,INDEX(Transmission!$M$5:$M$15000,$I21+S$2)) -> 1749.66 | T21: =IF(ISNA($I21),0,INDEX(Transmission!$M$5:$M$15000,$I21+T$2)) -> 2377.94 | U21: =IF(ISNA($I21),0,INDEX(Transmission!$M$5:$M$15000,$I21+U$2)) -> 2635 | V21: =IF(ISNA($I21),0,INDEX(Transmission!$M$5:$M$15000,$I21+V$2)) -> 2635 | W21: =IF(ISNA($I21),0,INDEX(Transmission!$M$5:$M$15000,$I21+W$2)) -> 2513.71 | X21: =IF(ISNA($I21),0,INDEX(Transmission!$M$5:$M$15000,$I21+X$2)) -> 2405.09 | Y21: =IF(ISNA($I21),0,INDEX(Transmission!$M$5:$M$15000,$I21+Y$2)) -> 2075.31 | Z21: =IF(ISNA($I21),0,INDEX(Transmission!$M$5:$M$15000,$I21+Z$2)) -> 1681.45 | AA21: =IF(ISNA($I21),0,INDEX(Transmission!$M$5:$M$15000,$I21+AA$2)) -> 2508.7 | AB21: =IF(ISNA($I21),0,INDEX(Transmission!$M$5:$M$15000,$I21+AB$2)) -> 1942.49 | AC21: =IF(ISNA($I21),0,INDEX(Transmission!$M$5:$M$15000,$I21+AC$2)) -> 1891.49 | AD21: 2635 | AE21: 2.100721911 | AF21: 2.100721911 | AG21: 0 | AH21: 2635 | AJ21: 0 | AL21: =MATCH("2030"&$A21,Transmission!$Y$5:$Y$15000,0) -> 5541 | AM21: =IF(ISNA($AL21),0,INDEX(Transmission!$AI$5:$AI$15000,$AL21+AM$2)) -> 128.09 | AN21: =IF(ISNA($AL21),0,INDEX(Transmission!$AI$5:$AI$15000,$AL21+AN$2)) -> 0 | AO21: =IF(ISNA($AL21),0,INDEX(Transmission!$AI$5:$AI$15000,$AL21+AO$2)) -> 0 | AP21: =IF(ISNA($AL21),0,INDEX(Transmission!$AI$5:$AI$15000,$AL21+AP$2)) -> 0 | AQ21: =IF(ISNA($AL21),0,INDEX(Transmission!$AI$5:$AI$15000,$AL21+AQ$2)) -> 0 | AR21: =IF(ISNA($AL21),0,INDEX(Transmission!$AI$5:$AI$15000,$AL21+AR$2)) -> 0 | AS21: =IF(ISNA($AL21),0,INDEX(Transmission!$AI$5:$AI$15000,$AL21+AS$2)) -> 0 | AT21: =IF(ISNA($AL21),0,INDEX(Transmission!$AI$5:$AI$15000,$AL21+AT$2)) -> 0 | AU21: =IF(ISNA($AL21),0,INDEX(Transmission!$AI$5:$AI$15000,$AL21+AU$2)) -> 0 | AV21: =IF(ISNA($AL21),0,INDEX(Transmission!$AI$5:$AI$15000,$AL21+AV$2)) -> 0 | AW21: =IF(ISNA($AL21),0,INDEX(Transmission!$AI$5:$AI$15000,$AL21+AW$2)) -> 0 | AX21: =IF(ISNA($AL21),0,INDEX(Transmission!$AI$5:$AI$15000,$AL21+AX$2)) -> 873.15 | AY21: =IF(ISNA($AL21),0,INDEX(Transmission!$AI$5:$AI$15000,$AL21+AY$2)) -> 0 | AZ21: =IF(ISNA($AL21),0,INDEX(Transmission!$AI$5:$AI$15000,$AL21+AZ$2)) -> 0 | BA21: =IF(ISNA($AL21),0,INDEX(Transmission!$AI$5:$AI$15000,$AL21+BA$2)) -> 0 | BB21: =IF(ISNA($AL21),0,INDEX(Transmission!$AI$5:$AI$15000,$AL21+BB$2)) -> 230.69 | BC21: =IF(ISNA($AL21),0,INDEX(Transmission!$AI$5:$AI$15000,$AL21+BC$2)) -> 689 | BD21: =IF(ISNA($AL21),0,INDEX(Transmission!$AI$5:$AI$15000,$AL21+BD$2)) -> 0 | BE21: =IF(ISNA($AL21),0,INDEX(Transmission!$AI$5:$AI$15000,$AL21+BE$2)) -> 0 | BF21: =IF(ISNA($AL21),0,INDEX(Transmission!$AI$5:$AI$15000,$AL21+BF$2)) -> 0 | BG21: 873.15 | BI21: 2635 | BJ21: 0 | BK21: 0 | BL21: 1104.84 | BM21: 867.2 | BN21: 0.0003497113248 | BO21: 0 | BP21: 1035.89 | BQ21: 0.0001907188353 | BR21: 0 | BS21: 0 | BT21: 2023.63 | BU21: 3383.13 | BV21: 0.0002594360433 | BW21: 0 | BX21: 1883.38 | BY21: 0.0002033407481 | BZ21: 0 | CA21: 0 | CB21: 0 | CC21: 0 | CD21: 2142.17 | CE21: 3227.8 | CF21: 0.0002219142245 | CG21: 1302.59 | CH21: 1535.18 | CI21: 0.0002219142245 | CK21: 0.0002219142245 | CL21: 0.0001316666667 | CN21: 2635 | CO21: 2300 | CQ21: NYISO_G-I | DD21: 600 | DG21: 1999 | DI21: 6130 | DK21: 1500 | DX21: 1 | DY21: MAPP_US_2_MISO_W | DZ21: 0 | EA21: 0 | EB21: 0 | EC21: 0 | ED21: 0 | EE21: 0 | EF21: 0 | EG21: 0 | EH21: 0 | EI21: 0 | EJ21: 0 | EK21: 0 | EL21: 0.000195563544 | EM21: 0.0001316666667 | EN21: 0.0001943002056 | EO21: 0.0001316666667 | EQ21: MISO_IN_2_MISO_MI | ER21: 0.0001316666667
A22: MAPP_US_2_NE | B22: MAPP_US | C22: NE | D22: 4 | E22: 3 | F22: 7 | G22: =VLOOKUP($A22,Transmission!$E$5:$L$15000,8,0) -> 2000 | H22: =VLOOKUP($A22,Transmission!$AA$5:$AH$15000,8,0) -> 2000 | I22: =MATCH($H$1&$A22,Transmission!$C$5:$C$15000,0) -> 5541 | J22: =IF(ISNA($I22),0,INDEX(Transmission!$M$5:$M$15000,$I22+J$2)) -> 0 | K22: =IF(ISNA($I22),0,INDEX(Transmission!$M$5:$M$15000,$I22+K$2)) -> 0 | L22: =IF(ISNA($I22),0,INDEX(Transmission!$M$5:$M$15000,$I22+L$2)) -> 48.97 | M22: =IF(ISNA($I22),0,INDEX(Transmission!$M$5:$M$15000,$I22+M$2)) -> 707.67 | N22: =IF(ISNA($I22),0,INDEX(Transmission!$M$5:$M$15000,$I22+N$2)) -> 0 | O22: =IF(ISNA($I22),0,INDEX(Transmission!$M$5:$M$15000,$I22+O$2)) -> 0 | P22: =IF(ISNA($I22),0,INDEX(Transmission!$M$5:$M$15000,$I22+P$2)) -> 0 | Q22: =IF(ISNA($I22),0,INDEX(Transmission!$M$5:$M$15000,$I22+Q$2)) -> 0 | R22: =IF(ISNA($I22),0,INDEX(Transmission!$M$5:$M$15000,$I22+R$2)) -> 0 | S22: =IF(ISNA($I22),0,INDEX(Transmission!$M$5:$M$15000,$I22+S$2)) -> 0 | T22: =IF(ISNA($I22),0,INDEX(Transmission!$M$5:$M$15000,$I22+T$2)) -> 0 | U22: =IF(ISNA($I22),0,INDEX(Transmission!$M$5:$M$15000,$I22+U$2)) -> 0 | V22: =IF(ISNA($I22),0,INDEX(Transmission!$M$5:$M$15000,$I22+V$2)) -> 245.08 | W22: =IF(ISNA($I22),0,INDEX(Transmission!$M$5:$M$15000,$I22+W$2)) -> 0 | X22: =IF(ISNA($I22),0,INDEX(Transmission!$M$5:$M$15000,$I22+X$2)) -> 0 | Y22: =IF(ISNA($I22),0,INDEX(Transmission!$M$5:$M$15000,$I22+Y$2)) -> 0 | Z22: =IF(ISNA($I22),0,INDEX(Transmission!$M$5:$M$15000,$I22+Z$2)) -> 0 | AA22: =IF(ISNA($I22),0,INDEX(Transmission!$M$5:$M$15000,$I22+AA$2)) -> 0 | AB22: =IF(ISNA($I22),0,INDEX(Transmission!$M$5:$M$15000,$I22+AB$2)) -> 0 | AC22: =IF(ISNA($I22),0,INDEX(Transmission!$M$5:$M$15000,$I22+AC$2)) -> 0 | AD22: 707.67 | AE22: 0.02528398973 | AF22: 0.02528398973 | AG22: 0.2657188744 | AH22: 2000 | AI22: 1600 | AJ22: 1053.54 | AL22: =MATCH("2030"&$A22,Transmission!$Y$5:$Y$15000,0) -> 5561 | AM22: =IF(ISNA($AL22),0,INDEX(Transmission!$AI$5:$AI$15000,$AL22+AM$2)) -> 966.38 | AN22: =IF(ISNA($AL22),0,INDEX(Transmission!$AI$5:$AI$15000,$AL22+AN$2)) -> 994.73 | AO22: =IF(ISNA($AL22),0,INDEX(Transmission!$AI$5:$AI$15000,$AL22+AO$2)) -> 953.34 | AP22: =IF(ISNA($AL22),0,INDEX(Transmission!$AI$5:$AI$15000,$AL22+AP$2)) -> 1465.14 | AQ22: =IF(ISNA($AL22),0,INDEX(Transmission!$AI$5:$AI$15000,$AL22+AQ$2)) -> 1464.6 | AR22: =IF(ISNA($AL22),0,INDEX(Transmission!$AI$5:$AI$15000,$AL22+AR$2)) -> 1452.94 | AS22: =IF(ISNA($AL22),0,INDEX(Transmission!$AI$5:$AI$15000,$AL22+AS$2)) -> 1475.26 | AT22: =IF(ISNA($AL22),0,INDEX(Transmission!$AI$5:$AI$15000,$AL22+AT$2)) -> 1420.47 | AU22: =IF(ISNA($AL22),0,INDEX(Transmission!$AI$5:$AI$15000,$AL22+AU$2)) -> 738.59 | AV22: =IF(ISNA($AL22),0,INDEX(Transmission!$AI$5:$AI$15000,$AL22+AV$2)) -> 696.47 | AW22: =IF(ISNA($AL22),0,INDEX(Transmission!$AI$5:$AI$15000,$AL22+AW$2)) -> 1945.02 | AX22: =IF(ISNA($AL22),0,INDEX(Transmission!$AI$5:$AI$15000,$AL22+AX$2)) -> 228.39 | AY22: =IF(ISNA($AL22),0,INDEX(Transmission!$AI$5:$AI$15000,$AL22+AY$2)) -> 0 | AZ22: =IF(ISNA($AL22),0,INDEX(Transmission!$AI$5:$AI$15000,$AL22+AZ$2)) -> 0 | BA22: =IF(ISNA($AL22),0,INDEX(Transmission!$AI$5:$AI$15000,$AL22+BA$2)) -> 0 | BB22: =IF(ISNA($AL22),0,INDEX(Transmission!$AI$5:$AI$15000,$AL22+BB$2)) -> 975.84 | BC22: =IF(ISNA($AL22),0,INDEX(Transmission!$AI$5:$AI$15000,$AL22+BC$2)) -> 0 | BD22: =IF(ISNA($AL22),0,INDEX(Transmission!$AI$5:$AI$15000,$AL22+BD$2)) -> 0 | BE22: =IF(ISNA($AL22),0,INDEX(Transmission!$AI$5:$AI$15000,$AL22+BE$2)) -> 0 | BF22: =IF(ISNA($AL22),0,INDEX(Transmission!$AI$5:$AI$15000,$AL22+BF$2)) -> 16.23 | BG22: 1945.02 | BI22: 2000 | BJ22: 0 | BK22: 0 | BL22: 0.000395 | BM22: 0.000395 | BN22: 0.0001316666667 | BO22: 0 | BP22: 0.000585 | BQ22: 0.0002216666667 | BR22: 0 | BS22: 0 | BT22: 0 | BU22: 0 | BV22: 0.0001316666667 | BW22: 0 | BX22: 0.00018 | BY22: 0.000155 | BZ22: 0 | CA22: 0 | CB22: 0 | CC22: 0 | CD22: 471.69 | CE22: 1275.48 | CF22: 0.0002043998592 | CG22: 523.93 | CH22: 655.27 | CI22: 0.0002043998592 | CK22: 0.0002043998592 | CL22: 0.0001316666667 | CN22: 2000 | CO22: 1600 | CQ22: NYISO_J-K | DD22: 0 | DH22: 1999 | DX22: 1 | DY22: MAPP_US_2_NE | DZ22: 0 | EA22: 0 | EB22: 0 | EC22: 0 | ED22: 0 | EE22: 0 | EF22: 0 | EG22: 0 | EH22: 0 | EI22: 0 | EJ22: 0 | EK22: 0 | EL22: 0.0002051816998 | EM22: 0.0001316666667 | EN22: 0.0002121941444 | EO22: 0.0001316666667 | EQ22: MISO_IN_2_MISO_MO-IL | ER22: 0.0001316666667
A23: MAPP_US_2_NWPP_Coal | B23: MAPP_US | C23: NWPP_Coal | D23: 5 | E23: 3 | F23: 8 | G23: =VLOOKUP($A23,Transmission!$E$5:$L$15000,8,0) ->  | H23: =VLOOKUP($A23,Transmission!$AA$5:$AH$15000,8,0) ->  | I23: =MATCH($H$1&$A23,Transmission!$C$5:$C$15000,0) ->  | J23: =IF(ISNA($I23),0,INDEX(Transmission!$M$5:$M$15000,$I23+J$2)) -> 0 | K23: =IF(ISNA($I23),0,INDEX(Transmission!$M$5:$M$15000,$I23+K$2)) -> 0 | L23: =IF(ISNA($I23),0,INDEX(Transmission!$M$5:$M$15000,$I23+L$2)) -> 0 | M23: =IF(ISNA($I23),0,INDEX(Transmission!$M$5:$M$15000,$I23+M$2)) -> 0 | N23: =IF(ISNA($I23),0,INDEX(Transmission!$M$5:$M$15000,$I23+N$2)) -> 0 | O23: =IF(ISNA($I23),0,INDEX(Transmission!$M$5:$M$15000,$I23+O$2)) -> 0 | P23: =IF(ISNA($I23),0,INDEX(Transmission!$M$5:$M$15000,$I23+P$2)) -> 0 | Q23: =IF(ISNA($I23),0,INDEX(Transmission!$M$5:$M$15000,$I23+Q$2)) -> 0 | R23: =IF(ISNA($I23),0,INDEX(Transmission!$M$5:$M$15000,$I23+R$2)) -> 0 | S23: =IF(ISNA($I23),0,INDEX(Transmission!$M$5:$M$15000,$I23+S$2)) -> 0 | T23: =IF(ISNA($I23),0,INDEX(Transmission!$M$5:$M$15000,$I23+T$2)) -> 0 | U23: =IF(ISNA($I23),0,INDEX(Transmission!$M$5:$M$15000,$I23+U$2)) -> 0 | V23: =IF(ISNA($I23),0,INDEX(Transmission!$M$5:$M$15000,$I23+V$2)) -> 0 | W23: =IF(ISNA($I23),0,INDEX(Transmission!$M$5:$M$15000,$I23+W$2)) -> 0 | X23: =IF(ISNA($I23),0,INDEX(Transmission!$M$5:$M$15000,$I23+X$2)) -> 0 | Y23: =IF(ISNA($I23),0,INDEX(Transmission!$M$5:$M$15000,$I23+Y$2)) -> 0 | Z23: =IF(ISNA($I23),0,INDEX(Transmission!$M$5:$M$15000,$I23+Z$2)) -> 0 | AA23: =IF(ISNA($I23),0,INDEX(Transmission!$M$5:$M$15000,$I23+AA$2)) -> 0 | AB23: =IF(ISNA($I23),0,INDEX(Transmission!$M$5:$M$15000,$I23+AB$2)) -> 0 | AC23: =IF(ISNA($I23),0,INDEX(Transmission!$M$5:$M$15000,$I23+AC$2)) -> 0 | AD23: 0 | AE23: 0 | AF23: 0 | AG23: 0.006849315068 | AH23: 200 | AI23: 150 | AJ23: 150 | AL23: =MATCH("2030"&$A23,Transmission!$Y$5:$Y$15000,0) ->  | AM23: =IF(ISNA($AL23),0,INDEX(Transmission!$AI$5:$AI$15000,$AL23+AM$2)) -> 0 | AN23: =IF(ISNA($AL23),0,INDEX(Transmission!$AI$5:$AI$15000,$AL23+AN$2)) -> 0 | AO23: =IF(ISNA($AL23),0,INDEX(Transmission!$AI$5:$AI$15000,$AL23+AO$2)) -> 0 | AP23: =IF(ISNA($AL23),0,INDEX(Transmission!$AI$5:$AI$15000,$AL23+AP$2)) -> 0 | AQ23: =IF(ISNA($AL23),0,INDEX(Transmission!$AI$5:$AI$15000,$AL23+AQ$2)) -> 0 | AR23: =IF(ISNA($AL23),0,INDEX(Transmission!$AI$5:$AI$15000,$AL23+AR$2)) -> 0 | AS23: =IF(ISNA($AL23),0,INDEX(Transmission!$AI$5:$AI$15000,$AL23+AS$2)) -> 0 | AT23: =IF(ISNA($AL23),0,INDEX(Transmission!$AI$5:$AI$15000,$AL23+AT$2)) -> 0 | AU23: =IF(ISNA($AL23),0,INDEX(Transmission!$AI$5:$AI$15000,$AL23+AU$2)) -> 0 | AV23: =IF(ISNA($AL23),0,INDEX(Transmission!$AI$5:$AI$15000,$AL23+AV$2)) -> 0 | AW23: =IF(ISNA($AL23),0,INDEX(Transmission!$AI$5:$AI$15000,$AL23+AW$2)) -> 0 | AX23: =IF(ISNA($AL23),0,INDEX(Transmission!$AI$5:$AI$15000,$AL23+AX$2)) -> 0 | AY23: =IF(ISNA($AL23),0,INDEX(Transmission!$AI$5:$AI$15000,$AL23+AY$2)) -> 0 | AZ23: =IF(ISNA($AL23),0,INDEX(Transmission!$AI$5:$AI$15000,$AL23+AZ$2)) -> 0 | BA23: =IF(ISNA($AL23),0,INDEX(Transmission!$AI$5:$AI$15000,$AL23+BA$2)) -> 0 | BB23: =IF(ISNA($AL23),0,INDEX(Transmission!$AI$5:$AI$15000,$AL23+BB$2)) -> 0 | BC23: =IF(ISNA($AL23),0,INDEX(Transmission!$AI$5:$AI$15000,$AL23+BC$2)) -> 0 | BD23: =IF(ISNA($AL23),0,INDEX(Transmission!$AI$5:$AI$15000,$AL23+BD$2)) -> 0 | BE23: =IF(ISNA($AL23),0,INDEX(Transmission!$AI$5:$AI$15000,$AL23+BE$2)) -> 0 | BF23: =IF(ISNA($AL23),0,INDEX(Transmission!$AI$5:$AI$15000,$AL23+BF$2)) -> 0 | BG23: 0 | CN23: 200 | CO23: 150 | CQ23: IESO | CV23: 262 | CY23: 1840 | DA23: 140 | DG23: 1725 | DX23: 0 | EJ23: 0 | EM23: 0 | EO23: 0 | EQ23: MISO_IN_2_NonRTO_Midwest | ER23: 0.0001968747447
A24: MAPP_US_2_RMPA | B24: MAPP_US | C24: RMPA | D24: 5 | E24: 3 | F24: 8 | G24: =VLOOKUP($A24,Transmission!$E$5:$L$15000,8,0) -> 200 | H24: =VLOOKUP($A24,Transmission!$AA$5:$AH$15000,8,0) -> 200 | I24: =MATCH($H$1&$A24,Transmission!$C$5:$C$15000,0) -> 11081 | J24: =IF(ISNA($I24),0,INDEX(Transmission!$M$5:$M$15000,$I24+J$2)) -> 0 | K24: =IF(ISNA($I24),0,INDEX(Transmission!$M$5:$M$15000,$I24+K$2)) -> 0 | L24: =IF(ISNA($I24),0,INDEX(Transmission!$M$5:$M$15000,$I24+L$2)) -> 200 | M24: =IF(ISNA($I24),0,INDEX(Transmission!$M$5:$M$15000,$I24+M$2)) -> 0 | N24: =IF(ISNA($I24),0,INDEX(Transmission!$M$5:$M$15000,$I24+N$2)) -> 0 | O24: =IF(ISNA($I24),0,INDEX(Transmission!$M$5:$M$15000,$I24+O$2)) -> 0 | P24: =IF(ISNA($I24),0,INDEX(Transmission!$M$5:$M$15000,$I24+P$2)) -> 200 | Q24: =IF(ISNA($I24),0,INDEX(Transmission!$M$5:$M$15000,$I24+Q$2)) -> 200 | R24: =IF(ISNA($I24),0,INDEX(Transmission!$M$5:$M$15000,$I24+R$2)) -> 200 | S24: =IF(ISNA($I24),0,INDEX(Transmission!$M$5:$M$15000,$I24+S$2)) -> 200 | T24: =IF(ISNA($I24),0,INDEX(Transmission!$M$5:$M$15000,$I24+T$2)) -> 0 | U24: =IF(ISNA($I24),0,INDEX(Transmission!$M$5:$M$15000,$I24+U$2)) -> 194.43 | V24: =IF(ISNA($I24),0,INDEX(Transmission!$M$5:$M$15000,$I24+V$2)) -> 200 | W24: =IF(ISNA($I24),0,INDEX(Transmission!$M$5:$M$15000,$I24+W$2)) -> 200 | X24: =IF(ISNA($I24),0,INDEX(Transmission!$M$5:$M$15000,$I24+X$2)) -> 200 | Y24: =IF(ISNA($I24),0,INDEX(Transmission!$M$5:$M$15000,$I24+Y$2)) -> 200 | Z24: =IF(ISNA($I24),0,INDEX(Transmission!$M$5:$M$15000,$I24+Z$2)) -> 200 | AA24: =IF(ISNA($I24),0,INDEX(Transmission!$M$5:$M$15000,$I24+AA$2)) -> 200 | AB24: =IF(ISNA($I24),0,INDEX(Transmission!$M$5:$M$15000,$I24+AB$2)) -> 200 | AC24: =IF(ISNA($I24),0,INDEX(Transmission!$M$5:$M$15000,$I24+AC$2)) -> 200 | AD24: 200 | AE24: 0.1848043379 | AF24: 0.1848043379 | AG24: 0 | AH24: 200 | AI24: 200 | AJ24: 0 | AL24: =MATCH("2030"&$A24,Transmission!$Y$5:$Y$15000,0) -> 11201 | AM24: =IF(ISNA($AL24),0,INDEX(Transmission!$AI$5:$AI$15000,$AL24+AM$2)) -> 0 | AN24: =IF(ISNA($AL24),0,INDEX(Transmission!$AI$5:$AI$15000,$AL24+AN$2)) -> 0 | AO24: =IF(ISNA($AL24),0,INDEX(Transmission!$AI$5:$AI$15000,$AL24+AO$2)) -> 0 | AP24: =IF(ISNA($AL24),0,INDEX(Transmission!$AI$5:$AI$15000,$AL24+AP$2)) -> 0 | AQ24: =IF(ISNA($AL24),0,INDEX(Transmission!$AI$5:$AI$15000,$AL24+AQ$2)) -> 0 | AR24: =IF(ISNA($AL24),0,INDEX(Transmission!$AI$5:$AI$15000,$AL24+AR$2)) -> 0 | AS24: =IF(ISNA($AL24),0,INDEX(Transmission!$AI$5:$AI$15000,$AL24+AS$2)) -> 0 | AT24: =IF(ISNA($AL24),0,INDEX(Transmission!$AI$5:$AI$15000,$AL24+AT$2)) -> 200 | AU24: =IF(ISNA($AL24),0,INDEX(Transmission!$AI$5:$AI$15000,$AL24+AU$2)) -> 200 | AV24: =IF(ISNA($AL24),0,INDEX(Transmission!$AI$5:$AI$15000,$AL24+AV$2)) -> 200 | AW24: =IF(ISNA($AL24),0,INDEX(Transmission!$AI$5:$AI$15000,$AL24+AW$2)) -> 0 | AX24: =IF(ISNA($AL24),0,INDEX(Transmission!$AI$5:$AI$15000,$AL24+AX$2)) -> 0 | AY24: =IF(ISNA($AL24),0,INDEX(Transmission!$AI$5:$AI$15000,$AL24+AY$2)) -> 200 | AZ24: =IF(ISNA($AL24),0,INDEX(Transmission!$AI$5:$AI$15000,$AL24+AZ$2)) -> 200 | BA24: =IF(ISNA($AL24),0,INDEX(Transmission!$AI$5:$AI$15000,$AL24+BA$2)) -> 200 | BB24: =IF(ISNA($AL24),0,INDEX(Transmission!$AI$5:$AI$15000,$AL24+BB$2)) -> 200 | BC24: =IF(ISNA($AL24),0,INDEX(Transmission!$AI$5:$AI$15000,$AL24+BC$2)) -> 200 | BD24: =IF(ISNA($AL24),0,INDEX(Transmission!$AI$5:$AI$15000,$AL24+BD$2)) -> 200 | BE24: =IF(ISNA($AL24),0,INDEX(Transmission!$AI$5:$AI$15000,$AL24+BE$2)) -> 200 | BF24: =IF(ISNA($AL24),0,INDEX(Transmission!$AI$5:$AI$15000,$AL24+BF$2)) -> 0 | BG24: 200 | CN24: 200 | CO24: 200 | CQ24: PJM_E | DH24: 500 | DI24: 330 | DL24: 8000 | DX24: 0 | EJ24: 0 | EM24: 0 | EO24: 0 | EQ24: MISO_IN_2_PJM_ROR | ER24: 0.0002283963729
A25: MISO_IN_2_MISO_MI | B25: MISO_IN | C25: MISO_MI | D25: 0 | E25: 0 | F25: 0 | G25: =VLOOKUP($A25,Transmission!$E$5:$L$15000,8,0) -> 5490 | H25: =VLOOKUP($A25,Transmission!$AA$5:$AH$15000,8,0) -> 5000 | I25: =MATCH($H$1&$A25,Transmission!$C$5:$C$15000,0) -> 5581 | J25: =IF(ISNA($I25),0,INDEX(Transmission!$M$5:$M$15000,$I25+J$2)) -> 0 | K25: =IF(ISNA($I25),0,INDEX(Transmission!$M$5:$M$15000,$I25+K$2)) -> 0 | L25: =IF(ISNA($I25),0,INDEX(Transmission!$M$5:$M$15000,$I25+L$2)) -> 0 | M25: =IF(ISNA($I25),0,INDEX(Transmission!$M$5:$M$15000,$I25+M$2)) -> 0 | N25: =IF(ISNA($I25),0,INDEX(Transmission!$M$5:$M$15000,$I25+N$2)) -> 0 | O25: =IF(ISNA($I25),0,INDEX(Transmission!$M$5:$M$15000,$I25+O$2)) -> 0 | P25: =IF(ISNA($I25),0,INDEX(Transmission!$M$5:$M$15000,$I25+P$2)) -> 0 | Q25: =IF(ISNA($I25),0,INDEX(Transmission!$M$5:$M$15000,$I25+Q$2)) -> 0 | R25: =IF(ISNA($I25),0,INDEX(Transmission!$M$5:$M$15000,$I25+R$2)) -> 0 | S25: =IF(ISNA($I25),0,INDEX(Transmission!$M$5:$M$15000,$I25+S$2)) -> 2393.29 | T25: =IF(ISNA($I25),0,INDEX(Transmission!$M$5:$M$15000,$I25+T$2)) -> 0 | U25: =IF(ISNA($I25),0,INDEX(Transmission!$M$5:$M$15000,$I25+U$2)) -> 0 | V25: =IF(ISNA($I25),0,INDEX(Transmission!$M$5:$M$15000,$I25+V$2)) -> 0 | W25: =IF(ISNA($I25),0,INDEX(Transmission!$M$5:$M$15000,$I25+W$2)) -> 0 | X25: =IF(ISNA($I25),0,INDEX(Transmission!$M$5:$M$15000,$I25+X$2)) -> 0 | Y25: =IF(ISNA($I25),0,INDEX(Transmission!$M$5:$M$15000,$I25+Y$2)) -> 0 | Z25: =IF(ISNA($I25),0,INDEX(Transmission!$M$5:$M$15000,$I25+Z$2)) -> 0 | AA25: =IF(ISNA($I25),0,INDEX(Transmission!$M$5:$M$15000,$I25+AA$2)) -> 0 | AB25: =IF(ISNA($I25),0,INDEX(Transmission!$M$5:$M$15000,$I25+AB$2)) -> 0 | AC25: =IF(ISNA($I25),0,INDEX(Transmission!$M$5:$M$15000,$I25+AC$2)) -> 0 | AD25: 2393.29 | AE25: 0.3447867557 | AF25: 0.3447867557 | AG25: 1.281492637 | AH25: 5490 | AI25: 2535 | AJ25: 2535 | AL25: =MATCH("2030"&$A25,Transmission!$Y$5:$Y$15000,0) -> 5601 | AM25: =IF(ISNA($AL25),0,INDEX(Transmission!$AI$5:$AI$15000,$AL25+AM$2)) -> 803.36 | AN25: =IF(ISNA($AL25),0,INDEX(Transmission!$AI$5:$AI$15000,$AL25+AN$2)) -> 0 | AO25: =IF(ISNA($AL25),0,INDEX(Transmission!$AI$5:$AI$15000,$AL25+AO$2)) -> 0 | AP25: =IF(ISNA($AL25),0,INDEX(Transmission!$AI$5:$AI$15000,$AL25+AP$2)) -> 0 | AQ25: =IF(ISNA($AL25),0,INDEX(Transmission!$AI$5:$AI$15000,$AL25+AQ$2)) -> 0 | AR25: =IF(ISNA($AL25),0,INDEX(Transmission!$AI$5:$AI$15000,$AL25+AR$2)) -> 0 | AS25: =IF(ISNA($AL25),0,INDEX(Transmission!$AI$5:$AI$15000,$AL25+AS$2)) -> 2350.8 | AT25: =IF(ISNA($AL25),0,INDEX(Transmission!$AI$5:$AI$15000,$AL25+AT$2)) -> 4118.89 | AU25: =IF(ISNA($AL25),0,INDEX(Transmission!$AI$5:$AI$15000,$AL25+AU$2)) -> 3659.91 | AV25: =IF(ISNA($AL25),0,INDEX(Transmission!$AI$5:$AI$15000,$AL25+AV$2)) -> 3236.53 | AW25: =IF(ISNA($AL25),0,INDEX(Transmission!$AI$5:$AI$15000,$AL25+AW$2)) -> 0 | AX25: =IF(ISNA($AL25),0,INDEX(Transmission!$AI$5:$AI$15000,$AL25+AX$2)) -> 290.09 | AY25: =IF(ISNA($AL25),0,INDEX(Transmission!$AI$5:$AI$15000,$AL25+AY$2)) -> 1308.68 | AZ25: =IF(ISNA($AL25),0,INDEX(Transmission!$AI$5:$AI$15000,$AL25+AZ$2)) -> 1388.55 | BA25: =IF(ISNA($AL25),0,INDEX(Transmission!$AI$5:$AI$15000,$AL25+BA$2)) -> 2780.86 | BB25: =IF(ISNA($AL25),0,INDEX(Transmission!$AI$5:$AI$15000,$AL25+BB$2)) -> 0 | BC25: =IF(ISNA($AL25),0,INDEX(Transmission!$AI$5:$AI$15000,$AL25+BC$2)) -> 792.15 | BD25: =IF(ISNA($AL25),0,INDEX(Transmission!$AI$5:$AI$15000,$AL25+BD$2)) -> 993.42 | BE25: =IF(ISNA($AL25),0,INDEX(Transmission!$AI$5:$AI$15000,$AL25+BE$2)) -> 1761.49 | BF25: =IF(ISNA($AL25),0,INDEX(Transmission!$AI$5:$AI$15000,$AL25+BF$2)) -> 1079.35 | BG25: 4118.89 | BI25: 5000 | BJ25: 0 | BK25: 0 | BL25: 4550.68 | BM25: 4067.01 | BN25: 768.4871539 | BO25: 0 | BP25: 2337.15 | BQ25: 20.56566596 | BR25: 0 | BS25: 0 | BT25: 746.11 | BU25: 1609.28 | BV25: 80.92701741 | BW25: 0 | BX25: 2.00000004e-05 | BY25: 0.0001316666667 | BZ25: 0 | CA25: 0 | CB25: 0 | CC25: 0 | CD25: 6013.49 | CE25: 2822.84 | CF25: 490.4165436 | CG25: 2.00000004e-05 | CH25: 9.999999747e-06 | CI25: 490.4165436 | CK25: 490.4165436 | CL25: 0.0001960837323 | CN25: 5000 | CO25: 2045 | CQ25: PJM_ROM | DG25: 2000 | DK25: 8000 | DM25: 8000 | DX25: 1 | DY25: MISO_IN_2_MISO_MI | DZ25: 0 | EA25: 0 | EB25: 768.4871539 | EC25: 0 | ED25: 20.56566596 | EE25: 0 | EF25: 80.92701741 | EG25: 0 | EH25: 0 | EI25: 490.4165436 | EJ25: 0 | EK25: 14.13036544 | EL25: 0.0001316666667 | EM25: 0.0001518828918 | EN25: 0.0001316666667 | EO25: 0.0001459976081 | EQ25: MISO_MI_2_IESO | ER25: 0.0001316666667
A26: MISO_IN_2_MISO_MO-IL | B26: MISO_IN | C26: MISO_MO-IL | D26: 0 | E26: 0 | F26: 0 | G26: =VLOOKUP($A26,Transmission!$E$5:$L$15000,8,0) -> 5000 | H26: =VLOOKUP($A26,Transmission!$AA$5:$AH$15000,8,0) -> 5000 | I26: =MATCH($H$1&$A26,Transmission!$C$5:$C$15000,0) -> 5601 | J26: =IF(ISNA($I26),0,INDEX(Transmission!$M$5:$M$15000,$I26+J$2)) -> 0 | K26: =IF(ISNA($I26),0,INDEX(Transmission!$M$5:$M$15000,$I26+K$2)) -> 0 | L26: =IF(ISNA($I26),0,INDEX(Transmission!$M$5:$M$15000,$I26+L$2)) -> 0 | M26: =IF(ISNA($I26),0,INDEX(Transmission!$M$5:$M$15000,$I26+M$2)) -> 0 | N26: =IF(ISNA($I26),0,INDEX(Transmission!$M$5:$M$15000,$I26+N$2)) -> 0 | O26: =IF(ISNA($I26),0,INDEX(Transmission!$M$5:$M$15000,$I26+O$2)) -> 0 | P26: =IF(ISNA($I26),0,INDEX(Transmission!$M$5:$M$15000,$I26+P$2)) -> 0 | Q26: =IF(ISNA($I26),0,INDEX(Transmission!$M$5:$M$15000,$I26+Q$2)) -> 0 | R26: =IF(ISNA($I26),0,INDEX(Transmission!$M$5:$M$15000,$I26+R$2)) -> 203.94 | S26: =IF(ISNA($I26),0,INDEX(Transmission!$M$5:$M$15000,$I26+S$2)) -> 0 | T26: =IF(ISNA($I26),0,INDEX(Transmission!$M$5:$M$15000,$I26+T$2)) -> 0 | U26: =IF(ISNA($I26),0,INDEX(Transmission!$M$5:$M$15000,$I26+U$2)) -> 0 | V26: =IF(ISNA($I26),0,INDEX(Transmission!$M$5:$M$15000,$I26+V$2)) -> 0 | W26: =IF(ISNA($I26),0,INDEX(Transmission!$M$5:$M$15000,$I26+W$2)) -> 0 | X26: =IF(ISNA($I26),0,INDEX(Transmission!$M$5:$M$15000,$I26+X$2)) -> 0 | Y26: =IF(ISNA($I26),0,INDEX(Transmission!$M$5:$M$15000,$I26+Y$2)) -> 0 | Z26: =IF(ISNA($I26),0,INDEX(Transmission!$M$5:$M$15000,$I26+Z$2)) -> 0 | AA26: =IF(ISNA($I26),0,INDEX(Transmission!$M$5:$M$15000,$I26+AA$2)) -> 0 | AB26: =IF(ISNA($I26),0,INDEX(Transmission!$M$5:$M$15000,$I26+AB$2)) -> 0 | AC26: =IF(ISNA($I26),0,INDEX(Transmission!$M$5:$M$15000,$I26+AC$2)) -> 0 | AD26: 203.94 | AE26: 0.01862465753 | AF26: 0.01862465753 | AG26: 1.430457962 | AH26: 5000 | AI26: 2100 | AJ26: 2100 | AL26: =MATCH("2030"&$A26,Transmission!$Y$5:$Y$15000,0) -> 5621 | AM26: =IF(ISNA($AL26),0,INDEX(Transmission!$AI$5:$AI$15000,$AL26+AM$2)) -> 0.01 | AN26: =IF(ISNA($AL26),0,INDEX(Transmission!$AI$5:$AI$15000,$AL26+AN$2)) -> 384.16 | AO26: =IF(ISNA($AL26),0,INDEX(Transmission!$AI$5:$AI$15000,$AL26+AO$2)) -> 2160.49 | AP26: =IF(ISNA($AL26),0,INDEX(Transmission!$AI$5:$AI$15000,$AL26+AP$2)) -> 2570.08 | AQ26: =IF(ISNA($AL26),0,INDEX(Transmission!$AI$5:$AI$15000,$AL26+AQ$2)) -> 683.52 | AR26: =IF(ISNA($AL26),0,INDEX(Transmission!$AI$5:$AI$15000,$AL26+AR$2)) -> 2680.46 | AS26: =IF(ISNA($AL26),0,INDEX(Transmission!$AI$5:$AI$15000,$AL26+AS$2)) -> 511.81 | AT26: =IF(ISNA($AL26),0,INDEX(Transmission!$AI$5:$AI$15000,$AL26+AT$2)) -> 0 | AU26: =IF(ISNA($AL26),0,INDEX(Transmission!$AI$5:$AI$15000,$AL26+AU$2)) -> 0 | AV26: =IF(ISNA($AL26),0,INDEX(Transmission!$AI$5:$AI$15000,$AL26+AV$2)) -> 0 | AW26: =IF(ISNA($AL26),0,INDEX(Transmission!$AI$5:$AI$15000,$AL26+AW$2)) -> 1763.95 | AX26: =IF(ISNA($AL26),0,INDEX(Transmission!$AI$5:$AI$15000,$AL26+AX$2)) -> 0 | AY26: =IF(ISNA($AL26),0,INDEX(Transmission!$AI$5:$AI$15000,$AL26+AY$2)) -> 0 | AZ26: =IF(ISNA($AL26),0,INDEX(Transmission!$AI$5:$AI$15000,$AL26+AZ$2)) -> 0 | BA26: =IF(ISNA($AL26),0,INDEX(Transmission!$AI$5:$AI$15000,$AL26+BA$2)) -> 0 | BB26: =IF(ISNA($AL26),0,INDEX(Transmission!$AI$5:$AI$15000,$AL26+BB$2)) -> 0 | BC26: =IF(ISNA($AL26),0,INDEX(Transmission!$AI$5:$AI$15000,$AL26+BC$2)) -> 0 | BD26: =IF(ISNA($AL26),0,INDEX(Transmission!$AI$5:$AI$15000,$AL26+BD$2)) -> 0 | BE26: =IF(ISNA($AL26),0,INDEX(Transmission!$AI$5:$AI$15000,$AL26+BE$2)) -> 0 | BF26: =IF(ISNA($AL26),0,INDEX(Transmission!$AI$5:$AI$15000,$AL26+BF$2)) -> 0 | BG26: 2680.46 | BI26: 5000 | BJ26: 0 | BK26: 0 | BL26: 1574.12 | BM26: 579.79 | BN26: 0.0002074772086 | BO26: 0 | BP26: 4352.5 | BQ26: 532.8830213 | BR26: 0 | BS26: 0 | BT26: 0 | BU26: 0 | BV26: 0.0001316666667 | BW26: 0 | BX26: 2.00000004e-05 | BY26: 0.0001316666667 | BZ26: 0 | CA26: 0 | CB26: 0 | CC26: 0 | CD26: 2898.96 | CE26: 1186.12 | CF26: 0.0001947422352 | CG26: 0 | CH26: 0 | CI26: 0.0001947422352 | CK26: 0.0001947422352 | CL26: 0.0002808582089 | CN26: 5000 | CO26: 2100 | CQ26: PJM_ROR | CX26: 909 | CY26: 1305 | CZ26: 1111 | DA26: 709 | DB26: 1467 | DL26: 8000 | DR26: 2500 | DS26: 3000 | DU26: 2500 | DX26: 1 | DY26: MISO_IN_2_MISO_MO-IL | DZ26: 0 | EA26: 0 | EB26: 0 | EC26: 0 | ED26: 532.8830213 | EE26: 0 | EF26: 0 | EG26: 0 | EH26: 0 | EI26: 0 | EJ26: 0 | EK26: 0 | EL26: 0.0001316666667 | EM26: 1178.37876 | EN26: 0.0001316666667 | EO26: 350.8733538 | EQ26: MISO_MI_2_MISO_IN | ER26: 0.0001459976081
A27: MISO_IN_2_NonRTO_Midwest | B27: MISO_IN | C27: NonRTO_Midwest | D27: 5 | E27: 3 | F27: 8 | G27: =VLOOKUP($A27,Transmission!$E$5:$L$15000,8,0) -> 4800 | H27: =VLOOKUP($A27,Transmission!$AA$5:$AH$15000,8,0) -> 4800 | I27: =MATCH($H$1&$A27,Transmission!$C$5:$C$15000,0) -> 5621 | J27: =IF(ISNA($I27),0,INDEX(Transmission!$M$5:$M$15000,$I27+J$2)) -> 2916.79 | K27: =IF(ISNA($I27),0,INDEX(Transmission!$M$5:$M$15000,$I27+K$2)) -> 1995.48 | L27: =IF(ISNA($I27),0,INDEX(Transmission!$M$5:$M$15000,$I27+L$2)) -> 743.19 | M27: =IF(ISNA($I27),0,INDEX(Transmission!$M$5:$M$15000,$I27+M$2)) -> 349.11 | N27: =IF(ISNA($I27),0,INDEX(Transmission!$M$5:$M$15000,$I27+N$2)) -> 2414.23 | O27: =IF(ISNA($I27),0,INDEX(Transmission!$M$5:$M$15000,$I27+O$2)) -> 2383.55 | P27: =IF(ISNA($I27),0,INDEX(Transmission!$M$5:$M$15000,$I27+P$2)) -> 1825.07 | Q27: =IF(ISNA($I27),0,INDEX(Transmission!$M$5:$M$15000,$I27+Q$2)) -> 1347.43 | R27: =IF(ISNA($I27),0,INDEX(Transmission!$M$5:$M$15000,$I27+R$2)) -> 797.42 | S27: =IF(ISNA($I27),0,INDEX(Transmission!$M$5:$M$15000,$I27+S$2)) -> 0 | T27: =IF(ISNA($I27),0,INDEX(Transmission!$M$5:$M$15000,$I27+T$2)) -> 2201.67 | U27: =IF(ISNA($I27),0,INDEX(Transmission!$M$5:$M$15000,$I27+U$2)) -> 1635.72 | V27: =IF(ISNA($I27),0,INDEX(Transmission!$M$5:$M$15000,$I27+V$2)) -> 1116.07 | W27: =IF(ISNA($I27),0,INDEX(Transmission!$M$5:$M$15000,$I27+W$2)) -> 732.79 | X27: =IF(ISNA($I27),0,INDEX(Transmission!$M$5:$M$15000,$I27+X$2)) -> 0 | Y27: =IF(ISNA($I27),0,INDEX(Transmission!$M$5:$M$15000,$I27+Y$2)) -> 4524.82 | Z27: =IF(ISNA($I27),0,INDEX(Transmission!$M$5:$M$15000,$I27+Z$2)) -> 3528.82 | AA27: =IF(ISNA($I27),0,INDEX(Transmission!$M$5:$M$15000,$I27+AA$2)) -> 2727.41 | AB27: =IF(ISNA($I27),0,INDEX(Transmission!$M$5:$M$15000,$I27+AB$2)) -> 2115.61 | AC27: =IF(ISNA($I27),0,INDEX(Transmission!$M$5:$M$15000,$I27+AC$2)) -> 1447.24 | AD27: 4524.82 | AE27: 1.085810137 | AF27: 1.085810137 | AG27: 0 | AH27: 4800 | AJ27: 0 | AL27: =MATCH("2030"&$A27,Transmission!$Y$5:$Y$15000,0) -> 5641 | AM27: =IF(ISNA($AL27),0,INDEX(Transmission!$AI$5:$AI$15000,$AL27+AM$2)) -> 0 | AN27: =IF(ISNA($AL27),0,INDEX(Transmission!$AI$5:$AI$15000,$AL27+AN$2)) -> 0 | AO27: =IF(ISNA($AL27),0,INDEX(Transmission!$AI$5:$AI$15000,$AL27+AO$2)) -> 0 | AP27: =IF(ISNA($AL27),0,INDEX(Transmission!$AI$5:$AI$15000,$AL27+AP$2)) -> 505.66 | AQ27: =IF(ISNA($AL27),0,INDEX(Transmission!$AI$5:$AI$15000,$AL27+AQ$2)) -> 911.84 | AR27: =IF(ISNA($AL27),0,INDEX(Transmission!$AI$5:$AI$15000,$AL27+AR$2)) -> 448.37 | AS27: =IF(ISNA($AL27),0,INDEX(Transmission!$AI$5:$AI$15000,$AL27+AS$2)) -> 0 | AT27: =IF(ISNA($AL27),0,INDEX(Transmission!$AI$5:$AI$15000,$AL27+AT$2)) -> 0 | AU27: =IF(ISNA($AL27),0,INDEX(Transmission!$AI$5:$AI$15000,$AL27+AU$2)) -> 0 | AV27: =IF(ISNA($AL27),0,INDEX(Transmission!$AI$5:$AI$15000,$AL27+AV$2)) -> 0 | AW27: =IF(ISNA($AL27),0,INDEX(Transmission!$AI$5:$AI$15000,$AL27+AW$2)) -> 824.41 | AX27: =IF(ISNA($AL27),0,INDEX(Transmission!$AI$5:$AI$15000,$AL27+AX$2)) -> 523.83 | AY27: =IF(ISNA($AL27),0,INDEX(Transmission!$AI$5:$AI$15000,$AL27+AY$2)) -> 0 | AZ27: =IF(ISNA($AL27),0,INDEX(Transmission!$AI$5:$AI$15000,$AL27+AZ$2)) -> 0 | BA27: =IF(ISNA($AL27),0,INDEX(Transmission!$AI$5:$AI$15000,$AL27+BA$2)) -> 0 | BB27: =IF(ISNA($AL27),0,INDEX(Transmission!$AI$5:$AI$15000,$AL27+BB$2)) -> 2341.81 | BC27: =IF(ISNA($AL27),0,INDEX(Transmission!$AI$5:$AI$15000,$AL27+BC$2)) -> 1197.43 | BD27: =IF(ISNA($AL27),0,INDEX(Transmission!$AI$5:$AI$15000,$AL27+BD$2)) -> 227.72 | BE27: =IF(ISNA($AL27),0,INDEX(Transmission!$AI$5:$AI$15000,$AL27+BE$2)) -> 0 | BF27: =IF(ISNA($AL27),0,INDEX(Transmission!$AI$5:$AI$15000,$AL27+BF$2)) -> 0 | BG27: 2341.81 | BI27: 4800 | BJ27: 0 | BK27: 0 | BL27: 0.000395 | BM27: 385.6249851 | BN27: 0.0001316666667 | BO27: 0 | BP27: 0.000395 | BQ27: 0.0001316666667 | BR27: 0 | BS27: 0 | BT27: 0 | BU27: 0 | BV27: 0.0001316666667 | BW27: 0 | BX27: 0 | BY27: 0.0001316666667 | BZ27: 0 | CA27: 0 | CB27: 0 | CC27: 0 | CD27: 71.68 | CE27: 500.35 | CF27: 0.0001968747447 | CG27: 150.22 | CH27: 56.27 | CI27: 0.0001968747447 | CK27: 0.0001968747447 | CL27: 0.0001316666667 | CN27: 4800 | CO27: 4450 | CQ27: RMPA | CW27: 200 | DC27: 310 | DP27: 210 | DX27: 1 | DY27: MISO_IN_2_NonRTO_Midwest | DZ27: 0 | EA27: 0 | EB27: 0 | EC27: 0 | ED27: 0 | EE27: 0 | EF27: 0 | EG27: 0 | EH27: 0 | EI27: 0 | EJ27: 0 | EK27: 0 | EL27: 0.0001968747447 | EM27: 0.0001316666667 | EN27: 0.0001968747447 | EO27: 0.0001316666667 | EQ27: MISO_MI_2_MISO_WUMS | ER27: 372.0535661
A28: MISO_IN_2_PJM_ROR | B28: MISO_IN | C28: PJM_ROR | D28: 0 | E28: 2 | F28: 2 | G28: =VLOOKUP($A28,Transmission!$E$5:$L$15000,8,0) -> 992 | H28: =VLOOKUP($A28,Transmission!$AA$5:$AH$15000,8,0) -> 992 | I28: =MATCH($H$1&$A28,Transmission!$C$5:$C$15000,0) -> 5641 | J28: =IF(ISNA($I28),0,INDEX(Transmission!$M$5:$M$15000,$I28+J$2)) -> 0 | K28: =IF(ISNA($I28),0,INDEX(Transmission!$M$5:$M$15000,$I28+K$2)) -> 0 | L28: =IF(ISNA($I28),0,INDEX(Transmission!$M$5:$M$15000,$I28+L$2)) -> 0 | M28: =IF(ISNA($I28),0,INDEX(Transmission!$M$5:$M$15000,$I28+M$2)) -> 0 | N28: =IF(ISNA($I28),0,INDEX(Transmission!$M$5:$M$15000,$I28+N$2)) -> 0 | O28: =IF(ISNA($I28),0,INDEX(Transmission!$M$5:$M$15000,$I28+O$2)) -> 0 | P28: =IF(ISNA($I28),0,INDEX(Transmission!$M$5:$M$15000,$I28+P$2)) -> 0 | Q28: =IF(ISNA($I28),0,INDEX(Transmission!$M$5:$M$15000,$I28+Q$2)) -> 0 | R28: =IF(ISNA($I28),0,INDEX(Transmission!$M$5:$M$15000,$I28+R$2)) -> 0 | S28: =IF(ISNA($I28),0,INDEX(Transmission!$M$5:$M$15000,$I28+S$2)) -> 0 | T28: =IF(ISNA($I28),0,INDEX(Transmission!$M$5:$M$15000,$I28+T$2)) -> 0 | U28: =IF(ISNA($I28),0,INDEX(Transmission!$M$5:$M$15000,$I28+U$2)) -> 0 | V28: =IF(ISNA($I28),0,INDEX(Transmission!$M$5:$M$15000,$I28+V$2)) -> 0 | W28: =IF(ISNA($I28),0,INDEX(Transmission!$M$5:$M$15000,$I28+W$2)) -> 0 | X28: =IF(ISNA($I28),0,INDEX(Transmission!$M$5:$M$15000,$I28+X$2)) -> 0 | Y28: =IF(ISNA($I28),0,INDEX(Transmission!$M$5:$M$15000,$I28+Y$2)) -> 992 | Z28: =IF(ISNA($I28),0,INDEX(Transmission!$M$5:$M$15000,$I28+Z$2)) -> 992 | AA28: =IF(ISNA($I28),0,INDEX(Transmission!$M$5:$M$15000,$I28+AA$2)) -> 924.06 | AB28: =IF(ISNA($I28),0,INDEX(Transmission!$M$5:$M$15000,$I28+AB$2)) -> 691.67 | AC28: =IF(ISNA($I28),0,INDEX(Transmission!$M$5:$M$15000,$I28+AC$2)) -> 0 | AD28: 992 | AE28: 0.1116202055 | AF28: 0.1116202055 | AG28: 0.005505222603 | AH28: 992 | AI28: 909 | AJ28: 643.01 | AL28: =MATCH("2030"&$A28,Transmission!$Y$5:$Y$15000,0) -> 5661 | AM28: =IF(ISNA($AL28),0,INDEX(Transmission!$AI$5:$AI$15000,$AL28+AM$2)) -> 992 | AN28: =IF(ISNA($AL28),0,INDEX(Transmission!$AI$5:$AI$15000,$AL28+AN$2)) -> 991.99 | AO28: =IF(ISNA($AL28),0,INDEX(Transmission!$AI$5:$AI$15000,$AL28+AO$2)) -> 0 | AP28: =IF(ISNA($AL28),0,INDEX(Transmission!$AI$5:$AI$15000,$AL28+AP$2)) -> 0 | AQ28: =IF(ISNA($AL28),0,INDEX(Transmission!$AI$5:$AI$15000,$AL28+AQ$2)) -> 0 | AR28: =IF(ISNA($AL28),0,INDEX(Transmission!$AI$5:$AI$15000,$AL28+AR$2)) -> 0 | AS28: =IF(ISNA($AL28),0,INDEX(Transmission!$AI$5:$AI$15000,$AL28+AS$2)) -> 0 | AT28: =IF(ISNA($AL28),0,INDEX(Transmission!$AI$5:$AI$15000,$AL28+AT$2)) -> 0 | AU28: =IF(ISNA($AL28),0,INDEX(Transmission!$AI$5:$AI$15000,$AL28+AU$2)) -> 0 | AV28: =IF(ISNA($AL28),0,INDEX(Transmission!$AI$5:$AI$15000,$AL28+AV$2)) -> 0 | AW28: =IF(ISNA($AL28),0,INDEX(Transmission!$AI$5:$AI$15000,$AL28+AW$2)) -> 0 | AX28: =IF(ISNA($AL28),0,INDEX(Transmission!$AI$5:$AI$15000,$AL28+AX$2)) -> 0 | AY28: =IF(ISNA($AL28),0,INDEX(Transmission!$AI$5:$AI$15000,$AL28+AY$2)) -> 0 | AZ28: =IF(ISNA($AL28),0,INDEX(Transmission!$AI$5:$AI$15000,$AL28+AZ$2)) -> 0 | BA28: =IF(ISNA($AL28),0,INDEX(Transmission!$AI$5:$AI$15000,$AL28+BA$2)) -> 0 | BB28: =IF(ISNA($AL28),0,INDEX(Transmission!$AI$5:$AI$15000,$AL28+BB$2)) -> 0 | BC28: =IF(ISNA($AL28),0,INDEX(Transmission!$AI$5:$AI$15000,$AL28+BC$2)) -> 743.08 | BD28: =IF(ISNA($AL28),0,INDEX(Transmission!$AI$5:$AI$15000,$AL28+BD$2)) -> 658.94 | BE28: =IF(ISNA($AL28),0,INDEX(Transmission!$AI$5:$AI$15000,$AL28+BE$2)) -> 334.09 | BF28: =IF(ISNA($AL28),0,INDEX(Transmission!$AI$5:$AI$15000,$AL28+BF$2)) -> 0 | BG28: 992 | BI28: 992 | BJ28: 0 | BK28: 0 | BL28: 13852.82 | BM28: 16514.02 | BN28: 260.6576017 | BO28: 0 | BP28: 0.000655 | BQ28: 0.000245 | BR28: 0 | BS28: 0 | BT28: 238.04 | BU28: 0.00023 | BV28: 0.0002278854949 | BW28: 0 | BX28: 0 | BY28: 0.0001316666667 | BZ28: 0 | CA28: 399.83 | CB28: 0 | CC28: 0 | CD28: 7763.48 | CE28: 5038.6 | CF28: 0.0002871015395 | CG28: 7872.06 | CH28: 7065.64 | CI28: 0.0002871015395 | CK28: 0.0002871015395 | CL28: 0.0001316666667 | CN28: 992 | CO28: 909 | CQ28: SOCO | CS28: 2400 | CU28: 3700 | DR28: 2600 | DS28: 2000 | DU28: 2600 | DX28: 1 | DY28: MISO_IN_2_PJM_ROR | DZ28: 0 | EA28: 0 | EB28: 260.6576017 | EC28: 0 | ED28: 0 | EE28: 0 | EF28: 0 | EG28: 0 | EH28: 0 | EI28: 0 | EJ28: 0 | EK28: 0 | EL28: 0.0002338144486 | EM28: 0.0002023297175 | EN28: 0.0002283963729 | EO28: 0.000195331164 | EQ28: MISO_MI_2_PJM_ROR | ER28: 0.000195
A29: MISO_MI_2_MISO_IN | B29: MISO_MI | C29: MISO_IN | D29: 0 | E29: 0 | F29: 0 | G29: =VLOOKUP($A29,Transmission!$E$5:$L$15000,8,0) -> 2535 | H29: =VLOOKUP($A29,Transmission!$AA$5:$AH$15000,8,0) -> 2045 | I29: =MATCH($H$1&$A29,Transmission!$C$5:$C$15000,0) -> 5661 | J29: =IF(ISNA($I29),0,INDEX(Transmission!$M$5:$M$15000,$I29+J$2)) -> 2535 | K29: =IF(ISNA($I29),0,INDEX(Transmission!$M$5:$M$15000,$I29+K$2)) -> 2535 | L29: =IF(ISNA($I29),0,INDEX(Transmission!$M$5:$M$15000,$I29+L$2)) -> 2469.4 | M29: =IF(ISNA($I29),0,INDEX(Transmission!$M$5:$M$15000,$I29+M$2)) -> 2535 | N29: =IF(ISNA($I29),0,INDEX(Transmission!$M$5:$M$15000,$I29+N$2)) -> 2535 | O29: =IF(ISNA($I29),0,INDEX(Transmission!$M$5:$M$15000,$I29+O$2)) -> 2091.46 | P29: =IF(ISNA($I29),0,INDEX(Transmission!$M$5:$M$15000,$I29+P$2)) -> 1642.41 | Q29: =IF(ISNA($I29),0,INDEX(Transmission!$M$5:$M$15000,$I29+Q$2)) -> 893.1 | R29: =IF(ISNA($I29),0,INDEX(Transmission!$M$5:$M$15000,$I29+R$2)) -> 793.54 | S29: =IF(ISNA($I29),0,INDEX(Transmission!$M$5:$M$15000,$I29+S$2)) -> 0 | T29: =IF(ISNA($I29),0,INDEX(Transmission!$M$5:$M$15000,$I29+T$2)) -> 1305.18 | U29: =IF(ISNA($I29),0,INDEX(Transmission!$M$5:$M$15000,$I29+U$2)) -> 940.9 | V29: =IF(ISNA($I29),0,INDEX(Transmission!$M$5:$M$15000,$I29+V$2)) -> 245.13 | W29: =IF(ISNA($I29),0,INDEX(Transmission!$M$5:$M$15000,$I29+W$2)) -> 254.86 | X29: =IF(ISNA($I29),0,INDEX(Transmission!$M$5:$M$15000,$I29+X$2)) -> 2535 | Y29: =IF(ISNA($I29),0,INDEX(Transmission!$M$5:$M$15000,$I29+Y$2)) -> 2535 | Z29: =IF(ISNA($I29),0,INDEX(Transmission!$M$5:$M$15000,$I29+Z$2)) -> 2169.04 | AA29: =IF(ISNA($I29),0,INDEX(Transmission!$M$5:$M$15000,$I29+AA$2)) -> 1007.41 | AB29: =IF(ISNA($I29),0,INDEX(Transmission!$M$5:$M$15000,$I29+AB$2)) -> 1607.61 | AC29: =IF(ISNA($I29),0,INDEX(Transmission!$M$5:$M$15000,$I29+AC$2)) -> 2535 | AD29: 2535 | AE29: 1.281492637 | AF29: 1.281492637 | AG29: 0.3447867557 | AH29: 2535 | AI29: 5490 | AJ29: 2393.29 | AL29: =MATCH("2030"&$A29,Transmission!$Y$5:$Y$15000,0) -> 5681 | AM29: =IF(ISNA($AL29),0,INDEX(Transmission!$AI$5:$AI$15000,$AL29+AM$2)) -> 0 | AN29: =IF(ISNA($AL29),0,INDEX(Transmission!$AI$5:$AI$15000,$AL29+AN$2)) -> 1436.16 | AO29: =IF(ISNA($AL29),0,INDEX(Transmission!$AI$5:$AI$15000,$AL29+AO$2)) -> 2045 | AP29: =IF(ISNA($AL29),0,INDEX(Transmission!$AI$5:$AI$15000,$AL29+AP$2)) -> 2045 | AQ29: =IF(ISNA($AL29),0,INDEX(Transmission!$AI$5:$AI$15000,$AL29+AQ$2)) -> 1024.16 | AR29: =IF(ISNA($AL29),0,INDEX(Transmission!$AI$5:$AI$15000,$AL29+AR$2)) -> 1515.8 | AS29: =IF(ISNA($AL29),0,INDEX(Transmission!$AI$5:$AI$15000,$AL29+AS$2)) -> 0 | AT29: =IF(ISNA($AL29),0,INDEX(Transmission!$AI$5:$AI$15000,$AL29+AT$2)) -> 0 | AU29: =IF(ISNA($AL29),0,INDEX(Transmission!$AI$5:$AI$15000,$AL29+AU$2)) -> 0 | AV29: =IF(ISNA($AL29),0,INDEX(Transmission!$AI$5:$AI$15000,$AL29+AV$2)) -> 0 | AW29: =IF(ISNA($AL29),0,INDEX(Transmission!$AI$5:$AI$15000,$AL29+AW$2)) -> 2045 | AX29: =IF(ISNA($AL29),0,INDEX(Transmission!$AI$5:$AI$15000,$AL29+AX$2)) -> 0 | AY29: =IF(ISNA($AL29),0,INDEX(Transmission!$AI$5:$AI$15000,$AL29+AY$2)) -> 0 | AZ29: =IF(ISNA($AL29),0,INDEX(Transmission!$AI$5:$AI$15000,$AL29+AZ$2)) -> 0 | BA29: =IF(ISNA($AL29),0,INDEX(Transmission!$AI$5:$AI$15000,$AL29+BA$2)) -> 0 | BB29: =IF(ISNA($AL29),0,INDEX(Transmission!$AI$5:$AI$15000,$AL29+BB$2)) -> 958.78 | BC29: =IF(ISNA($AL29),0,INDEX(Transmission!$AI$5:$AI$15000,$AL29+BC$2)) -> 0 | BD29: =IF(ISNA($AL29),0,INDEX(Transmission!$AI$5:$AI$15000,$AL29+BD$2)) -> 0 | BE29: =IF(ISNA($AL29),0,INDEX(Transmission!$AI$5:$AI$15000,$AL29+BE$2)) -> 0 | BF29: =IF(ISNA($AL29),0,INDEX(Transmission!$AI$5:$AI$15000,$AL29+BF$2)) -> 0 | BG29: 2045 | BI29: 2045 | BJ29: 0 | BK29: 0 | BL29: 0.000395 | BM29: 14575.38 | BN29: 0.0001316666667 | BO29: 0 | BP29: 0.000395 | BQ29: 0.0001316666667 | BR29: 0 | BS29: 0 | BT29: 7638.99 | BU29: 8697.81 | BV29: 0.0001768121844 | BW29: 0 | BX29: 5564.29 | BY29: 0.0001852059737 | BZ29: 0 | CA29: 1829.72 | CB29: 0 | CC29: 0 | CD29: 556.72 | CE29: 8645.66 | CF29: 0.0001960837323 | CG29: 4950.56 | CH29: 2809.53 | CI29: 0.0001960837323 | CK29: 0.0001960837323 | CL29: 490.4165436 | CN29: 2045 | CO29: 5000 | CQ29: SPP_N | CS29: 1800 | CZ29: 2000 | DA29: 750 | DC29: 330 | DN29: 210 | DQ29: 4000 | DX29: 1 | DY29: MISO_MI_2_MISO_IN | DZ29: 0 | EA29: 1456.429566 | EB29: 0 | EC29: 8251.389895 | ED29: 0 | EE29: 0 | EF29: 0 | EG29: 0 | EH29: 0 | EI29: 0 | EJ29: 490.4165436 | EK29: 15.44691605 | EL29: 0.0001518828918 | EM29: 0.0001316666667 | EN29: 0.0001459976081 | EO29: 0.0001316666667 | EQ29: MISO_MO-IL_2_ENT | ER29: 0.0002131512452
A30: MISO_MI_2_MISO_WUMS | B30: MISO_MI | C30: MISO_WUMS | D30: 0 | E30: 0 | F30: 0 | G30: =VLOOKUP($A30,Transmission!$E$5:$L$15000,8,0) -> 312 | H30: =VLOOKUP($A30,Transmission!$AA$5:$AH$15000,8,0) -> 117 | I30: =MATCH($H$1&$A30,Transmission!$C$5:$C$15000,0) -> 5681 | J30: =IF(ISNA($I30),0,INDEX(Transmission!$M$5:$M$15000,$I30+J$2)) -> 114.82 | K30: =IF(ISNA($I30),0,INDEX(Transmission!$M$5:$M$15000,$I30+K$2)) -> 0 | L30: =IF(ISNA($I30),0,INDEX(Transmission!$M$5:$M$15000,$I30+L$2)) -> 0 | M30: =IF(ISNA($I30),0,INDEX(Transmission!$M$5:$M$15000,$I30+M$2)) -> 52.79 | N30: =IF(ISNA($I30),0,INDEX(Transmission!$M$5:$M$15000,$I30+N$2)) -> 0 | O30: =IF(ISNA($I30),0,INDEX(Transmission!$M$5:$M$15000,$I30+O$2)) -> 0 | P30: =IF(ISNA($I30),0,INDEX(Transmission!$M$5:$M$15000,$I30+P$2)) -> 0 | Q30: =IF(ISNA($I30),0,INDEX(Transmission!$M$5:$M$15000,$I30+Q$2)) -> 0 | R30: =IF(ISNA($I30),0,INDEX(Transmission!$M$5:$M$15000,$I30+R$2)) -> 113.84 | S30: =IF(ISNA($I30),0,INDEX(Transmission!$M$5:$M$15000,$I30+S$2)) -> 0 | T30: =IF(ISNA($I30),0,INDEX(Transmission!$M$5:$M$15000,$I30+T$2)) -> 0 | U30: =IF(ISNA($I30),0,INDEX(Transmission!$M$5:$M$15000,$I30+U$2)) -> 50.71 | V30: =IF(ISNA($I30),0,INDEX(Transmission!$M$5:$M$15000,$I30+V$2)) -> 0 | W30: =IF(ISNA($I30),0,INDEX(Transmission!$M$5:$M$15000,$I30+W$2)) -> 0 | X30: =IF(ISNA($I30),0,INDEX(Transmission!$M$5:$M$15000,$I30+X$2)) -> 242.18 | Y30: =IF(ISNA($I30),0,INDEX(Transmission!$M$5:$M$15000,$I30+Y$2)) -> 0 | Z30: =IF(ISNA($I30),0,INDEX(Transmission!$M$5:$M$15000,$I30+Z$2)) -> 0 | AA30: =IF(ISNA($I30),0,INDEX(Transmission!$M$5:$M$15000,$I30+AA$2)) -> 154.36 | AB30: =IF(ISNA($I30),0,INDEX(Transmission!$M$5:$M$15000,$I30+AB$2)) -> 175.07 | AC30: =IF(ISNA($I30),0,INDEX(Transmission!$M$5:$M$15000,$I30+AC$2)) -> 312 | AD30: 312 | AE30: 0.0998854726 | AF30: 0.0998854726 | AG30: 0.0849609589 | AH30: 312 | AI30: 294 | AJ30: 294 | AL30: =MATCH("2030"&$A30,Transmission!$Y$5:$Y$15000,0) -> 5701 | AM30: =IF(ISNA($AL30),0,INDEX(Transmission!$AI$5:$AI$15000,$AL30+AM$2)) -> 0 | AN30: =IF(ISNA($AL30),0,INDEX(Transmission!$AI$5:$AI$15000,$AL30+AN$2)) -> 0 | AO30: =IF(ISNA($AL30),0,INDEX(Transmission!$AI$5:$AI$15000,$AL30+AO$2)) -> 0 | AP30: =IF(ISNA($AL30),0,INDEX(Transmission!$AI$5:$AI$15000,$AL30+AP$2)) -> 0 | AQ30: =IF(ISNA($AL30),0,INDEX(Transmission!$AI$5:$AI$15000,$AL30+AQ$2)) -> 0 | AR30: =IF(ISNA($AL30),0,INDEX(Transmission!$AI$5:$AI$15000,$AL30+AR$2)) -> 0 | AS30: =IF(ISNA($AL30),0,INDEX(Transmission!$AI$5:$AI$15000,$AL30+AS$2)) -> 0 | AT30: =IF(ISNA($AL30),0,INDEX(Transmission!$AI$5:$AI$15000,$AL30+AT$2)) -> 0 | AU30: =IF(ISNA($AL30),0,INDEX(Transmission!$AI$5:$AI$15000,$AL30+AU$2)) -> 0 | AV30: =IF(ISNA($AL30),0,INDEX(Transmission!$AI$5:$AI$15000,$AL30+AV$2)) -> 0 | AW30: =IF(ISNA($AL30),0,INDEX(Transmission!$AI$5:$AI$15000,$AL30+AW$2)) -> 0 | AX30: =IF(ISNA($AL30),0,INDEX(Transmission!$AI$5:$AI$15000,$AL30+AX$2)) -> 0 | AY30: =IF(ISNA($AL30),0,INDEX(Transmission!$AI$5:$AI$15000,$AL30+AY$2)) -> 0 | AZ30: =IF(ISNA($AL30),0,INDEX(Transmission!$AI$5:$AI$15000,$AL30+AZ$2)) -> 0 | BA30: =IF(ISNA($AL30),0,INDEX(Transmission!$AI$5:$AI$15000,$AL30+BA$2)) -> 0 | BB30: =IF(ISNA($AL30),0,INDEX(Transmission!$AI$5:$AI$15000,$AL30+BB$2)) -> 0 | BC30: =IF(ISNA($AL30),0,INDEX(Transmission!$AI$5:$AI$15000,$AL30+BC$2)) -> 0 | BD30: =IF(ISNA($AL30),0,INDEX(Transmission!$AI$5:$AI$15000,$AL30+BD$2)) -> 0 | BE30: =IF(ISNA($AL30),0,INDEX(Transmission!$AI$5:$AI$15000,$AL30+BE$2)) -> 0 | BF30: =IF(ISNA($AL30),0,INDEX(Transmission!$AI$5:$AI$15000,$AL30+BF$2)) -> 0 | BG30: 0 | BI30: 117 | BJ30: 0 | BK30: 0 | BL30: 1371.01 | BM30: 2526.44 | BN30: 0.0002436054081 | BO30: 0 | BP30: 481.26 | BQ30: 0.0002092292641 | BR30: 0 | BS30: 0 | BT30: 1510.41 | BU30: 1742.08 | BV30: 8.462317829 | BW30: 0 | BX30: 308.98 | BY30: 0.0002120716698 | BZ30: 0 | CA30: 2070.91 | CB30: 0 | CC30: 0 | CD30: 4214.81 | CE30: 3284.26 | CF30: 140.241601 | CG30: 2133.84 | CH30: 2088.98 | CI30: 140.241601 | CK30: 140.241601 | CL30: 194.9492501 | CN30: 117 | CO30: 99 | CQ30: SPP_S | CR30: 400 | CS30: 850 | CT30: 800 | DP30: 0 | DX30: 1 | DY30: MISO_MI_2_MISO_WUMS | DZ30: 0 | EA30: 0 | EB30: 0 | EC30: 0 | ED30: 0 | EE30: 102.2737161 | EF30: 8.462317829 | EG30: 0 | EH30: 20.11349079 | EI30: 140.241601 | EJ30: 194.9492501 | EK30: 75.50021063 | EL30: 424.0248979 | EM30: 29.38114888 | EN30: 372.0535661 | EO30: 18.92666804 | EQ30: MISO_MO-IL_2_MISO_IN | ER30: 350.8733538
A31: MISO_MI_2_IESO | B31: MISO_MI | C31: IESO | D31: 5 | E31: 3 | F31: 8 | G31: =VLOOKUP($A31,Transmission!$E$5:$L$15000,8,0) ->  | H31: =VLOOKUP($A31,Transmission!$AA$5:$AH$15000,8,0) ->  | I31: =MATCH($H$1&$A31,Transmission!$C$5:$C$15000,0) ->  | J31: =IF(ISNA($I31),0,INDEX(Transmission!$M$5:$M$15000,$I31+J$2)) -> 0 | K31: =IF(ISNA($I31),0,INDEX(Transmission!$M$5:$M$15000,$I31+K$2)) -> 0 | L31: =IF(ISNA($I31),0,INDEX(Transmission!$M$5:$M$15000,$I31+L$2)) -> 0 | M31: =IF(ISNA($I31),0,INDEX(Transmission!$M$5:$M$15000,$I31+M$2)) -> 0 | N31: =IF(ISNA($I31),0,INDEX(Transmission!$M$5:$M$15000,$I31+N$2)) -> 0 | O31: =IF(ISNA($I31),0,INDEX(Transmission!$M$5:$M$15000,$I31+O$2)) -> 0 | P31: =IF(ISNA($I31),0,INDEX(Transmission!$M$5:$M$15000,$I31+P$2)) -> 0 | Q31: =IF(ISNA($I31),0,INDEX(Transmission!$M$5:$M$15000,$I31+Q$2)) -> 0 | R31: =IF(ISNA($I31),0,INDEX(Transmission!$M$5:$M$15000,$I31+R$2)) -> 0 | S31: =IF(ISNA($I31),0,INDEX(Transmission!$M$5:$M$15000,$I31+S$2)) -> 0 | T31: =IF(ISNA($I31),0,INDEX(Transmission!$M$5:$M$15000,$I31+T$2)) -> 0 | U31: =IF(ISNA($I31),0,INDEX(Transmission!$M$5:$M$15000,$I31+U$2)) -> 0 | V31: =IF(ISNA($I31),0,INDEX(Transmission!$M$5:$M$15000,$I31+V$2)) -> 0 | W31: =IF(ISNA($I31),0,INDEX(Transmission!$M$5:$M$15000,$I31+W$2)) -> 0 | X31: =IF(ISNA($I31),0,INDEX(Transmission!$M$5:$M$15000,$I31+X$2)) -> 0 | Y31: =IF(ISNA($I31),0,INDEX(Transmission!$M$5:$M$15000,$I31+Y$2)) -> 0 | Z31: =IF(ISNA($I31),0,INDEX(Transmission!$M$5:$M$15000,$I31+Z$2)) -> 0 | AA31: =IF(ISNA($I31),0,INDEX(Transmission!$M$5:$M$15000,$I31+AA$2)) -> 0 | AB31: =IF(ISNA($I31),0,INDEX(Transmission!$M$5:$M$15000,$I31+AB$2)) -> 0 | AC31: =IF(ISNA($I31),0,INDEX(Transmission!$M$5:$M$15000,$I31+AC$2)) -> 0 | AD31: 0 | AE31: 0 | AF31: 0 | AG31: 3.125 | AH31: 2865 | AI31: 3125 | AJ31: 3125 | AL31: =MATCH("2030"&$A31,Transmission!$Y$5:$Y$15000,0) ->  | AM31: =IF(ISNA($AL31),0,INDEX(Transmission!$AI$5:$AI$15000,$AL31+AM$2)) -> 0 | AN31: =IF(ISNA($AL31),0,INDEX(Transmission!$AI$5:$AI$15000,$AL31+AN$2)) -> 0 | AO31: =IF(ISNA($AL31),0,INDEX(Transmission!$AI$5:$AI$15000,$AL31+AO$2)) -> 0 | AP31: =IF(ISNA($AL31),0,INDEX(Transmission!$AI$5:$AI$15000,$AL31+AP$2)) -> 0 | AQ31: =IF(ISNA($AL31),0,INDEX(Transmission!$AI$5:$AI$15000,$AL31+AQ$2)) -> 0 | AR31: =IF(ISNA($AL31),0,INDEX(Transmission!$AI$5:$AI$15000,$AL31+AR$2)) -> 0 | AS31: =IF(ISNA($AL31),0,INDEX(Transmission!$AI$5:$AI$15000,$AL31+AS$2)) -> 0 | AT31: =IF(ISNA($AL31),0,INDEX(Transmission!$AI$5:$AI$15000,$AL31+AT$2)) -> 0 | AU31: =IF(ISNA($AL31),0,INDEX(Transmission!$AI$5:$AI$15000,$AL31+AU$2)) -> 0 | AV31: =IF(ISNA($AL31),0,INDEX(Transmission!$AI$5:$AI$15000,$AL31+AV$2)) -> 0 | AW31: =IF(ISNA($AL31),0,INDEX(Transmission!$AI$5:$AI$15000,$AL31+AW$2)) -> 0 | AX31: =IF(ISNA($AL31),0,INDEX(Transmission!$AI$5:$AI$15000,$AL31+AX$2)) -> 0 | AY31: =IF(ISNA($AL31),0,INDEX(Transmission!$AI$5:$AI$15000,$AL31+AY$2)) -> 0 | AZ31: =IF(ISNA($AL31),0,INDEX(Transmission!$AI$5:$AI$15000,$AL31+AZ$2)) -> 0 | BA31: =IF(ISNA($AL31),0,INDEX(Transmission!$AI$5:$AI$15000,$AL31+BA$2)) -> 0 | BB31: =IF(ISNA($AL31),0,INDEX(Transmission!$AI$5:$AI$15000,$AL31+BB$2)) -> 0 | BC31: =IF(ISNA($AL31),0,INDEX(Transmission!$AI$5:$AI$15000,$AL31+BC$2)) -> 0 | BD31: =IF(ISNA($AL31),0,INDEX(Transmission!$AI$5:$AI$15000,$AL31+BD$2)) -> 0 | BE31: =IF(ISNA($AL31),0,INDEX(Transmission!$AI$5:$AI$15000,$AL31+BE$2)) -> 0 | BF31: =IF(ISNA($AL31),0,INDEX(Transmission!$AI$5:$AI$15000,$AL31+BF$2)) -> 0 | BG31: 0 | BI31: 1580 | BJ31: 0 | BK31: 0 | BL31: 0.000395 | BM31: 0.000395 | BN31: 0.0001316666667 | BO31: 0 | BP31: 0.000395 | BQ31: 0.0001316666667 | BR31: 0 | BS31: 0 | BT31: 0 | BU31: 0 | BV31: 0.0001316666667 | BW31: 0 | BX31: 0 | BY31: 0.0001316666667 | BZ31: 0 | CA31: 0 | CB31: 0 | CC31: 0 | CD31: 0 | CE31: 0 | CF31: 0.0001316666667 | CG31: 0 | CH31: 0 | CI31: 0.0001316666667 | CK31: 0.0001316666667 | CL31: 1284.758575 | CN31: 1580 | CO31: 1840 | CQ31: TVA | CS31: =CS33+CS34 -> 3500 | CZ31: =CZ33+CZ34 -> 4050 | DE31: =DE33+DE34 -> 800 | DM31: =DM33+DM34 -> 2050 | DO31: =DO33+DO34 -> 3700 | DS31: =DS33+DS34 -> 1050 | DU31: 99999 | DX31: 1 | DY31: MISO_MI_2_IESO | DZ31: 0 | EA31: 0 | EB31: 0 | EC31: 0 | ED31: 0 | EE31: 0 | EF31: 0 | EG31: 0 | EH31: 0 | EI31: 0 | EJ31: 1284.758575 | EK31: 0 | EL31: 0.0001316666667 | EM31: 898.1148617 | EN31: 0.0001316666667 | EO31: 922.7273127 | EQ31: MISO_MO-IL_2_MISO_W | ER31: 0.0001956928378
A32: MISO_MI_2_PJM_ROR | B32: MISO_MI | C32: PJM_ROR | D32: 0 | E32: 2 | F32: 2 | G32: =VLOOKUP($A32,Transmission!$E$5:$L$15000,8,0) -> 1424 | H32: =VLOOKUP($A32,Transmission!$AA$5:$AH$15000,8,0) -> 1424 | I32: =MATCH($H$1&$A32,Transmission!$C$5:$C$15000,0) -> 5701 | J32: =IF(ISNA($I32),0,INDEX(Transmission!$M$5:$M$15000,$I32+J$2)) -> 329.33 | K32: =IF(ISNA($I32),0,INDEX(Transmission!$M$5:$M$15000,$I32+K$2)) -> 0 | L32: =IF(ISNA($I32),0,INDEX(Transmission!$M$5:$M$15000,$I32+L$2)) -> 0 | M32: =IF(ISNA($I32),0,INDEX(Transmission!$M$5:$M$15000,$I32+M$2)) -> 397.89 | N32: =IF(ISNA($I32),0,INDEX(Transmission!$M$5:$M$15000,$I32+N$2)) -> 1242.51 | O32: =IF(ISNA($I32),0,INDEX(Transmission!$M$5:$M$15000,$I32+O$2)) -> 0 | P32: =IF(ISNA($I32),0,INDEX(Transmission!$M$5:$M$15000,$I32+P$2)) -> 0 | Q32: =IF(ISNA($I32),0,INDEX(Transmission!$M$5:$M$15000,$I32+Q$2)) -> 0 | R32: =IF(ISNA($I32),0,INDEX(Transmission!$M$5:$M$15000,$I32+R$2)) -> 660.94 | S32: =IF(ISNA($I32),0,INDEX(Transmission!$M$5:$M$15000,$I32+S$2)) -> 0 | T32: =IF(ISNA($I32),0,INDEX(Transmission!$M$5:$M$15000,$I32+T$2)) -> 0 | U32: =IF(ISNA($I32),0,INDEX(Transmission!$M$5:$M$15000,$I32+U$2)) -> 0 | V32: =IF(ISNA($I32),0,INDEX(Transmission!$M$5:$M$15000,$I32+V$2)) -> 42.25 | W32: =IF(ISNA($I32),0,INDEX(Transmission!$M$5:$M$15000,$I32+W$2)) -> 811.36 | X32: =IF(ISNA($I32),0,INDEX(Transmission!$M$5:$M$15000,$I32+X$2)) -> 0 | Y32: =IF(ISNA($I32),0,INDEX(Transmission!$M$5:$M$15000,$I32+Y$2)) -> 1424 | Z32: =IF(ISNA($I32),0,INDEX(Transmission!$M$5:$M$15000,$I32+Z$2)) -> 1424 | AA32: =IF(ISNA($I32),0,INDEX(Transmission!$M$5:$M$15000,$I32+AA$2)) -> 1424 | AB32: =IF(ISNA($I32),0,INDEX(Transmission!$M$5:$M$15000,$I32+AB$2)) -> 1424 | AC32: =IF(ISNA($I32),0,INDEX(Transmission!$M$5:$M$15000,$I32+AC$2)) -> 0 | AD32: 1424 | AE32: 0.3790308562 | AF32: 0.3790308562 | AG32: 0 | AH32: 1424 | AI32: 1305 | AJ32: 0 | AL32: =MATCH("2030"&$A32,Transmission!$Y$5:$Y$15000,0) -> 5721 | AM32: =IF(ISNA($AL32),0,INDEX(Transmission!$AI$5:$AI$15000,$AL32+AM$2)) -> 1424 | AN32: =IF(ISNA($AL32),0,INDEX(Transmission!$AI$5:$AI$15000,$AL32+AN$2)) -> 1424 | AO32: =IF(ISNA($AL32),0,INDEX(Transmission!$AI$5:$AI$15000,$AL32+AO$2)) -> 0 | AP32: =IF(ISNA($AL32),0,INDEX(Transmission!$AI$5:$AI$15000,$AL32+AP$2)) -> 495.49 | AQ32: =IF(ISNA($AL32),0,INDEX(Transmission!$AI$5:$AI$15000,$AL32+AQ$2)) -> 0 | AR32: =IF(ISNA($AL32),0,INDEX(Transmission!$AI$5:$AI$15000,$AL32+AR$2)) -> 364.4 | AS32: =IF(ISNA($AL32),0,INDEX(Transmission!$AI$5:$AI$15000,$AL32+AS$2)) -> 0 | AT32: =IF(ISNA($AL32),0,INDEX(Transmission!$AI$5:$AI$15000,$AL32+AT$2)) -> 0 | AU32: =IF(ISNA($AL32),0,INDEX(Transmission!$AI$5:$AI$15000,$AL32+AU$2)) -> 0 | AV32: =IF(ISNA($AL32),0,INDEX(Transmission!$AI$5:$AI$15000,$AL32+AV$2)) -> 0 | AW32: =IF(ISNA($AL32),0,INDEX(Transmission!$AI$5:$AI$15000,$AL32+AW$2)) -> 0 | AX32: =IF(ISNA($AL32),0,INDEX(Transmission!$AI$5:$AI$15000,$AL32+AX$2)) -> 0 | AY32: =IF(ISNA($AL32),0,INDEX(Transmission!$AI$5:$AI$15000,$AL32+AY$2)) -> 0 | AZ32: =IF(ISNA($AL32),0,INDEX(Transmission!$AI$5:$AI$15000,$AL32+AZ$2)) -> 0 | BA32: =IF(ISNA($AL32),0,INDEX(Transmission!$AI$5:$AI$15000,$AL32+BA$2)) -> 0 | BB32: =IF(ISNA($AL32),0,INDEX(Transmission!$AI$5:$AI$15000,$AL32+BB$2)) -> 306.06 | BC32: =IF(ISNA($AL32),0,INDEX(Transmission!$AI$5:$AI$15000,$AL32+BC$2)) -> 0 | BD32: =IF(ISNA($AL32),0,INDEX(Transmission!$AI$5:$AI$15000,$AL32+BD$2)) -> 0 | BE32: =IF(ISNA($AL32),0,INDEX(Transmission!$AI$5:$AI$15000,$AL32+BE$2)) -> 0 | BF32: =IF(ISNA($AL32),0,INDEX(Transmission!$AI$5:$AI$15000,$AL32+BF$2)) -> 0 | BG32: 1424 | BI32: 1424 | BJ32: 0 | BK32: 0 | BL32: 755.44 | BM32: 0.000395 | BN32: 0.0002012584628 | BO32: 0 | BP32: 0.0005 | BQ32: 0.0001383333333 | BR32: 0 | BS32: 0 | BT32: 7531.19 | BU32: 8186.63 | BV32: 0.0001835711552 | BW32: 0 | BX32: 0 | BY32: 0.0001316666667 | BZ32: 0 | CA32: 4559.64 | CB32: 0 | CC32: 0 | CD32: 0.0003999999999 | CE32: 0.0002500000001 | CF32: 0.0002016666666 | CG32: 0.00037 | CH32: 0.0004100000001 | CI32: 0.0002016666666 | CK32: 0.0002016666666 | CL32: 0.0001316666667 | CN32: 1424 | CO32: 1305 | CQ32: VACAR | DM32: 2000 | DO32: 3000 | DR32: 900 | DU32: 900 | DX32: 1 | DY32: MISO_MI_2_PJM_ROR | DZ32: 0 | EA32: 0 | EB32: 0 | EC32: 0 | ED32: 0 | EE32: 0 | EF32: 0 | EG32: 0 | EH32: 0 | EI32: 0 | EJ32: 0 | EK32: 0 | EL32: 0.0001916666667 | EM32: 0.0001316666667 | EN32: 0.000195 | EO32: 0.0001316666667 | EQ32: MISO_MO-IL_2_PJM_ROR | ER32: 0.0002880163273
A33: MISO_MO-IL_2_ENT | B33: MISO_MO-IL | C33: ENT | D33: 5 | E33: 3 | F33: 8 | G33: =VLOOKUP($A33,Transmission!$E$5:$L$15000,8,0) -> 2540 | H33: =VLOOKUP($A33,Transmission!$AA$5:$AH$15000,8,0) -> 2540 | I33: =MATCH($H$1&$A33,Transmission!$C$5:$C$15000,0) -> 5721 | J33: =IF(ISNA($I33),0,INDEX(Transmission!$M$5:$M$15000,$I33+J$2)) -> 0 | K33: =IF(ISNA($I33),0,INDEX(Transmission!$M$5:$M$15000,$I33+K$2)) -> 0 | L33: =IF(ISNA($I33),0,INDEX(Transmission!$M$5:$M$15000,$I33+L$2)) -> 1781.23 | M33: =IF(ISNA($I33),0,INDEX(Transmission!$M$5:$M$15000,$I33+M$2)) -> 27.96 | N33: =IF(ISNA($I33),0,INDEX(Transmission!$M$5:$M$15000,$I33+N$2)) -> 0 | O33: =IF(ISNA($I33),0,INDEX(Transmission!$M$5:$M$15000,$I33+O$2)) -> 0 | P33: =IF(ISNA($I33),0,INDEX(Transmission!$M$5:$M$15000,$I33+P$2)) -> 0 | Q33: =IF(ISNA($I33),0,INDEX(Transmission!$M$5:$M$15000,$I33+Q$2)) -> 927.46 | R33: =IF(ISNA($I33),0,INDEX(Transmission!$M$5:$M$15000,$I33+R$2)) -> 2505.2 | S33: =IF(ISNA($I33),0,INDEX(Transmission!$M$5:$M$15000,$I33+S$2)) -> 0 | T33: =IF(ISNA($I33),0,INDEX(Transmission!$M$5:$M$15000,$I33+T$2)) -> 0 | U33: =IF(ISNA($I33),0,INDEX(Transmission!$M$5:$M$15000,$I33+U$2)) -> 0 | V33: =IF(ISNA($I33),0,INDEX(Transmission!$M$5:$M$15000,$I33+V$2)) -> 0 | W33: =IF(ISNA($I33),0,INDEX(Transmission!$M$5:$M$15000,$I33+W$2)) -> 0 | X33: =IF(ISNA($I33),0,INDEX(Transmission!$M$5:$M$15000,$I33+X$2)) -> 0 | Y33: =IF(ISNA($I33),0,INDEX(Transmission!$M$5:$M$15000,$I33+Y$2)) -> 745.88 | Z33: =IF(ISNA($I33),0,INDEX(Transmission!$M$5:$M$15000,$I33+Z$2)) -> 0 | AA33: =IF(ISNA($I33),0,INDEX(Transmission!$M$5:$M$15000,$I33+AA$2)) -> 0 | AB33: =IF(ISNA($I33),0,INDEX(Transmission!$M$5:$M$15000,$I33+AB$2)) -> 0 | AC33: =IF(ISNA($I33),0,INDEX(Transmission!$M$5:$M$15000,$I33+AC$2)) -> 0 | AD33: 2505.2 | AE33: 0.2994206906 | AF33: 0.2994206906 | AG33: 0.001732031963 | AH33: 2540 | AI33: 2260 | AJ33: 1517.26 | AL33: =MATCH("2030"&$A33,Transmission!$Y$5:$Y$15000,0) -> 5741 | AM33: =IF(ISNA($AL33),0,INDEX(Transmission!$AI$5:$AI$15000,$AL33+AM$2)) -> 0 | AN33: =IF(ISNA($AL33),0,INDEX(Transmission!$AI$5:$AI$15000,$AL33+AN$2)) -> 0 | AO33: =IF(ISNA($AL33),0,INDEX(Transmission!$AI$5:$AI$15000,$AL33+AO$2)) -> 0 | AP33: =IF(ISNA($AL33),0,INDEX(Transmission!$AI$5:$AI$15000,$AL33+AP$2)) -> 222.36 | AQ33: =IF(ISNA($AL33),0,INDEX(Transmission!$AI$5:$AI$15000,$AL33+AQ$2)) -> 0 | AR33: =IF(ISNA($AL33),0,INDEX(Transmission!$AI$5:$AI$15000,$AL33+AR$2)) -> 0 | AS33: =IF(ISNA($AL33),0,INDEX(Transmission!$AI$5:$AI$15000,$AL33+AS$2)) -> 0 | AT33: =IF(ISNA($AL33),0,INDEX(Transmission!$AI$5:$AI$15000,$AL33+AT$2)) -> 0 | AU33: =IF(ISNA($AL33),0,INDEX(Transmission!$AI$5:$AI$15000,$AL33+AU$2)) -> 0 | AV33: =IF(ISNA($AL33),0,INDEX(Transmission!$AI$5:$AI$15000,$AL33+AV$2)) -> 0 | AW33: =IF(ISNA($AL33),0,INDEX(Transmission!$AI$5:$AI$15000,$AL33+AW$2)) -> 0 | AX33: =IF(ISNA($AL33),0,INDEX(Transmission!$AI$5:$AI$15000,$AL33+AX$2)) -> 0 | AY33: =IF(ISNA($AL33),0,INDEX(Transmission!$AI$5:$AI$15000,$AL33+AY$2)) -> 0 | AZ33: =IF(ISNA($AL33),0,INDEX(Transmission!$AI$5:$AI$15000,$AL33+AZ$2)) -> 0 | BA33: =IF(ISNA($AL33),0,INDEX(Transmission!$AI$5:$AI$15000,$AL33+BA$2)) -> 0 | BB33: =IF(ISNA($AL33),0,INDEX(Transmission!$AI$5:$AI$15000,$AL33+BB$2)) -> 0 | BC33: =IF(ISNA($AL33),0,INDEX(Transmission!$AI$5:$AI$15000,$AL33+BC$2)) -> 0 | BD33: =IF(ISNA($AL33),0,INDEX(Transmission!$AI$5:$AI$15000,$AL33+BD$2)) -> 0 | BE33: =IF(ISNA($AL33),0,INDEX(Transmission!$AI$5:$AI$15000,$AL33+BE$2)) -> 0 | BF33: =IF(ISNA($AL33),0,INDEX(Transmission!$AI$5:$AI$15000,$AL33+BF$2)) -> 2540 | BG33: 2540 | BI33: 2540 | BJ33: 0 | BK33: 0 | BL33: 1774.92 | BM33: 3705.94 | BN33: 0.0002070416248 | BO33: 0 | BP33: 0.000395 | BQ33: 0.0001316666667 | BR33: 0 | BS33: 0 | BT33: 0 | BU33: 0 | BV33: 0.0001316666667 | BW33: 0 | BX33: 0 | BY33: 0.0001316666667 | BZ33: 0 | CA33: 1370.09 | CB33: 0 | CC33: 0 | CD33: 1.999999995e-05 | CE33: 0 | CF33: 0.0001316666667 | CG33: 702.55 | CH33: 340.22 | CI33: 0.0001316666667 | CK33: 0.0001316666667 | CL33: 0.0001316666667 | CN33: 2540 | CO33: 2260 | CQ33: TVAb | CS33: 500 | CZ33: 50 | DE33: 100 | DM33: 50 | DO33: 500 | DS33: 150 | DX33: 1 | DY33: MISO_MO-IL_2_ENT | DZ33: 0 | EA33: 0 | EB33: 0 | EC33: 0 | ED33: 0 | EE33: 0 | EF33: 0 | EG33: 0 | EH33: 0 | EI33: 0 | EJ33: 0 | EK33: 0 | EL33: 0.0002179374159 | EM33: 0.0001316666667 | EN33: 0.0002131512452 | EO33: 0.0001316666667 | EQ33: MISO_MO-IL_2_SPP_N | ER33: 0.0001316666667
A34: MISO_MO-IL_2_MISO_IN | B34: MISO_MO-IL | C34: MISO_IN | D34: 0 | E34: 0 | F34: 0 | G34: =VLOOKUP($A34,Transmission!$E$5:$L$15000,8,0) -> 2100 | H34: =VLOOKUP($A34,Transmission!$AA$5:$AH$15000,8,0) -> 2100 | I34: =MATCH($H$1&$A34,Transmission!$C$5:$C$15000,0) -> 5741 | J34: =IF(ISNA($I34),0,INDEX(Transmission!$M$5:$M$15000,$I34+J$2)) -> 2100 | K34: =IF(ISNA($I34),0,INDEX(Transmission!$M$5:$M$15000,$I34+K$2)) -> 1179.77 | L34: =IF(ISNA($I34),0,INDEX(Transmission!$M$5:$M$15000,$I34+L$2)) -> 560.23 | M34: =IF(ISNA($I34),0,INDEX(Transmission!$M$5:$M$15000,$I34+M$2)) -> 643.87 | N34: =IF(ISNA($I34),0,INDEX(Transmission!$M$5:$M$15000,$I34+N$2)) -> 2100 | O34: =IF(ISNA($I34),0,INDEX(Transmission!$M$5:$M$15000,$I34+O$2)) -> 2100 | P34: =IF(ISNA($I34),0,INDEX(Transmission!$M$5:$M$15000,$I34+P$2)) -> 1374.62 | Q34: =IF(ISNA($I34),0,INDEX(Transmission!$M$5:$M$15000,$I34+Q$2)) -> 1450.1 | R34: =IF(ISNA($I34),0,INDEX(Transmission!$M$5:$M$15000,$I34+R$2)) -> 0 | S34: =IF(ISNA($I34),0,INDEX(Transmission!$M$5:$M$15000,$I34+S$2)) -> 1522.5 | T34: =IF(ISNA($I34),0,INDEX(Transmission!$M$5:$M$15000,$I34+T$2)) -> 1317.81 | U34: =IF(ISNA($I34),0,INDEX(Transmission!$M$5:$M$15000,$I34+U$2)) -> 2016.21 | V34: =IF(ISNA($I34),0,INDEX(Transmission!$M$5:$M$15000,$I34+V$2)) -> 2100 | W34: =IF(ISNA($I34),0,INDEX(Transmission!$M$5:$M$15000,$I34+W$2)) -> 932.37 | X34: =IF(ISNA($I34),0,INDEX(Transmission!$M$5:$M$15000,$I34+X$2)) -> 2100 | Y34: =IF(ISNA($I34),0,INDEX(Transmission!$M$5:$M$15000,$I34+Y$2)) -> 2100 | Z34: =IF(ISNA($I34),0,INDEX(Transmission!$M$5:$M$15000,$I34+Z$2)) -> 2100 | AA34: =IF(ISNA($I34),0,INDEX(Transmission!$M$5:$M$15000,$I34+AA$2)) -> 2100 | AB34: =IF(ISNA($I34),0,INDEX(Transmission!$M$5:$M$15000,$I34+AB$2)) -> 0 | AC34: =IF(ISNA($I34),0,INDEX(Transmission!$M$5:$M$15000,$I34+AC$2)) -> 2100 | AD34: 2100 | AE34: 1.430457962 | AF34: 1.430457962 | AG34: 0.01862465753 | AH34: 2100 | AI34: 5000 | AJ34: 203.94 | AL34: =MATCH("2030"&$A34,Transmission!$Y$5:$Y$15000,0) -> 5761 | AM34: =IF(ISNA($AL34),0,INDEX(Transmission!$AI$5:$AI$15000,$AL34+AM$2)) -> 391.26 | AN34: =IF(ISNA($AL34),0,INDEX(Transmission!$AI$5:$AI$15000,$AL34+AN$2)) -> 0 | AO34: =IF(ISNA($AL34),0,INDEX(Transmission!$AI$5:$AI$15000,$AL34+AO$2)) -> 0 | AP34: =IF(ISNA($AL34),0,INDEX(Transmission!$AI$5:$AI$15000,$AL34+AP$2)) -> 0 | AQ34: =IF(ISNA($AL34),0,INDEX(Transmission!$AI$5:$AI$15000,$AL34+AQ$2)) -> 0 | AR34: =IF(ISNA($AL34),0,INDEX(Transmission!$AI$5:$AI$15000,$AL34+AR$2)) -> 0 | AS34: =IF(ISNA($AL34),0,INDEX(Transmission!$AI$5:$AI$15000,$AL34+AS$2)) -> 0 | AT34: =IF(ISNA($AL34),0,INDEX(Transmission!$AI$5:$AI$15000,$AL34+AT$2)) -> 1595.76 | AU34: =IF(ISNA($AL34),0,INDEX(Transmission!$AI$5:$AI$15000,$AL34+AU$2)) -> 1069.73 | AV34: =IF(ISNA($AL34),0,INDEX(Transmission!$AI$5:$AI$15000,$AL34+AV$2)) -> 2100 | AW34: =IF(ISNA($AL34),0,INDEX(Transmission!$AI$5:$AI$15000,$AL34+AW$2)) -> 0 | AX34: =IF(ISNA($AL34),0,INDEX(Transmission!$AI$5:$AI$15000,$AL34+AX$2)) -> 431.23 | AY34: =IF(ISNA($AL34),0,INDEX(Transmission!$AI$5:$AI$15000,$AL34+AY$2)) -> 417.51 | AZ34: =IF(ISNA($AL34),0,INDEX(Transmission!$AI$5:$AI$15000,$AL34+AZ$2)) -> 0 | BA34: =IF(ISNA($AL34),0,INDEX(Transmission!$AI$5:$AI$15000,$AL34+BA$2)) -> 1569.67 | BB34: =IF(ISNA($AL34),0,INDEX(Transmission!$AI$5:$AI$15000,$AL34+BB$2)) -> 1098.92 | BC34: =IF(ISNA($AL34),0,INDEX(Transmission!$AI$5:$AI$15000,$AL34+BC$2)) -> 1515.78 | BD34: =IF(ISNA($AL34),0,INDEX(Transmission!$AI$5:$AI$15000,$AL34+BD$2)) -> 0 | BE34: =IF(ISNA($AL34),0,INDEX(Transmission!$AI$5:$AI$15000,$AL34+BE$2)) -> 0 | BF34: =IF(ISNA($AL34),0,INDEX(Transmission!$AI$5:$AI$15000,$AL34+BF$2)) -> 950.94 | BG34: 2100 | BI34: 2100 | BJ34: 0 | BK34: 0 | BL34: 10352.98 | BM34: 18822.57 | BN34: 0.3038183725 | BO34: 0 | BP34: 1444.24 | BQ34: 0.000214324182 | BR34: 0 | BS34: 0 | BT34: 8398.51 | BU34: 9548.09 | BV34: 4129.441884 | BW34: 0 | BX34: 2344.83 | BY34: 0.000299348604 | BZ34: 0 | CA34: 1918 | CB34: 0 | CC34: 0 | CD34: 10417.93 | CE34: 17537.23 | CF34: 0.0002808582089 | CG34: 8211.24 | CH34: 5641.33 | CI34: 0.0002808582089 | CK34: 0.0002808582089 | CL34: 0.0001947422352 | CN34: 2100 | CO34: 5000 | CP34: Legend | CQ34: TVA_Transm (also amount in Googgle Doc) | CS34: 3000 | CZ34: 4000 | DE34: 700 | DM34: 2000 | DO34: 3200 | DR34: 99999 | DS34: 900 | DX34: 1 | DY34: MISO_MO-IL_2_MISO_IN | DZ34: 0 | EA34: 0 | EB34: 0 | EC34: 4104.323824 | ED34: 0 | EE34: 3473.869818 | EF34: 4129.441884 | EG34: 0 | EH34: 0 | EI34: 0 | EJ34: 0 | EK34: 5121.46282 | EL34: 1178.37876 | EM34: 0.0001316666667 | EN34: 350.8733538 | EO34: 0.0001316666667 | EQ34: MISO_MO-IL_2_TVA_Transmission | ER34: 0.0001316666667
A35: MISO_MO-IL_2_MISO_W | B35: MISO_MO-IL | C35: MISO_W | D35: 0 | E35: 0 | F35: 0 | G35: =VLOOKUP($A35,Transmission!$E$5:$L$15000,8,0) -> 1208 | H35: =VLOOKUP($A35,Transmission!$AA$5:$AH$15000,8,0) -> 960 | I35: =MATCH($H$1&$A35,Transmission!$C$5:$C$15000,0) -> 5761 | J35: =IF(ISNA($I35),0,INDEX(Transmission!$M$5:$M$15000,$I35+J$2)) -> 0 | K35: =IF(ISNA($I35),0,INDEX(Transmission!$M$5:$M$15000,$I35+K$2)) -> 0 | L35: =IF(ISNA($I35),0,INDEX(Transmission!$M$5:$M$15000,$I35+L$2)) -> 0 | M35: =IF(ISNA($I35),0,INDEX(Transmission!$M$5:$M$15000,$I35+M$2)) -> 0 | N35: =IF(ISNA($I35),0,INDEX(Transmission!$M$5:$M$15000,$I35+N$2)) -> 0 | O35: =IF(ISNA($I35),0,INDEX(Transmission!$M$5:$M$15000,$I35+O$2)) -> 0 | P35: =IF(ISNA($I35),0,INDEX(Transmission!$M$5:$M$15000,$I35+P$2)) -> 0 | Q35: =IF(ISNA($I35),0,INDEX(Transmission!$M$5:$M$15000,$I35+Q$2)) -> 0 | R35: =IF(ISNA($I35),0,INDEX(Transmission!$M$5:$M$15000,$I35+R$2)) -> 0 | S35: =IF(ISNA($I35),0,INDEX(Transmission!$M$5:$M$15000,$I35+S$2)) -> 0 | T35: =IF(ISNA($I35),0,INDEX(Transmission!$M$5:$M$15000,$I35+T$2)) -> 0 | U35: =IF(ISNA($I35),0,INDEX(Transmission!$M$5:$M$15000,$I35+U$2)) -> 0 | V35: =IF(ISNA($I35),0,INDEX(Transmission!$M$5:$M$15000,$I35+V$2)) -> 0 | W35: =IF(ISNA($I35),0,INDEX(Transmission!$M$5:$M$15000,$I35+W$2)) -> 0 | X35: =IF(ISNA($I35),0,INDEX(Transmission!$M$5:$M$15000,$I35+X$2)) -> 0 | Y35: =IF(ISNA($I35),0,INDEX(Transmission!$M$5:$M$15000,$I35+Y$2)) -> 0 | Z35: =IF(ISNA($I35),0,INDEX(Transmission!$M$5:$M$15000,$I35+Z$2)) -> 0 | AA35: =IF(ISNA($I35),0,INDEX(Transmission!$M$5:$M$15000,$I35+AA$2)) -> 0 | AB35: =IF(ISNA($I35),0,INDEX(Transmission!$M$5:$M$15000,$I35+AB$2)) -> 0 | AC35: =IF(ISNA($I35),0,INDEX(Transmission!$M$5:$M$15000,$I35+AC$2)) -> 0 | AD35: 0 | AE35: 0 | AF35: 0 | AG35: 3.81802988 | AH35: 1208 | AI35: 4048 | AJ35: 4048 | AL35: =MATCH("2030"&$A35,Transmission!$Y$5:$Y$15000,0) -> 5781 | AM35: =IF(ISNA($AL35),0,INDEX(Transmission!$AI$5:$AI$15000,$AL35+AM$2)) -> 0.01 | AN35: =IF(ISNA($AL35),0,INDEX(Transmission!$AI$5:$AI$15000,$AL35+AN$2)) -> 0 | AO35: =IF(ISNA($AL35),0,INDEX(Transmission!$AI$5:$AI$15000,$AL35+AO$2)) -> 960 | AP35: =IF(ISNA($AL35),0,INDEX(Transmission!$AI$5:$AI$15000,$AL35+AP$2)) -> 960 | AQ35: =IF(ISNA($AL35),0,INDEX(Transmission!$AI$5:$AI$15000,$AL35+AQ$2)) -> 468.54 | AR35: =IF(ISNA($AL35),0,INDEX(Transmission!$AI$5:$AI$15000,$AL35+AR$2)) -> 960 | AS35: =IF(ISNA($AL35),0,INDEX(Transmission!$AI$5:$AI$15000,$AL35+AS$2)) -> 960 | AT35: =IF(ISNA($AL35),0,INDEX(Transmission!$AI$5:$AI$15000,$AL35+AT$2)) -> 0 | AU35: =IF(ISNA($AL35),0,INDEX(Transmission!$AI$5:$AI$15000,$AL35+AU$2)) -> 663.4 | AV35: =IF(ISNA($AL35),0,INDEX(Transmission!$AI$5:$AI$15000,$AL35+AV$2)) -> 0 | AW35: =IF(ISNA($AL35),0,INDEX(Transmission!$AI$5:$AI$15000,$AL35+AW$2)) -> 0 | AX35: =IF(ISNA($AL35),0,INDEX(Transmission!$AI$5:$AI$15000,$AL35+AX$2)) -> 0 | AY35: =IF(ISNA($AL35),0,INDEX(Transmission!$AI$5:$AI$15000,$AL35+AY$2)) -> 0 | AZ35: =IF(ISNA($AL35),0,INDEX(Transmission!$AI$5:$AI$15000,$AL35+AZ$2)) -> 288.12 | BA35: =IF(ISNA($AL35),0,INDEX(Transmission!$AI$5:$AI$15000,$AL35+BA$2)) -> 0 | BB35: =IF(ISNA($AL35),0,INDEX(Transmission!$AI$5:$AI$15000,$AL35+BB$2)) -> 0 | BC35: =IF(ISNA($AL35),0,INDEX(Transmission!$AI$5:$AI$15000,$AL35+BC$2)) -> 0 | BD35: =IF(ISNA($AL35),0,INDEX(Transmission!$AI$5:$AI$15000,$AL35+BD$2)) -> 598.9 | BE35: =IF(ISNA($AL35),0,INDEX(Transmission!$AI$5:$AI$15000,$AL35+BE$2)) -> 953.21 | BF35: =IF(ISNA($AL35),0,INDEX(Transmission!$AI$5:$AI$15000,$AL35+BF$2)) -> 0 | BG35: 960 | BI35: 960 | BJ35: 0 | BK35: 0 | BL35: 0.45 | BM35: 0.000395 | BN35: 0.0001956928378 | BO35: 0 | BP35: 842.34 | BQ35: 0.0002285394523 | BR35: 0 | BS35: 0 | BT35: 2257.56 | BU35: 184.39 | BV35: 0.0002055870229 | BW35: 0 | BX35: 1990.77 | BY35: 0.0002141058296 | BZ35: 0 | CA35: 868.98 | CB35: 0 | CC35: 0 | CD35: 0 | CE35: 0 | CF35: 0.0001316666667 | CG35: 217.45 | CH35: 903.29 | CI35: 0.0001316666667 | CK35: =INDEX($BI35:$CI35,$CK$2) -> 0.0001316666667 | CL35: 248.0054158 | CN35: 960 | CO35: 3800 | CP35: Note: Non-existent links are blank. | DX35: 1 | DY35: MISO_MO-IL_2_MISO_W | DZ35: 167.2020451 | EA35: 0 | EB35: 0 | EC35: 0 | ED35: 0 | EE35: 0 | EF35: 0 | EG35: 0 | EH35: 29.15377965 | EI35: 0 | EJ35: 248.0054158 | EK35: 0 | EL35: 0.0002038443527 | EM35: 0.0003983333333 | EN35: 0.0001956928378 | EO35: 0.0004049999999 | EQ35: MISO_W_2_IESO | ER35: 0.0001316666667
A36: MISO_MO-IL_2_PJM_ROR | B36: MISO_MO-IL | C36: PJM_ROR | D36: 0 | E36: 2 | F36: 2 | G36: =VLOOKUP($A36,Transmission!$E$5:$L$15000,8,0) -> 1212 | H36: =VLOOKUP($A36,Transmission!$AA$5:$AH$15000,8,0) -> 1212 | I36: =MATCH($H$1&$A36,Transmission!$C$5:$C$15000,0) -> 5781 | J36: =IF(ISNA($I36),0,INDEX(Transmission!$M$5:$M$15000,$I36+J$2)) -> 1095.42 | K36: =IF(ISNA($I36),0,INDEX(Transmission!$M$5:$M$15000,$I36+K$2)) -> 0 | L36: =IF(ISNA($I36),0,INDEX(Transmission!$M$5:$M$15000,$I36+L$2)) -> 0 | M36: =IF(ISNA($I36),0,INDEX(Transmission!$M$5:$M$15000,$I36+M$2)) -> 0 | N36: =IF(ISNA($I36),0,INDEX(Transmission!$M$5:$M$15000,$I36+N$2)) -> 0 | O36: =IF(ISNA($I36),0,INDEX(Transmission!$M$5:$M$15000,$I36+O$2)) -> 0 | P36: =IF(ISNA($I36),0,INDEX(Transmission!$M$5:$M$15000,$I36+P$2)) -> 0 | Q36: =IF(ISNA($I36),0,INDEX(Transmission!$M$5:$M$15000,$I36+Q$2)) -> 0 | R36: =IF(ISNA($I36),0,INDEX(Transmission!$M$5:$M$15000,$I36+R$2)) -> 0 | S36: =IF(ISNA($I36),0,INDEX(Transmission!$M$5:$M$15000,$I36+S$2)) -> 0 | T36: =IF(ISNA($I36),0,INDEX(Transmission!$M$5:$M$15000,$I36+T$2)) -> 0 | U36: =IF(ISNA($I36),0,INDEX(Transmission!$M$5:$M$15000,$I36+U$2)) -> 0 | V36: =IF(ISNA($I36),0,INDEX(Transmission!$M$5:$M$15000,$I36+V$2)) -> 1212 | W36: =IF(ISNA($I36),0,INDEX(Transmission!$M$5:$M$15000,$I36+W$2)) -> 1007.11 | X36: =IF(ISNA($I36),0,INDEX(Transmission!$M$5:$M$15000,$I36+X$2)) -> 1212 | Y36: =IF(ISNA($I36),0,INDEX(Transmission!$M$5:$M$15000,$I36+Y$2)) -> 1212 | Z36: =IF(ISNA($I36),0,INDEX(Transmission!$M$5:$M$15000,$I36+Z$2)) -> 1212 | AA36: =IF(ISNA($I36),0,INDEX(Transmission!$M$5:$M$15000,$I36+AA$2)) -> 1212 | AB36: =IF(ISNA($I36),0,INDEX(Transmission!$M$5:$M$15000,$I36+AB$2)) -> 900.87 | AC36: =IF(ISNA($I36),0,INDEX(Transmission!$M$5:$M$15000,$I36+AC$2)) -> 1212 | AD36: 1212 | AE36: 0.6281641781 | AF36: 0.6281641781 | AG36: 0 | AH36: 1212 | AI36: 1111 | AJ36: 0 | AL36: =MATCH("2030"&$A36,Transmission!$Y$5:$Y$15000,0) -> 5801 | AM36: =IF(ISNA($AL36),0,INDEX(Transmission!$AI$5:$AI$15000,$AL36+AM$2)) -> 1212 | AN36: =IF(ISNA($AL36),0,INDEX(Transmission!$AI$5:$AI$15000,$AL36+AN$2)) -> 536.61 | AO36: =IF(ISNA($AL36),0,INDEX(Transmission!$AI$5:$AI$15000,$AL36+AO$2)) -> 0 | AP36: =IF(ISNA($AL36),0,INDEX(Transmission!$AI$5:$AI$15000,$AL36+AP$2)) -> 0 | AQ36: =IF(ISNA($AL36),0,INDEX(Transmission!$AI$5:$AI$15000,$AL36+AQ$2)) -> 0 | AR36: =IF(ISNA($AL36),0,INDEX(Transmission!$AI$5:$AI$15000,$AL36+AR$2)) -> 0 | AS36: =IF(ISNA($AL36),0,INDEX(Transmission!$AI$5:$AI$15000,$AL36+AS$2)) -> 0 | AT36: =IF(ISNA($AL36),0,INDEX(Transmission!$AI$5:$AI$15000,$AL36+AT$2)) -> 0 | AU36: =IF(ISNA($AL36),0,INDEX(Transmission!$AI$5:$AI$15000,$AL36+AU$2)) -> 0 | AV36: =IF(ISNA($AL36),0,INDEX(Transmission!$AI$5:$AI$15000,$AL36+AV$2)) -> 0 | AW36: =IF(ISNA($AL36),0,INDEX(Transmission!$AI$5:$AI$15000,$AL36+AW$2)) -> 0 | AX36: =IF(ISNA($AL36),0,INDEX(Transmission!$AI$5:$AI$15000,$AL36+AX$2)) -> 0 | AY36: =IF(ISNA($AL36),0,INDEX(Transmission!$AI$5:$AI$15000,$AL36+AY$2)) -> 0 | AZ36: =IF(ISNA($AL36),0,INDEX(Transmission!$AI$5:$AI$15000,$AL36+AZ$2)) -> 0 | BA36: =IF(ISNA($AL36),0,INDEX(Transmission!$AI$5:$AI$15000,$AL36+BA$2)) -> 0 | BB36: =IF(ISNA($AL36),0,INDEX(Transmission!$AI$5:$AI$15000,$AL36+BB$2)) -> 303.56 | BC36: =IF(ISNA($AL36),0,INDEX(Transmission!$AI$5:$AI$15000,$AL36+BC$2)) -> 1212 | BD36: =IF(ISNA($AL36),0,INDEX(Transmission!$AI$5:$AI$15000,$AL36+BD$2)) -> 821.72 | BE36: =IF(ISNA($AL36),0,INDEX(Transmission!$AI$5:$AI$15000,$AL36+BE$2)) -> 812.57 | BF36: =IF(ISNA($AL36),0,INDEX(Transmission!$AI$5:$AI$15000,$AL36+BF$2)) -> 0 | BG36: 1212 | BI36: 1212 | BJ36: 0 | BK36: 0 | BL36: 17.74 | BM36: 16.567498 | BN36: 0.02194493692 | BO36: 0 | BP36: 0.000475 | BQ36: 0.0001316666667 | BR36: 0 | BS36: 0 | BT36: 5887.49 | BU36: 2110.58 | BV36: 0.0003192212843 | BW36: 0 | BX36: 0 | BY36: 0.0001316666667 | BZ36: 0 | CA36: 27.03 | CB36: 0 | CC36: 0 | CD36: 6445.75 | CE36: 4182.89 | CF36: 0.0003041762638 | CG36: 9375.5 | CH36: 7702.42 | CI36: 0.0003041762638 | CK36: 0.0003041762638 | CL36: 0.0001316666667 | CN36: 1212 | CO36: 1111 | DX36: 1 | DY36: MISO_MO-IL_2_PJM_ROR | DZ36: 0 | EA36: 0 | EB36: 0 | EC36: 0 | ED36: 0 | EE36: 0 | EF36: 0 | EG36: 0 | EH36: 0 | EI36: 0 | EJ36: 0 | EK36: 0 | EL36: 0.000280926992 | EM36: 0.0001316666667 | EN36: 0.0002880163273 | EO36: 0.0001316666667 | EQ36: MISO_W_2_MAPP_CA | ER36: 0.000145
A37: MISO_MO-IL_2_SPP_N | B37: MISO_MO-IL | C37: SPP_N | D37: 5 | E37: 3 | F37: 8 | G37: =VLOOKUP($A37,Transmission!$E$5:$L$15000,8,0) ->  | H37: =VLOOKUP($A37,Transmission!$AA$5:$AH$15000,8,0) -> 2000 | I37: =MATCH($H$1&$A37,Transmission!$C$5:$C$15000,0) ->  | J37: =IF(ISNA($I37),0,INDEX(Transmission!$M$5:$M$15000,$I37+J$2)) -> 0 | K37: =IF(ISNA($I37),0,INDEX(Transmission!$M$5:$M$15000,$I37+K$2)) -> 0 | L37: =IF(ISNA($I37),0,INDEX(Transmission!$M$5:$M$15000,$I37+L$2)) -> 0 | M37: =IF(ISNA($I37),0,INDEX(Transmission!$M$5:$M$15000,$I37+M$2)) -> 0 | N37: =IF(ISNA($I37),0,INDEX(Transmission!$M$5:$M$15000,$I37+N$2)) -> 0 | O37: =IF(ISNA($I37),0,INDEX(Transmission!$M$5:$M$15000,$I37+O$2)) -> 0 | P37: =IF(ISNA($I37),0,INDEX(Transmission!$M$5:$M$15000,$I37+P$2)) -> 0 | Q37: =IF(ISNA($I37),0,INDEX(Transmission!$M$5:$M$15000,$I37+Q$2)) -> 0 | R37: =IF(ISNA($I37),0,INDEX(Transmission!$M$5:$M$15000,$I37+R$2)) -> 0 | S37: =IF(ISNA($I37),0,INDEX(Transmission!$M$5:$M$15000,$I37+S$2)) -> 0 | T37: =IF(ISNA($I37),0,INDEX(Transmission!$M$5:$M$15000,$I37+T$2)) -> 0 | U37: =IF(ISNA($I37),0,INDEX(Transmission!$M$5:$M$15000,$I37+U$2)) -> 0 | V37: =IF(ISNA($I37),0,INDEX(Transmission!$M$5:$M$15000,$I37+V$2)) -> 0 | W37: =IF(ISNA($I37),0,INDEX(Transmission!$M$5:$M$15000,$I37+W$2)) -> 0 | X37: =IF(ISNA($I37),0,INDEX(Transmission!$M$5:$M$15000,$I37+X$2)) -> 0 | Y37: =IF(ISNA($I37),0,INDEX(Transmission!$M$5:$M$15000,$I37+Y$2)) -> 0 | Z37: =IF(ISNA($I37),0,INDEX(Transmission!$M$5:$M$15000,$I37+Z$2)) -> 0 | AA37: =IF(ISNA($I37),0,INDEX(Transmission!$M$5:$M$15000,$I37+AA$2)) -> 0 | AB37: =IF(ISNA($I37),0,INDEX(Transmission!$M$5:$M$15000,$I37+AB$2)) -> 0 | AC37: =IF(ISNA($I37),0,INDEX(Transmission!$M$5:$M$15000,$I37+AC$2)) -> 0 | AD37: 0 | AE37: 0 | AF37: 0 | AG37: =INDEX($AF$5:$AF$131,MATCH(C37&"_2_"&B37,$A$5:$A$131,0)) -> 1.64100113 | AH37: 3954 | AI37: 3954 | AJ37: 3954 | AL37: =MATCH("2030"&$A37,Transmission!$Y$5:$Y$15000,0) -> 5821 | AM37: =IF(ISNA($AL37),0,INDEX(Transmission!$AI$5:$AI$15000,$AL37+AM$2)) -> 0 | AN37: =IF(ISNA($AL37),0,INDEX(Transmission!$AI$5:$AI$15000,$AL37+AN$2)) -> 0 | AO37: =IF(ISNA($AL37),0,INDEX(Transmission!$AI$5:$AI$15000,$AL37+AO$2)) -> 0 | AP37: =IF(ISNA($AL37),0,INDEX(Transmission!$AI$5:$AI$15000,$AL37+AP$2)) -> 0 | AQ37: =IF(ISNA($AL37),0,INDEX(Transmission!$AI$5:$AI$15000,$AL37+AQ$2)) -> 0 | AR37: =IF(ISNA($AL37),0,INDEX(Transmission!$AI$5:$AI$15000,$AL37+AR$2)) -> 2000 | AS37: =IF(ISNA($AL37),0,INDEX(Transmission!$AI$5:$AI$15000,$AL37+AS$2)) -> 0 | AT37: =IF(ISNA($AL37),0,INDEX(Transmission!$AI$5:$AI$15000,$AL37+AT$2)) -> 0 | AU37: =IF(ISNA($AL37),0,INDEX(Transmission!$AI$5:$AI$15000,$AL37+AU$2)) -> 0 | AV37: =IF(ISNA($AL37),0,INDEX(Transmission!$AI$5:$AI$15000,$AL37+AV$2)) -> 0 | AW37: =IF(ISNA($AL37),0,INDEX(Transmission!$AI$5:$AI$15000,$AL37+AW$2)) -> 0 | AX37: =IF(ISNA($AL37),0,INDEX(Transmission!$AI$5:$AI$15000,$AL37+AX$2)) -> 0 | AY37: =IF(ISNA($AL37),0,INDEX(Transmission!$AI$5:$AI$15000,$AL37+AY$2)) -> 0 | AZ37: =IF(ISNA($AL37),0,INDEX(Transmission!$AI$5:$AI$15000,$AL37+AZ$2)) -> 0 | BA37: =IF(ISNA($AL37),0,INDEX(Transmission!$AI$5:$AI$15000,$AL37+BA$2)) -> 0 | BB37: =IF(ISNA($AL37),0,INDEX(Transmission!$AI$5:$AI$15000,$AL37+BB$2)) -> 0 | BC37: =IF(ISNA($AL37),0,INDEX(Transmission!$AI$5:$AI$15000,$AL37+BC$2)) -> 0 | BD37: =IF(ISNA($AL37),0,INDEX(Transmission!$AI$5:$AI$15000,$AL37+BD$2)) -> 0 | BE37: =IF(ISNA($AL37),0,INDEX(Transmission!$AI$5:$AI$15000,$AL37+BE$2)) -> 0 | BF37: =IF(ISNA($AL37),0,INDEX(Transmission!$AI$5:$AI$15000,$AL37+BF$2)) -> 0 | BG37: 2000 | BI37: 2000 | BJ37: 0 | BK37: 0 | BL37: 0.000395 | BM37: 0.000395 | BN37: 0.0001316666667 | BO37: 0 | BP37: 0.000395 | BQ37: 0.0001316666667 | BR37: 0 | BS37: 0 | BT37: 0 | BU37: 0 | BV37: 0.0001316666667 | BW37: 0 | BX37: 0 | BY37: 0.0001316666667 | BZ37: 0 | CA37: 0 | CB37: 0 | CC37: 0 | CD37: 0 | CE37: 0 | CF37: 0.0001316666667 | CG37: 0 | CH37: 0 | CI37: 0.0001316666667 | CK37: 0.0001316666667 | CL37: 1954.43213 | CN37: =INDEX($CR$5:$DS$32,MATCH($B37,$CQ$5:$CQ$32,0),MATCH($C37,$CR$4:$DS$4,0)) -> 2000 | CO37: 2000 | DX37: 1 | DY37: MISO_MO-IL_2_SPP_N | DZ37: 0 | EA37: 0 | EB37: 0 | EC37: 0 | ED37: 0 | EE37: 0 | EF37: 0 | EG37: 0 | EH37: 0 | EI37: 0 | EJ37: 1954.43213 | EK37: 0 | EL37: 0.0001316666667 | EM37: 338.58102 | EN37: 0.0001316666667 | EO37: 647.6166612 | EQ37: MISO_W_2_MAPP_US | ER37: 0.0001316666667
A38: MISO_MO-IL_2_TVA | B38: MISO_MO-IL | C38: TVA | D38: 5 | E38: 3 | F38: 8 | G38: =VLOOKUP($A38,Transmission!$E$5:$L$15000,8,0) ->  | H38: =VLOOKUP($A38,Transmission!$AA$5:$AH$15000,8,0) ->  | I38: =MATCH($H$1&$A38,Transmission!$C$5:$C$15000,0) ->  | J38: =IF(ISNA($I38),0,INDEX(Transmission!$M$5:$M$15000,$I38+J$2)) -> 0 | K38: =IF(ISNA($I38),0,INDEX(Transmission!$M$5:$M$15000,$I38+K$2)) -> 0 | L38: =IF(ISNA($I38),0,INDEX(Transmission!$M$5:$M$15000,$I38+L$2)) -> 0 | M38: =IF(ISNA($I38),0,INDEX(Transmission!$M$5:$M$15000,$I38+M$2)) -> 0 | N38: =IF(ISNA($I38),0,INDEX(Transmission!$M$5:$M$15000,$I38+N$2)) -> 0 | O38: =IF(ISNA($I38),0,INDEX(Transmission!$M$5:$M$15000,$I38+O$2)) -> 0 | P38: =IF(ISNA($I38),0,INDEX(Transmission!$M$5:$M$15000,$I38+P$2)) -> 0 | Q38: =IF(ISNA($I38),0,INDEX(Transmission!$M$5:$M$15000,$I38+Q$2)) -> 0 | R38: =IF(ISNA($I38),0,INDEX(Transmission!$M$5:$M$15000,$I38+R$2)) -> 0 | S38: =IF(ISNA($I38),0,INDEX(Transmission!$M$5:$M$15000,$I38+S$2)) -> 0 | T38: =IF(ISNA($I38),0,INDEX(Transmission!$M$5:$M$15000,$I38+T$2)) -> 0 | U38: =IF(ISNA($I38),0,INDEX(Transmission!$M$5:$M$15000,$I38+U$2)) -> 0 | V38: =IF(ISNA($I38),0,INDEX(Transmission!$M$5:$M$15000,$I38+V$2)) -> 0 | W38: =IF(ISNA($I38),0,INDEX(Transmission!$M$5:$M$15000,$I38+W$2)) -> 0 | X38: =IF(ISNA($I38),0,INDEX(Transmission!$M$5:$M$15000,$I38+X$2)) -> 0 | Y38: =IF(ISNA($I38),0,INDEX(Transmission!$M$5:$M$15000,$I38+Y$2)) -> 0 | Z38: =IF(ISNA($I38),0,INDEX(Transmission!$M$5:$M$15000,$I38+Z$2)) -> 0 | AA38: =IF(ISNA($I38),0,INDEX(Transmission!$M$5:$M$15000,$I38+AA$2)) -> 0 | AB38: =IF(ISNA($I38),0,INDEX(Transmission!$M$5:$M$15000,$I38+AB$2)) -> 0 | AC38: =IF(ISNA($I38),0,INDEX(Transmission!$M$5:$M$15000,$I38+AC$2)) -> 0 | AD38: 0 | AE38: 0 | AF38: 0 | AG38: 0 | AJ38: 0 | AL38: =MATCH("2030"&$A38,Transmission!$Y$5:$Y$15000,0) ->  | AM38: =IF(ISNA($AL38),0,INDEX(Transmission!$AI$5:$AI$15000,$AL38+AM$2)) -> 0 | AN38: =IF(ISNA($AL38),0,INDEX(Transmission!$AI$5:$AI$15000,$AL38+AN$2)) -> 0 | AO38: =IF(ISNA($AL38),0,INDEX(Transmission!$AI$5:$AI$15000,$AL38+AO$2)) -> 0 | AP38: =IF(ISNA($AL38),0,INDEX(Transmission!$AI$5:$AI$15000,$AL38+AP$2)) -> 0 | AQ38: =IF(ISNA($AL38),0,INDEX(Transmission!$AI$5:$AI$15000,$AL38+AQ$2)) -> 0 | AR38: =IF(ISNA($AL38),0,INDEX(Transmission!$AI$5:$AI$15000,$AL38+AR$2)) -> 0 | AS38: =IF(ISNA($AL38),0,INDEX(Transmission!$AI$5:$AI$15000,$AL38+AS$2)) -> 0 | AT38: =IF(ISNA($AL38),0,INDEX(Transmission!$AI$5:$AI$15000,$AL38+AT$2)) -> 0 | AU38: =IF(ISNA($AL38),0,INDEX(Transmission!$AI$5:$AI$15000,$AL38+AU$2)) -> 0 | AV38: =IF(ISNA($AL38),0,INDEX(Transmission!$AI$5:$AI$15000,$AL38+AV$2)) -> 0 | AW38: =IF(ISNA($AL38),0,INDEX(Transmission!$AI$5:$AI$15000,$AL38+AW$2)) -> 0 | AX38: =IF(ISNA($AL38),0,INDEX(Transmission!$AI$5:$AI$15000,$AL38+AX$2)) -> 0 | AY38: =IF(ISNA($AL38),0,INDEX(Transmission!$AI$5:$AI$15000,$AL38+AY$2)) -> 0 | AZ38: =IF(ISNA($AL38),0,INDEX(Transmission!$AI$5:$AI$15000,$AL38+AZ$2)) -> 0 | BA38: =IF(ISNA($AL38),0,INDEX(Transmission!$AI$5:$AI$15000,$AL38+BA$2)) -> 0 | BB38: =IF(ISNA($AL38),0,INDEX(Transmission!$AI$5:$AI$15000,$AL38+BB$2)) -> 0 | BC38: =IF(ISNA($AL38),0,INDEX(Transmission!$AI$5:$AI$15000,$AL38+BC$2)) -> 0 | BD38: =IF(ISNA($AL38),0,INDEX(Transmission!$AI$5:$AI$15000,$AL38+BD$2)) -> 0 | BE38: =IF(ISNA($AL38),0,INDEX(Transmission!$AI$5:$AI$15000,$AL38+BE$2)) -> 0 | BF38: =IF(ISNA($AL38),0,INDEX(Transmission!$AI$5:$AI$15000,$AL38+BF$2)) -> 0 | BG38: 0 | CL38: 0.0001316666667 | CN38: 4000 | CO38: 4050 | DX38: 0 | EJ38: 0 | EM38: 0.0001316666667 | EO38: 0.0001316666667 | EQ38: MISO_W_2_MISO_MO-IL | ER38: 0.0004049999999
A39: =B39&"_2_"&C39 -> MISO_MO-IL_2_TVA_Transmission | B39: MISO_MO-IL | C39: TVA_Transmission | D39: 5 | E39: 3 | F39: 8 | G39: =VLOOKUP($A39,Transmission!$E$5:$L$15000,8,0) -> 4000 | H39: =VLOOKUP($A39,Transmission!$AA$5:$AH$15000,8,0) -> 4000 | I39: =MATCH($H$1&$A39,Transmission!$C$5:$C$15000,0) -> 5801 | J39: =IF(ISNA($I39),0,INDEX(Transmission!$M$5:$M$15000,$I39+J$2)) -> 4000 | K39: =IF(ISNA($I39),0,INDEX(Transmission!$M$5:$M$15000,$I39+K$2)) -> 4000 | L39: =IF(ISNA($I39),0,INDEX(Transmission!$M$5:$M$15000,$I39+L$2)) -> 2979.72 | M39: =IF(ISNA($I39),0,INDEX(Transmission!$M$5:$M$15000,$I39+M$2)) -> 941.97 | N39: =IF(ISNA($I39),0,INDEX(Transmission!$M$5:$M$15000,$I39+N$2)) -> 0 | O39: =IF(ISNA($I39),0,INDEX(Transmission!$M$5:$M$15000,$I39+O$2)) -> 0 | P39: =IF(ISNA($I39),0,INDEX(Transmission!$M$5:$M$15000,$I39+P$2)) -> 0 | Q39: =IF(ISNA($I39),0,INDEX(Transmission!$M$5:$M$15000,$I39+Q$2)) -> 0 | R39: =IF(ISNA($I39),0,INDEX(Transmission!$M$5:$M$15000,$I39+R$2)) -> 1375.6 | S39: =IF(ISNA($I39),0,INDEX(Transmission!$M$5:$M$15000,$I39+S$2)) -> 0 | T39: =IF(ISNA($I39),0,INDEX(Transmission!$M$5:$M$15000,$I39+T$2)) -> 0 | U39: =IF(ISNA($I39),0,INDEX(Transmission!$M$5:$M$15000,$I39+U$2)) -> 0 | V39: =IF(ISNA($I39),0,INDEX(Transmission!$M$5:$M$15000,$I39+V$2)) -> 950 | W39: =IF(ISNA($I39),0,INDEX(Transmission!$M$5:$M$15000,$I39+W$2)) -> 3049.83 | X39: =IF(ISNA($I39),0,INDEX(Transmission!$M$5:$M$15000,$I39+X$2)) -> 3437.38 | Y39: =IF(ISNA($I39),0,INDEX(Transmission!$M$5:$M$15000,$I39+Y$2)) -> 4000 | Z39: =IF(ISNA($I39),0,INDEX(Transmission!$M$5:$M$15000,$I39+Z$2)) -> 3910.54 | AA39: =IF(ISNA($I39),0,INDEX(Transmission!$M$5:$M$15000,$I39+AA$2)) -> 796.29 | AB39: =IF(ISNA($I39),0,INDEX(Transmission!$M$5:$M$15000,$I39+AB$2)) -> 2886.23 | AC39: =IF(ISNA($I39),0,INDEX(Transmission!$M$5:$M$15000,$I39+AC$2)) -> 3952.94 | AD39: 4000 | AE39: 1.773299205 | AF39: 1.773299205 | AG39: 0 | AH39: 4000 | AJ39: 0 | AL39: =MATCH("2030"&$A39,Transmission!$Y$5:$Y$15000,0) -> 5841 | AM39: =IF(ISNA($AL39),0,INDEX(Transmission!$AI$5:$AI$15000,$AL39+AM$2)) -> 10.92 | AN39: =IF(ISNA($AL39),0,INDEX(Transmission!$AI$5:$AI$15000,$AL39+AN$2)) -> 1328.79 | AO39: =IF(ISNA($AL39),0,INDEX(Transmission!$AI$5:$AI$15000,$AL39+AO$2)) -> 0 | AP39: =IF(ISNA($AL39),0,INDEX(Transmission!$AI$5:$AI$15000,$AL39+AP$2)) -> 0 | AQ39: =IF(ISNA($AL39),0,INDEX(Transmission!$AI$5:$AI$15000,$AL39+AQ$2)) -> 0 | AR39: =IF(ISNA($AL39),0,INDEX(Transmission!$AI$5:$AI$15000,$AL39+AR$2)) -> 0 | AS39: =IF(ISNA($AL39),0,INDEX(Transmission!$AI$5:$AI$15000,$AL39+AS$2)) -> 0 | AT39: =IF(ISNA($AL39),0,INDEX(Transmission!$AI$5:$AI$15000,$AL39+AT$2)) -> 0 | AU39: =IF(ISNA($AL39),0,INDEX(Transmission!$AI$5:$AI$15000,$AL39+AU$2)) -> 0 | AV39: =IF(ISNA($AL39),0,INDEX(Transmission!$AI$5:$AI$15000,$AL39+AV$2)) -> 0 | AW39: =IF(ISNA($AL39),0,INDEX(Transmission!$AI$5:$AI$15000,$AL39+AW$2)) -> 0 | AX39: =IF(ISNA($AL39),0,INDEX(Transmission!$AI$5:$AI$15000,$AL39+AX$2)) -> 0 | AY39: =IF(ISNA($AL39),0,INDEX(Transmission!$AI$5:$AI$15000,$AL39+AY$2)) -> 0 | AZ39: =IF(ISNA($AL39),0,INDEX(Transmission!$AI$5:$AI$15000,$AL39+AZ$2)) -> 0 | BA39: =IF(ISNA($AL39),0,INDEX(Transmission!$AI$5:$AI$15000,$AL39+BA$2)) -> 0 | BB39: =IF(ISNA($AL39),0,INDEX(Transmission!$AI$5:$AI$15000,$AL39+BB$2)) -> 0 | BC39: =IF(ISNA($AL39),0,INDEX(Transmission!$AI$5:$AI$15000,$AL39+BC$2)) -> 0 | BD39: =IF(ISNA($AL39),0,INDEX(Transmission!$AI$5:$AI$15000,$AL39+BD$2)) -> 0 | BE39: =IF(ISNA($AL39),0,INDEX(Transmission!$AI$5:$AI$15000,$AL39+BE$2)) -> 0 | BF39: =IF(ISNA($AL39),0,INDEX(Transmission!$AI$5:$AI$15000,$AL39+BF$2)) -> 0 | BG39: 1328.79 | BI39: 4000 | BJ39: 0 | BK39: 0 | BL39: 4.704098606 | BM39: 0.000395 | BN39: 0.0001979995642 | BO39: 0 | BP39: 0.000395 | BQ39: 0.0001316666667 | BR39: 0 | BS39: 0 | BT39: 1.999999995e-05 | BU39: 0 | BV39: 0.0001958258528 | BW39: 0 | BX39: 0 | BY39: 0.0001316666667 | BZ39: 0 | CA39: 0 | CB39: 0 | CC39: 0 | CD39: 0.0001200000002 | CE39: 3.000000015e-05 | CF39: 0.0001316666667 | CG39: 132.12 | CH39: 0.0001099999999 | CI39: 0.0001316666667 | CK39: 0.0001316666667 | CL39: 0.0001316666667 | DX39: 1 | DY39: MISO_MO-IL_2_TVA_Transmission | DZ39: 0 | EA39: 0 | EB39: 0 | EC39: 0 | ED39: 0 | EE39: 0 | EF39: 0 | EG39: 0 | EH39: 0 | EI39: 0 | EJ39: 0 | EK39: 0 | EL39: 0.0001986709328 | EM39: 0.0001316666667 | EN39: 0.0001316666667 | EO39: 0.0001316666667 | EQ39: MISO_W_2_MISO_WUMS | ER39: 159.9915683
A40: MISO_W_2_MAPP_CA | B40: MISO_W | C40: MAPP_CA | D40: 0 | E40: 0 | F40: 0 | G40: =VLOOKUP($A40,Transmission!$E$5:$L$15000,8,0) -> 700 | H40: =VLOOKUP($A40,Transmission!$AA$5:$AH$15000,8,0) -> 700 | I40: =MATCH($H$1&$A40,Transmission!$C$5:$C$15000,0) -> 5841 | J40: =IF(ISNA($I40),0,INDEX(Transmission!$M$5:$M$15000,$I40+J$2)) -> 0 | K40: =IF(ISNA($I40),0,INDEX(Transmission!$M$5:$M$15000,$I40+K$2)) -> 0 | L40: =IF(ISNA($I40),0,INDEX(Transmission!$M$5:$M$15000,$I40+L$2)) -> 0 | M40: =IF(ISNA($I40),0,INDEX(Transmission!$M$5:$M$15000,$I40+M$2)) -> 0 | N40: =IF(ISNA($I40),0,INDEX(Transmission!$M$5:$M$15000,$I40+N$2)) -> 0 | O40: =IF(ISNA($I40),0,INDEX(Transmission!$M$5:$M$15000,$I40+O$2)) -> 0 | P40: =IF(ISNA($I40),0,INDEX(Transmission!$M$5:$M$15000,$I40+P$2)) -> 0 | Q40: =IF(ISNA($I40),0,INDEX(Transmission!$M$5:$M$15000,$I40+Q$2)) -> 0 | R40: =IF(ISNA($I40),0,INDEX(Transmission!$M$5:$M$15000,$I40+R$2)) -> 0 | S40: =IF(ISNA($I40),0,INDEX(Transmission!$M$5:$M$15000,$I40+S$2)) -> 0 | T40: =IF(ISNA($I40),0,INDEX(Transmission!$M$5:$M$15000,$I40+T$2)) -> 0 | U40: =IF(ISNA($I40),0,INDEX(Transmission!$M$5:$M$15000,$I40+U$2)) -> 0 | V40: =IF(ISNA($I40),0,INDEX(Transmission!$M$5:$M$15000,$I40+V$2)) -> 0 | W40: =IF(ISNA($I40),0,INDEX(Transmission!$M$5:$M$15000,$I40+W$2)) -> 0 | X40: =IF(ISNA($I40),0,INDEX(Transmission!$M$5:$M$15000,$I40+X$2)) -> 700 | Y40: =IF(ISNA($I40),0,INDEX(Transmission!$M$5:$M$15000,$I40+Y$2)) -> 700 | Z40: =IF(ISNA($I40),0,INDEX(Transmission!$M$5:$M$15000,$I40+Z$2)) -> 0 | AA40: =IF(ISNA($I40),0,INDEX(Transmission!$M$5:$M$15000,$I40+AA$2)) -> 0 | AB40: =IF(ISNA($I40),0,INDEX(Transmission!$M$5:$M$15000,$I40+AB$2)) -> 0 | AC40: =IF(ISNA($I40),0,INDEX(Transmission!$M$5:$M$15000,$I40+AC$2)) -> 700 | AD40: 700 | AE40: 0.1728424658 | AF40: 0.1728424658 | AG40: 1.402493212 | AH40: 700 | AI40: 1970 | AJ40: 1970 | AL40: =MATCH("2030"&$A40,Transmission!$Y$5:$Y$15000,0) -> 5861 | AM40: =IF(ISNA($AL40),0,INDEX(Transmission!$AI$5:$AI$15000,$AL40+AM$2)) -> 0 | AN40: =IF(ISNA($AL40),0,INDEX(Transmission!$AI$5:$AI$15000,$AL40+AN$2)) -> 0 | AO40: =IF(ISNA($AL40),0,INDEX(Transmission!$AI$5:$AI$15000,$AL40+AO$2)) -> 0 | AP40: =IF(ISNA($AL40),0,INDEX(Transmission!$AI$5:$AI$15000,$AL40+AP$2)) -> 0 | AQ40: =IF(ISNA($AL40),0,INDEX(Transmission!$AI$5:$AI$15000,$AL40+AQ$2)) -> 0 | AR40: =IF(ISNA($AL40),0,INDEX(Transmission!$AI$5:$AI$15000,$AL40+AR$2)) -> 0 | AS40: =IF(ISNA($AL40),0,INDEX(Transmission!$AI$5:$AI$15000,$AL40+AS$2)) -> 0 | AT40: =IF(ISNA($AL40),0,INDEX(Transmission!$AI$5:$AI$15000,$AL40+AT$2)) -> 0 | AU40: =IF(ISNA($AL40),0,INDEX(Transmission!$AI$5:$AI$15000,$AL40+AU$2)) -> 540.27 | AV40: =IF(ISNA($AL40),0,INDEX(Transmission!$AI$5:$AI$15000,$AL40+AV$2)) -> 700 | AW40: =IF(ISNA($AL40),0,INDEX(Transmission!$AI$5:$AI$15000,$AL40+AW$2)) -> 0 | AX40: =IF(ISNA($AL40),0,INDEX(Transmission!$AI$5:$AI$15000,$AL40+AX$2)) -> 0 | AY40: =IF(ISNA($AL40),0,INDEX(Transmission!$AI$5:$AI$15000,$AL40+AY$2)) -> 0 | AZ40: =IF(ISNA($AL40),0,INDEX(Transmission!$AI$5:$AI$15000,$AL40+AZ$2)) -> 0 | BA40: =IF(ISNA($AL40),0,INDEX(Transmission!$AI$5:$AI$15000,$AL40+BA$2)) -> 700 | BB40: =IF(ISNA($AL40),0,INDEX(Transmission!$AI$5:$AI$15000,$AL40+BB$2)) -> 0 | BC40: =IF(ISNA($AL40),0,INDEX(Transmission!$AI$5:$AI$15000,$AL40+BC$2)) -> 0 | BD40: =IF(ISNA($AL40),0,INDEX(Transmission!$AI$5:$AI$15000,$AL40+BD$2)) -> 0 | BE40: =IF(ISNA($AL40),0,INDEX(Transmission!$AI$5:$AI$15000,$AL40+BE$2)) -> 700 | BF40: =IF(ISNA($AL40),0,INDEX(Transmission!$AI$5:$AI$15000,$AL40+BF$2)) -> 700 | BG40: 700 | BI40: 700 | BJ40: 0 | BK40: 0 | BL40: 1422.64 | BM40: 1503.79 | BN40: 0.0002514440433 | BO40: 0 | BP40: 0.000415 | BQ40: 0.0001316666667 | BR40: 0 | BS40: 0 | BT40: 1792.16 | BU40: 1996.38 | BV40: 88.19718055 | BW40: 0 | BX40: 2361.35 | BY40: 15.16643441 | BZ40: 0 | CA40: 3030.03 | CB40: 0 | CC40: 0 | CD40: 5.999999996e-05 | CE40: 721.33 | CF40: 0.0001316666667 | CG40: 262.42 | CH40: 9.999999997e-05 | CI40: 0.0001316666667 | CK40: 0.0001316666667 | CL40: 0.0002253555055 | CN40: 700 | CO40: 1970 | DX40: 1 | DY40: MISO_W_2_MAPP_CA | DZ40: 227.4095655 | EA40: 2341.155869 | EB40: 0 | EC40: 0 | ED40: 0 | EE40: 0 | EF40: 88.19718055 | EG40: 15.16643441 | EH40: 1947.351562 | EI40: 0 | EJ40: 0 | EK40: 0 | EL40: 0.0002334538152 | EM40: 0.0001951185106 | EN40: 0.000145 | EO40: 0.0001935976236 | EQ40: MISO_W_2_NE | ER40: 0.0001316666667
A41: MISO_W_2_MAPP_US | B41: MISO_W | C41: MAPP_US | D41: 4 | E41: 3 | F41: 7 | G41: =VLOOKUP($A41,Transmission!$E$5:$L$15000,8,0) ->  | H41: =VLOOKUP($A41,Transmission!$AA$5:$AH$15000,8,0) ->  | I41: =MATCH($H$1&$A41,Transmission!$C$5:$C$15000,0) ->  | J41: =IF(ISNA($I41),0,INDEX(Transmission!$M$5:$M$15000,$I41+J$2)) -> 0 | K41: =IF(ISNA($I41),0,INDEX(Transmission!$M$5:$M$15000,$I41+K$2)) -> 0 | L41: =IF(ISNA($I41),0,INDEX(Transmission!$M$5:$M$15000,$I41+L$2)) -> 0 | M41: =IF(ISNA($I41),0,INDEX(Transmission!$M$5:$M$15000,$I41+M$2)) -> 0 | N41: =IF(ISNA($I41),0,INDEX(Transmission!$M$5:$M$15000,$I41+N$2)) -> 0 | O41: =IF(ISNA($I41),0,INDEX(Transmission!$M$5:$M$15000,$I41+O$2)) -> 0 | P41: =IF(ISNA($I41),0,INDEX(Transmission!$M$5:$M$15000,$I41+P$2)) -> 0 | Q41: =IF(ISNA($I41),0,INDEX(Transmission!$M$5:$M$15000,$I41+Q$2)) -> 0 | R41: =IF(ISNA($I41),0,INDEX(Transmission!$M$5:$M$15000,$I41+R$2)) -> 0 | S41: =IF(ISNA($I41),0,INDEX(Transmission!$M$5:$M$15000,$I41+S$2)) -> 0 | T41: =IF(ISNA($I41),0,INDEX(Transmission!$M$5:$M$15000,$I41+T$2)) -> 0 | U41: =IF(ISNA($I41),0,INDEX(Transmission!$M$5:$M$15000,$I41+U$2)) -> 0 | V41: =IF(ISNA($I41),0,INDEX(Transmission!$M$5:$M$15000,$I41+V$2)) -> 0 | W41: =IF(ISNA($I41),0,INDEX(Transmission!$M$5:$M$15000,$I41+W$2)) -> 0 | X41: =IF(ISNA($I41),0,INDEX(Transmission!$M$5:$M$15000,$I41+X$2)) -> 0 | Y41: =IF(ISNA($I41),0,INDEX(Transmission!$M$5:$M$15000,$I41+Y$2)) -> 0 | Z41: =IF(ISNA($I41),0,INDEX(Transmission!$M$5:$M$15000,$I41+Z$2)) -> 0 | AA41: =IF(ISNA($I41),0,INDEX(Transmission!$M$5:$M$15000,$I41+AA$2)) -> 0 | AB41: =IF(ISNA($I41),0,INDEX(Transmission!$M$5:$M$15000,$I41+AB$2)) -> 0 | AC41: =IF(ISNA($I41),0,INDEX(Transmission!$M$5:$M$15000,$I41+AC$2)) -> 0 | AD41: 0 | AE41: 0 | AF41: 0 | AG41: 2.100721911 | AH41: 2300 | AI41: 2635 | AJ41: 2635 | AL41: =MATCH("2030"&$A41,Transmission!$Y$5:$Y$15000,0) ->  | AM41: =IF(ISNA($AL41),0,INDEX(Transmission!$AI$5:$AI$15000,$AL41+AM$2)) -> 0 | AN41: =IF(ISNA($AL41),0,INDEX(Transmission!$AI$5:$AI$15000,$AL41+AN$2)) -> 0 | AO41: =IF(ISNA($AL41),0,INDEX(Transmission!$AI$5:$AI$15000,$AL41+AO$2)) -> 0 | AP41: =IF(ISNA($AL41),0,INDEX(Transmission!$AI$5:$AI$15000,$AL41+AP$2)) -> 0 | AQ41: =IF(ISNA($AL41),0,INDEX(Transmission!$AI$5:$AI$15000,$AL41+AQ$2)) -> 0 | AR41: =IF(ISNA($AL41),0,INDEX(Transmission!$AI$5:$AI$15000,$AL41+AR$2)) -> 0 | AS41: =IF(ISNA($AL41),0,INDEX(Transmission!$AI$5:$AI$15000,$AL41+AS$2)) -> 0 | AT41: =IF(ISNA($AL41),0,INDEX(Transmission!$AI$5:$AI$15000,$AL41+AT$2)) -> 0 | AU41: =IF(ISNA($AL41),0,INDEX(Transmission!$AI$5:$AI$15000,$AL41+AU$2)) -> 0 | AV41: =IF(ISNA($AL41),0,INDEX(Transmission!$AI$5:$AI$15000,$AL41+AV$2)) -> 0 | AW41: =IF(ISNA($AL41),0,INDEX(Transmission!$AI$5:$AI$15000,$AL41+AW$2)) -> 0 | AX41: =IF(ISNA($AL41),0,INDEX(Transmission!$AI$5:$AI$15000,$AL41+AX$2)) -> 0 | AY41: =IF(ISNA($AL41),0,INDEX(Transmission!$AI$5:$AI$15000,$AL41+AY$2)) -> 0 | AZ41: =IF(ISNA($AL41),0,INDEX(Transmission!$AI$5:$AI$15000,$AL41+AZ$2)) -> 0 | BA41: =IF(ISNA($AL41),0,INDEX(Transmission!$AI$5:$AI$15000,$AL41+BA$2)) -> 0 | BB41: =IF(ISNA($AL41),0,INDEX(Transmission!$AI$5:$AI$15000,$AL41+BB$2)) -> 0 | BC41: =IF(ISNA($AL41),0,INDEX(Transmission!$AI$5:$AI$15000,$AL41+BC$2)) -> 0 | BD41: =IF(ISNA($AL41),0,INDEX(Transmission!$AI$5:$AI$15000,$AL41+BD$2)) -> 0 | BE41: =IF(ISNA($AL41),0,INDEX(Transmission!$AI$5:$AI$15000,$AL41+BE$2)) -> 0 | BF41: =IF(ISNA($AL41),0,INDEX(Transmission!$AI$5:$AI$15000,$AL41+BF$2)) -> 0 | BG41: 0 | BI41: 2300 | BJ41: 0 | BK41: 0 | BL41: 0.000395 | BM41: 0.000395 | BN41: 0.0001316666667 | BO41: 0 | BP41: 0.000395 | BQ41: 0.0001316666667 | BR41: 0 | BS41: 0 | BT41: 0 | BU41: 0 | BV41: 0.0001316666667 | BW41: 0 | BX41: 0 | BY41: 0.0001316666667 | BZ41: 0 | CA41: 0 | CB41: 0 | CC41: 0 | CD41: 0 | CE41: 0 | CF41: 0.0001316666667 | CG41: 0 | CH41: 0 | CI41: 0.0001316666667 | CK41: 0.0001316666667 | CL41: 0.0002219142245 | CN41: 2300 | CO41: 2635 | DX41: 1 | DY41: MISO_W_2_MAPP_US | DZ41: 0 | EA41: 0 | EB41: 0 | EC41: 0 | ED41: 0 | EE41: 0 | EF41: 0 | EG41: 0 | EH41: 0 | EI41: 0 | EJ41: 0 | EK41: 0 | EL41: 0.0001316666667 | EM41: 0.000195563544 | EN41: 0.0001316666667 | EO41: 0.0001943002056 | EQ41: MISO_W_2_PJM_ROR | ER41: 11217.31165
A42: MISO_W_2_MISO_IN | B42: MISO_W | C42: MISO_IN | D42: 0 | E42: 0 | F42: 0 | G42: =VLOOKUP($A42,Transmission!$E$5:$L$15000,8,0) ->  | H42: =VLOOKUP($A42,Transmission!$AA$5:$AH$15000,8,0) ->  | I42: =MATCH($H$1&$A42,Transmission!$C$5:$C$15000,0) ->  | J42: =IF(ISNA($I42),0,INDEX(Transmission!$M$5:$M$15000,$I42+J$2)) -> 0 | K42: =IF(ISNA($I42),0,INDEX(Transmission!$M$5:$M$15000,$I42+K$2)) -> 0 | L42: =IF(ISNA($I42),0,INDEX(Transmission!$M$5:$M$15000,$I42+L$2)) -> 0 | M42: =IF(ISNA($I42),0,INDEX(Transmission!$M$5:$M$15000,$I42+M$2)) -> 0 | N42: =IF(ISNA($I42),0,INDEX(Transmission!$M$5:$M$15000,$I42+N$2)) -> 0 | O42: =IF(ISNA($I42),0,INDEX(Transmission!$M$5:$M$15000,$I42+O$2)) -> 0 | P42: =IF(ISNA($I42),0,INDEX(Transmission!$M$5:$M$15000,$I42+P$2)) -> 0 | Q42: =IF(ISNA($I42),0,INDEX(Transmission!$M$5:$M$15000,$I42+Q$2)) -> 0 | R42: =IF(ISNA($I42),0,INDEX(Transmission!$M$5:$M$15000,$I42+R$2)) -> 0 | S42: =IF(ISNA($I42),0,INDEX(Transmission!$M$5:$M$15000,$I42+S$2)) -> 0 | T42: =IF(ISNA($I42),0,INDEX(Transmission!$M$5:$M$15000,$I42+T$2)) -> 0 | U42: =IF(ISNA($I42),0,INDEX(Transmission!$M$5:$M$15000,$I42+U$2)) -> 0 | V42: =IF(ISNA($I42),0,INDEX(Transmission!$M$5:$M$15000,$I42+V$2)) -> 0 | W42: =IF(ISNA($I42),0,INDEX(Transmission!$M$5:$M$15000,$I42+W$2)) -> 0 | X42: =IF(ISNA($I42),0,INDEX(Transmission!$M$5:$M$15000,$I42+X$2)) -> 0 | Y42: =IF(ISNA($I42),0,INDEX(Transmission!$M$5:$M$15000,$I42+Y$2)) -> 0 | Z42: =IF(ISNA($I42),0,INDEX(Transmission!$M$5:$M$15000,$I42+Z$2)) -> 0 | AA42: =IF(ISNA($I42),0,INDEX(Transmission!$M$5:$M$15000,$I42+AA$2)) -> 0 | AB42: =IF(ISNA($I42),0,INDEX(Transmission!$M$5:$M$15000,$I42+AB$2)) -> 0 | AC42: =IF(ISNA($I42),0,INDEX(Transmission!$M$5:$M$15000,$I42+AC$2)) -> 0 | AD42: 0 | AE42: 0 | AF42: 0 | AL42: =MATCH("2030"&$A42,Transmission!$Y$5:$Y$15000,0) ->  | AM42: =IF(ISNA($AL42),0,INDEX(Transmission!$AI$5:$AI$15000,$AL42+AM$2)) -> 0 | AN42: =IF(ISNA($AL42),0,INDEX(Transmission!$AI$5:$AI$15000,$AL42+AN$2)) -> 0 | AO42: =IF(ISNA($AL42),0,INDEX(Transmission!$AI$5:$AI$15000,$AL42+AO$2)) -> 0 | AP42: =IF(ISNA($AL42),0,INDEX(Transmission!$AI$5:$AI$15000,$AL42+AP$2)) -> 0 | AQ42: =IF(ISNA($AL42),0,INDEX(Transmission!$AI$5:$AI$15000,$AL42+AQ$2)) -> 0 | AR42: =IF(ISNA($AL42),0,INDEX(Transmission!$AI$5:$AI$15000,$AL42+AR$2)) -> 0 | AS42: =IF(ISNA($AL42),0,INDEX(Transmission!$AI$5:$AI$15000,$AL42+AS$2)) -> 0 | AT42: =IF(ISNA($AL42),0,INDEX(Transmission!$AI$5:$AI$15000,$AL42+AT$2)) -> 0 | AU42: =IF(ISNA($AL42),0,INDEX(Transmission!$AI$5:$AI$15000,$AL42+AU$2)) -> 0 | AV42: =IF(ISNA($AL42),0,INDEX(Transmission!$AI$5:$AI$15000,$AL42+AV$2)) -> 0 | AW42: =IF(ISNA($AL42),0,INDEX(Transmission!$AI$5:$AI$15000,$AL42+AW$2)) -> 0 | AX42: =IF(ISNA($AL42),0,INDEX(Transmission!$AI$5:$AI$15000,$AL42+AX$2)) -> 0 | AY42: =IF(ISNA($AL42),0,INDEX(Transmission!$AI$5:$AI$15000,$AL42+AY$2)) -> 0 | AZ42: =IF(ISNA($AL42),0,INDEX(Transmission!$AI$5:$AI$15000,$AL42+AZ$2)) -> 0 | BA42: =IF(ISNA($AL42),0,INDEX(Transmission!$AI$5:$AI$15000,$AL42+BA$2)) -> 0 | BB42: =IF(ISNA($AL42),0,INDEX(Transmission!$AI$5:$AI$15000,$AL42+BB$2)) -> 0 | BC42: =IF(ISNA($AL42),0,INDEX(Transmission!$AI$5:$AI$15000,$AL42+BC$2)) -> 0 | BD42: =IF(ISNA($AL42),0,INDEX(Transmission!$AI$5:$AI$15000,$AL42+BD$2)) -> 0 | BE42: =IF(ISNA($AL42),0,INDEX(Transmission!$AI$5:$AI$15000,$AL42+BE$2)) -> 0 | BF42: =IF(ISNA($AL42),0,INDEX(Transmission!$AI$5:$AI$15000,$AL42+BF$2)) -> 0 | BG42: 0 | CN42: 0 | DX42: 0 | EQ42: MISO_W_2_SPP_N | ER42: 0.0002023248895
A43: MISO_W_2_MISO_MO-IL | B43: MISO_W | C43: MISO_MO-IL | D43: 0 | E43: 0 | F43: 0 | G43: =VLOOKUP($A43,Transmission!$E$5:$L$15000,8,0) -> 4048 | H43: =VLOOKUP($A43,Transmission!$AA$5:$AH$15000,8,0) -> 3800 | I43: =MATCH($H$1&$A43,Transmission!$C$5:$C$15000,0) -> 5861 | J43: =IF(ISNA($I43),0,INDEX(Transmission!$M$5:$M$15000,$I43+J$2)) -> 0 | K43: =IF(ISNA($I43),0,INDEX(Transmission!$M$5:$M$15000,$I43+K$2)) -> 4048 | L43: =IF(ISNA($I43),0,INDEX(Transmission!$M$5:$M$15000,$I43+L$2)) -> 4048 | M43: =IF(ISNA($I43),0,INDEX(Transmission!$M$5:$M$15000,$I43+M$2)) -> 4048 | N43: =IF(ISNA($I43),0,INDEX(Transmission!$M$5:$M$15000,$I43+N$2)) -> 4048 | O43: =IF(ISNA($I43),0,INDEX(Transmission!$M$5:$M$15000,$I43+O$2)) -> 3900.84 | P43: =IF(ISNA($I43),0,INDEX(Transmission!$M$5:$M$15000,$I43+P$2)) -> 3606.06 | Q43: =IF(ISNA($I43),0,INDEX(Transmission!$M$5:$M$15000,$I43+Q$2)) -> 4048 | R43: =IF(ISNA($I43),0,INDEX(Transmission!$M$5:$M$15000,$I43+R$2)) -> 4048 | S43: =IF(ISNA($I43),0,INDEX(Transmission!$M$5:$M$15000,$I43+S$2)) -> 4048 | T43: =IF(ISNA($I43),0,INDEX(Transmission!$M$5:$M$15000,$I43+T$2)) -> 923.27 | U43: =IF(ISNA($I43),0,INDEX(Transmission!$M$5:$M$15000,$I43+U$2)) -> 1571.16 | V43: =IF(ISNA($I43),0,INDEX(Transmission!$M$5:$M$15000,$I43+V$2)) -> 3715.58 | W43: =IF(ISNA($I43),0,INDEX(Transmission!$M$5:$M$15000,$I43+W$2)) -> 4048 | X43: =IF(ISNA($I43),0,INDEX(Transmission!$M$5:$M$15000,$I43+X$2)) -> 4048 | Y43: =IF(ISNA($I43),0,INDEX(Transmission!$M$5:$M$15000,$I43+Y$2)) -> 4048 | Z43: =IF(ISNA($I43),0,INDEX(Transmission!$M$5:$M$15000,$I43+Z$2)) -> 4048 | AA43: =IF(ISNA($I43),0,INDEX(Transmission!$M$5:$M$15000,$I43+AA$2)) -> 4048 | AB43: =IF(ISNA($I43),0,INDEX(Transmission!$M$5:$M$15000,$I43+AB$2)) -> 2647.72 | AC43: =IF(ISNA($I43),0,INDEX(Transmission!$M$5:$M$15000,$I43+AC$2)) -> 4048 | AD43: 4048 | AE43: 3.81802988 | AF43: 3.81802988 | AG43: 0 | AH43: 4048 | AI43: 1208 | AJ43: 0 | AL43: =MATCH("2030"&$A43,Transmission!$Y$5:$Y$15000,0) -> 5881 | AM43: =IF(ISNA($AL43),0,INDEX(Transmission!$AI$5:$AI$15000,$AL43+AM$2)) -> 825.86 | AN43: =IF(ISNA($AL43),0,INDEX(Transmission!$AI$5:$AI$15000,$AL43+AN$2)) -> 0 | AO43: =IF(ISNA($AL43),0,INDEX(Transmission!$AI$5:$AI$15000,$AL43+AO$2)) -> 0 | AP43: =IF(ISNA($AL43),0,INDEX(Transmission!$AI$5:$AI$15000,$AL43+AP$2)) -> 0 | AQ43: =IF(ISNA($AL43),0,INDEX(Transmission!$AI$5:$AI$15000,$AL43+AQ$2)) -> 0 | AR43: =IF(ISNA($AL43),0,INDEX(Transmission!$AI$5:$AI$15000,$AL43+AR$2)) -> 0 | AS43: =IF(ISNA($AL43),0,INDEX(Transmission!$AI$5:$AI$15000,$AL43+AS$2)) -> 0 | AT43: =IF(ISNA($AL43),0,INDEX(Transmission!$AI$5:$AI$15000,$AL43+AT$2)) -> 631.78 | AU43: =IF(ISNA($AL43),0,INDEX(Transmission!$AI$5:$AI$15000,$AL43+AU$2)) -> 0 | AV43: =IF(ISNA($AL43),0,INDEX(Transmission!$AI$5:$AI$15000,$AL43+AV$2)) -> 561.4 | AW43: =IF(ISNA($AL43),0,INDEX(Transmission!$AI$5:$AI$15000,$AL43+AW$2)) -> 223.7 | AX43: =IF(ISNA($AL43),0,INDEX(Transmission!$AI$5:$AI$15000,$AL43+AX$2)) -> 1255.14 | AY43: =IF(ISNA($AL43),0,INDEX(Transmission!$AI$5:$AI$15000,$AL43+AY$2)) -> 821.87 | AZ43: =IF(ISNA($AL43),0,INDEX(Transmission!$AI$5:$AI$15000,$AL43+AZ$2)) -> 0 | BA43: =IF(ISNA($AL43),0,INDEX(Transmission!$AI$5:$AI$15000,$AL43+BA$2)) -> 414.28 | BB43: =IF(ISNA($AL43),0,INDEX(Transmission!$AI$5:$AI$15000,$AL43+BB$2)) -> 1296.73 | BC43: =IF(ISNA($AL43),0,INDEX(Transmission!$AI$5:$AI$15000,$AL43+BC$2)) -> 1867.06 | BD43: =IF(ISNA($AL43),0,INDEX(Transmission!$AI$5:$AI$15000,$AL43+BD$2)) -> 0 | BE43: =IF(ISNA($AL43),0,INDEX(Transmission!$AI$5:$AI$15000,$AL43+BE$2)) -> 0 | BF43: =IF(ISNA($AL43),0,INDEX(Transmission!$AI$5:$AI$15000,$AL43+BF$2)) -> 569.42 | BG43: 1867.06 | BI43: 3800 | BJ43: 0 | BK43: 0 | BL43: 4192.39 | BM43: 21371.27 | BN43: 121.7663007 | BO43: 0 | BP43: 7766.16 | BQ43: 115.2873294 | BR43: 0 | BS43: 0 | BT43: 8095.44 | BU43: 13049.43 | BV43: 4073.165277 | BW43: 0 | BX43: 7.99999998e-05 | BY43: 0.0001316666667 | BZ43: 0 | CA43: 209.1 | CB43: 0 | CC43: 0 | CD43: 1488.03 | CE43: 14774.28 | CF43: 248.0054158 | CG43: 0.0005999999998 | CH43: 0.0006199999998 | CI43: 248.0054158 | CK43: 248.0054158 | CL43: 0.0001316666667 | CN43: 3800 | CO43: 960 | DX43: 1 | DY43: MISO_W_2_MISO_MO-IL | DZ43: 0 | EA43: 0 | EB43: 121.7663007 | EC43: 4953.902171 | ED43: 115.2873294 | EE43: 2113.035763 | EF43: 4073.165277 | EG43: 0 | EH43: 0 | EI43: 248.0054158 | EJ43: 0 | EK43: 3348.13779 | EL43: 0.0003983333333 | EM43: 0.0002038443527 | EN43: 0.0004049999999 | EO43: 0.0001956928378 | EQ43: MISO_WUMS_2_MISO_MI | ER43: 18.92666804
A44: MISO_W_2_MISO_WUMS | B44: MISO_W | C44: MISO_WUMS | D44: 0 | E44: 0 | F44: 0 | G44: =VLOOKUP($A44,Transmission!$E$5:$L$15000,8,0) -> 1747 | H44: =VLOOKUP($A44,Transmission!$AA$5:$AH$15000,8,0) -> 1629 | I44: =MATCH($H$1&$A44,Transmission!$C$5:$C$15000,0) -> 5881 | J44: =IF(ISNA($I44),0,INDEX(Transmission!$M$5:$M$15000,$I44+J$2)) -> 572.91 | K44: =IF(ISNA($I44),0,INDEX(Transmission!$M$5:$M$15000,$I44+K$2)) -> 1271.85 | L44: =IF(ISNA($I44),0,INDEX(Transmission!$M$5:$M$15000,$I44+L$2)) -> 1053.54 | M44: =IF(ISNA($I44),0,INDEX(Transmission!$M$5:$M$15000,$I44+M$2)) -> 77.57 | N44: =IF(ISNA($I44),0,INDEX(Transmission!$M$5:$M$15000,$I44+N$2)) -> 0 | O44: =IF(ISNA($I44),0,INDEX(Transmission!$M$5:$M$15000,$I44+O$2)) -> 0 | P44: =IF(ISNA($I44),0,INDEX(Transmission!$M$5:$M$15000,$I44+P$2)) -> 0 | Q44: =IF(ISNA($I44),0,INDEX(Transmission!$M$5:$M$15000,$I44+Q$2)) -> 1157.73 | R44: =IF(ISNA($I44),0,INDEX(Transmission!$M$5:$M$15000,$I44+R$2)) -> 324.02 | S44: =IF(ISNA($I44),0,INDEX(Transmission!$M$5:$M$15000,$I44+S$2)) -> 1747 | T44: =IF(ISNA($I44),0,INDEX(Transmission!$M$5:$M$15000,$I44+T$2)) -> 0 | U44: =IF(ISNA($I44),0,INDEX(Transmission!$M$5:$M$15000,$I44+U$2)) -> 1747 | V44: =IF(ISNA($I44),0,INDEX(Transmission!$M$5:$M$15000,$I44+V$2)) -> 1747 | W44: =IF(ISNA($I44),0,INDEX(Transmission!$M$5:$M$15000,$I44+W$2)) -> 1747 | X44: =IF(ISNA($I44),0,INDEX(Transmission!$M$5:$M$15000,$I44+X$2)) -> 1747 | Y44: =IF(ISNA($I44),0,INDEX(Transmission!$M$5:$M$15000,$I44+Y$2)) -> 1747 | Z44: =IF(ISNA($I44),0,INDEX(Transmission!$M$5:$M$15000,$I44+Z$2)) -> 1747 | AA44: =IF(ISNA($I44),0,INDEX(Transmission!$M$5:$M$15000,$I44+AA$2)) -> 1747 | AB44: =IF(ISNA($I44),0,INDEX(Transmission!$M$5:$M$15000,$I44+AB$2)) -> 1206.44 | AC44: =IF(ISNA($I44),0,INDEX(Transmission!$M$5:$M$15000,$I44+AC$2)) -> 1747 | AD44: 1747 | AE44: 1.328055006 | AF44: 1.328055006 | AG44: 0 | AH44: 1747 | AI44: 1255 | AJ44: 0 | AL44: =MATCH("2030"&$A44,Transmission!$Y$5:$Y$15000,0) -> 5901 | AM44: =IF(ISNA($AL44),0,INDEX(Transmission!$AI$5:$AI$15000,$AL44+AM$2)) -> 0 | AN44: =IF(ISNA($AL44),0,INDEX(Transmission!$AI$5:$AI$15000,$AL44+AN$2)) -> 0 | AO44: =IF(ISNA($AL44),0,INDEX(Transmission!$AI$5:$AI$15000,$AL44+AO$2)) -> 0 | AP44: =IF(ISNA($AL44),0,INDEX(Transmission!$AI$5:$AI$15000,$AL44+AP$2)) -> 0 | AQ44: =IF(ISNA($AL44),0,INDEX(Transmission!$AI$5:$AI$15000,$AL44+AQ$2)) -> 0 | AR44: =IF(ISNA($AL44),0,INDEX(Transmission!$AI$5:$AI$15000,$AL44+AR$2)) -> 0 | AS44: =IF(ISNA($AL44),0,INDEX(Transmission!$AI$5:$AI$15000,$AL44+AS$2)) -> 0 | AT44: =IF(ISNA($AL44),0,INDEX(Transmission!$AI$5:$AI$15000,$AL44+AT$2)) -> 0 | AU44: =IF(ISNA($AL44),0,INDEX(Transmission!$AI$5:$AI$15000,$AL44+AU$2)) -> 0 | AV44: =IF(ISNA($AL44),0,INDEX(Transmission!$AI$5:$AI$15000,$AL44+AV$2)) -> 1476.23 | AW44: =IF(ISNA($AL44),0,INDEX(Transmission!$AI$5:$AI$15000,$AL44+AW$2)) -> 0 | AX44: =IF(ISNA($AL44),0,INDEX(Transmission!$AI$5:$AI$15000,$AL44+AX$2)) -> 0 | AY44: =IF(ISNA($AL44),0,INDEX(Transmission!$AI$5:$AI$15000,$AL44+AY$2)) -> 0 | AZ44: =IF(ISNA($AL44),0,INDEX(Transmission!$AI$5:$AI$15000,$AL44+AZ$2)) -> 0 | BA44: =IF(ISNA($AL44),0,INDEX(Transmission!$AI$5:$AI$15000,$AL44+BA$2)) -> 0 | BB44: =IF(ISNA($AL44),0,INDEX(Transmission!$AI$5:$AI$15000,$AL44+BB$2)) -> 6.21 | BC44: =IF(ISNA($AL44),0,INDEX(Transmission!$AI$5:$AI$15000,$AL44+BC$2)) -> 0 | BD44: =IF(ISNA($AL44),0,INDEX(Transmission!$AI$5:$AI$15000,$AL44+BD$2)) -> 0 | BE44: =IF(ISNA($AL44),0,INDEX(Transmission!$AI$5:$AI$15000,$AL44+BE$2)) -> 0 | BF44: =IF(ISNA($AL44),0,INDEX(Transmission!$AI$5:$AI$15000,$AL44+BF$2)) -> 1305.12 | BG44: 1476.23 | BI44: 1629 | BJ44: 0 | BK44: 0 | BL44: 2413.05 | BM44: 18229.42 | BN44: 37.80629244 | BO44: 0 | BP44: 1781.59 | BQ44: 0.0002394556114 | BR44: 0 | BS44: 0 | BT44: 2179.81 | BU44: 3802.31 | BV44: 2127.294474 | BW44: 0 | BX44: 1745.43 | BY44: 0.000200726721 | BZ44: 0 | CA44: 6.000000008e-05 | CB44: 0 | CC44: 0 | CD44: 2974.68 | CE44: 7340.47 | CF44: 117.8344794 | CG44: 2626.28 | CH44: 2626.28 | CI44: 117.8344794 | CK44: 117.8344794 | CL44: 0.0002045929742 | CN44: 1629 | CO44: 1137 | DX44: 1 | DY44: MISO_W_2_MISO_WUMS | DZ44: 0 | EA44: 0 | EB44: 37.80629244 | EC44: 5698.483476 | ED44: 0 | EE44: 436.9835342 | EF44: 2127.294474 | EG44: 0 | EH44: 0 | EI44: 117.8344794 | EJ44: 0 | EK44: 256.8483149 | EL44: 145.3935862 | EM44: 0.0001316666667 | EN44: 159.9915683 | EO44: 0.0001316666667 | EQ44: MISO_WUMS_2_MISO_W | ER44: 0.0001316666667
A45: MISO_W_2_NE | B45: MISO_W | C45: NE | D45: 4 | E45: 3 | F45: 7 | G45: =VLOOKUP($A45,Transmission!$E$5:$L$15000,8,0) ->  | H45: =VLOOKUP($A45,Transmission!$AA$5:$AH$15000,8,0) -> 2800 | I45: =MATCH($H$1&$A45,Transmission!$C$5:$C$15000,0) ->  | J45: =IF(ISNA($I45),0,INDEX(Transmission!$M$5:$M$15000,$I45+J$2)) -> 0 | K45: =IF(ISNA($I45),0,INDEX(Transmission!$M$5:$M$15000,$I45+K$2)) -> 0 | L45: =IF(ISNA($I45),0,INDEX(Transmission!$M$5:$M$15000,$I45+L$2)) -> 0 | M45: =IF(ISNA($I45),0,INDEX(Transmission!$M$5:$M$15000,$I45+M$2)) -> 0 | N45: =IF(ISNA($I45),0,INDEX(Transmission!$M$5:$M$15000,$I45+N$2)) -> 0 | O45: =IF(ISNA($I45),0,INDEX(Transmission!$M$5:$M$15000,$I45+O$2)) -> 0 | P45: =IF(ISNA($I45),0,INDEX(Transmission!$M$5:$M$15000,$I45+P$2)) -> 0 | Q45: =IF(ISNA($I45),0,INDEX(Transmission!$M$5:$M$15000,$I45+Q$2)) -> 0 | R45: =IF(ISNA($I45),0,INDEX(Transmission!$M$5:$M$15000,$I45+R$2)) -> 0 | S45: =IF(ISNA($I45),0,INDEX(Transmission!$M$5:$M$15000,$I45+S$2)) -> 0 | T45: =IF(ISNA($I45),0,INDEX(Transmission!$M$5:$M$15000,$I45+T$2)) -> 0 | U45: =IF(ISNA($I45),0,INDEX(Transmission!$M$5:$M$15000,$I45+U$2)) -> 0 | V45: =IF(ISNA($I45),0,INDEX(Transmission!$M$5:$M$15000,$I45+V$2)) -> 0 | W45: =IF(ISNA($I45),0,INDEX(Transmission!$M$5:$M$15000,$I45+W$2)) -> 0 | X45: =IF(ISNA($I45),0,INDEX(Transmission!$M$5:$M$15000,$I45+X$2)) -> 0 | Y45: =IF(ISNA($I45),0,INDEX(Transmission!$M$5:$M$15000,$I45+Y$2)) -> 0 | Z45: =IF(ISNA($I45),0,INDEX(Transmission!$M$5:$M$15000,$I45+Z$2)) -> 0 | AA45: =IF(ISNA($I45),0,INDEX(Transmission!$M$5:$M$15000,$I45+AA$2)) -> 0 | AB45: =IF(ISNA($I45),0,INDEX(Transmission!$M$5:$M$15000,$I45+AB$2)) -> 0 | AC45: =IF(ISNA($I45),0,INDEX(Transmission!$M$5:$M$15000,$I45+AC$2)) -> 0 | AD45: 0 | AE45: 0 | AF45: 0 | AG45: 2.4372822 | AH45: =IF(ISNA(G45),IF(ISNA(AI45),G45,AI45-CO45+CN45),G45) -> 4814 | AI45: 3614 | AJ45: 3614 | AL45: =MATCH("2030"&$A45,Transmission!$Y$5:$Y$15000,0) -> 5921 | AM45: =IF(ISNA($AL45),0,INDEX(Transmission!$AI$5:$AI$15000,$AL45+AM$2)) -> 0 | AN45: =IF(ISNA($AL45),0,INDEX(Transmission!$AI$5:$AI$15000,$AL45+AN$2)) -> 0 | AO45: =IF(ISNA($AL45),0,INDEX(Transmission!$AI$5:$AI$15000,$AL45+AO$2)) -> 0 | AP45: =IF(ISNA($AL45),0,INDEX(Transmission!$AI$5:$AI$15000,$AL45+AP$2)) -> 0 | AQ45: =IF(ISNA($AL45),0,INDEX(Transmission!$AI$5:$AI$15000,$AL45+AQ$2)) -> 0 | AR45: =IF(ISNA($AL45),0,INDEX(Transmission!$AI$5:$AI$15000,$AL45+AR$2)) -> 0 | AS45: =IF(ISNA($AL45),0,INDEX(Transmission!$AI$5:$AI$15000,$AL45+AS$2)) -> 0 | AT45: =IF(ISNA($AL45),0,INDEX(Transmission!$AI$5:$AI$15000,$AL45+AT$2)) -> 0 | AU45: =IF(ISNA($AL45),0,INDEX(Transmission!$AI$5:$AI$15000,$AL45+AU$2)) -> 0 | AV45: =IF(ISNA($AL45),0,INDEX(Transmission!$AI$5:$AI$15000,$AL45+AV$2)) -> 0 | AW45: =IF(ISNA($AL45),0,INDEX(Transmission!$AI$5:$AI$15000,$AL45+AW$2)) -> 0 | AX45: =IF(ISNA($AL45),0,INDEX(Transmission!$AI$5:$AI$15000,$AL45+AX$2)) -> 0 | AY45: =IF(ISNA($AL45),0,INDEX(Transmission!$AI$5:$AI$15000,$AL45+AY$2)) -> 0 | AZ45: =IF(ISNA($AL45),0,INDEX(Transmission!$AI$5:$AI$15000,$AL45+AZ$2)) -> 0 | BA45: =IF(ISNA($AL45),0,INDEX(Transmission!$AI$5:$AI$15000,$AL45+BA$2)) -> 0 | BB45: =IF(ISNA($AL45),0,INDEX(Transmission!$AI$5:$AI$15000,$AL45+BB$2)) -> 0 | BC45: =IF(ISNA($AL45),0,INDEX(Transmission!$AI$5:$AI$15000,$AL45+BC$2)) -> 0 | BD45: =IF(ISNA($AL45),0,INDEX(Transmission!$AI$5:$AI$15000,$AL45+BD$2)) -> 0 | BE45: =IF(ISNA($AL45),0,INDEX(Transmission!$AI$5:$AI$15000,$AL45+BE$2)) -> 0 | BF45: =IF(ISNA($AL45),0,INDEX(Transmission!$AI$5:$AI$15000,$AL45+BF$2)) -> 0 | BG45: 0 | BI45: 2800 | BJ45: 0 | BK45: 0 | BL45: 0.000395 | BM45: 0.000395 | BN45: 0.0001316666667 | BO45: 0 | BP45: 0.000395 | BQ45: 0.0001316666667 | BR45: 0 | BS45: 0 | BT45: 0 | BU45: 0 | BV45: 0.0001316666667 | BW45: 0 | BX45: 0 | BY45: 0.0001316666667 | BZ45: 0 | CA45: 0 | CB45: 0 | CC45: 0 | CD45: 0 | CE45: 0 | CF45: 0.0001316666667 | CG45: 0 | CH45: 0 | CI45: 0.0001316666667 | CK45: 0.0001316666667 | CL45: 2013.585853 | CN45: 2800 | CO45: 1600 | DX45: 1 | DY45: MISO_W_2_NE | DZ45: 0 | EA45: 0 | EB45: 0 | EC45: 0 | ED45: 0 | EE45: 0 | EF45: 0 | EG45: 0 | EH45: 0 | EI45: 0 | EJ45: 2013.585853 | EK45: 0 | EL45: 0.0001316666667 | EM45: 1245.704595 | EN45: 0.0001316666667 | EO45: 621.4870102 | EQ45: MISO_WUMS_2_PJM_ROR | ER45: 0.0002648735247
A46: MISO_W_2_IESO | B46: MISO_W | C46: IESO | D46: 5 | E46: 3 | F46: 8 | G46: =VLOOKUP($A46,Transmission!$E$5:$L$15000,8,0) -> 145 | H46: =VLOOKUP($A46,Transmission!$AA$5:$AH$15000,8,0) ->  | I46: =MATCH($H$1&$A46,Transmission!$C$5:$C$15000,0) -> 5821 | J46: =IF(ISNA($I46),0,INDEX(Transmission!$M$5:$M$15000,$I46+J$2)) -> 0 | K46: =IF(ISNA($I46),0,INDEX(Transmission!$M$5:$M$15000,$I46+K$2)) -> 0 | L46: =IF(ISNA($I46),0,INDEX(Transmission!$M$5:$M$15000,$I46+L$2)) -> 0 | M46: =IF(ISNA($I46),0,INDEX(Transmission!$M$5:$M$15000,$I46+M$2)) -> 0 | N46: =IF(ISNA($I46),0,INDEX(Transmission!$M$5:$M$15000,$I46+N$2)) -> 0 | O46: =IF(ISNA($I46),0,INDEX(Transmission!$M$5:$M$15000,$I46+O$2)) -> 0 | P46: =IF(ISNA($I46),0,INDEX(Transmission!$M$5:$M$15000,$I46+P$2)) -> 0 | Q46: =IF(ISNA($I46),0,INDEX(Transmission!$M$5:$M$15000,$I46+Q$2)) -> 0 | R46: =IF(ISNA($I46),0,INDEX(Transmission!$M$5:$M$15000,$I46+R$2)) -> 0 | S46: =IF(ISNA($I46),0,INDEX(Transmission!$M$5:$M$15000,$I46+S$2)) -> 0 | T46: =IF(ISNA($I46),0,INDEX(Transmission!$M$5:$M$15000,$I46+T$2)) -> 0 | U46: =IF(ISNA($I46),0,INDEX(Transmission!$M$5:$M$15000,$I46+U$2)) -> 0 | V46: =IF(ISNA($I46),0,INDEX(Transmission!$M$5:$M$15000,$I46+V$2)) -> 0 | W46: =IF(ISNA($I46),0,INDEX(Transmission!$M$5:$M$15000,$I46+W$2)) -> 145 | X46: =IF(ISNA($I46),0,INDEX(Transmission!$M$5:$M$15000,$I46+X$2)) -> 145 | Y46: =IF(ISNA($I46),0,INDEX(Transmission!$M$5:$M$15000,$I46+Y$2)) -> 145 | Z46: =IF(ISNA($I46),0,INDEX(Transmission!$M$5:$M$15000,$I46+Z$2)) -> 145 | AA46: =IF(ISNA($I46),0,INDEX(Transmission!$M$5:$M$15000,$I46+AA$2)) -> 0 | AB46: =IF(ISNA($I46),0,INDEX(Transmission!$M$5:$M$15000,$I46+AB$2)) -> 0 | AC46: =IF(ISNA($I46),0,INDEX(Transmission!$M$5:$M$15000,$I46+AC$2)) -> 145 | AD46: 145 | AE46: 0.05235559361 | AF46: 0.05235559361 | AG46: 0.1245907534 | AH46: =IF(ISNA(G46),IF(ISNA(AI46),G46,AI46-CO46+CN46),G46) -> 145 | AI46: 195 | AJ46: 195 | AL46: =MATCH("2030"&$A46,Transmission!$Y$5:$Y$15000,0) ->  | AM46: =IF(ISNA($AL46),0,INDEX(Transmission!$AI$5:$AI$15000,$AL46+AM$2)) -> 0 | AN46: =IF(ISNA($AL46),0,INDEX(Transmission!$AI$5:$AI$15000,$AL46+AN$2)) -> 0 | AO46: =IF(ISNA($AL46),0,INDEX(Transmission!$AI$5:$AI$15000,$AL46+AO$2)) -> 0 | AP46: =IF(ISNA($AL46),0,INDEX(Transmission!$AI$5:$AI$15000,$AL46+AP$2)) -> 0 | AQ46: =IF(ISNA($AL46),0,INDEX(Transmission!$AI$5:$AI$15000,$AL46+AQ$2)) -> 0 | AR46: =IF(ISNA($AL46),0,INDEX(Transmission!$AI$5:$AI$15000,$AL46+AR$2)) -> 0 | AS46: =IF(ISNA($AL46),0,INDEX(Transmission!$AI$5:$AI$15000,$AL46+AS$2)) -> 0 | AT46: =IF(ISNA($AL46),0,INDEX(Transmission!$AI$5:$AI$15000,$AL46+AT$2)) -> 0 | AU46: =IF(ISNA($AL46),0,INDEX(Transmission!$AI$5:$AI$15000,$AL46+AU$2)) -> 0 | AV46: =IF(ISNA($AL46),0,INDEX(Transmission!$AI$5:$AI$15000,$AL46+AV$2)) -> 0 | AW46: =IF(ISNA($AL46),0,INDEX(Transmission!$AI$5:$AI$15000,$AL46+AW$2)) -> 0 | AX46: =IF(ISNA($AL46),0,INDEX(Transmission!$AI$5:$AI$15000,$AL46+AX$2)) -> 0 | AY46: =IF(ISNA($AL46),0,INDEX(Transmission!$AI$5:$AI$15000,$AL46+AY$2)) -> 0 | AZ46: =IF(ISNA($AL46),0,INDEX(Transmission!$AI$5:$AI$15000,$AL46+AZ$2)) -> 0 | BA46: =IF(ISNA($AL46),0,INDEX(Transmission!$AI$5:$AI$15000,$AL46+BA$2)) -> 0 | BB46: =IF(ISNA($AL46),0,INDEX(Transmission!$AI$5:$AI$15000,$AL46+BB$2)) -> 0 | BC46: =IF(ISNA($AL46),0,INDEX(Transmission!$AI$5:$AI$15000,$AL46+BC$2)) -> 0 | BD46: =IF(ISNA($AL46),0,INDEX(Transmission!$AI$5:$AI$15000,$AL46+BD$2)) -> 0 | BE46: =IF(ISNA($AL46),0,INDEX(Transmission!$AI$5:$AI$15000,$AL46+BE$2)) -> 0 | BF46: =IF(ISNA($AL46),0,INDEX(Transmission!$AI$5:$AI$15000,$AL46+BF$2)) -> 0 | BG46: 0 | BI46: 90 | BJ46: 0 | BK46: 0 | BL46: 0.000395 | BM46: 0.000395 | BN46: 0.0001316666667 | BO46: 0 | BP46: 0.000395 | BQ46: 0.0001316666667 | BR46: 0 | BS46: 0 | BT46: 2143.87 | BU46: 2217.05 | BV46: 0.0002048422926 | BW46: 0 | BX46: 0 | BY46: 0.0001316666667 | BZ46: 0 | CA46: 0 | CB46: 0 | CC46: 0 | CD46: 0 | CE46: 0 | CF46: 0.0001316666667 | CG46: 1e-05 | CH46: 1e-05 | CI46: 0.0001316666667 | CK46: 0.0001316666667 | CL46: 55.10920993 | CN46: 90 | CO46: 140 | DX46: 1 | DY46: MISO_W_2_IESO | DZ46: 0 | EA46: 0 | EB46: 0 | EC46: 0 | ED46: 0 | EE46: 0 | EF46: 0 | EG46: 0 | EH46: 0 | EI46: 0 | EJ46: 55.10920993 | EK46: 0 | EL46: 0.0001316666667 | EM46: 40.728046 | EN46: 0.0001316666667 | EO46: 4.208687678 | EQ46: NE_2_MAPP_US | ER46: 0.0001316666667
A47: MISO_W_2_PJM_ROR | B47: MISO_W | C47: PJM_ROR | D47: 0 | E47: 2 | F47: 2 | G47: =VLOOKUP($A47,Transmission!$E$5:$L$15000,8,0) -> 19839 | H47: =VLOOKUP($A47,Transmission!$AA$5:$AH$15000,8,0) -> 773 | I47: =MATCH($H$1&$A47,Transmission!$C$5:$C$15000,0) -> 5901 | J47: =IF(ISNA($I47),0,INDEX(Transmission!$M$5:$M$15000,$I47+J$2)) -> 17761.86 | K47: =IF(ISNA($I47),0,INDEX(Transmission!$M$5:$M$15000,$I47+K$2)) -> 16619.47 | L47: =IF(ISNA($I47),0,INDEX(Transmission!$M$5:$M$15000,$I47+L$2)) -> 6366.91 | M47: =IF(ISNA($I47),0,INDEX(Transmission!$M$5:$M$15000,$I47+M$2)) -> 8282.18 | N47: =IF(ISNA($I47),0,INDEX(Transmission!$M$5:$M$15000,$I47+N$2)) -> 8424.8 | O47: =IF(ISNA($I47),0,INDEX(Transmission!$M$5:$M$15000,$I47+O$2)) -> 8886.48 | P47: =IF(ISNA($I47),0,INDEX(Transmission!$M$5:$M$15000,$I47+P$2)) -> 13780.45 | Q47: =IF(ISNA($I47),0,INDEX(Transmission!$M$5:$M$15000,$I47+Q$2)) -> 16769.69 | R47: =IF(ISNA($I47),0,INDEX(Transmission!$M$5:$M$15000,$I47+R$2)) -> 17631.46 | S47: =IF(ISNA($I47),0,INDEX(Transmission!$M$5:$M$15000,$I47+S$2)) -> 18297.96 | T47: =IF(ISNA($I47),0,INDEX(Transmission!$M$5:$M$15000,$I47+T$2)) -> 16491.37 | U47: =IF(ISNA($I47),0,INDEX(Transmission!$M$5:$M$15000,$I47+U$2)) -> 19807.36 | V47: =IF(ISNA($I47),0,INDEX(Transmission!$M$5:$M$15000,$I47+V$2)) -> 19839 | W47: =IF(ISNA($I47),0,INDEX(Transmission!$M$5:$M$15000,$I47+W$2)) -> 19839 | X47: =IF(ISNA($I47),0,INDEX(Transmission!$M$5:$M$15000,$I47+X$2)) -> 19839 | Y47: =IF(ISNA($I47),0,INDEX(Transmission!$M$5:$M$15000,$I47+Y$2)) -> 19839 | Z47: =IF(ISNA($I47),0,INDEX(Transmission!$M$5:$M$15000,$I47+Z$2)) -> 19839 | AA47: =IF(ISNA($I47),0,INDEX(Transmission!$M$5:$M$15000,$I47+AA$2)) -> 19839 | AB47: =IF(ISNA($I47),0,INDEX(Transmission!$M$5:$M$15000,$I47+AB$2)) -> 19839 | AC47: =IF(ISNA($I47),0,INDEX(Transmission!$M$5:$M$15000,$I47+AC$2)) -> 19839 | AD47: 19839 | AE47: 18.05876454 | AF47: 18.05876454 | AG47: 0 | AH47: 19839 | AJ47: 0 | AL47: =MATCH("2030"&$A47,Transmission!$Y$5:$Y$15000,0) -> 5941 | AM47: =IF(ISNA($AL47),0,INDEX(Transmission!$AI$5:$AI$15000,$AL47+AM$2)) -> 773 | AN47: =IF(ISNA($AL47),0,INDEX(Transmission!$AI$5:$AI$15000,$AL47+AN$2)) -> 508.75 | AO47: =IF(ISNA($AL47),0,INDEX(Transmission!$AI$5:$AI$15000,$AL47+AO$2)) -> 0 | AP47: =IF(ISNA($AL47),0,INDEX(Transmission!$AI$5:$AI$15000,$AL47+AP$2)) -> 0 | AQ47: =IF(ISNA($AL47),0,INDEX(Transmission!$AI$5:$AI$15000,$AL47+AQ$2)) -> 0 | AR47: =IF(ISNA($AL47),0,INDEX(Transmission!$AI$5:$AI$15000,$AL47+AR$2)) -> 0 | AS47: =IF(ISNA($AL47),0,INDEX(Transmission!$AI$5:$AI$15000,$AL47+AS$2)) -> 0 | AT47: =IF(ISNA($AL47),0,INDEX(Transmission!$AI$5:$AI$15000,$AL47+AT$2)) -> 0 | AU47: =IF(ISNA($AL47),0,INDEX(Transmission!$AI$5:$AI$15000,$AL47+AU$2)) -> 0 | AV47: =IF(ISNA($AL47),0,INDEX(Transmission!$AI$5:$AI$15000,$AL47+AV$2)) -> 0 | AW47: =IF(ISNA($AL47),0,INDEX(Transmission!$AI$5:$AI$15000,$AL47+AW$2)) -> 0 | AX47: =IF(ISNA($AL47),0,INDEX(Transmission!$AI$5:$AI$15000,$AL47+AX$2)) -> 0 | AY47: =IF(ISNA($AL47),0,INDEX(Transmission!$AI$5:$AI$15000,$AL47+AY$2)) -> 0 | AZ47: =IF(ISNA($AL47),0,INDEX(Transmission!$AI$5:$AI$15000,$AL47+AZ$2)) -> 0 | BA47: =IF(ISNA($AL47),0,INDEX(Transmission!$AI$5:$AI$15000,$AL47+BA$2)) -> 0 | BB47: =IF(ISNA($AL47),0,INDEX(Transmission!$AI$5:$AI$15000,$AL47+BB$2)) -> 772.99 | BC47: =IF(ISNA($AL47),0,INDEX(Transmission!$AI$5:$AI$15000,$AL47+BC$2)) -> 773 | BD47: =IF(ISNA($AL47),0,INDEX(Transmission!$AI$5:$AI$15000,$AL47+BD$2)) -> 0 | BE47: =IF(ISNA($AL47),0,INDEX(Transmission!$AI$5:$AI$15000,$AL47+BE$2)) -> 0 | BF47: =IF(ISNA($AL47),0,INDEX(Transmission!$AI$5:$AI$15000,$AL47+BF$2)) -> 0 | BG47: 773 | BI47: 773 | BJ47: 0 | BK47: 0 | BL47: 28150.9 | BM47: 53786.88 | BN47: 12419.80027 | BO47: 0 | BP47: 0.00061 | BQ47: 0.0002416666667 | BR47: 0 | BS47: 0 | BT47: 14063.43 | BU47: 18438.83 | BV47: 9361.580416 | BW47: 0 | BX47: 0 | BY47: 0.0001316666667 | BZ47: 0 | CA47: 2947.26 | CB47: 0 | CC47: 0 | CD47: 31229.2 | CE47: 50907.64 | CF47: 19066.12014 | CG47: 19768.02 | CH47: 24985.23 | CI47: 19066.12014 | CK47: 19066.12014 | CL47: 0.0001316666667 | CN47: 773 | CO47: 709 | DX47: 1 | DY47: MISO_W_2_PJM_ROR | DZ47: 0 | EA47: 0 | EB47: 12419.80027 | EC47: 31420.81635 | ED47: 0 | EE47: 1285.35936 | EF47: 9361.580416 | EG47: 0 | EH47: 0 | EI47: 19066.12014 | EJ47: 0 | EK47: 36654.4685 | EL47: 6399.873834 | EM47: 0.0001316666667 | EN47: 11217.31165 | EO47: 0.0001316666667 | EQ47: NE_2_MISO_W | ER47: 621.4870102
A48: MISO_W_2_SPP_N | B48: MISO_W | C48: SPP_N | D48: 4 | E48: 3 | F48: 7 | G48: =VLOOKUP($A48,Transmission!$E$5:$L$15000,8,0) -> 3450 | H48: =VLOOKUP($A48,Transmission!$AA$5:$AH$15000,8,0) -> 3200 | I48: =MATCH($H$1&$A48,Transmission!$C$5:$C$15000,0) -> 5921 | J48: =IF(ISNA($I48),0,INDEX(Transmission!$M$5:$M$15000,$I48+J$2)) -> 0 | K48: =IF(ISNA($I48),0,INDEX(Transmission!$M$5:$M$15000,$I48+K$2)) -> 0 | L48: =IF(ISNA($I48),0,INDEX(Transmission!$M$5:$M$15000,$I48+L$2)) -> 0 | M48: =IF(ISNA($I48),0,INDEX(Transmission!$M$5:$M$15000,$I48+M$2)) -> 0 | N48: =IF(ISNA($I48),0,INDEX(Transmission!$M$5:$M$15000,$I48+N$2)) -> 0 | O48: =IF(ISNA($I48),0,INDEX(Transmission!$M$5:$M$15000,$I48+O$2)) -> 0 | P48: =IF(ISNA($I48),0,INDEX(Transmission!$M$5:$M$15000,$I48+P$2)) -> 0 | Q48: =IF(ISNA($I48),0,INDEX(Transmission!$M$5:$M$15000,$I48+Q$2)) -> 0 | R48: =IF(ISNA($I48),0,INDEX(Transmission!$M$5:$M$15000,$I48+R$2)) -> 0 | S48: =IF(ISNA($I48),0,INDEX(Transmission!$M$5:$M$15000,$I48+S$2)) -> 0 | T48: =IF(ISNA($I48),0,INDEX(Transmission!$M$5:$M$15000,$I48+T$2)) -> 0 | U48: =IF(ISNA($I48),0,INDEX(Transmission!$M$5:$M$15000,$I48+U$2)) -> 0 | V48: =IF(ISNA($I48),0,INDEX(Transmission!$M$5:$M$15000,$I48+V$2)) -> 0 | W48: =IF(ISNA($I48),0,INDEX(Transmission!$M$5:$M$15000,$I48+W$2)) -> 0 | X48: =IF(ISNA($I48),0,INDEX(Transmission!$M$5:$M$15000,$I48+X$2)) -> 0 | Y48: =IF(ISNA($I48),0,INDEX(Transmission!$M$5:$M$15000,$I48+Y$2)) -> 3450 | Z48: =IF(ISNA($I48),0,INDEX(Transmission!$M$5:$M$15000,$I48+Z$2)) -> 2589.08 | AA48: =IF(ISNA($I48),0,INDEX(Transmission!$M$5:$M$15000,$I48+AA$2)) -> 0 | AB48: =IF(ISNA($I48),0,INDEX(Transmission!$M$5:$M$15000,$I48+AB$2)) -> 0 | AC48: =IF(ISNA($I48),0,INDEX(Transmission!$M$5:$M$15000,$I48+AC$2)) -> 0 | AD48: 3450 | AE48: 0.03940159817 | AF48: 0.03940159817 | AG48: 0.3479452055 | AH48: 3450 | AI48: 1000 | AJ48: 1000 | AL48: =MATCH("2030"&$A48,Transmission!$Y$5:$Y$15000,0) -> 5961 | AM48: =IF(ISNA($AL48),0,INDEX(Transmission!$AI$5:$AI$15000,$AL48+AM$2)) -> 0 | AN48: =IF(ISNA($AL48),0,INDEX(Transmission!$AI$5:$AI$15000,$AL48+AN$2)) -> 0 | AO48: =IF(ISNA($AL48),0,INDEX(Transmission!$AI$5:$AI$15000,$AL48+AO$2)) -> 0 | AP48: =IF(ISNA($AL48),0,INDEX(Transmission!$AI$5:$AI$15000,$AL48+AP$2)) -> 0 | AQ48: =IF(ISNA($AL48),0,INDEX(Transmission!$AI$5:$AI$15000,$AL48+AQ$2)) -> 0 | AR48: =IF(ISNA($AL48),0,INDEX(Transmission!$AI$5:$AI$15000,$AL48+AR$2)) -> 883.43 | AS48: =IF(ISNA($AL48),0,INDEX(Transmission!$AI$5:$AI$15000,$AL48+AS$2)) -> 2046.14 | AT48: =IF(ISNA($AL48),0,INDEX(Transmission!$AI$5:$AI$15000,$AL48+AT$2)) -> 0 | AU48: =IF(ISNA($AL48),0,INDEX(Transmission!$AI$5:$AI$15000,$AL48+AU$2)) -> 0 | AV48: =IF(ISNA($AL48),0,INDEX(Transmission!$AI$5:$AI$15000,$AL48+AV$2)) -> 0 | AW48: =IF(ISNA($AL48),0,INDEX(Transmission!$AI$5:$AI$15000,$AL48+AW$2)) -> 0 | AX48: =IF(ISNA($AL48),0,INDEX(Transmission!$AI$5:$AI$15000,$AL48+AX$2)) -> 0 | AY48: =IF(ISNA($AL48),0,INDEX(Transmission!$AI$5:$AI$15000,$AL48+AY$2)) -> 0 | AZ48: =IF(ISNA($AL48),0,INDEX(Transmission!$AI$5:$AI$15000,$AL48+AZ$2)) -> 0 | BA48: =IF(ISNA($AL48),0,INDEX(Transmission!$AI$5:$AI$15000,$AL48+BA$2)) -> 0 | BB48: =IF(ISNA($AL48),0,INDEX(Transmission!$AI$5:$AI$15000,$AL48+BB$2)) -> 0 | BC48: =IF(ISNA($AL48),0,INDEX(Transmission!$AI$5:$AI$15000,$AL48+BC$2)) -> 0 | BD48: =IF(ISNA($AL48),0,INDEX(Transmission!$AI$5:$AI$15000,$AL48+BD$2)) -> 0 | BE48: =IF(ISNA($AL48),0,INDEX(Transmission!$AI$5:$AI$15000,$AL48+BE$2)) -> 0 | BF48: =IF(ISNA($AL48),0,INDEX(Transmission!$AI$5:$AI$15000,$AL48+BF$2)) -> 0 | BG48: 2046.14 | BI48: 3200 | BJ48: 0 | BK48: 0 | BL48: 0.000395 | BM48: 0.000395 | BN48: 0.0001316666667 | BO48: 0 | BP48: 0.000395 | BQ48: 0.0001316666667 | BR48: 0 | BS48: 0 | BT48: 0 | BU48: 0 | BV48: 0.0001316666667 | BW48: 0 | BX48: 0 | BY48: 0.0001316666667 | BZ48: 0 | CA48: 1791.67 | CB48: 0 | CC48: 0 | CD48: 0 | CE48: 0 | CF48: 0.0001316666667 | CG48: 0 | CH48: 689.32 | CI48: 0.0001316666667 | CK48: 0.0001316666667 | CL48: 249.7353369 | CN48: 3200 | CO48: 750 | DX48: 1 | DY48: MISO_W_2_SPP_N | DZ48: 0 | EA48: 0 | EB48: 0 | EC48: 0 | ED48: 0 | EE48: 0 | EF48: 0 | EG48: 0 | EH48: 0 | EI48: 0 | EJ48: 249.7353369 | EK48: 0 | EL48: 0.0001316666667 | EM48: 51.51820972 | EN48: 0.0002023248895 | EO48: 66.98704555 | EQ48: NE_2_SPP_N | ER48: 125.5235266
A49: MISO_WUMS_2_MISO_MI | B49: MISO_WUMS | C49: MISO_MI | D49: 0 | E49: 0 | F49: 0 | G49: =VLOOKUP($A49,Transmission!$E$5:$L$15000,8,0) -> 294 | H49: =VLOOKUP($A49,Transmission!$AA$5:$AH$15000,8,0) -> 99 | I49: =MATCH($H$1&$A49,Transmission!$C$5:$C$15000,0) -> 5941 | J49: =IF(ISNA($I49),0,INDEX(Transmission!$M$5:$M$15000,$I49+J$2)) -> 0 | K49: =IF(ISNA($I49),0,INDEX(Transmission!$M$5:$M$15000,$I49+K$2)) -> 294 | L49: =IF(ISNA($I49),0,INDEX(Transmission!$M$5:$M$15000,$I49+L$2)) -> 294 | M49: =IF(ISNA($I49),0,INDEX(Transmission!$M$5:$M$15000,$I49+M$2)) -> 0 | N49: =IF(ISNA($I49),0,INDEX(Transmission!$M$5:$M$15000,$I49+N$2)) -> 0 | O49: =IF(ISNA($I49),0,INDEX(Transmission!$M$5:$M$15000,$I49+O$2)) -> 294 | P49: =IF(ISNA($I49),0,INDEX(Transmission!$M$5:$M$15000,$I49+P$2)) -> 177.94 | Q49: =IF(ISNA($I49),0,INDEX(Transmission!$M$5:$M$15000,$I49+Q$2)) -> 294 | R49: =IF(ISNA($I49),0,INDEX(Transmission!$M$5:$M$15000,$I49+R$2)) -> 0 | S49: =IF(ISNA($I49),0,INDEX(Transmission!$M$5:$M$15000,$I49+S$2)) -> 294 | T49: =IF(ISNA($I49),0,INDEX(Transmission!$M$5:$M$15000,$I49+T$2)) -> 121.98 | U49: =IF(ISNA($I49),0,INDEX(Transmission!$M$5:$M$15000,$I49+U$2)) -> 0 | V49: =IF(ISNA($I49),0,INDEX(Transmission!$M$5:$M$15000,$I49+V$2)) -> 0 | W49: =IF(ISNA($I49),0,INDEX(Transmission!$M$5:$M$15000,$I49+W$2)) -> 0 | X49: =IF(ISNA($I49),0,INDEX(Transmission!$M$5:$M$15000,$I49+X$2)) -> 0 | Y49: =IF(ISNA($I49),0,INDEX(Transmission!$M$5:$M$15000,$I49+Y$2)) -> 200.18 | Z49: =IF(ISNA($I49),0,INDEX(Transmission!$M$5:$M$15000,$I49+Z$2)) -> 294 | AA49: =IF(ISNA($I49),0,INDEX(Transmission!$M$5:$M$15000,$I49+AA$2)) -> 0 | AB49: =IF(ISNA($I49),0,INDEX(Transmission!$M$5:$M$15000,$I49+AB$2)) -> 0 | AC49: =IF(ISNA($I49),0,INDEX(Transmission!$M$5:$M$15000,$I49+AC$2)) -> 0 | AD49: 294 | AE49: 0.0849609589 | AF49: 0.0849609589 | AG49: 0.0998854726 | AH49: 294 | AI49: 312 | AJ49: 312 | AL49: =MATCH("2030"&$A49,Transmission!$Y$5:$Y$15000,0) -> 5981 | AM49: =IF(ISNA($AL49),0,INDEX(Transmission!$AI$5:$AI$15000,$AL49+AM$2)) -> 99 | AN49: =IF(ISNA($AL49),0,INDEX(Transmission!$AI$5:$AI$15000,$AL49+AN$2)) -> 99 | AO49: =IF(ISNA($AL49),0,INDEX(Transmission!$AI$5:$AI$15000,$AL49+AO$2)) -> 99 | AP49: =IF(ISNA($AL49),0,INDEX(Transmission!$AI$5:$AI$15000,$AL49+AP$2)) -> 0 | AQ49: =IF(ISNA($AL49),0,INDEX(Transmission!$AI$5:$AI$15000,$AL49+AQ$2)) -> 99 | AR49: =IF(ISNA($AL49),0,INDEX(Transmission!$AI$5:$AI$15000,$AL49+AR$2)) -> 99 | AS49: =IF(ISNA($AL49),0,INDEX(Transmission!$AI$5:$AI$15000,$AL49+AS$2)) -> 99 | AT49: =IF(ISNA($AL49),0,INDEX(Transmission!$AI$5:$AI$15000,$AL49+AT$2)) -> 99 | AU49: =IF(ISNA($AL49),0,INDEX(Transmission!$AI$5:$AI$15000,$AL49+AU$2)) -> 99 | AV49: =IF(ISNA($AL49),0,INDEX(Transmission!$AI$5:$AI$15000,$AL49+AV$2)) -> 99 | AW49: =IF(ISNA($AL49),0,INDEX(Transmission!$AI$5:$AI$15000,$AL49+AW$2)) -> 99 | AX49: =IF(ISNA($AL49),0,INDEX(Transmission!$AI$5:$AI$15000,$AL49+AX$2)) -> 99 | AY49: =IF(ISNA($AL49),0,INDEX(Transmission!$AI$5:$AI$15000,$AL49+AY$2)) -> 99 | AZ49: =IF(ISNA($AL49),0,INDEX(Transmission!$AI$5:$AI$15000,$AL49+AZ$2)) -> 99 | BA49: =IF(ISNA($AL49),0,INDEX(Transmission!$AI$5:$AI$15000,$AL49+BA$2)) -> 99 | BB49: =IF(ISNA($AL49),0,INDEX(Transmission!$AI$5:$AI$15000,$AL49+BB$2)) -> 0.01 | BC49: =IF(ISNA($AL49),0,INDEX(Transmission!$AI$5:$AI$15000,$AL49+BC$2)) -> 99 | BD49: =IF(ISNA($AL49),0,INDEX(Transmission!$AI$5:$AI$15000,$AL49+BD$2)) -> 49.2 | BE49: =IF(ISNA($AL49),0,INDEX(Transmission!$AI$5:$AI$15000,$AL49+BE$2)) -> 6.57 | BF49: =IF(ISNA($AL49),0,INDEX(Transmission!$AI$5:$AI$15000,$AL49+BF$2)) -> 99 | BG49: 99 | BI49: 99 | BJ49: 0 | BK49: 0 | BL49: 3767.47 | BM49: 24267.07 | BN49: 688.2832844 | BO49: 0 | BP49: 3170.42 | BQ49: 1322.923068 | BR49: 0 | BS49: 0 | BT49: 13964.31 | BU49: 16478.05 | BV49: 48.53690394 | BW49: 0 | BX49: 12715.12 | BY49: 829.7380011 | BZ49: 0 | CA49: 5627.68 | CB49: 0 | CC49: 0 | CD49: 4261.69 | CE49: 8938.85 | CF49: 194.9492501 | CG49: 2686.64 | CH49: 2484.72 | CI49: 194.9492501 | CK49: 194.9492501 | CL49: 140.241601 | CN49: 99 | CO49: 117 | DX49: 1 | DY49: MISO_WUMS_2_MISO_MI | DZ49: 976.8998403 | EA49: 10053.97784 | EB49: 688.2832844 | EC49: 15406.34322 | ED49: 1322.923068 | EE49: 6.846344144 | EF49: 48.53690394 | EG49: 829.7380011 | EH49: 235.1273847 | EI49: 194.9492501 | EJ49: 140.241601 | EK49: 4603.750394 | EL49: 29.38114888 | EM49: 424.0248979 | EN49: 18.92666804 | EO49: 372.0535661 | EQ49: NEISO_2_NYISO_A-F | ER49: 0.0001993298569
A50: MISO_WUMS_2_MISO_W | B50: MISO_WUMS | C50: MISO_W | D50: 0 | E50: 0 | F50: 0 | G50: =VLOOKUP($A50,Transmission!$E$5:$L$15000,8,0) -> 1255 | H50: =VLOOKUP($A50,Transmission!$AA$5:$AH$15000,8,0) -> 1137 | I50: =MATCH($H$1&$A50,Transmission!$C$5:$C$15000,0) -> 5961 | J50: =IF(ISNA($I50),0,INDEX(Transmission!$M$5:$M$15000,$I50+J$2)) -> 0 | K50: =IF(ISNA($I50),0,INDEX(Transmission!$M$5:$M$15000,$I50+K$2)) -> 0 | L50: =IF(ISNA($I50),0,INDEX(Transmission!$M$5:$M$15000,$I50+L$2)) -> 0 | M50: =IF(ISNA($I50),0,INDEX(Transmission!$M$5:$M$15000,$I50+M$2)) -> 0 | N50: =IF(ISNA($I50),0,INDEX(Transmission!$M$5:$M$15000,$I50+N$2)) -> 0 | O50: =IF(ISNA($I50),0,INDEX(Transmission!$M$5:$M$15000,$I50+O$2)) -> 0 | P50: =IF(ISNA($I50),0,INDEX(Transmission!$M$5:$M$15000,$I50+P$2)) -> 0 | Q50: =IF(ISNA($I50),0,INDEX(Transmission!$M$5:$M$15000,$I50+Q$2)) -> 0 | R50: =IF(ISNA($I50),0,INDEX(Transmission!$M$5:$M$15000,$I50+R$2)) -> 0 | S50: =IF(ISNA($I50),0,INDEX(Transmission!$M$5:$M$15000,$I50+S$2)) -> 0 | T50: =IF(ISNA($I50),0,INDEX(Transmission!$M$5:$M$15000,$I50+T$2)) -> 0 | U50: =IF(ISNA($I50),0,INDEX(Transmission!$M$5:$M$15000,$I50+U$2)) -> 0 | V50: =IF(ISNA($I50),0,INDEX(Transmission!$M$5:$M$15000,$I50+V$2)) -> 0 | W50: =IF(ISNA($I50),0,INDEX(Transmission!$M$5:$M$15000,$I50+W$2)) -> 0 | X50: =IF(ISNA($I50),0,INDEX(Transmission!$M$5:$M$15000,$I50+X$2)) -> 0 | Y50: =IF(ISNA($I50),0,INDEX(Transmission!$M$5:$M$15000,$I50+Y$2)) -> 0 | Z50: =IF(ISNA($I50),0,INDEX(Transmission!$M$5:$M$15000,$I50+Z$2)) -> 0 | AA50: =IF(ISNA($I50),0,INDEX(Transmission!$M$5:$M$15000,$I50+AA$2)) -> 0 | AB50: =IF(ISNA($I50),0,INDEX(Transmission!$M$5:$M$15000,$I50+AB$2)) -> 0 | AC50: =IF(ISNA($I50),0,INDEX(Transmission!$M$5:$M$15000,$I50+AC$2)) -> 0 | AD50: 0 | AE50: 0 | AF50: 0 | AG50: 1.328055006 | AH50: 1255 | AI50: 1747 | AJ50: 1747 | AL50: =MATCH("2030"&$A50,Transmission!$Y$5:$Y$15000,0) -> 6001 | AM50: =IF(ISNA($AL50),0,INDEX(Transmission!$AI$5:$AI$15000,$AL50+AM$2)) -> 1137 | AN50: =IF(ISNA($AL50),0,INDEX(Transmission!$AI$5:$AI$15000,$AL50+AN$2)) -> 1137 | AO50: =IF(ISNA($AL50),0,INDEX(Transmission!$AI$5:$AI$15000,$AL50+AO$2)) -> 1137 | AP50: =IF(ISNA($AL50),0,INDEX(Transmission!$AI$5:$AI$15000,$AL50+AP$2)) -> 1137 | AQ50: =IF(ISNA($AL50),0,INDEX(Transmission!$AI$5:$AI$15000,$AL50+AQ$2)) -> 1137 | AR50: =IF(ISNA($AL50),0,INDEX(Transmission!$AI$5:$AI$15000,$AL50+AR$2)) -> 1137 | AS50: =IF(ISNA($AL50),0,INDEX(Transmission!$AI$5:$AI$15000,$AL50+AS$2)) -> 1137 | AT50: =IF(ISNA($AL50),0,INDEX(Transmission!$AI$5:$AI$15000,$AL50+AT$2)) -> 1137 | AU50: =IF(ISNA($AL50),0,INDEX(Transmission!$AI$5:$AI$15000,$AL50+AU$2)) -> 284.28 | AV50: =IF(ISNA($AL50),0,INDEX(Transmission!$AI$5:$AI$15000,$AL50+AV$2)) -> 0 | AW50: =IF(ISNA($AL50),0,INDEX(Transmission!$AI$5:$AI$15000,$AL50+AW$2)) -> 1137 | AX50: =IF(ISNA($AL50),0,INDEX(Transmission!$AI$5:$AI$15000,$AL50+AX$2)) -> 365.09 | AY50: =IF(ISNA($AL50),0,INDEX(Transmission!$AI$5:$AI$15000,$AL50+AY$2)) -> 795.89 | AZ50: =IF(ISNA($AL50),0,INDEX(Transmission!$AI$5:$AI$15000,$AL50+AZ$2)) -> 1137 | BA50: =IF(ISNA($AL50),0,INDEX(Transmission!$AI$5:$AI$15000,$AL50+BA$2)) -> 1137 | BB50: =IF(ISNA($AL50),0,INDEX(Transmission!$AI$5:$AI$15000,$AL50+BB$2)) -> 0 | BC50: =IF(ISNA($AL50),0,INDEX(Transmission!$AI$5:$AI$15000,$AL50+BC$2)) -> 170.99 | BD50: =IF(ISNA($AL50),0,INDEX(Transmission!$AI$5:$AI$15000,$AL50+BD$2)) -> 773.46 | BE50: =IF(ISNA($AL50),0,INDEX(Transmission!$AI$5:$AI$15000,$AL50+BE$2)) -> 720.43 | BF50: =IF(ISNA($AL50),0,INDEX(Transmission!$AI$5:$AI$15000,$AL50+BF$2)) -> 0 | BG50: 1137 | BI50: 1137 | BJ50: 0 | BK50: 0 | BL50: 2099.63 | BM50: 5359.14 | BN50: 0.0002162783611 | BO50: 0 | BP50: 2872.46 | BQ50: 102.7336388 | BR50: 0 | BS50: 0 | BT50: 8.000000003e-05 | BU50: 3.99999999e-05 | BV50: 0.0001316666667 | BW50: 0 | BX50: 3698.09 | BY50: 0.0001796553643 | BZ50: 0 | CA50: 5467.58 | CB50: 0 | CC50: 0 | CD50: 976.81 | CE50: 4368.75 | CF50: 0.0002045929742 | CG50: 0 | CH50: 0 | CI50: 0.0002045929742 | CK50: 0.0002045929742 | CL50: 117.8344794 | CN50: 1137 | CO50: 1629 | DX50: 1 | DY50: MISO_WUMS_2_MISO_W | DZ50: 892.3354258 | EA50: 3101.325272 | EB50: 0 | EC50: 0 | ED50: 102.7336388 | EE50: 0 | EF50: 0 | EG50: 0 | EH50: 0 | EI50: 0 | EJ50: 117.8344794 | EK50: 0 | EL50: 0.0001316666667 | EM50: 145.3935862 | EN50: 0.0001316666667 | EO50: 159.9915683 | EQ50: NEISO_2_NYISO_G-I | ER50: 0.0002316666667
A51: MISO_WUMS_2_PJM_ROR | B51: MISO_WUMS | C51: PJM_ROR | D51: 0 | E51: 2 | F51: 2 | G51: =VLOOKUP($A51,Transmission!$E$5:$L$15000,8,0) -> 1600 | H51: =VLOOKUP($A51,Transmission!$AA$5:$AH$15000,8,0) -> 1600 | I51: =MATCH($H$1&$A51,Transmission!$C$5:$C$15000,0) -> 5981 | J51: =IF(ISNA($I51),0,INDEX(Transmission!$M$5:$M$15000,$I51+J$2)) -> 0 | K51: =IF(ISNA($I51),0,INDEX(Transmission!$M$5:$M$15000,$I51+K$2)) -> 0 | L51: =IF(ISNA($I51),0,INDEX(Transmission!$M$5:$M$15000,$I51+L$2)) -> 0 | M51: =IF(ISNA($I51),0,INDEX(Transmission!$M$5:$M$15000,$I51+M$2)) -> 0 | N51: =IF(ISNA($I51),0,INDEX(Transmission!$M$5:$M$15000,$I51+N$2)) -> 388.25 | O51: =IF(ISNA($I51),0,INDEX(Transmission!$M$5:$M$15000,$I51+O$2)) -> 595.83 | P51: =IF(ISNA($I51),0,INDEX(Transmission!$M$5:$M$15000,$I51+P$2)) -> 941.97 | Q51: =IF(ISNA($I51),0,INDEX(Transmission!$M$5:$M$15000,$I51+Q$2)) -> 0 | R51: =IF(ISNA($I51),0,INDEX(Transmission!$M$5:$M$15000,$I51+R$2)) -> 0 | S51: =IF(ISNA($I51),0,INDEX(Transmission!$M$5:$M$15000,$I51+S$2)) -> 0 | T51: =IF(ISNA($I51),0,INDEX(Transmission!$M$5:$M$15000,$I51+T$2)) -> 369.19 | U51: =IF(ISNA($I51),0,INDEX(Transmission!$M$5:$M$15000,$I51+U$2)) -> 0 | V51: =IF(ISNA($I51),0,INDEX(Transmission!$M$5:$M$15000,$I51+V$2)) -> 117.12 | W51: =IF(ISNA($I51),0,INDEX(Transmission!$M$5:$M$15000,$I51+W$2)) -> 630.73 | X51: =IF(ISNA($I51),0,INDEX(Transmission!$M$5:$M$15000,$I51+X$2)) -> 0 | Y51: =IF(ISNA($I51),0,INDEX(Transmission!$M$5:$M$15000,$I51+Y$2)) -> 1600 | Z51: =IF(ISNA($I51),0,INDEX(Transmission!$M$5:$M$15000,$I51+Z$2)) -> 1600 | AA51: =IF(ISNA($I51),0,INDEX(Transmission!$M$5:$M$15000,$I51+AA$2)) -> 1527.4 | AB51: =IF(ISNA($I51),0,INDEX(Transmission!$M$5:$M$15000,$I51+AB$2)) -> 1140.92 | AC51: =IF(ISNA($I51),0,INDEX(Transmission!$M$5:$M$15000,$I51+AC$2)) -> 0 | AD51: 1600 | AE51: 0.3299029395 | AF51: 0.3299029395 | AG51: 0 | AH51: 1600 | AI51: 1467 | AJ51: 0 | AL51: =MATCH("2030"&$A51,Transmission!$Y$5:$Y$15000,0) -> 6021 | AM51: =IF(ISNA($AL51),0,INDEX(Transmission!$AI$5:$AI$15000,$AL51+AM$2)) -> 1600 | AN51: =IF(ISNA($AL51),0,INDEX(Transmission!$AI$5:$AI$15000,$AL51+AN$2)) -> 1600 | AO51: =IF(ISNA($AL51),0,INDEX(Transmission!$AI$5:$AI$15000,$AL51+AO$2)) -> 0 | AP51: =IF(ISNA($AL51),0,INDEX(Transmission!$AI$5:$AI$15000,$AL51+AP$2)) -> 587.15 | AQ51: =IF(ISNA($AL51),0,INDEX(Transmission!$AI$5:$AI$15000,$AL51+AQ$2)) -> 1115.84 | AR51: =IF(ISNA($AL51),0,INDEX(Transmission!$AI$5:$AI$15000,$AL51+AR$2)) -> 1600 | AS51: =IF(ISNA($AL51),0,INDEX(Transmission!$AI$5:$AI$15000,$AL51+AS$2)) -> 1484.27 | AT51: =IF(ISNA($AL51),0,INDEX(Transmission!$AI$5:$AI$15000,$AL51+AT$2)) -> 1600 | AU51: =IF(ISNA($AL51),0,INDEX(Transmission!$AI$5:$AI$15000,$AL51+AU$2)) -> 0 | AV51: =IF(ISNA($AL51),0,INDEX(Transmission!$AI$5:$AI$15000,$AL51+AV$2)) -> 0 | AW51: =IF(ISNA($AL51),0,INDEX(Transmission!$AI$5:$AI$15000,$AL51+AW$2)) -> 711.01 | AX51: =IF(ISNA($AL51),0,INDEX(Transmission!$AI$5:$AI$15000,$AL51+AX$2)) -> 1596.5 | AY51: =IF(ISNA($AL51),0,INDEX(Transmission!$AI$5:$AI$15000,$AL51+AY$2)) -> 1263.22 | AZ51: =IF(ISNA($AL51),0,INDEX(Transmission!$AI$5:$AI$15000,$AL51+AZ$2)) -> 1148.13 | BA51: =IF(ISNA($AL51),0,INDEX(Transmission!$AI$5:$AI$15000,$AL51+BA$2)) -> 0 | BB51: =IF(ISNA($AL51),0,INDEX(Transmission!$AI$5:$AI$15000,$AL51+BB$2)) -> 1593.54 | BC51: =IF(ISNA($AL51),0,INDEX(Transmission!$AI$5:$AI$15000,$AL51+BC$2)) -> 1600 | BD51: =IF(ISNA($AL51),0,INDEX(Transmission!$AI$5:$AI$15000,$AL51+BD$2)) -> 1222.35 | BE51: =IF(ISNA($AL51),0,INDEX(Transmission!$AI$5:$AI$15000,$AL51+BE$2)) -> 7.35 | BF51: =IF(ISNA($AL51),0,INDEX(Transmission!$AI$5:$AI$15000,$AL51+BF$2)) -> 0 | BG51: 1600 | BI51: 1600 | BJ51: 0 | BK51: 0 | BL51: 2917.5 | BM51: 15.2 | BN51: 0.03414939247 | BO51: 0 | BP51: 0.00068 | BQ51: 0.000265 | BR51: 0 | BS51: 0 | BT51: 3906.25 | BU51: 6482.57 | BV51: 0.0001927669346 | BW51: 0 | BX51: 0 | BY51: 0.0001316666667 | BZ51: 0 | CA51: 1177.12 | CB51: 0 | CC51: 0 | CD51: 4292.32 | CE51: 5449.23 | CF51: 0.0002968115558 | CG51: 2901.69 | CH51: 2929.99 | CI51: 0.0002968115558 | CK51: 0.0002968115558 | CL51: 0.0001316666667 | CN51: 1600 | CO51: 1467 | DX51: 1 | DY51: MISO_WUMS_2_PJM_ROR | DZ51: 0 | EA51: 0 | EB51: 0 | EC51: 0 | ED51: 0 | EE51: 0 | EF51: 0 | EG51: 0 | EH51: 0 | EI51: 0 | EJ51: 0 | EK51: 0 | EL51: 0.000288206858 | EM51: 0.0001316666667 | EN51: 0.0002648735247 | EO51: 0.0001316666667 | EQ51: NEISO_2_NYISO_J-K | ER51: 75.56340987
